Workbook

Sheet ACCUEIL
H7: 2019-03-31
A22: Lexique

Sheet Accueilagence
A1: Accueil
E7: =ACCUEIL!H7 -> 2019-03-31

Sheet Accueilsecteur
A1: Accueil
E7: =ACCUEIL!H7 -> 2019-03-31

Sheet AccueilDircom
A1: Accueil
E7: =ACCUEIL!H7 -> 2019-03-31

Sheet DC_FICHE
A1: Accueil
A2: BAROMETRE BDD
A4: UNITE: | B4: DIRECTION COMMERCIALE | K4: ETP perf : | L4: =VLOOKUP(A5,'RECAP DIRCOM'!$G$6:$I$12,3,FALSE) -> 299.15
A5: =VLOOKUP(B5,LISTES!$M$6:$N$12,2,FALSE) -> 262 | B5: BAS-RHIN
C6: Coefficient du critére | E6: Résultats | I6: Ecart au 1ier | M6: Evolution
E7: du 1ier | G7: DIRECTION | I7: Du mois | K7: Au 31/12/2018
A9: RANG au CLASSEMENT GENERAL | I9: =VLOOKUP($A$5,'RECAP DIRCOM'!$G$6:$FE$312,154,FALSE) -> 7 | K9: =VLOOKUP($A$5,'RECAP DIRCOM AN'!$G$6:$FE$312,154,FALSE) -> 5 | M9: =+K9-I9 -> -2
A11: CRITERE CONQUETE | C11: 15%
B12: Evolution nette Clients Bancarisés Principaux (BP +JBP) par ETP | C12: 4% | E12: ='RECAP DIRCOM'!K4 -> -0.4 | G12: =VLOOKUP($A$5,'RECAP DIRCOM'!$G$6:$FE$312,5,FALSE) -> -1.2 | I12: =VLOOKUP($A$5,'RECAP DIRCOM'!$G$6:$FE$312,6,FALSE) -> 88% | K12: =VLOOKUP($A$5,'RECAP DIRCOM AN'!$G$6:$FE$312,6,FALSE) -> 126% | M12: =+K12-I12 -> 38%
B13: Evolution nette relations Premium par ETP | C13: 4% | E13: ='RECAP DIRCOM'!N4 -> 2.1 | G13: =VLOOKUP($A$5,'RECAP DIRCOM'!$G$6:$FE$312,8,FALSE) -> 1.8 | I13: =VLOOKUP($A$5,'RECAP DIRCOM'!$G$6:$FE$312,9,FALSE) -> 15% | K13: =VLOOKUP($A$5,'RECAP DIRCOM AN'!$G$6:$FE$312,9,FALSE) -> 0% | M13: =+K13-I13 -> -15%
B14: Evolution nette Clients Bancarisés Principaux équipés par ETP | C14: 3% | E14: ='RECAP DIRCOM'!Q4 -> -0.0 | G14: =VLOOKUP($A$5,'RECAP DIRCOM'!$G$6:$FE$312,11,FALSE) -> -1.4 | I14: =VLOOKUP($A$5,'RECAP DIRCOM'!$G$6:$FE$312,12,FALSE) -> 143% | K14: =VLOOKUP($A$5,'RECAP DIRCOM AN'!$G$6:$FE$312,12,FALSE) -> 115% | M14: -28%
B15: Evolution nette Clients Pro actif équipés par rapport à l’objectif fixé | C15: 4% | E15: ='RECAP DIRCOM'!T4 -> 93% | G15: =VLOOKUP($A$5,'RECAP DIRCOM'!$G$6:$FE$312,14,FALSE) -> 40% | I15: =VLOOKUP($A$5,'RECAP DIRCOM'!$G$6:$FE$312,15,FALSE) -> 57% | K15: =VLOOKUP($A$5,'RECAP DIRCOM AN'!$G$6:$FE$312,15,FALSE) -> 134% | M15: 78%
A17: CRITERE EQUIPEMENT BANCARISATION | C17: 15%
B18: Ventes nettes forfaits (+ 2 options) par ETP | C18: 3% | E18: ='RECAP DIRCOM'!AF4 -> -4.7 | G18: =VLOOKUP($A$5,'RECAP DIRCOM'!$G$6:$FE$312,26,FALSE) -> -4.8 | I18: =VLOOKUP($A$5,'RECAP DIRCOM'!$G$6:$FE$312,27,FALSE) -> 1% | K18: =VLOOKUP($A$5,'RECAP DIRCOM AN'!$G$6:$FE$312,27,FALSE) -> 0% | M18: =+K18-I18 -> -1%
B19: Ventes nettes IZICARTES par ETP | C19: 3% | E19: ='RECAP DIRCOM'!AI4 -> 6.0 | G19: =VLOOKUP($A$5,'RECAP DIRCOM'!$G$6:$FE$312,29,FALSE) -> 1.0 | I19: =VLOOKUP($A$5,'RECAP DIRCOM'!$G$6:$FE$312,30,FALSE) -> 83% | K19: =VLOOKUP($A$5,'RECAP DIRCOM AN'!$G$6:$FE$312,30,FALSE) -> 18% | M19: -64%
B20: Ventes nettes cartes HDG par ETP | C20: 3% | E20: ='RECAP DIRCOM'!AL4 -> 7.6 | G20: =VLOOKUP($A$5,'RECAP DIRCOM'!$G$6:$FE$312,32,FALSE) -> 2.0 | I20: =VLOOKUP($A$5,'RECAP DIRCOM'!$G$6:$FE$312,33,FALSE) -> 73% | K20: =VLOOKUP($A$5,'RECAP DIRCOM AN'!$G$6:$FE$312,33,FALSE) -> 33% | M20: -41%
B21: Vente nette CB débit différé par ETP | C21: 3% | E21: ='RECAP DIRCOM'!AO4 -> 2.8 | G21: =VLOOKUP($A$5,'RECAP DIRCOM'!$G$6:$FE$312,35,FALSE) -> 0.6 | I21: =VLOOKUP($A$5,'RECAP DIRCOM'!$G$6:$FE$312,36,FALSE) -> 78% | K21: =VLOOKUP($A$5,'RECAP DIRCOM AN'!$G$6:$FE$312,36,FALSE) -> 80% | M21: 2%
B22: Ventes nettes banca Pro Forfaits Pro, Carte pro par rapport à l’objectif | C22: 3% | E22: ='RECAP DIRCOM'!AR4 -> 52% | G22: =VLOOKUP($A$5,'RECAP DIRCOM'!$G$6:$FE$312,38,FALSE) -> 9% | I22: =VLOOKUP($A$5,'RECAP DIRCOM'!$G$6:$FE$312,39,FALSE) -> 82% | K22: =VLOOKUP($A$5,'RECAP DIRCOM AN'!$G$6:$FE$312,39,FALSE) -> 98% | M22: 16%
A24: CRITERE EPARGNE | C24: 15%
B25: Excédents de collecte (y.c DAV) par ETP | C25: 2% | E25: ='RECAP DIRCOM'!BD4 -> 97.1 | G25: =VLOOKUP($A$5,'RECAP DIRCOM'!$G$6:$FE$312,50,FALSE) -> 39.6 | I25: =VLOOKUP($A$5,'RECAP DIRCOM'!$G$6:$FE$312,51,FALSE) -> 59% | K25: =VLOOKUP($A$5,'RECAP DIRCOM AN'!$G$6:$FE$312,51,FALSE) -> 21% | M25: =+K25-I25 -> -38%
B26: CA assurance vie par ETP | C26: 2% | E26: ='RECAP DIRCOM'!BG4 -> 186.9 | G26: =VLOOKUP($A$5,'RECAP DIRCOM'!$G$6:$FE$312,53,FALSE) -> 131.4 | I26: =VLOOKUP($A$5,'RECAP DIRCOM'!$G$6:$FE$312,54,FALSE) -> 30% | K26: =VLOOKUP($A$5,'RECAP DIRCOM AN'!$G$6:$FE$312,54,FALSE) -> 24% | M26: -6%
B27: Activité UC (CA+arbitrage) par ETP | C27: 2% | E27: ='RECAP DIRCOM'!BJ4 -> 67.1 | G27: =VLOOKUP($A$5,'RECAP DIRCOM'!$G$6:$FE$312,56,FALSE) -> 54.8 | I27: =VLOOKUP($A$5,'RECAP DIRCOM'!$G$6:$FE$312,57,FALSE) -> 18% | K27: =VLOOKUP($A$5,'RECAP DIRCOM AN'!$G$6:$FE$312,57,FALSE) -> 20% | M27: 1%
B28: Excédents Assurance-vie par ETP | C28: 2% | E28: ='RECAP DIRCOM'!BM4 -> 79.5 | G28: =VLOOKUP($A$5,'RECAP DIRCOM'!$G$6:$FE$312,59,FALSE) -> 29.8 | I28: =VLOOKUP($A$5,'RECAP DIRCOM'!$G$6:$FE$312,60,FALSE) -> 63% | K28: =VLOOKUP($A$5,'RECAP DIRCOM AN'!$G$6:$FE$312,60,FALSE) -> 94% | M28: 31%
B29: Excédents Epargne Bilan (Hors Emprunts CTO) par ETP | C29: 7% | E29: ='RECAP DIRCOM'!BP4 -> 99.9 | G29: =VLOOKUP($A$5,'RECAP DIRCOM'!$G$6:$FE$312,62,FALSE) -> 56.4 | I29: =VLOOKUP($A$5,'RECAP DIRCOM'!$G$6:$FE$312,63,FALSE) -> 44% | K29: =VLOOKUP($A$5,'RECAP DIRCOM AN'!$G$6:$FE$312,63,FALSE) -> 0% | M29: -44%
A31: CRITERE CREDITS | C31: 15%
B32: Engagement Conso par ETP (hors clients 9) | C32: 3% | E32: ='RECAP DIRCOM'!CB4 -> 125.2 | G32: =VLOOKUP($A$5,'RECAP DIRCOM'!$G$6:$FE$312,74,FALSE) -> 88.0 | I32: =VLOOKUP($A$5,'RECAP DIRCOM'!$G$6:$FE$312,75,FALSE) -> 30% | K32: =VLOOKUP($A$5,'RECAP DIRCOM AN'!$G$6:$FE$312,75,FALSE) -> 21% | M32: =+K32-I32 -> -9%
B33: % CNP sur Conso en valeur absolue | C33: 2% | E33: ='RECAP DIRCOM'!CE4 -> 96% | G33: =VLOOKUP($A$5,'RECAP DIRCOM'!$G$6:$FE$312,77,FALSE) -> 92% | I33: =VLOOKUP($A$5,'RECAP DIRCOM'!$G$6:$FE$312,78,FALSE) -> 4% | K33: =VLOOKUP($A$5,'RECAP DIRCOM AN'!$G$6:$FE$312,78,FALSE) -> 0% | M33: -4%
B34: Engagements Immo par rapport à l’objectif | C34: 3% | E34: ='RECAP DIRCOM'!CH4 -> 22% | G34: =VLOOKUP($A$5,'RECAP DIRCOM'!$G$6:$FE$312,80,FALSE) -> 19% | I34: =VLOOKUP($A$5,'RECAP DIRCOM'!$G$6:$FE$312,81,FALSE) -> 12% | K34: =VLOOKUP($A$5,'RECAP DIRCOM AN'!$G$6:$FE$312,81,FALSE) -> 29% | M34: 18%
B35: % CNP sur crédits immo en valeur absolue | C35: 2% | E35: ='RECAP DIRCOM'!CK4 -> 81% | G35: =VLOOKUP($A$5,'RECAP DIRCOM'!$G$6:$FE$312,83,FALSE) -> 65% | I35: =VLOOKUP($A$5,'RECAP DIRCOM'!$G$6:$FE$312,84,FALSE) -> 20% | K35: =VLOOKUP($A$5,'RECAP DIRCOM AN'!$G$6:$FE$312,84,FALSE) -> 8% | M35: -12%
B36: Taux de couverture SACCEF | C36: 2% | E36: ='RECAP DIRCOM'!CN4 -> 91% | G36: =VLOOKUP($A$5,'RECAP DIRCOM'!$G$6:$FE$312,86,FALSE) -> 83% | I36: =VLOOKUP($A$5,'RECAP DIRCOM'!$G$6:$FE$312,87,FALSE) -> 8% | K36: =VLOOKUP($A$5,'RECAP DIRCOM AN'!$G$6:$FE$312,87,FALSE) -> 0% | M36: -8%
B37: Engagements CMLT + CB par rapport à l’objectif | C37: 3% | E37: ='RECAP DIRCOM'!CQ4 -> 35% | G37: =VLOOKUP($A$5,'RECAP DIRCOM'!$G$6:$FE$312,89,FALSE) -> 24% | I37: =VLOOKUP($A$5,'RECAP DIRCOM'!$G$6:$FE$312,90,FALSE) -> 32% | K37: =VLOOKUP($A$5,'RECAP DIRCOM AN'!$G$6:$FE$312,90,FALSE) -> 13% | M37: -19%
A39: CRITERE IARD PREVOYANCE | C39: 20%
B40: Ventes nettes IARD (Auto+MRH+ Pro) par ETP | C40: 7% | E40: ='RECAP DIRCOM'!DC4 -> 2.7 | G40: =VLOOKUP($A$5,'RECAP DIRCOM'!$G$6:$FE$312,101,FALSE) -> 1.8 | I40: =VLOOKUP($A$5,'RECAP DIRCOM'!$G$6:$FE$312,102,FALSE) -> 34% | K40: =VLOOKUP($A$5,'RECAP DIRCOM AN'!$G$6:$FE$312,102,FALSE) -> 23% | M40: =+K40-I40 -> -11%
B41: Ventes nettes Prévoyance (GAV, secur.f,prevoy loc,santé,assist.vie, obséques, Pro) par ETP | C41: 7% | E41: ='RECAP DIRCOM'!DF4 -> 4.5 | G41: =VLOOKUP($A$5,'RECAP DIRCOM'!$G$6:$FE$312,104,FALSE) -> 2.2 | I41: =VLOOKUP($A$5,'RECAP DIRCOM'!$G$6:$FE$312,105,FALSE) -> 50% | K41: =VLOOKUP($A$5,'RECAP DIRCOM AN'!$G$6:$FE$312,105,FALSE) -> 7% | M41: -43%
B42: Chiffre d’affaires IARD (Yc Pro) par ETP | C42: 6% | E42: ='RECAP DIRCOM'!DI4 -> 3.7 | G42: =VLOOKUP($A$5,'RECAP DIRCOM'!$G$6:$FE$312,107,FALSE) -> 3.2 | I42: =VLOOKUP($A$5,'RECAP DIRCOM'!$G$6:$FE$312,108,FALSE) -> 14% | K42: =VLOOKUP($A$5,'RECAP DIRCOM AN'!$G$6:$FE$312,108,FALSE) -> 11% | M42: -2%
A44: CRITERE RISQUES | C44: 10%
B45: Complétude, conformité et fiabilisation des nouvelles EER sur flux BDD | C45: 3% | E45: ='RECAP DIRCOM'!DU4 -> 98% | G45: =VLOOKUP($A$5,'RECAP DIRCOM'!$G$6:$FE$312,119,FALSE) -> 95% | I45: =VLOOKUP($A$5,'RECAP DIRCOM'!$G$6:$FE$312,120,FALSE) -> 3% | K45: =VLOOKUP($A$5,'RECAP DIRCOM AN'!$G$6:$FE$312,120,FALSE) -> 3% | M45: =+K45-I45 -> 0%
B46: Complétude, conformité et fiabilisation des EER sur flux cumulé et stock | C46: 3% | E46: ='RECAP DIRCOM'!DX4 -> 77% | G46: =VLOOKUP($A$5,'RECAP DIRCOM'!$G$6:$FE$312,122,FALSE) -> 70% | I46: =VLOOKUP($A$5,'RECAP DIRCOM'!$G$6:$FE$312,123,FALSE) -> 8% | K46: =VLOOKUP($A$5,'RECAP DIRCOM AN'!$G$6:$FE$312,123,FALSE) -> 8% | M46: -0%
B47: Traitement et qualité du traitement des alertes Vigiclient | C47: 4% | E47: ='RECAP DIRCOM'!EA4 -> 100% | G47: =VLOOKUP($A$5,'RECAP DIRCOM'!$G$6:$FE$312,125,FALSE) -> 100% | I47: =VLOOKUP($A$5,'RECAP DIRCOM'!$G$6:$FE$312,126,FALSE) -> 0% | K47: =VLOOKUP($A$5,'RECAP DIRCOM AN'!$G$6:$FE$312,126,FALSE) -> 25% | M47: 25%
A49: CRITERE Satisfaction Clients | C49: 10%
B50: Objectifs NPS* | C50: 5% | E50: ='RECAP DIRCOM'!EM4 -> -5 | G50: =VLOOKUP($A$5,'RECAP DIRCOM'!$G$6:$FE$312,137,FALSE) -> -23 | I50: =VLOOKUP($A$5,'RECAP DIRCOM'!$G$6:$FE$312,138,FALSE) -> 150% | K50: =VLOOKUP($A$5,'RECAP DIRCOM AN'!$G$6:$FE$312,138,FALSE) -> 144% | M50: =+K50-I50 -> -6%
B51: Enquête Qualité Haute Définition | C51: 5% | E51: ='RECAP DIRCOM'!EP4 -> 77% | G51: =VLOOKUP($A$5,'RECAP DIRCOM'!$G$6:$FE$312,140,FALSE) -> 71% | I51: =VLOOKUP($A$5,'RECAP DIRCOM'!$G$6:$FE$312,141,FALSE) -> 8% | K51: =VLOOKUP($A$5,'RECAP DIRCOM AN'!$G$6:$FE$312,141,FALSE) -> 2% | M51: -6%

Sheet DC_OBJECTIF
A1: Accueil | D1: BAROMETRE BDD - DIRECTIONS COMMERCIALES
D2: PV PART SUR OBJECTIFS
D3: =ACCUEIL!H7 -> 2019-03-31
D7: Excédent de collecte par ETP yc DAV | G7: Engagements crédit conso par ETP (hors clients note octroi à 9 et DRC complet) | J7: Ventes brutes IARD prevoyance Part et Pro (si DRC complet) par ETP | M7: Evolution des Bpe+JBPe par ETP | P7: PNB sur activité nouvelle par ETP
E8: Taux d'atteinte saisonalisé | F8: =VLOOKUP(ACCUEIL!$H$7,Tableau1[],2,FALSE) -> 25% | H8: Taux d'atteinte saisonalisé | I8: =VLOOKUP(ACCUEIL!$H$7,Tableau1[],3,FALSE) -> 25% | K8: Taux d'atteinte saisonalisé | L8: =VLOOKUP(ACCUEIL!$H$7,Tableau1[],4,FALSE) -> 25% | N8: Taux d'atteinte saisonalisé | O8: =VLOOKUP(ACCUEIL!$H$7,Tableau1[],5,FALSE) -> 25% | Q8: Taux d'atteinte saisonalisé | R8: =VLOOKUP(ACCUEIL!$H$7,Tableau1[],6,FALSE) -> 25%
A9: eds | B9: Direction | C9: ETP perf | D9: Réal | E9: Obj | F9: % | G9: Réal | H9: Obj | I9: % | J9: Réal | K9: Obj | L9: % | M9: Réal | N9: Obj | O9: % | P9: Réal | Q9: Obj | R9: %
A10: 50 | B10: Aube Haute Marne | C10: =VLOOKUP($A10,'RECAP DIRCOM'!$G$6:$EV$12,3,FALSE) -> 151 | D10: =VLOOKUP($A10,'RECAP DIRCOM'!$G$6:$FZ$12,158,FALSE) -> 8 | E10: =VLOOKUP($A10,'RECAP DIRCOM'!$G$6:$FZ$12,159,FALSE) -> 116 | F10: =VLOOKUP($A10,'RECAP DIRCOM'!$G$6:$FZ$12,160,FALSE) -> 7% | G10: =VLOOKUP($A10,'RECAP DIRCOM'!$G$6:$FZ$12,161,FALSE) -> 125 | H10: =VLOOKUP($A10,'RECAP DIRCOM'!$G$6:$FZ$12,162,FALSE) -> 467 | I10: =VLOOKUP($A10,'RECAP DIRCOM'!$G$6:$FZ$12,163,FALSE) -> 27% | J10: =VLOOKUP($A10,'RECAP DIRCOM'!$G$6:$FZ$12,164,FALSE) -> 11 | K10: =VLOOKUP($A10,'RECAP DIRCOM'!$G$6:$FZ$12,165,FALSE) -> 59 | L10: =VLOOKUP($A10,'RECAP DIRCOM'!$G$6:$FZ$12,166,FALSE) -> 18% | M10: =VLOOKUP($A10,'RECAP DIRCOM'!$G$6:$FZ$12,167,FALSE) -> -0 | N10: =VLOOKUP($A10,'RECAP DIRCOM'!$G$6:$FZ$12,168,FALSE) -> 4 | O10: =VLOOKUP($A10,'RECAP DIRCOM'!$G$6:$FZ$12,169,FALSE) -> -6% | P10: =VLOOKUP($A10,'RECAP DIRCOM'!$G$6:$FZ$12,170,FALSE) -> 24 | Q10: =VLOOKUP($A10,'RECAP DIRCOM'!$G$6:$FZ$12,171,FALSE) -> 132 | R10: =VLOOKUP($A10,'RECAP DIRCOM'!$G$6:$FZ$12,172,FALSE) -> 18%
A11: 262 | B11: Bas-Rhin | C11: =VLOOKUP($A11,'RECAP DIRCOM'!$G$6:$EV$12,3,FALSE) -> 299 | D11: =VLOOKUP($A11,'RECAP DIRCOM'!$G$6:$FZ$12,158,FALSE) -> 40 | E11: =VLOOKUP($A11,'RECAP DIRCOM'!$G$6:$FZ$12,159,FALSE) -> 128 | F11: =VLOOKUP($A11,'RECAP DIRCOM'!$G$6:$FZ$12,160,FALSE) -> 31% | G11: =VLOOKUP($A11,'RECAP DIRCOM'!$G$6:$FZ$12,161,FALSE) -> 88 | H11: =VLOOKUP($A11,'RECAP DIRCOM'!$G$6:$FZ$12,162,FALSE) -> 467 | I11: =VLOOKUP($A11,'RECAP DIRCOM'!$G$6:$FZ$12,163,FALSE) -> 19% | J11: =VLOOKUP($A11,'RECAP DIRCOM'!$G$6:$FZ$12,164,FALSE) -> 12 | K11: =VLOOKUP($A11,'RECAP DIRCOM'!$G$6:$FZ$12,165,FALSE) -> 59 | L11: =VLOOKUP($A11,'RECAP DIRCOM'!$G$6:$FZ$12,166,FALSE) -> 20% | M11: =VLOOKUP($A11,'RECAP DIRCOM'!$G$6:$FZ$12,167,FALSE) -> -1 | N11: =VLOOKUP($A11,'RECAP DIRCOM'!$G$6:$FZ$12,168,FALSE) -> 4 | O11: =VLOOKUP($A11,'RECAP DIRCOM'!$G$6:$FZ$12,169,FALSE) -> -35% | P11: =VLOOKUP($A11,'RECAP DIRCOM'!$G$6:$FZ$12,170,FALSE) -> 22 | Q11: =VLOOKUP($A11,'RECAP DIRCOM'!$G$6:$FZ$12,171,FALSE) -> 136 | R11: =VLOOKUP($A11,'RECAP DIRCOM'!$G$6:$FZ$12,172,FALSE) -> 16%
A12: 264 | B12: Haut-Rhin | C12: =VLOOKUP($A12,'RECAP DIRCOM'!$G$6:$EV$12,3,FALSE) -> 186 | D12: =VLOOKUP($A12,'RECAP DIRCOM'!$G$6:$FZ$12,158,FALSE) -> 54 | E12: =VLOOKUP($A12,'RECAP DIRCOM'!$G$6:$FZ$12,159,FALSE) -> 132 | F12: =VLOOKUP($A12,'RECAP DIRCOM'!$G$6:$FZ$12,160,FALSE) -> 41% | G12: =VLOOKUP($A12,'RECAP DIRCOM'!$G$6:$FZ$12,161,FALSE) -> 80 | H12: =VLOOKUP($A12,'RECAP DIRCOM'!$G$6:$FZ$12,162,FALSE) -> 467 | I12: =VLOOKUP($A12,'RECAP DIRCOM'!$G$6:$FZ$12,163,FALSE) -> 17% | J12: =VLOOKUP($A12,'RECAP DIRCOM'!$G$6:$FZ$12,164,FALSE) -> 12 | K12: =VLOOKUP($A12,'RECAP DIRCOM'!$G$6:$FZ$12,165,FALSE) -> 59 | L12: =VLOOKUP($A12,'RECAP DIRCOM'!$G$6:$FZ$12,166,FALSE) -> 21% | M12: =VLOOKUP($A12,'RECAP DIRCOM'!$G$6:$FZ$12,167,FALSE) -> -1 | N12: =VLOOKUP($A12,'RECAP DIRCOM'!$G$6:$FZ$12,168,FALSE) -> 4 | O12: =VLOOKUP($A12,'RECAP DIRCOM'!$G$6:$FZ$12,169,FALSE) -> -36% | P12: =VLOOKUP($A12,'RECAP DIRCOM'!$G$6:$FZ$12,170,FALSE) -> 22 | Q12: =VLOOKUP($A12,'RECAP DIRCOM'!$G$6:$FZ$12,171,FALSE) -> 140 | R12: =VLOOKUP($A12,'RECAP DIRCOM'!$G$6:$FZ$12,172,FALSE) -> 16%
A13: 30 | B13: Marne-Ardennes | C13: =VLOOKUP($A13,'RECAP DIRCOM'!$G$6:$EV$12,3,FALSE) -> 240 | D13: =VLOOKUP($A13,'RECAP DIRCOM'!$G$6:$FZ$12,158,FALSE) -> 69 | E13: =VLOOKUP($A13,'RECAP DIRCOM'!$G$6:$FZ$12,159,FALSE) -> 133 | F13: =VLOOKUP($A13,'RECAP DIRCOM'!$G$6:$FZ$12,160,FALSE) -> 52% | G13: =VLOOKUP($A13,'RECAP DIRCOM'!$G$6:$FZ$12,161,FALSE) -> 112 | H13: =VLOOKUP($A13,'RECAP DIRCOM'!$G$6:$FZ$12,162,FALSE) -> 467 | I13: =VLOOKUP($A13,'RECAP DIRCOM'!$G$6:$FZ$12,163,FALSE) -> 24% | J13: =VLOOKUP($A13,'RECAP DIRCOM'!$G$6:$FZ$12,164,FALSE) -> 12 | K13: =VLOOKUP($A13,'RECAP DIRCOM'!$G$6:$FZ$12,165,FALSE) -> 59 | L13: =VLOOKUP($A13,'RECAP DIRCOM'!$G$6:$FZ$12,166,FALSE) -> 21% | M13: =VLOOKUP($A13,'RECAP DIRCOM'!$G$6:$FZ$12,167,FALSE) -> -0 | N13: =VLOOKUP($A13,'RECAP DIRCOM'!$G$6:$FZ$12,168,FALSE) -> 4 | O13: =VLOOKUP($A13,'RECAP DIRCOM'!$G$6:$FZ$12,169,FALSE) -> -1% | P13: =VLOOKUP($A13,'RECAP DIRCOM'!$G$6:$FZ$12,170,FALSE) -> 27 | Q13: =VLOOKUP($A13,'RECAP DIRCOM'!$G$6:$FZ$12,171,FALSE) -> 140 | R13: =VLOOKUP($A13,'RECAP DIRCOM'!$G$6:$FZ$12,172,FALSE) -> 19%
A14: 110 | B14: Meurthe et Moselle Meuse | C14: =VLOOKUP($A14,'RECAP DIRCOM'!$G$6:$EV$12,3,FALSE) -> 270 | D14: =VLOOKUP($A14,'RECAP DIRCOM'!$G$6:$FZ$12,158,FALSE) -> 63 | E14: =VLOOKUP($A14,'RECAP DIRCOM'!$G$6:$FZ$12,159,FALSE) -> 118 | F14: =VLOOKUP($A14,'RECAP DIRCOM'!$G$6:$FZ$12,160,FALSE) -> 53% | G14: =VLOOKUP($A14,'RECAP DIRCOM'!$G$6:$FZ$12,161,FALSE) -> 109 | H14: =VLOOKUP($A14,'RECAP DIRCOM'!$G$6:$FZ$12,162,FALSE) -> 467 | I14: =VLOOKUP($A14,'RECAP DIRCOM'!$G$6:$FZ$12,163,FALSE) -> 23% | J14: =VLOOKUP($A14,'RECAP DIRCOM'!$G$6:$FZ$12,164,FALSE) -> 11 | K14: =VLOOKUP($A14,'RECAP DIRCOM'!$G$6:$FZ$12,165,FALSE) -> 59 | L14: =VLOOKUP($A14,'RECAP DIRCOM'!$G$6:$FZ$12,166,FALSE) -> 19% | M14: =VLOOKUP($A14,'RECAP DIRCOM'!$G$6:$FZ$12,167,FALSE) -> -1 | N14: =VLOOKUP($A14,'RECAP DIRCOM'!$G$6:$FZ$12,168,FALSE) -> 4 | O14: =VLOOKUP($A14,'RECAP DIRCOM'!$G$6:$FZ$12,169,FALSE) -> -19% | P14: =VLOOKUP($A14,'RECAP DIRCOM'!$G$6:$FZ$12,170,FALSE) -> 25 | Q14: =VLOOKUP($A14,'RECAP DIRCOM'!$G$6:$FZ$12,171,FALSE) -> 131 | R14: =VLOOKUP($A14,'RECAP DIRCOM'!$G$6:$FZ$12,172,FALSE) -> 19%
A15: 160 | B15: Moselle | C15: =VLOOKUP($A15,'RECAP DIRCOM'!$G$6:$EV$12,3,FALSE) -> 312 | D15: =VLOOKUP($A15,'RECAP DIRCOM'!$G$6:$FZ$12,158,FALSE) -> 97 | E15: =VLOOKUP($A15,'RECAP DIRCOM'!$G$6:$FZ$12,159,FALSE) -> 117 | F15: =VLOOKUP($A15,'RECAP DIRCOM'!$G$6:$FZ$12,160,FALSE) -> 83% | G15: =VLOOKUP($A15,'RECAP DIRCOM'!$G$6:$FZ$12,161,FALSE) -> 110 | H15: =VLOOKUP($A15,'RECAP DIRCOM'!$G$6:$FZ$12,162,FALSE) -> 467 | I15: =VLOOKUP($A15,'RECAP DIRCOM'!$G$6:$FZ$12,163,FALSE) -> 23% | J15: =VLOOKUP($A15,'RECAP DIRCOM'!$G$6:$FZ$12,164,FALSE) -> 13 | K15: =VLOOKUP($A15,'RECAP DIRCOM'!$G$6:$FZ$12,165,FALSE) -> 59 | L15: =VLOOKUP($A15,'RECAP DIRCOM'!$G$6:$FZ$12,166,FALSE) -> 23% | M15: =VLOOKUP($A15,'RECAP DIRCOM'!$G$6:$FZ$12,167,FALSE) -> -1 | N15: =VLOOKUP($A15,'RECAP DIRCOM'!$G$6:$FZ$12,168,FALSE) -> 4 | O15: =VLOOKUP($A15,'RECAP DIRCOM'!$G$6:$FZ$12,169,FALSE) -> -21% | P15: =VLOOKUP($A15,'RECAP DIRCOM'!$G$6:$FZ$12,170,FALSE) -> 31 | Q15: =VLOOKUP($A15,'RECAP DIRCOM'!$G$6:$FZ$12,171,FALSE) -> 134 | R15: =VLOOKUP($A15,'RECAP DIRCOM'!$G$6:$FZ$12,172,FALSE) -> 23%
A16: 80 | B16: Vosges | C16: =VLOOKUP($A16,'RECAP DIRCOM'!$G$6:$EV$12,3,FALSE) -> 150 | D16: =VLOOKUP($A16,'RECAP DIRCOM'!$G$6:$FZ$12,158,FALSE) -> 92 | E16: =VLOOKUP($A16,'RECAP DIRCOM'!$G$6:$FZ$12,159,FALSE) -> 110 | F16: =VLOOKUP($A16,'RECAP DIRCOM'!$G$6:$FZ$12,160,FALSE) -> 83% | G16: =VLOOKUP($A16,'RECAP DIRCOM'!$G$6:$FZ$12,161,FALSE) -> 108 | H16: =VLOOKUP($A16,'RECAP DIRCOM'!$G$6:$FZ$12,162,FALSE) -> 467 | I16: =VLOOKUP($A16,'RECAP DIRCOM'!$G$6:$FZ$12,163,FALSE) -> 23% | J16: =VLOOKUP($A16,'RECAP DIRCOM'!$G$6:$FZ$12,164,FALSE) -> 12 | K16: =VLOOKUP($A16,'RECAP DIRCOM'!$G$6:$FZ$12,165,FALSE) -> 59 | L16: =VLOOKUP($A16,'RECAP DIRCOM'!$G$6:$FZ$12,166,FALSE) -> 20% | M16: =VLOOKUP($A16,'RECAP DIRCOM'!$G$6:$FZ$12,167,FALSE) -> -1 | N16: =VLOOKUP($A16,'RECAP DIRCOM'!$G$6:$FZ$12,168,FALSE) -> 4 | O16: =VLOOKUP($A16,'RECAP DIRCOM'!$G$6:$FZ$12,169,FALSE) -> -25% | P16: =VLOOKUP($A16,'RECAP DIRCOM'!$G$6:$FZ$12,170,FALSE) -> 26 | Q16: =VLOOKUP($A16,'RECAP DIRCOM'!$G$6:$FZ$12,171,FALSE) -> 127 | R16: =VLOOKUP($A16,'RECAP DIRCOM'!$G$6:$FZ$12,172,FALSE) -> 20%
A17: Total CEGEE Directions Commerciales | C17: =SUM(C10:C16) -> 1609

Sheet DC_TOTAL
A1: Accueil | D1: BAROMETRE BDD - DIRECTIONS COMMERCIALES
D2: TOTAL GENERAL
D3: =ACCUEIL!H7 -> 2019-03-31
D7: TOTAL GENERAL | G7: Total Conquête | J7: Total Equipement Bancarisation | M7: Total Epargne | P7: Total Crédits | S7: Total IARD Prévoyance | V7: Total Risques | Y7: Total Satisfaction Clients
E8: coef | F8: 100% | H8: coef | I8: ='RECAP DIRCOM'!$Y$4 -> 15% | K8: coef | L8: ='RECAP DIRCOM'!$AW$4 -> 15% | N8: coef | O8: ='RECAP DIRCOM'!$BU$4 -> 15% | Q8: coef | R8: ='RECAP DIRCOM'!$CV$4 -> 15% | T8: coef | U8: ='RECAP DIRCOM'!$DN$4 -> 20% | W8: coef | X8: ='RECAP DIRCOM'!$EF$4 -> 10% | Z8: coef | AA8: ='RECAP DIRCOM'!$EU$4 -> 10%
A9: eds | B9: Direction | C9: ETP perf | D9: Moyenne ecart au 1er | E9: % Ecart au 1er | F9: Rang CEGEE | G9: Moyenne ecart au 1er | H9: % Ecart au 1er | I9: Rang CEGEE | J9: Moyenne ecart au 1er | K9: % Ecart au 1er | L9: Rang CEGEE | M9: Moyenne ecart au 1er | N9: % Ecart au 1er | O9: Rang CEGEE | P9: Moyenne ecart au 1er | Q9: % Ecart au 1er | R9: Rang CEGEE | S9: Moyenne ecart au 1er | T9: % Ecart au 1er | U9: Rang CEGEE | V9: Moyenne ecart au 1er | W9: % Ecart au 1er | X9: Rang CEGEE | Y9: Moyenne ecart au 1er | Z9: % Ecart au 1er | AA9: Rang CEGEE
A10: 30 | B10: Marne-Ardennes | C10: 240 | D10: 5% | E10: 0% | F10: 1 | G10: 13% | H10: 0% | I10: 1 | J10: 37% | K10: 13% | L10: 2 | M10: 13% | N10: 0% | O10: 1 | P10: 4% | Q10: 0% | R10: 1 | S10: 20% | T10: 11% | U10: 4 | V10: 5% | W10: 4% | X10: 5 | Y10: 0% | Z10: 0% | AA10: 1
A11: 160 | B11: Moselle | C11: 312 | D11: 10% | E11: 6% | F11: 2 | G11: 36% | H11: 22% | I11: 3 | J11: 24% | K11: 0% | L11: 1 | M11: 19% | N11: 5% | O11: 2 | P11: 15% | Q11: 11% | R11: 5 | S11: 9% | T11: 0% | U11: 1 | V11: 2% | W11: 1% | X11: 2 | Y11: 42% | Z11: 41% | AA11: 5
A12: 80 | B12: Vosges | C12: 150 | D12: 17% | E12: 13% | F12: 3 | G12: 54% | H12: 40% | I12: 5 | J12: 45% | K12: 22% | L12: 3 | M12: 23% | N12: 10% | O12: 3 | P12: 6% | Q12: 3% | R12: 3 | S12: 19% | T12: 10% | U12: 3 | V12: 6% | W12: 5% | X12: 6 | Y12: 38% | Z12: 37% | AA12: 3
A13: 110 | B13: Meurthe et Moselle Meuse | C13: 270 | D13: 20% | E13: 16% | F13: 4 | G13: 27% | H13: 13% | I13: 2 | J13: 64% | K13: 41% | L13: 7 | M13: 27% | N13: 13% | O13: 4 | P13: 13% | Q13: 9% | R13: 4 | S13: 28% | T13: 19% | U13: 5 | V13: 12% | W13: 11% | X13: 7 | Y13: 40% | Z13: 40% | AA13: 4
A14: 50 | B14: Aube Haute Marne | C14: 151 | D14: 24% | E14: 20% | F14: 5 | G14: 38% | H14: 24% | I14: 4 | J14: 51% | K14: 27% | L14: 4 | M14: 74% | N14: 61% | O14: 7 | P14: 6% | Q14: 3% | R14: 2 | S14: 30% | T14: 21% | U14: 6 | V14: 1% | W14: 0% | X14: 1 | Y14: 27% | Z14: 27% | AA14: 2
A15: 264 | B15: Haut-Rhin | C15: 186 | D15: 29% | E15: 24% | F15: 6 | G15: 83% | H15: 69% | I15: 7 | J15: 55% | K15: 32% | L15: 5 | M15: 30% | N15: 17% | O15: 5 | P15: 19% | Q15: 16% | R15: 7 | S15: 18% | T15: 9% | U15: 2 | V15: 4% | W15: 3% | X15: 4 | Y15: 68% | Z15: 68% | AA15: 6
A16: 262 | B16: Bas-Rhin | C16: 299 | D16: 34% | E16: 30% | F16: 7 | G16: 71% | H16: 58% | I16: 6 | J16: 63% | K16: 40% | L16: 6 | M16: 43% | N16: 29% | O16: 6 | P16: 19% | Q16: 15% | R16: 6 | S16: 34% | T16: 25% | U16: 7 | V16: 3% | W16: 2% | X16: 3 | Y16: 79% | Z16: 79% | AA16: 7
A17: Total CEGEE Directions Commerciales | C17: =SUM(C10:C16) -> 1609

Sheet DC_BANCA
A1: Accueil | D1: BAROMETRE BDD - DIRECTIONS COMMERCIALES
D2: EQUIPEMENT BANCARISATION
D3: =ACCUEIL!H7 -> 2019-03-31
D7: Ventes nettes FORFAITS avec 2 options | G7: Ventes nettes IZICARTES | J7: Ventes nettes Cartes HDG | M7: Ventes nettes CB débit différé | P7: Ventes nettes banca Pro | S7: Total Equipement Bancarisation
E8: coef | F8: ='RECAP DIRCOM'!AH4 -> 3% | H8: coef | I8: ='RECAP DIRCOM'!AK4 -> 3% | K8: coef | L8: ='RECAP DIRCOM'!AN4 -> 3% | N8: coef | O8: ='RECAP DIRCOM'!AQ4 -> 3% | Q8: coef | R8: ='RECAP DIRCOM'!AT4 -> 3% | T8: coef | U8: ='RECAP DIRCOM'!AW4 -> 15%
A9: eds | B9: Direction | C9: ETP perf | D9: Nb / ETP | E9: % Ecart au 1er | F9: Rang | G9: Nb / ETP | H9: % Ecart au 1er | I9: Rang | J9: Nb / ETP | K9: % Ecart au 1er | L9: Rang | M9: Nb / ETP | N9: % Ecart au 1er | O9: Rang | P9: Taux réal objectif | Q9: % Ecart au 1er | R9: Rang | S9: Moyenne ecart au 1er | T9: % Ecart au 1er | U9: Rang CEGEE
A10: 50 | B10: Aube Haute Marne | C10: =VLOOKUP($A10,'RECAP DIRCOM'!$G$6:$EV$12,3,FALSE) -> 151 | D10: =VLOOKUP($A10,'RECAP DIRCOM'!$G$6:$EV$12,26,FALSE) -> -6.68 | E10: =VLOOKUP($A10,'RECAP DIRCOM'!$G$6:$EV$12,27,FALSE) -> 41% | F10: =VLOOKUP($A10,'RECAP DIRCOM'!$G$6:$EV$12,28,FALSE) -> 4 | G10: =VLOOKUP($A10,'RECAP DIRCOM'!$G$6:$EV$12,29,FALSE) -> 3.43 | H10: =VLOOKUP($A10,'RECAP DIRCOM'!$G$6:$EV$12,30,FALSE) -> 43% | I10: =VLOOKUP($A10,'RECAP DIRCOM'!$G$6:$EV$12,31,FALSE) -> 3 | J10: =VLOOKUP($A10,'RECAP DIRCOM'!$G$6:$EV$12,32,FALSE) -> 3.36 | K10: =VLOOKUP($A10,'RECAP DIRCOM'!$G$6:$EV$12,33,FALSE) -> 56% | L10: =VLOOKUP($A10,'RECAP DIRCOM'!$G$6:$EV$12,34,FALSE) -> 2 | M10: =VLOOKUP($A10,'RECAP DIRCOM'!$G$6:$EV$12,35,FALSE) -> 0.64 | N10: =VLOOKUP($A10,'RECAP DIRCOM'!$G$6:$EV$12,36,FALSE) -> 77% | O10: =VLOOKUP($A10,'RECAP DIRCOM'!$G$6:$EV$12,37,FALSE) -> 5 | P10: =VLOOKUP($A10,'RECAP DIRCOM'!$G$6:$EV$12,38,FALSE) -> 32% | Q10: =VLOOKUP($A10,'RECAP DIRCOM'!$G$6:$EV$12,39,FALSE) -> 38% | R10: =VLOOKUP($A10,'RECAP DIRCOM'!$G$6:$EV$12,40,FALSE) -> 4 | S10: =VLOOKUP($A10,'RECAP DIRCOM'!$G$6:$EV$12,41,FALSE) -> 51% | T10: =VLOOKUP($A10,'RECAP DIRCOM'!$G$6:$EV$12,42,FALSE) -> 27% | U10: =VLOOKUP($A10,'RECAP DIRCOM'!$G$6:$EV$12,43,FALSE) -> 4
A11: 262 | B11: Bas-Rhin | C11: =VLOOKUP($A11,'RECAP DIRCOM'!$G$6:$EV$12,3,FALSE) -> 299 | D11: =VLOOKUP($A11,'RECAP DIRCOM'!$G$6:$EV$12,26,FALSE) -> -4.79 | E11: =VLOOKUP($A11,'RECAP DIRCOM'!$G$6:$EV$12,27,FALSE) -> 1% | F11: =VLOOKUP($A11,'RECAP DIRCOM'!$G$6:$EV$12,28,FALSE) -> 2 | G11: =VLOOKUP($A11,'RECAP DIRCOM'!$G$6:$EV$12,29,FALSE) -> 1.04 | H11: =VLOOKUP($A11,'RECAP DIRCOM'!$G$6:$EV$12,30,FALSE) -> 83% | I11: =VLOOKUP($A11,'RECAP DIRCOM'!$G$6:$EV$12,31,FALSE) -> 6 | J11: =VLOOKUP($A11,'RECAP DIRCOM'!$G$6:$EV$12,32,FALSE) -> 2.01 | K11: =VLOOKUP($A11,'RECAP DIRCOM'!$G$6:$EV$12,33,FALSE) -> 73% | L11: =VLOOKUP($A11,'RECAP DIRCOM'!$G$6:$EV$12,34,FALSE) -> 7 | M11: =VLOOKUP($A11,'RECAP DIRCOM'!$G$6:$EV$12,35,FALSE) -> 0.63 | N11: =VLOOKUP($A11,'RECAP DIRCOM'!$G$6:$EV$12,36,FALSE) -> 78% | O11: =VLOOKUP($A11,'RECAP DIRCOM'!$G$6:$EV$12,37,FALSE) -> 6 | P11: =VLOOKUP($A11,'RECAP DIRCOM'!$G$6:$EV$12,38,FALSE) -> 9% | Q11: =VLOOKUP($A11,'RECAP DIRCOM'!$G$6:$EV$12,39,FALSE) -> 82% | R11: =VLOOKUP($A11,'RECAP DIRCOM'!$G$6:$EV$12,40,FALSE) -> 7 | S11: =VLOOKUP($A11,'RECAP DIRCOM'!$G$6:$EV$12,41,FALSE) -> 63% | T11: =VLOOKUP($A11,'RECAP DIRCOM'!$G$6:$EV$12,42,FALSE) -> 40% | U11: =VLOOKUP($A11,'RECAP DIRCOM'!$G$6:$EV$12,43,FALSE) -> 6
A12: 264 | B12: Haut-Rhin | C12: =VLOOKUP($A12,'RECAP DIRCOM'!$G$6:$EV$12,3,FALSE) -> 186 | D12: =VLOOKUP($A12,'RECAP DIRCOM'!$G$6:$EV$12,26,FALSE) -> -4.73 | E12: =VLOOKUP($A12,'RECAP DIRCOM'!$G$6:$EV$12,27,FALSE) -> 0% | F12: =VLOOKUP($A12,'RECAP DIRCOM'!$G$6:$EV$12,28,FALSE) -> 1 | G12: =VLOOKUP($A12,'RECAP DIRCOM'!$G$6:$EV$12,29,FALSE) -> 0.73 | H12: =VLOOKUP($A12,'RECAP DIRCOM'!$G$6:$EV$12,30,FALSE) -> 88% | I12: =VLOOKUP($A12,'RECAP DIRCOM'!$G$6:$EV$12,31,FALSE) -> 7 | J12: =VLOOKUP($A12,'RECAP DIRCOM'!$G$6:$EV$12,32,FALSE) -> 2.13 | K12: =VLOOKUP($A12,'RECAP DIRCOM'!$G$6:$EV$12,33,FALSE) -> 72% | L12: =VLOOKUP($A12,'RECAP DIRCOM'!$G$6:$EV$12,34,FALSE) -> 6 | M12: =VLOOKUP($A12,'RECAP DIRCOM'!$G$6:$EV$12,35,FALSE) -> 0.94 | N12: =VLOOKUP($A12,'RECAP DIRCOM'!$G$6:$EV$12,36,FALSE) -> 66% | O12: =VLOOKUP($A12,'RECAP DIRCOM'!$G$6:$EV$12,37,FALSE) -> 2 | P12: =VLOOKUP($A12,'RECAP DIRCOM'!$G$6:$EV$12,38,FALSE) -> 25% | Q12: =VLOOKUP($A12,'RECAP DIRCOM'!$G$6:$EV$12,39,FALSE) -> 51% | R12: =VLOOKUP($A12,'RECAP DIRCOM'!$G$6:$EV$12,40,FALSE) -> 6 | S12: =VLOOKUP($A12,'RECAP DIRCOM'!$G$6:$EV$12,41,FALSE) -> 55% | T12: =VLOOKUP($A12,'RECAP DIRCOM'!$G$6:$EV$12,42,FALSE) -> 32% | U12: =VLOOKUP($A12,'RECAP DIRCOM'!$G$6:$EV$12,43,FALSE) -> 5
A13: 30 | B13: Marne-Ardennes | C13: =VLOOKUP($A13,'RECAP DIRCOM'!$G$6:$EV$12,3,FALSE) -> 240 | D13: =VLOOKUP($A13,'RECAP DIRCOM'!$G$6:$EV$12,26,FALSE) -> -7.01 | E13: =VLOOKUP($A13,'RECAP DIRCOM'!$G$6:$EV$12,27,FALSE) -> 48% | F13: =VLOOKUP($A13,'RECAP DIRCOM'!$G$6:$EV$12,28,FALSE) -> 5 | G13: =VLOOKUP($A13,'RECAP DIRCOM'!$G$6:$EV$12,29,FALSE) -> 6.00 | H13: =VLOOKUP($A13,'RECAP DIRCOM'!$G$6:$EV$12,30,FALSE) -> 0% | I13: =VLOOKUP($A13,'RECAP DIRCOM'!$G$6:$EV$12,31,FALSE) -> 1 | J13: =VLOOKUP($A13,'RECAP DIRCOM'!$G$6:$EV$12,32,FALSE) -> 2.60 | K13: =VLOOKUP($A13,'RECAP DIRCOM'!$G$6:$EV$12,33,FALSE) -> 66% | L13: =VLOOKUP($A13,'RECAP DIRCOM'!$G$6:$EV$12,34,FALSE) -> 3 | M13: =VLOOKUP($A13,'RECAP DIRCOM'!$G$6:$EV$12,35,FALSE) -> 0.86 | N13: =VLOOKUP($A13,'RECAP DIRCOM'!$G$6:$EV$12,36,FALSE) -> 69% | O13: =VLOOKUP($A13,'RECAP DIRCOM'!$G$6:$EV$12,37,FALSE) -> 3 | P13: =VLOOKUP($A13,'RECAP DIRCOM'!$G$6:$EV$12,38,FALSE) -> 52% | Q13: =VLOOKUP($A13,'RECAP DIRCOM'!$G$6:$EV$12,39,FALSE) -> 0% | R13: =VLOOKUP($A13,'RECAP DIRCOM'!$G$6:$EV$12,40,FALSE) -> 1 | S13: =VLOOKUP($A13,'RECAP DIRCOM'!$G$6:$EV$12,41,FALSE) -> 37% | T13: =VLOOKUP($A13,'RECAP DIRCOM'!$G$6:$EV$12,42,FALSE) -> 13% | U13: =VLOOKUP($A13,'RECAP DIRCOM'!$G$6:$EV$12,43,FALSE) -> 2
A14: 110 | B14: Meurthe et Moselle Meuse | C14: =VLOOKUP($A14,'RECAP DIRCOM'!$G$6:$EV$12,3,FALSE) -> 270 | D14: =VLOOKUP($A14,'RECAP DIRCOM'!$G$6:$EV$12,26,FALSE) -> -7.44 | E14: =VLOOKUP($A14,'RECAP DIRCOM'!$G$6:$EV$12,27,FALSE) -> 57% | F14: =VLOOKUP($A14,'RECAP DIRCOM'!$G$6:$EV$12,28,FALSE) -> 7 | G14: =VLOOKUP($A14,'RECAP DIRCOM'!$G$6:$EV$12,29,FALSE) -> 2.14 | H14: =VLOOKUP($A14,'RECAP DIRCOM'!$G$6:$EV$12,30,FALSE) -> 64% | I14: =VLOOKUP($A14,'RECAP DIRCOM'!$G$6:$EV$12,31,FALSE) -> 5 | J14: =VLOOKUP($A14,'RECAP DIRCOM'!$G$6:$EV$12,32,FALSE) -> 2.26 | K14: =VLOOKUP($A14,'RECAP DIRCOM'!$G$6:$EV$12,33,FALSE) -> 70% | L14: =VLOOKUP($A14,'RECAP DIRCOM'!$G$6:$EV$12,34,FALSE) -> 5 | M14: =VLOOKUP($A14,'RECAP DIRCOM'!$G$6:$EV$12,35,FALSE) -> 0.47 | N14: =VLOOKUP($A14,'RECAP DIRCOM'!$G$6:$EV$12,36,FALSE) -> 83% | O14: =VLOOKUP($A14,'RECAP DIRCOM'!$G$6:$EV$12,37,FALSE) -> 7 | P14: =VLOOKUP($A14,'RECAP DIRCOM'!$G$6:$EV$12,38,FALSE) -> 28% | Q14: =VLOOKUP($A14,'RECAP DIRCOM'!$G$6:$EV$12,39,FALSE) -> 46% | R14: =VLOOKUP($A14,'RECAP DIRCOM'!$G$6:$EV$12,40,FALSE) -> 5 | S14: =VLOOKUP($A14,'RECAP DIRCOM'!$G$6:$EV$12,41,FALSE) -> 64% | T14: =VLOOKUP($A14,'RECAP DIRCOM'!$G$6:$EV$12,42,FALSE) -> 41% | U14: =VLOOKUP($A14,'RECAP DIRCOM'!$G$6:$EV$12,43,FALSE) -> 7
A15: 160 | B15: Moselle | C15: =VLOOKUP($A15,'RECAP DIRCOM'!$G$6:$EV$12,3,FALSE) -> 312 | D15: =VLOOKUP($A15,'RECAP DIRCOM'!$G$6:$EV$12,26,FALSE) -> -7.05 | E15: =VLOOKUP($A15,'RECAP DIRCOM'!$G$6:$EV$12,27,FALSE) -> 49% | F15: =VLOOKUP($A15,'RECAP DIRCOM'!$G$6:$EV$12,28,FALSE) -> 6 | G15: =VLOOKUP($A15,'RECAP DIRCOM'!$G$6:$EV$12,29,FALSE) -> 3.50 | H15: =VLOOKUP($A15,'RECAP DIRCOM'!$G$6:$EV$12,30,FALSE) -> 42% | I15: =VLOOKUP($A15,'RECAP DIRCOM'!$G$6:$EV$12,31,FALSE) -> 2 | J15: =VLOOKUP($A15,'RECAP DIRCOM'!$G$6:$EV$12,32,FALSE) -> 7.55 | K15: =VLOOKUP($A15,'RECAP DIRCOM'!$G$6:$EV$12,33,FALSE) -> 0% | L15: =VLOOKUP($A15,'RECAP DIRCOM'!$G$6:$EV$12,34,FALSE) -> 1 | M15: =VLOOKUP($A15,'RECAP DIRCOM'!$G$6:$EV$12,35,FALSE) -> 2.80 | N15: =VLOOKUP($A15,'RECAP DIRCOM'!$G$6:$EV$12,36,FALSE) -> 0% | O15: =VLOOKUP($A15,'RECAP DIRCOM'!$G$6:$EV$12,37,FALSE) -> 1 | P15: =VLOOKUP($A15,'RECAP DIRCOM'!$G$6:$EV$12,38,FALSE) -> 38% | Q15: =VLOOKUP($A15,'RECAP DIRCOM'!$G$6:$EV$12,39,FALSE) -> 28% | R15: =VLOOKUP($A15,'RECAP DIRCOM'!$G$6:$EV$12,40,FALSE) -> 3 | S15: =VLOOKUP($A15,'RECAP DIRCOM'!$G$6:$EV$12,41,FALSE) -> 24% | T15: =VLOOKUP($A15,'RECAP DIRCOM'!$G$6:$EV$12,42,FALSE) -> 0% | U15: =VLOOKUP($A15,'RECAP DIRCOM'!$G$6:$EV$12,43,FALSE) -> 1
A16: 80 | B16: Vosges | C16: =VLOOKUP($A16,'RECAP DIRCOM'!$G$6:$EV$12,3,FALSE) -> 150 | D16: =VLOOKUP($A16,'RECAP DIRCOM'!$G$6:$EV$12,26,FALSE) -> -5.77 | E16: =VLOOKUP($A16,'RECAP DIRCOM'!$G$6:$EV$12,27,FALSE) -> 22% | F16: =VLOOKUP($A16,'RECAP DIRCOM'!$G$6:$EV$12,28,FALSE) -> 3 | G16: =VLOOKUP($A16,'RECAP DIRCOM'!$G$6:$EV$12,29,FALSE) -> 3.42 | H16: =VLOOKUP($A16,'RECAP DIRCOM'!$G$6:$EV$12,30,FALSE) -> 43% | I16: =VLOOKUP($A16,'RECAP DIRCOM'!$G$6:$EV$12,31,FALSE) -> 4 | J16: =VLOOKUP($A16,'RECAP DIRCOM'!$G$6:$EV$12,32,FALSE) -> 2.27 | K16: =VLOOKUP($A16,'RECAP DIRCOM'!$G$6:$EV$12,33,FALSE) -> 70% | L16: =VLOOKUP($A16,'RECAP DIRCOM'!$G$6:$EV$12,34,FALSE) -> 4 | M16: =VLOOKUP($A16,'RECAP DIRCOM'!$G$6:$EV$12,35,FALSE) -> 0.76 | N16: =VLOOKUP($A16,'RECAP DIRCOM'!$G$6:$EV$12,36,FALSE) -> 73% | O16: =VLOOKUP($A16,'RECAP DIRCOM'!$G$6:$EV$12,37,FALSE) -> 4 | P16: =VLOOKUP($A16,'RECAP DIRCOM'!$G$6:$EV$12,38,FALSE) -> 42% | Q16: =VLOOKUP($A16,'RECAP DIRCOM'!$G$6:$EV$12,39,FALSE) -> 19% | R16: =VLOOKUP($A16,'RECAP DIRCOM'!$G$6:$EV$12,40,FALSE) -> 2 | S16: =VLOOKUP($A16,'RECAP DIRCOM'!$G$6:$EV$12,41,FALSE) -> 45% | T16: =VLOOKUP($A16,'RECAP DIRCOM'!$G$6:$EV$12,42,FALSE) -> 22% | U16: =VLOOKUP($A16,'RECAP DIRCOM'!$G$6:$EV$12,43,FALSE) -> 3
A17: Total CEGEE Directions Commerciales | C17: =SUM(C10:C16) -> 1609

Sheet DC_EPARGNE
A1: Accueil | D1: BAROMETRE BDD - DIRECTIONS COMMERCIALES
D2: EPARGNE
D3: =ACCUEIL!H7 -> 2019-03-31
D7: Excédent de collecte yc DAV | G7: CA assurance vie | J7: Activité UC (CA+Arbitrage) | M7: Excédent assurance vie | P7: Excédent Epargne Bilan (hors emprunt CTO) | S7: Total Epargne
E8: coef | F8: ='RECAP DIRCOM'!BF4 -> 2% | H8: coef | I8: ='RECAP DIRCOM'!BI4 -> 2% | K8: coef | L8: ='RECAP DIRCOM'!BL4 -> 2% | N8: coef | O8: ='RECAP DIRCOM'!BO4 -> 2% | Q8: coef | R8: ='RECAP DIRCOM'!BR4 -> 7% | T8: coef | U8: ='RECAP DIRCOM'!BU4 -> 15%
A9: eds | B9: Direction | C9: ETP perf | D9: Réal / ETP | E9: % Ecart au 1er | F9: Rang | G9: Réal / ETP | H9: % Ecart au 1er | I9: Rang | J9: Réal / ETP | K9: % Ecart au 1er | L9: Rang | M9: Réal / ETP | N9: % Ecart au 1er | O9: Rang | P9: Réal / ETP | Q9: % Ecart au 1er | R9: Rang | S9: Moyenne ecart au 1er | T9: % Ecart au 1er | U9: Rang CEGEE
A10: 50 | B10: Aube Haute Marne | C10: =VLOOKUP($A10,'RECAP DIRCOM'!$G$6:$EV$12,3,FALSE) -> 151 | D10: =VLOOKUP($A10,'RECAP DIRCOM'!$G$6:$EV$12,50,FALSE) -> 8.46 | E10: =VLOOKUP($A10,'RECAP DIRCOM'!$G$6:$EV$12,51,FALSE) -> 91% | F10: =VLOOKUP($A10,'RECAP DIRCOM'!$G$6:$EV$12,52,FALSE) -> 7 | G10: =VLOOKUP($A10,'RECAP DIRCOM'!$G$6:$EV$12,53,FALSE) -> 144.68 | H10: =VLOOKUP($A10,'RECAP DIRCOM'!$G$6:$EV$12,54,FALSE) -> 23% | I10: =VLOOKUP($A10,'RECAP DIRCOM'!$G$6:$EV$12,55,FALSE) -> 5 | J10: =VLOOKUP($A10,'RECAP DIRCOM'!$G$6:$EV$12,56,FALSE) -> 52 | K10: =VLOOKUP($A10,'RECAP DIRCOM'!$G$6:$EV$12,57,FALSE) -> 22% | L10: =VLOOKUP($A10,'RECAP DIRCOM'!$G$6:$EV$12,58,FALSE) -> 6 | M10: =VLOOKUP($A10,'RECAP DIRCOM'!$G$6:$EV$12,59,FALSE) -> 13.25 | N10: =VLOOKUP($A10,'RECAP DIRCOM'!$G$6:$EV$12,60,FALSE) -> 83% | O10: =VLOOKUP($A10,'RECAP DIRCOM'!$G$6:$EV$12,61,FALSE) -> 6 | P10: =VLOOKUP($A10,'RECAP DIRCOM'!$G$6:$EV$12,62,FALSE) -> 3.57 | Q10: =VLOOKUP($A10,'RECAP DIRCOM'!$G$6:$EV$12,63,FALSE) -> 96% | R10: =VLOOKUP($A10,'RECAP DIRCOM'!$G$6:$EV$12,64,FALSE) -> 7 | S10: =VLOOKUP($A10,'RECAP DIRCOM'!$G$6:$EV$12,65,FALSE) -> 74% | T10: =VLOOKUP($A10,'RECAP DIRCOM'!$G$6:$EV$12,66,FALSE) -> 61% | U10: =VLOOKUP($A10,'RECAP DIRCOM'!$G$6:$EV$12,67,FALSE) -> 7
A11: 262 | B11: Bas-Rhin | C11: =VLOOKUP($A11,'RECAP DIRCOM'!$G$6:$EV$12,3,FALSE) -> 299 | D11: =VLOOKUP($A11,'RECAP DIRCOM'!$G$6:$EV$12,50,FALSE) -> 39.60 | E11: =VLOOKUP($A11,'RECAP DIRCOM'!$G$6:$EV$12,51,FALSE) -> 59% | F11: =VLOOKUP($A11,'RECAP DIRCOM'!$G$6:$EV$12,52,FALSE) -> 6 | G11: =VLOOKUP($A11,'RECAP DIRCOM'!$G$6:$EV$12,53,FALSE) -> 131.38 | H11: =VLOOKUP($A11,'RECAP DIRCOM'!$G$6:$EV$12,54,FALSE) -> 30% | I11: =VLOOKUP($A11,'RECAP DIRCOM'!$G$6:$EV$12,55,FALSE) -> 6 | J11: =VLOOKUP($A11,'RECAP DIRCOM'!$G$6:$EV$12,56,FALSE) -> 55 | K11: =VLOOKUP($A11,'RECAP DIRCOM'!$G$6:$EV$12,57,FALSE) -> 18% | L11: =VLOOKUP($A11,'RECAP DIRCOM'!$G$6:$EV$12,58,FALSE) -> 2 | M11: =VLOOKUP($A11,'RECAP DIRCOM'!$G$6:$EV$12,59,FALSE) -> 29.79 | N11: =VLOOKUP($A11,'RECAP DIRCOM'!$G$6:$EV$12,60,FALSE) -> 63% | O11: =VLOOKUP($A11,'RECAP DIRCOM'!$G$6:$EV$12,61,FALSE) -> 5 | P11: =VLOOKUP($A11,'RECAP DIRCOM'!$G$6:$EV$12,62,FALSE) -> 56.38 | Q11: =VLOOKUP($A11,'RECAP DIRCOM'!$G$6:$EV$12,63,FALSE) -> 44% | R11: =VLOOKUP($A11,'RECAP DIRCOM'!$G$6:$EV$12,64,FALSE) -> 6 | S11: =VLOOKUP($A11,'RECAP DIRCOM'!$G$6:$EV$12,65,FALSE) -> 43% | T11: =VLOOKUP($A11,'RECAP DIRCOM'!$G$6:$EV$12,66,FALSE) -> 29% | U11: =VLOOKUP($A11,'RECAP DIRCOM'!$G$6:$EV$12,67,FALSE) -> 6
A12: 264 | B12: Haut-Rhin | C12: =VLOOKUP($A12,'RECAP DIRCOM'!$G$6:$EV$12,3,FALSE) -> 186 | D12: =VLOOKUP($A12,'RECAP DIRCOM'!$G$6:$EV$12,50,FALSE) -> 54.12 | E12: =VLOOKUP($A12,'RECAP DIRCOM'!$G$6:$EV$12,51,FALSE) -> 44% | F12: =VLOOKUP($A12,'RECAP DIRCOM'!$G$6:$EV$12,52,FALSE) -> 5 | G12: =VLOOKUP($A12,'RECAP DIRCOM'!$G$6:$EV$12,53,FALSE) -> 113.09 | H12: =VLOOKUP($A12,'RECAP DIRCOM'!$G$6:$EV$12,54,FALSE) -> 39% | I12: =VLOOKUP($A12,'RECAP DIRCOM'!$G$6:$EV$12,55,FALSE) -> 7 | J12: =VLOOKUP($A12,'RECAP DIRCOM'!$G$6:$EV$12,56,FALSE) -> 52 | K12: =VLOOKUP($A12,'RECAP DIRCOM'!$G$6:$EV$12,57,FALSE) -> 23% | L12: =VLOOKUP($A12,'RECAP DIRCOM'!$G$6:$EV$12,58,FALSE) -> 7 | M12: =VLOOKUP($A12,'RECAP DIRCOM'!$G$6:$EV$12,59,FALSE) -> 9.22 | N12: =VLOOKUP($A12,'RECAP DIRCOM'!$G$6:$EV$12,60,FALSE) -> 88% | O12: =VLOOKUP($A12,'RECAP DIRCOM'!$G$6:$EV$12,61,FALSE) -> 7 | P12: =VLOOKUP($A12,'RECAP DIRCOM'!$G$6:$EV$12,62,FALSE) -> 90.88 | Q12: =VLOOKUP($A12,'RECAP DIRCOM'!$G$6:$EV$12,63,FALSE) -> 9% | R12: =VLOOKUP($A12,'RECAP DIRCOM'!$G$6:$EV$12,64,FALSE) -> 2 | S12: =VLOOKUP($A12,'RECAP DIRCOM'!$G$6:$EV$12,65,FALSE) -> 30% | T12: =VLOOKUP($A12,'RECAP DIRCOM'!$G$6:$EV$12,66,FALSE) -> 17% | U12: =VLOOKUP($A12,'RECAP DIRCOM'!$G$6:$EV$12,67,FALSE) -> 5
A13: 30 | B13: Marne-Ardennes | C13: =VLOOKUP($A13,'RECAP DIRCOM'!$G$6:$EV$12,3,FALSE) -> 240 | D13: =VLOOKUP($A13,'RECAP DIRCOM'!$G$6:$EV$12,50,FALSE) -> 68.76 | E13: =VLOOKUP($A13,'RECAP DIRCOM'!$G$6:$EV$12,51,FALSE) -> 29% | F13: =VLOOKUP($A13,'RECAP DIRCOM'!$G$6:$EV$12,52,FALSE) -> 3 | G13: =VLOOKUP($A13,'RECAP DIRCOM'!$G$6:$EV$12,53,FALSE) -> 167.65 | H13: =VLOOKUP($A13,'RECAP DIRCOM'!$G$6:$EV$12,54,FALSE) -> 10% | I13: =VLOOKUP($A13,'RECAP DIRCOM'!$G$6:$EV$12,55,FALSE) -> 4 | J13: =VLOOKUP($A13,'RECAP DIRCOM'!$G$6:$EV$12,56,FALSE) -> 53 | K13: =VLOOKUP($A13,'RECAP DIRCOM'!$G$6:$EV$12,57,FALSE) -> 20% | L13: =VLOOKUP($A13,'RECAP DIRCOM'!$G$6:$EV$12,58,FALSE) -> 5 | M13: =VLOOKUP($A13,'RECAP DIRCOM'!$G$6:$EV$12,59,FALSE) -> 46.83 | N13: =VLOOKUP($A13,'RECAP DIRCOM'!$G$6:$EV$12,60,FALSE) -> 41% | O13: =VLOOKUP($A13,'RECAP DIRCOM'!$G$6:$EV$12,61,FALSE) -> 4 | P13: =VLOOKUP($A13,'RECAP DIRCOM'!$G$6:$EV$12,62,FALSE) -> 99.86 | Q13: =VLOOKUP($A13,'RECAP DIRCOM'!$G$6:$EV$12,63,FALSE) -> 0% | R13: =VLOOKUP($A13,'RECAP DIRCOM'!$G$6:$EV$12,64,FALSE) -> 1 | S13: =VLOOKUP($A13,'RECAP DIRCOM'!$G$6:$EV$12,65,FALSE) -> 13% | T13: =VLOOKUP($A13,'RECAP DIRCOM'!$G$6:$EV$12,66,FALSE) -> 0% | U13: =VLOOKUP($A13,'RECAP DIRCOM'!$G$6:$EV$12,67,FALSE) -> 1
A14: 110 | B14: Meurthe et Moselle Meuse | C14: =VLOOKUP($A14,'RECAP DIRCOM'!$G$6:$EV$12,3,FALSE) -> 270 | D14: =VLOOKUP($A14,'RECAP DIRCOM'!$G$6:$EV$12,50,FALSE) -> 62.74 | E14: =VLOOKUP($A14,'RECAP DIRCOM'!$G$6:$EV$12,51,FALSE) -> 35% | F14: =VLOOKUP($A14,'RECAP DIRCOM'!$G$6:$EV$12,52,FALSE) -> 4 | G14: =VLOOKUP($A14,'RECAP DIRCOM'!$G$6:$EV$12,53,FALSE) -> 172.57 | H14: =VLOOKUP($A14,'RECAP DIRCOM'!$G$6:$EV$12,54,FALSE) -> 8% | I14: =VLOOKUP($A14,'RECAP DIRCOM'!$G$6:$EV$12,55,FALSE) -> 3 | J14: =VLOOKUP($A14,'RECAP DIRCOM'!$G$6:$EV$12,56,FALSE) -> 53 | K14: =VLOOKUP($A14,'RECAP DIRCOM'!$G$6:$EV$12,57,FALSE) -> 20% | L14: =VLOOKUP($A14,'RECAP DIRCOM'!$G$6:$EV$12,58,FALSE) -> 4 | M14: =VLOOKUP($A14,'RECAP DIRCOM'!$G$6:$EV$12,59,FALSE) -> 68.55 | N14: =VLOOKUP($A14,'RECAP DIRCOM'!$G$6:$EV$12,60,FALSE) -> 14% | O14: =VLOOKUP($A14,'RECAP DIRCOM'!$G$6:$EV$12,61,FALSE) -> 3 | P14: =VLOOKUP($A14,'RECAP DIRCOM'!$G$6:$EV$12,62,FALSE) -> 64.69 | Q14: =VLOOKUP($A14,'RECAP DIRCOM'!$G$6:$EV$12,63,FALSE) -> 35% | R14: =VLOOKUP($A14,'RECAP DIRCOM'!$G$6:$EV$12,64,FALSE) -> 3 | S14: =VLOOKUP($A14,'RECAP DIRCOM'!$G$6:$EV$12,65,FALSE) -> 27% | T14: =VLOOKUP($A14,'RECAP DIRCOM'!$G$6:$EV$12,66,FALSE) -> 13% | U14: =VLOOKUP($A14,'RECAP DIRCOM'!$G$6:$EV$12,67,FALSE) -> 4
A15: 160 | B15: Moselle | C15: =VLOOKUP($A15,'RECAP DIRCOM'!$G$6:$EV$12,3,FALSE) -> 312 | D15: =VLOOKUP($A15,'RECAP DIRCOM'!$G$6:$EV$12,50,FALSE) -> 97.06 | E15: =VLOOKUP($A15,'RECAP DIRCOM'!$G$6:$EV$12,51,FALSE) -> 0% | F15: =VLOOKUP($A15,'RECAP DIRCOM'!$G$6:$EV$12,52,FALSE) -> 1 | G15: =VLOOKUP($A15,'RECAP DIRCOM'!$G$6:$EV$12,53,FALSE) -> 186.90 | H15: =VLOOKUP($A15,'RECAP DIRCOM'!$G$6:$EV$12,54,FALSE) -> 0% | I15: =VLOOKUP($A15,'RECAP DIRCOM'!$G$6:$EV$12,55,FALSE) -> 1 | J15: =VLOOKUP($A15,'RECAP DIRCOM'!$G$6:$EV$12,56,FALSE) -> 67 | K15: =VLOOKUP($A15,'RECAP DIRCOM'!$G$6:$EV$12,57,FALSE) -> 0% | L15: =VLOOKUP($A15,'RECAP DIRCOM'!$G$6:$EV$12,58,FALSE) -> 1 | M15: =VLOOKUP($A15,'RECAP DIRCOM'!$G$6:$EV$12,59,FALSE) -> 79.49 | N15: =VLOOKUP($A15,'RECAP DIRCOM'!$G$6:$EV$12,60,FALSE) -> 0% | O15: =VLOOKUP($A15,'RECAP DIRCOM'!$G$6:$EV$12,61,FALSE) -> 1 | P15: =VLOOKUP($A15,'RECAP DIRCOM'!$G$6:$EV$12,62,FALSE) -> 59.69 | Q15: =VLOOKUP($A15,'RECAP DIRCOM'!$G$6:$EV$12,63,FALSE) -> 40% | R15: =VLOOKUP($A15,'RECAP DIRCOM'!$G$6:$EV$12,64,FALSE) -> 5 | S15: =VLOOKUP($A15,'RECAP DIRCOM'!$G$6:$EV$12,65,FALSE) -> 19% | T15: =VLOOKUP($A15,'RECAP DIRCOM'!$G$6:$EV$12,66,FALSE) -> 5% | U15: =VLOOKUP($A15,'RECAP DIRCOM'!$G$6:$EV$12,67,FALSE) -> 2
A16: 80 | B16: Vosges | C16: =VLOOKUP($A16,'RECAP DIRCOM'!$G$6:$EV$12,3,FALSE) -> 150 | D16: =VLOOKUP($A16,'RECAP DIRCOM'!$G$6:$EV$12,50,FALSE) -> 91.51 | E16: =VLOOKUP($A16,'RECAP DIRCOM'!$G$6:$EV$12,51,FALSE) -> 6% | F16: =VLOOKUP($A16,'RECAP DIRCOM'!$G$6:$EV$12,52,FALSE) -> 2 | G16: =VLOOKUP($A16,'RECAP DIRCOM'!$G$6:$EV$12,53,FALSE) -> 177.50 | H16: =VLOOKUP($A16,'RECAP DIRCOM'!$G$6:$EV$12,54,FALSE) -> 5% | I16: =VLOOKUP($A16,'RECAP DIRCOM'!$G$6:$EV$12,55,FALSE) -> 2 | J16: =VLOOKUP($A16,'RECAP DIRCOM'!$G$6:$EV$12,56,FALSE) -> 55 | K16: =VLOOKUP($A16,'RECAP DIRCOM'!$G$6:$EV$12,57,FALSE) -> 18% | L16: =VLOOKUP($A16,'RECAP DIRCOM'!$G$6:$EV$12,58,FALSE) -> 3 | M16: =VLOOKUP($A16,'RECAP DIRCOM'!$G$6:$EV$12,59,FALSE) -> 71.22 | N16: =VLOOKUP($A16,'RECAP DIRCOM'!$G$6:$EV$12,60,FALSE) -> 10% | O16: =VLOOKUP($A16,'RECAP DIRCOM'!$G$6:$EV$12,61,FALSE) -> 2 | P16: =VLOOKUP($A16,'RECAP DIRCOM'!$G$6:$EV$12,62,FALSE) -> 60.96 | Q16: =VLOOKUP($A16,'RECAP DIRCOM'!$G$6:$EV$12,63,FALSE) -> 39% | R16: =VLOOKUP($A16,'RECAP DIRCOM'!$G$6:$EV$12,64,FALSE) -> 4 | S16: =VLOOKUP($A16,'RECAP DIRCOM'!$G$6:$EV$12,65,FALSE) -> 23% | T16: =VLOOKUP($A16,'RECAP DIRCOM'!$G$6:$EV$12,66,FALSE) -> 10% | U16: =VLOOKUP($A16,'RECAP DIRCOM'!$G$6:$EV$12,67,FALSE) -> 3
A17: Total CEGEE Directions Commerciales | C17: =SUM(C10:C16) -> 1609

Sheet DC_CREDIT
A1: Accueil | D1: BAROMETRE BDD - DIRECTIONS COMMERCIALES
D2: CREDITS
D3: =ACCUEIL!H7 -> 2019-03-31
D7: Engagements crédit conso (hors clients note octroi à 9) | G7: % CNP crédit conso | J7: Engagements crédi immo | M7: % CNP crédit immo | P7: Taux couverture SACCEF | S7: Engagement Crédit MLT + Crédit Bail | V7: Total Crédits
E8: coef | F8: ='RECAP DIRCOM'!CD4 -> 3% | H8: coef | I8: ='RECAP DIRCOM'!CG4 -> 2% | K8: coef | L8: ='RECAP DIRCOM'!CJ4 -> 3% | N8: coef | O8: ='RECAP DIRCOM'!CM4 -> 2% | Q8: coef | R8: ='RECAP DIRCOM'!CP4 -> 2% | T8: coef | U8: ='RECAP DIRCOM'!CS4 -> 3% | W8: coef | X8: ='RECAP DIRCOM'!CV4 -> 15%
A9: eds | B9: Direction | C9: ETP perf | D9: Réal / ETP | E9: % Ecart au 1er | F9: Rang | H9: % Ecart au 1er | I9: Rang | J9: Taux réal objectif | K9: % Ecart au 1er | L9: Rang | N9: % Ecart au 1er | O9: Rang | Q9: % Ecart au 1er | R9: Rang | S9: Taux réal objectif | T9: % Ecart au 1er | U9: Rang | V9: Moyenne ecart au 1er | W9: % Ecart au 1er | X9: Rang CEGEE
A10: 50 | B10: Aube Haute Marne | C10: =VLOOKUP($A10,'RECAP DIRCOM'!$G$6:$EV$12,3,FALSE) -> 151 | D10: =VLOOKUP($A10,'RECAP DIRCOM'!$G$6:$EV$12,74,FALSE) -> 125.24 | E10: =VLOOKUP($A10,'RECAP DIRCOM'!$G$6:$EV$12,75,FALSE) -> 0% | F10: =VLOOKUP($A10,'RECAP DIRCOM'!$G$6:$EV$12,76,FALSE) -> 1 | G10: =VLOOKUP($A10,'RECAP DIRCOM'!$G$6:$EV$12,77,FALSE) -> 95% | H10: =VLOOKUP($A10,'RECAP DIRCOM'!$G$6:$EV$12,78,FALSE) -> 2% | I10: =VLOOKUP($A10,'RECAP DIRCOM'!$G$6:$EV$12,79,FALSE) -> 3 | J10: =VLOOKUP($A10,'RECAP DIRCOM'!$G$6:$EV$12,80,FALSE) -> 20% | K10: =VLOOKUP($A10,'RECAP DIRCOM'!$G$6:$EV$12,81,FALSE) -> 10% | L10: =VLOOKUP($A10,'RECAP DIRCOM'!$G$6:$EV$12,82,FALSE) -> 6 | M10: =VLOOKUP($A10,'RECAP DIRCOM'!$G$6:$EV$12,83,FALSE) -> 77% | N10: =VLOOKUP($A10,'RECAP DIRCOM'!$G$6:$EV$12,84,FALSE) -> 5% | O10: =VLOOKUP($A10,'RECAP DIRCOM'!$G$6:$EV$12,85,FALSE) -> 3 | P10: =VLOOKUP($A10,'RECAP DIRCOM'!$G$6:$EV$12,86,FALSE) -> 79% | Q10: =VLOOKUP($A10,'RECAP DIRCOM'!$G$6:$EV$12,87,FALSE) -> 13% | R10: =VLOOKUP($A10,'RECAP DIRCOM'!$G$6:$EV$12,88,FALSE) -> 6 | S10: =VLOOKUP($A10,'RECAP DIRCOM'!$G$6:$EV$12,89,FALSE) -> 32% | T10: =VLOOKUP($A10,'RECAP DIRCOM'!$G$6:$EV$12,90,FALSE) -> 8% | U10: =VLOOKUP($A10,'RECAP DIRCOM'!$G$6:$EV$12,91,FALSE) -> 3 | V10: =VLOOKUP($A10,'RECAP DIRCOM'!$G$6:$EV$12,92,FALSE) -> 6% | W10: =VLOOKUP($A10,'RECAP DIRCOM'!$G$6:$EV$12,93,FALSE) -> 3% | X10: =VLOOKUP($A10,'RECAP DIRCOM'!$G$6:$EV$12,94,FALSE) -> 2
A11: 262 | B11: Bas-Rhin | C11: =VLOOKUP($A11,'RECAP DIRCOM'!$G$6:$EV$12,3,FALSE) -> 299 | D11: =VLOOKUP($A11,'RECAP DIRCOM'!$G$6:$EV$12,74,FALSE) -> 87.95 | E11: =VLOOKUP($A11,'RECAP DIRCOM'!$G$6:$EV$12,75,FALSE) -> 30% | F11: =VLOOKUP($A11,'RECAP DIRCOM'!$G$6:$EV$12,76,FALSE) -> 6 | G11: =VLOOKUP($A11,'RECAP DIRCOM'!$G$6:$EV$12,77,FALSE) -> 92% | H11: =VLOOKUP($A11,'RECAP DIRCOM'!$G$6:$EV$12,78,FALSE) -> 4% | I11: =VLOOKUP($A11,'RECAP DIRCOM'!$G$6:$EV$12,79,FALSE) -> 6 | J11: =VLOOKUP($A11,'RECAP DIRCOM'!$G$6:$EV$12,80,FALSE) -> 19% | K11: =VLOOKUP($A11,'RECAP DIRCOM'!$G$6:$EV$12,81,FALSE) -> 12% | L11: =VLOOKUP($A11,'RECAP DIRCOM'!$G$6:$EV$12,82,FALSE) -> 7 | M11: =VLOOKUP($A11,'RECAP DIRCOM'!$G$6:$EV$12,83,FALSE) -> 65% | N11: =VLOOKUP($A11,'RECAP DIRCOM'!$G$6:$EV$12,84,FALSE) -> 20% | O11: =VLOOKUP($A11,'RECAP DIRCOM'!$G$6:$EV$12,85,FALSE) -> 7 | P11: =VLOOKUP($A11,'RECAP DIRCOM'!$G$6:$EV$12,86,FALSE) -> 83% | Q11: =VLOOKUP($A11,'RECAP DIRCOM'!$G$6:$EV$12,87,FALSE) -> 8% | R11: =VLOOKUP($A11,'RECAP DIRCOM'!$G$6:$EV$12,88,FALSE) -> 5 | S11: =VLOOKUP($A11,'RECAP DIRCOM'!$G$6:$EV$12,89,FALSE) -> 24% | T11: =VLOOKUP($A11,'RECAP DIRCOM'!$G$6:$EV$12,90,FALSE) -> 32% | U11: =VLOOKUP($A11,'RECAP DIRCOM'!$G$6:$EV$12,91,FALSE) -> 4 | V11: =VLOOKUP($A11,'RECAP DIRCOM'!$G$6:$EV$12,92,FALSE) -> 19% | W11: =VLOOKUP($A11,'RECAP DIRCOM'!$G$6:$EV$12,93,FALSE) -> 15% | X11: =VLOOKUP($A11,'RECAP DIRCOM'!$G$6:$EV$12,94,FALSE) -> 6
A12: 264 | B12: Haut-Rhin | C12: =VLOOKUP($A12,'RECAP DIRCOM'!$G$6:$EV$12,3,FALSE) -> 186 | D12: =VLOOKUP($A12,'RECAP DIRCOM'!$G$6:$EV$12,74,FALSE) -> 79.66 | E12: =VLOOKUP($A12,'RECAP DIRCOM'!$G$6:$EV$12,75,FALSE) -> 36% | F12: =VLOOKUP($A12,'RECAP DIRCOM'!$G$6:$EV$12,76,FALSE) -> 7 | G12: =VLOOKUP($A12,'RECAP DIRCOM'!$G$6:$EV$12,77,FALSE) -> 92% | H12: =VLOOKUP($A12,'RECAP DIRCOM'!$G$6:$EV$12,78,FALSE) -> 4% | I12: =VLOOKUP($A12,'RECAP DIRCOM'!$G$6:$EV$12,79,FALSE) -> 5 | J12: =VLOOKUP($A12,'RECAP DIRCOM'!$G$6:$EV$12,80,FALSE) -> 22% | K12: =VLOOKUP($A12,'RECAP DIRCOM'!$G$6:$EV$12,81,FALSE) -> 1% | L12: =VLOOKUP($A12,'RECAP DIRCOM'!$G$6:$EV$12,82,FALSE) -> 5 | M12: =VLOOKUP($A12,'RECAP DIRCOM'!$G$6:$EV$12,83,FALSE) -> 74% | N12: =VLOOKUP($A12,'RECAP DIRCOM'!$G$6:$EV$12,84,FALSE) -> 9% | O12: =VLOOKUP($A12,'RECAP DIRCOM'!$G$6:$EV$12,85,FALSE) -> 4 | P12: =VLOOKUP($A12,'RECAP DIRCOM'!$G$6:$EV$12,86,FALSE) -> 73% | Q12: =VLOOKUP($A12,'RECAP DIRCOM'!$G$6:$EV$12,87,FALSE) -> 20% | R12: =VLOOKUP($A12,'RECAP DIRCOM'!$G$6:$EV$12,88,FALSE) -> 7 | S12: =VLOOKUP($A12,'RECAP DIRCOM'!$G$6:$EV$12,89,FALSE) -> 22% | T12: =VLOOKUP($A12,'RECAP DIRCOM'!$G$6:$EV$12,90,FALSE) -> 38% | U12: =VLOOKUP($A12,'RECAP DIRCOM'!$G$6:$EV$12,91,FALSE) -> 5 | V12: =VLOOKUP($A12,'RECAP DIRCOM'!$G$6:$EV$12,92,FALSE) -> 19% | W12: =VLOOKUP($A12,'RECAP DIRCOM'!$G$6:$EV$12,93,FALSE) -> 16% | X12: =VLOOKUP($A12,'RECAP DIRCOM'!$G$6:$EV$12,94,FALSE) -> 7
A13: 30 | B13: Marne-Ardennes | C13: =VLOOKUP($A13,'RECAP DIRCOM'!$G$6:$EV$12,3,FALSE) -> 240 | D13: =VLOOKUP($A13,'RECAP DIRCOM'!$G$6:$EV$12,74,FALSE) -> 112.26 | E13: =VLOOKUP($A13,'RECAP DIRCOM'!$G$6:$EV$12,75,FALSE) -> 10% | F13: =VLOOKUP($A13,'RECAP DIRCOM'!$G$6:$EV$12,76,FALSE) -> 2 | G13: =VLOOKUP($A13,'RECAP DIRCOM'!$G$6:$EV$12,77,FALSE) -> 94% | H13: =VLOOKUP($A13,'RECAP DIRCOM'!$G$6:$EV$12,78,FALSE) -> 3% | I13: =VLOOKUP($A13,'RECAP DIRCOM'!$G$6:$EV$12,79,FALSE) -> 4 | J13: =VLOOKUP($A13,'RECAP DIRCOM'!$G$6:$EV$12,80,FALSE) -> 22% | K13: =VLOOKUP($A13,'RECAP DIRCOM'!$G$6:$EV$12,81,FALSE) -> 0% | L13: =VLOOKUP($A13,'RECAP DIRCOM'!$G$6:$EV$12,82,FALSE) -> 2 | M13: =VLOOKUP($A13,'RECAP DIRCOM'!$G$6:$EV$12,83,FALSE) -> 81% | N13: =VLOOKUP($A13,'RECAP DIRCOM'!$G$6:$EV$12,84,FALSE) -> 0% | O13: =VLOOKUP($A13,'RECAP DIRCOM'!$G$6:$EV$12,85,FALSE) -> 1 | P13: =VLOOKUP($A13,'RECAP DIRCOM'!$G$6:$EV$12,86,FALSE) -> 84% | Q13: =VLOOKUP($A13,'RECAP DIRCOM'!$G$6:$EV$12,87,FALSE) -> 8% | R13: =VLOOKUP($A13,'RECAP DIRCOM'!$G$6:$EV$12,88,FALSE) -> 4 | S13: =VLOOKUP($A13,'RECAP DIRCOM'!$G$6:$EV$12,89,FALSE) -> 35% | T13: =VLOOKUP($A13,'RECAP DIRCOM'!$G$6:$EV$12,90,FALSE) -> 0% | U13: =VLOOKUP($A13,'RECAP DIRCOM'!$G$6:$EV$12,91,FALSE) -> 1 | V13: =VLOOKUP($A13,'RECAP DIRCOM'!$G$6:$EV$12,92,FALSE) -> 4% | W13: =VLOOKUP($A13,'RECAP DIRCOM'!$G$6:$EV$12,93,FALSE) -> 0% | X13: =VLOOKUP($A13,'RECAP DIRCOM'!$G$6:$EV$12,94,FALSE) -> 1
A14: 110 | B14: Meurthe et Moselle Meuse | C14: =VLOOKUP($A14,'RECAP DIRCOM'!$G$6:$EV$12,3,FALSE) -> 270 | D14: =VLOOKUP($A14,'RECAP DIRCOM'!$G$6:$EV$12,74,FALSE) -> 108.85 | E14: =VLOOKUP($A14,'RECAP DIRCOM'!$G$6:$EV$12,75,FALSE) -> 13% | F14: =VLOOKUP($A14,'RECAP DIRCOM'!$G$6:$EV$12,76,FALSE) -> 4 | G14: =VLOOKUP($A14,'RECAP DIRCOM'!$G$6:$EV$12,77,FALSE) -> 87% | H14: =VLOOKUP($A14,'RECAP DIRCOM'!$G$6:$EV$12,78,FALSE) -> 10% | I14: =VLOOKUP($A14,'RECAP DIRCOM'!$G$6:$EV$12,79,FALSE) -> 7 | J14: =VLOOKUP($A14,'RECAP DIRCOM'!$G$6:$EV$12,80,FALSE) -> 22% | K14: =VLOOKUP($A14,'RECAP DIRCOM'!$G$6:$EV$12,81,FALSE) -> 1% | L14: =VLOOKUP($A14,'RECAP DIRCOM'!$G$6:$EV$12,82,FALSE) -> 4 | M14: =VLOOKUP($A14,'RECAP DIRCOM'!$G$6:$EV$12,83,FALSE) -> 80% | N14: =VLOOKUP($A14,'RECAP DIRCOM'!$G$6:$EV$12,84,FALSE) -> 2% | O14: =VLOOKUP($A14,'RECAP DIRCOM'!$G$6:$EV$12,85,FALSE) -> 2 | P14: =VLOOKUP($A14,'RECAP DIRCOM'!$G$6:$EV$12,86,FALSE) -> 91% | Q14: =VLOOKUP($A14,'RECAP DIRCOM'!$G$6:$EV$12,87,FALSE) -> 0% | R14: =VLOOKUP($A14,'RECAP DIRCOM'!$G$6:$EV$12,88,FALSE) -> 1 | S14: =VLOOKUP($A14,'RECAP DIRCOM'!$G$6:$EV$12,89,FALSE) -> 20% | T14: =VLOOKUP($A14,'RECAP DIRCOM'!$G$6:$EV$12,90,FALSE) -> 42% | U14: =VLOOKUP($A14,'RECAP DIRCOM'!$G$6:$EV$12,91,FALSE) -> 6 | V14: =VLOOKUP($A14,'RECAP DIRCOM'!$G$6:$EV$12,92,FALSE) -> 13% | W14: =VLOOKUP($A14,'RECAP DIRCOM'!$G$6:$EV$12,93,FALSE) -> 9% | X14: =VLOOKUP($A14,'RECAP DIRCOM'!$G$6:$EV$12,94,FALSE) -> 4
A15: 160 | B15: Moselle | C15: =VLOOKUP($A15,'RECAP DIRCOM'!$G$6:$EV$12,3,FALSE) -> 312 | D15: =VLOOKUP($A15,'RECAP DIRCOM'!$G$6:$EV$12,74,FALSE) -> 109.63 | E15: =VLOOKUP($A15,'RECAP DIRCOM'!$G$6:$EV$12,75,FALSE) -> 12% | F15: =VLOOKUP($A15,'RECAP DIRCOM'!$G$6:$EV$12,76,FALSE) -> 3 | G15: =VLOOKUP($A15,'RECAP DIRCOM'!$G$6:$EV$12,77,FALSE) -> 96% | H15: =VLOOKUP($A15,'RECAP DIRCOM'!$G$6:$EV$12,78,FALSE) -> 0% | I15: =VLOOKUP($A15,'RECAP DIRCOM'!$G$6:$EV$12,79,FALSE) -> 1 | J15: =VLOOKUP($A15,'RECAP DIRCOM'!$G$6:$EV$12,80,FALSE) -> 22% | K15: =VLOOKUP($A15,'RECAP DIRCOM'!$G$6:$EV$12,81,FALSE) -> 1% | L15: =VLOOKUP($A15,'RECAP DIRCOM'!$G$6:$EV$12,82,FALSE) -> 3 | M15: =VLOOKUP($A15,'RECAP DIRCOM'!$G$6:$EV$12,83,FALSE) -> 70% | N15: =VLOOKUP($A15,'RECAP DIRCOM'!$G$6:$EV$12,84,FALSE) -> 13% | O15: =VLOOKUP($A15,'RECAP DIRCOM'!$G$6:$EV$12,85,FALSE) -> 6 | P15: =VLOOKUP($A15,'RECAP DIRCOM'!$G$6:$EV$12,86,FALSE) -> 84% | Q15: =VLOOKUP($A15,'RECAP DIRCOM'!$G$6:$EV$12,87,FALSE) -> 7% | R15: =VLOOKUP($A15,'RECAP DIRCOM'!$G$6:$EV$12,88,FALSE) -> 3 | S15: =VLOOKUP($A15,'RECAP DIRCOM'!$G$6:$EV$12,89,FALSE) -> 18% | T15: =VLOOKUP($A15,'RECAP DIRCOM'!$G$6:$EV$12,90,FALSE) -> 48% | U15: =VLOOKUP($A15,'RECAP DIRCOM'!$G$6:$EV$12,91,FALSE) -> 7 | V15: =VLOOKUP($A15,'RECAP DIRCOM'!$G$6:$EV$12,92,FALSE) -> 15% | W15: =VLOOKUP($A15,'RECAP DIRCOM'!$G$6:$EV$12,93,FALSE) -> 11% | X15: =VLOOKUP($A15,'RECAP DIRCOM'!$G$6:$EV$12,94,FALSE) -> 5
A16: 80 | B16: Vosges | C16: =VLOOKUP($A16,'RECAP DIRCOM'!$G$6:$EV$12,3,FALSE) -> 150 | D16: =VLOOKUP($A16,'RECAP DIRCOM'!$G$6:$EV$12,74,FALSE) -> 108.27 | E16: =VLOOKUP($A16,'RECAP DIRCOM'!$G$6:$EV$12,75,FALSE) -> 14% | F16: =VLOOKUP($A16,'RECAP DIRCOM'!$G$6:$EV$12,76,FALSE) -> 5 | G16: =VLOOKUP($A16,'RECAP DIRCOM'!$G$6:$EV$12,77,FALSE) -> 96% | H16: =VLOOKUP($A16,'RECAP DIRCOM'!$G$6:$EV$12,78,FALSE) -> 1% | I16: =VLOOKUP($A16,'RECAP DIRCOM'!$G$6:$EV$12,79,FALSE) -> 2 | J16: =VLOOKUP($A16,'RECAP DIRCOM'!$G$6:$EV$12,80,FALSE) -> 22% | K16: =VLOOKUP($A16,'RECAP DIRCOM'!$G$6:$EV$12,81,FALSE) -> 0% | L16: =VLOOKUP($A16,'RECAP DIRCOM'!$G$6:$EV$12,82,FALSE) -> 1 | M16: =VLOOKUP($A16,'RECAP DIRCOM'!$G$6:$EV$12,83,FALSE) -> 70% | N16: =VLOOKUP($A16,'RECAP DIRCOM'!$G$6:$EV$12,84,FALSE) -> 13% | O16: =VLOOKUP($A16,'RECAP DIRCOM'!$G$6:$EV$12,85,FALSE) -> 5 | P16: =VLOOKUP($A16,'RECAP DIRCOM'!$G$6:$EV$12,86,FALSE) -> 85% | Q16: =VLOOKUP($A16,'RECAP DIRCOM'!$G$6:$EV$12,87,FALSE) -> 6% | R16: =VLOOKUP($A16,'RECAP DIRCOM'!$G$6:$EV$12,88,FALSE) -> 2 | S16: =VLOOKUP($A16,'RECAP DIRCOM'!$G$6:$EV$12,89,FALSE) -> 33% | T16: =VLOOKUP($A16,'RECAP DIRCOM'!$G$6:$EV$12,90,FALSE) -> 5% | U16: =VLOOKUP($A16,'RECAP DIRCOM'!$G$6:$EV$12,91,FALSE) -> 2 | V16: =VLOOKUP($A16,'RECAP DIRCOM'!$G$6:$EV$12,92,FALSE) -> 6% | W16: =VLOOKUP($A16,'RECAP DIRCOM'!$G$6:$EV$12,93,FALSE) -> 3% | X16: =VLOOKUP($A16,'RECAP DIRCOM'!$G$6:$EV$12,94,FALSE) -> 3
A17: Total CEGEE Directions Commerciales | C17: =SUM(C10:C16) -> 1609

Sheet DC_IARD
A1: Accueil | D1: BAROMETRE BDD - DIRECTIONS COMMERCIALES
D2: IARD PREVOYANCE
D3: =ACCUEIL!H7 -> 2019-03-31
D7: Ventes nettes IARD (AUTO+MRH+Pro) | G7: Ventes nettes Prévoyance | J7: Chiffre d'affaires IARD | M7: Total IARD Prévoyance
E8: coef | F8: ='RECAP DIRCOM'!DE4 -> 7% | H8: coef | I8: ='RECAP DIRCOM'!DH4 -> 7% | K8: coef | L8: ='RECAP DIRCOM'!DK4 -> 6% | N8: coef | O8: ='RECAP DIRCOM'!DN4 -> 20%
A9: eds | B9: Direction | C9: ETP perf | D9: Nb / ETP | E9: % Ecart au 1er | F9: Rang | G9: Nb / ETP | H9: % Ecart au 1er | I9: Rang | J9: Nb / ETP | K9: % Ecart au 1er | L9: Rang | M9: Moyenne ecart au 1er | N9: % Ecart au 1er | O9: Rang CEGEE
A10: 50 | B10: Aube Haute Marne | C10: =VLOOKUP($A10,'RECAP DIRCOM'!$G$6:$EV$12,3,FALSE) -> 151 | D10: =VLOOKUP($A10,'RECAP DIRCOM'!$G$6:$EV$12,101,FALSE) -> 2.29 | E10: =VLOOKUP($A10,'RECAP DIRCOM'!$G$6:$EV$12,102,FALSE) -> 16% | F10: =VLOOKUP($A10,'RECAP DIRCOM'!$G$6:$EV$12,103,FALSE) -> 4 | G10: =VLOOKUP($A10,'RECAP DIRCOM'!$G$6:$EV$12,104,FALSE) -> 2.41 | H10: =VLOOKUP($A10,'RECAP DIRCOM'!$G$6:$EV$12,105,FALSE) -> 47% | I10: =VLOOKUP($A10,'RECAP DIRCOM'!$G$6:$EV$12,106,FALSE) -> 4 | J10: =VLOOKUP($A10,'RECAP DIRCOM'!$G$6:$EV$12,107,FALSE) -> 2.71 | K10: =VLOOKUP($A10,'RECAP DIRCOM'!$G$6:$EV$12,108,FALSE) -> 26% | L10: =VLOOKUP($A10,'RECAP DIRCOM'!$G$6:$EV$12,109,FALSE) -> 7 | M10: =VLOOKUP($A10,'RECAP DIRCOM'!$G$6:$EV$12,110,FALSE) -> 30% | N10: =VLOOKUP($A10,'RECAP DIRCOM'!$G$6:$EV$12,111,FALSE) -> 21% | O10: =VLOOKUP($A10,'RECAP DIRCOM'!$G$6:$EV$12,112,FALSE) -> 6
A11: 262 | B11: Bas-Rhin | C11: =VLOOKUP($A11,'RECAP DIRCOM'!$G$6:$EV$12,3,FALSE) -> 299 | D11: =VLOOKUP($A11,'RECAP DIRCOM'!$G$6:$EV$12,101,FALSE) -> 1.81 | E11: =VLOOKUP($A11,'RECAP DIRCOM'!$G$6:$EV$12,102,FALSE) -> 34% | F11: =VLOOKUP($A11,'RECAP DIRCOM'!$G$6:$EV$12,103,FALSE) -> 7 | G11: =VLOOKUP($A11,'RECAP DIRCOM'!$G$6:$EV$12,104,FALSE) -> 2.25 | H11: =VLOOKUP($A11,'RECAP DIRCOM'!$G$6:$EV$12,105,FALSE) -> 50% | I11: =VLOOKUP($A11,'RECAP DIRCOM'!$G$6:$EV$12,106,FALSE) -> 5 | J11: =VLOOKUP($A11,'RECAP DIRCOM'!$G$6:$EV$12,107,FALSE) -> 3.16 | K11: =VLOOKUP($A11,'RECAP DIRCOM'!$G$6:$EV$12,108,FALSE) -> 14% | L11: =VLOOKUP($A11,'RECAP DIRCOM'!$G$6:$EV$12,109,FALSE) -> 5 | M11: =VLOOKUP($A11,'RECAP DIRCOM'!$G$6:$EV$12,110,FALSE) -> 34% | N11: =VLOOKUP($A11,'RECAP DIRCOM'!$G$6:$EV$12,111,FALSE) -> 25% | O11: =VLOOKUP($A11,'RECAP DIRCOM'!$G$6:$EV$12,112,FALSE) -> 7
A12: 264 | B12: Haut-Rhin | C12: =VLOOKUP($A12,'RECAP DIRCOM'!$G$6:$EV$12,3,FALSE) -> 186 | D12: =VLOOKUP($A12,'RECAP DIRCOM'!$G$6:$EV$12,101,FALSE) -> 2.57 | E12: =VLOOKUP($A12,'RECAP DIRCOM'!$G$6:$EV$12,102,FALSE) -> 6% | F12: =VLOOKUP($A12,'RECAP DIRCOM'!$G$6:$EV$12,103,FALSE) -> 2 | G12: =VLOOKUP($A12,'RECAP DIRCOM'!$G$6:$EV$12,104,FALSE) -> 2.82 | H12: =VLOOKUP($A12,'RECAP DIRCOM'!$G$6:$EV$12,105,FALSE) -> 38% | I12: =VLOOKUP($A12,'RECAP DIRCOM'!$G$6:$EV$12,106,FALSE) -> 3 | J12: =VLOOKUP($A12,'RECAP DIRCOM'!$G$6:$EV$12,107,FALSE) -> 3.36 | K12: =VLOOKUP($A12,'RECAP DIRCOM'!$G$6:$EV$12,108,FALSE) -> 8% | L12: =VLOOKUP($A12,'RECAP DIRCOM'!$G$6:$EV$12,109,FALSE) -> 2 | M12: =VLOOKUP($A12,'RECAP DIRCOM'!$G$6:$EV$12,110,FALSE) -> 18% | N12: =VLOOKUP($A12,'RECAP DIRCOM'!$G$6:$EV$12,111,FALSE) -> 9% | O12: =VLOOKUP($A12,'RECAP DIRCOM'!$G$6:$EV$12,112,FALSE) -> 2
A13: 30 | B13: Marne-Ardennes | C13: =VLOOKUP($A13,'RECAP DIRCOM'!$G$6:$EV$12,3,FALSE) -> 240 | D13: =VLOOKUP($A13,'RECAP DIRCOM'!$G$6:$EV$12,101,FALSE) -> 2.00 | E13: =VLOOKUP($A13,'RECAP DIRCOM'!$G$6:$EV$12,102,FALSE) -> 27% | F13: =VLOOKUP($A13,'RECAP DIRCOM'!$G$6:$EV$12,103,FALSE) -> 6 | G13: =VLOOKUP($A13,'RECAP DIRCOM'!$G$6:$EV$12,104,FALSE) -> 3.98 | H13: =VLOOKUP($A13,'RECAP DIRCOM'!$G$6:$EV$12,105,FALSE) -> 12% | I13: =VLOOKUP($A13,'RECAP DIRCOM'!$G$6:$EV$12,106,FALSE) -> 2 | J13: =VLOOKUP($A13,'RECAP DIRCOM'!$G$6:$EV$12,107,FALSE) -> 2.88 | K13: =VLOOKUP($A13,'RECAP DIRCOM'!$G$6:$EV$12,108,FALSE) -> 21% | L13: =VLOOKUP($A13,'RECAP DIRCOM'!$G$6:$EV$12,109,FALSE) -> 6 | M13: =VLOOKUP($A13,'RECAP DIRCOM'!$G$6:$EV$12,110,FALSE) -> 20% | N13: =VLOOKUP($A13,'RECAP DIRCOM'!$G$6:$EV$12,111,FALSE) -> 11% | O13: =VLOOKUP($A13,'RECAP DIRCOM'!$G$6:$EV$12,112,FALSE) -> 4
A14: 110 | B14: Meurthe et Moselle Meuse | C14: =VLOOKUP($A14,'RECAP DIRCOM'!$G$6:$EV$12,3,FALSE) -> 270 | D14: =VLOOKUP($A14,'RECAP DIRCOM'!$G$6:$EV$12,101,FALSE) -> 2.20 | E14: =VLOOKUP($A14,'RECAP DIRCOM'!$G$6:$EV$12,102,FALSE) -> 19% | F14: =VLOOKUP($A14,'RECAP DIRCOM'!$G$6:$EV$12,103,FALSE) -> 5 | G14: =VLOOKUP($A14,'RECAP DIRCOM'!$G$6:$EV$12,104,FALSE) -> 2.21 | H14: =VLOOKUP($A14,'RECAP DIRCOM'!$G$6:$EV$12,105,FALSE) -> 51% | I14: =VLOOKUP($A14,'RECAP DIRCOM'!$G$6:$EV$12,106,FALSE) -> 6 | J14: =VLOOKUP($A14,'RECAP DIRCOM'!$G$6:$EV$12,107,FALSE) -> 3.30 | K14: =VLOOKUP($A14,'RECAP DIRCOM'!$G$6:$EV$12,108,FALSE) -> 10% | L14: =VLOOKUP($A14,'RECAP DIRCOM'!$G$6:$EV$12,109,FALSE) -> 3 | M14: =VLOOKUP($A14,'RECAP DIRCOM'!$G$6:$EV$12,110,FALSE) -> 28% | N14: =VLOOKUP($A14,'RECAP DIRCOM'!$G$6:$EV$12,111,FALSE) -> 19% | O14: =VLOOKUP($A14,'RECAP DIRCOM'!$G$6:$EV$12,112,FALSE) -> 5
A15: 160 | B15: Moselle | C15: =VLOOKUP($A15,'RECAP DIRCOM'!$G$6:$EV$12,3,FALSE) -> 312 | D15: =VLOOKUP($A15,'RECAP DIRCOM'!$G$6:$EV$12,101,FALSE) -> 2.32 | E15: =VLOOKUP($A15,'RECAP DIRCOM'!$G$6:$EV$12,102,FALSE) -> 15% | F15: =VLOOKUP($A15,'RECAP DIRCOM'!$G$6:$EV$12,103,FALSE) -> 3 | G15: =VLOOKUP($A15,'RECAP DIRCOM'!$G$6:$EV$12,104,FALSE) -> 4.53 | H15: =VLOOKUP($A15,'RECAP DIRCOM'!$G$6:$EV$12,105,FALSE) -> 0% | I15: =VLOOKUP($A15,'RECAP DIRCOM'!$G$6:$EV$12,106,FALSE) -> 1 | J15: =VLOOKUP($A15,'RECAP DIRCOM'!$G$6:$EV$12,107,FALSE) -> 3.23 | K15: =VLOOKUP($A15,'RECAP DIRCOM'!$G$6:$EV$12,108,FALSE) -> 12% | L15: =VLOOKUP($A15,'RECAP DIRCOM'!$G$6:$EV$12,109,FALSE) -> 4 | M15: =VLOOKUP($A15,'RECAP DIRCOM'!$G$6:$EV$12,110,FALSE) -> 9% | N15: =VLOOKUP($A15,'RECAP DIRCOM'!$G$6:$EV$12,111,FALSE) -> 0% | O15: =VLOOKUP($A15,'RECAP DIRCOM'!$G$6:$EV$12,112,FALSE) -> 1
A16: 80 | B16: Vosges | C16: =VLOOKUP($A16,'RECAP DIRCOM'!$G$6:$EV$12,3,FALSE) -> 150 | D16: =VLOOKUP($A16,'RECAP DIRCOM'!$G$6:$EV$12,101,FALSE) -> 2.73 | E16: =VLOOKUP($A16,'RECAP DIRCOM'!$G$6:$EV$12,102,FALSE) -> 0% | F16: =VLOOKUP($A16,'RECAP DIRCOM'!$G$6:$EV$12,103,FALSE) -> 1 | G16: =VLOOKUP($A16,'RECAP DIRCOM'!$G$6:$EV$12,104,FALSE) -> 2.11 | H16: =VLOOKUP($A16,'RECAP DIRCOM'!$G$6:$EV$12,105,FALSE) -> 53% | I16: =VLOOKUP($A16,'RECAP DIRCOM'!$G$6:$EV$12,106,FALSE) -> 7 | J16: =VLOOKUP($A16,'RECAP DIRCOM'!$G$6:$EV$12,107,FALSE) -> 3.65 | K16: =VLOOKUP($A16,'RECAP DIRCOM'!$G$6:$EV$12,108,FALSE) -> 0% | L16: =VLOOKUP($A16,'RECAP DIRCOM'!$G$6:$EV$12,109,FALSE) -> 1 | M16: =VLOOKUP($A16,'RECAP DIRCOM'!$G$6:$EV$12,110,FALSE) -> 19% | N16: =VLOOKUP($A16,'RECAP DIRCOM'!$G$6:$EV$12,111,FALSE) -> 10% | O16: =VLOOKUP($A16,'RECAP DIRCOM'!$G$6:$EV$12,112,FALSE) -> 3
A17: Total CEGEE Directions Commerciales | C17: =SUM(C10:C16) -> 1609

Sheet DC_CONQUETE
A1: Accueil | D1: BAROMETRE BDD - DIRECTIONS COMMERCIALES
D2: CONQUETE
D3: =ACCUEIL!H7 -> 2019-03-31
D7: Evolution nette clients Bancarisés Principaux | G7: Evolution nette relations PREMIUM | J7: Evolution nette clients Bancarisés Principaux équipés | M7: Evolution nette clients Pro actif équipés | P7: Total Conquête
E8: coef | F8: ='RECAP DIRCOM'!M4 -> 4% | H8: coef | I8: ='RECAP DIRCOM'!P4 -> 4% | K8: coef | L8: ='RECAP DIRCOM'!S4 -> 3% | N8: coef | O8: ='RECAP DIRCOM'!V4 -> 4% | Q8: coef | R8: ='RECAP DIRCOM'!Y4 -> 15%
A9: eds | B9: Direction | C9: ETP perf | D9: Nb / ETP | E9: % Ecart au 1er | F9: Rang | G9: Nb / ETP | H9: % Ecart au 1er | I9: Rang | J9: Nb / ETP | K9: % Ecart au 1er | L9: Rang | M9: Taux réal objectif | N9: % Ecart au 1er | O9: Rang | P9: Moyenne ecart au 1er | Q9: % Ecart au 1er | R9: Rang CEGEE
A10: 50 | B10: Aube Haute Marne | C10: =VLOOKUP($A10,'RECAP DIRCOM'!$G$6:$EV$12,3,FALSE) -> 151 | D10: =VLOOKUP($A10,'RECAP DIRCOM'!$G$6:$EV$12,5,FALSE) -> -0.80 | E10: =VLOOKUP($A10,'RECAP DIRCOM'!$G$6:$EV$12,6,FALSE) -> 46% | F10: =VLOOKUP($A10,'RECAP DIRCOM'!$G$6:$EV$12,7,FALSE) -> 3 | G10: =VLOOKUP($A10,'RECAP DIRCOM'!$G$6:$EV$12,8,FALSE) -> 1.48 | H10: =VLOOKUP($A10,'RECAP DIRCOM'!$G$6:$EV$12,9,FALSE) -> 31% | I10: =VLOOKUP($A10,'RECAP DIRCOM'!$G$6:$EV$12,10,FALSE) -> 7 | J10: =VLOOKUP($A10,'RECAP DIRCOM'!$G$6:$EV$12,11,FALSE) -> -0.23 | K10: =VLOOKUP($A10,'RECAP DIRCOM'!$G$6:$EV$12,12,FALSE) -> 21% | L10: =VLOOKUP($A10,'RECAP DIRCOM'!$G$6:$EV$12,13,FALSE) -> 2 | M10: =VLOOKUP($A10,'RECAP DIRCOM'!$G$6:$EV$12,14,FALSE) -> 48% | N10: =VLOOKUP($A10,'RECAP DIRCOM'!$G$6:$EV$12,15,FALSE) -> 48% | O10: =VLOOKUP($A10,'RECAP DIRCOM'!$G$6:$EV$12,16,FALSE) -> 6 | P10: =VLOOKUP($A10,'RECAP DIRCOM'!$G$6:$EV$12,17,FALSE) -> 38% | Q10: =VLOOKUP($A10,'RECAP DIRCOM'!$G$6:$EV$12,18,FALSE) -> 24% | R10: =VLOOKUP($A10,'RECAP DIRCOM'!$G$6:$EV$12,19,FALSE) -> 4
A11: 262 | B11: Bas-Rhin | C11: =VLOOKUP($A11,'RECAP DIRCOM'!$G$6:$EV$12,3,FALSE) -> 299 | D11: =VLOOKUP($A11,'RECAP DIRCOM'!$G$6:$EV$12,5,FALSE) -> -1.20 | E11: =VLOOKUP($A11,'RECAP DIRCOM'!$G$6:$EV$12,6,FALSE) -> 88% | F11: =VLOOKUP($A11,'RECAP DIRCOM'!$G$6:$EV$12,7,FALSE) -> 6 | G11: =VLOOKUP($A11,'RECAP DIRCOM'!$G$6:$EV$12,8,FALSE) -> 1.80 | H11: =VLOOKUP($A11,'RECAP DIRCOM'!$G$6:$EV$12,9,FALSE) -> 15% | I11: =VLOOKUP($A11,'RECAP DIRCOM'!$G$6:$EV$12,10,FALSE) -> 6 | J11: =VLOOKUP($A11,'RECAP DIRCOM'!$G$6:$EV$12,11,FALSE) -> -1.38 | K11: =VLOOKUP($A11,'RECAP DIRCOM'!$G$6:$EV$12,12,FALSE) -> 143% | L11: =VLOOKUP($A11,'RECAP DIRCOM'!$G$6:$EV$12,13,FALSE) -> 6 | M11: =VLOOKUP($A11,'RECAP DIRCOM'!$G$6:$EV$12,14,FALSE) -> 40% | N11: =VLOOKUP($A11,'RECAP DIRCOM'!$G$6:$EV$12,15,FALSE) -> 57% | O11: =VLOOKUP($A11,'RECAP DIRCOM'!$G$6:$EV$12,16,FALSE) -> 7 | P11: =VLOOKUP($A11,'RECAP DIRCOM'!$G$6:$EV$12,17,FALSE) -> 71% | Q11: =VLOOKUP($A11,'RECAP DIRCOM'!$G$6:$EV$12,18,FALSE) -> 58% | R11: =VLOOKUP($A11,'RECAP DIRCOM'!$G$6:$EV$12,19,FALSE) -> 6
A12: 264 | B12: Haut-Rhin | C12: =VLOOKUP($A12,'RECAP DIRCOM'!$G$6:$EV$12,3,FALSE) -> 186 | D12: =VLOOKUP($A12,'RECAP DIRCOM'!$G$6:$EV$12,5,FALSE) -> -1.79 | E12: =VLOOKUP($A12,'RECAP DIRCOM'!$G$6:$EV$12,6,FALSE) -> 150% | F12: =VLOOKUP($A12,'RECAP DIRCOM'!$G$6:$EV$12,7,FALSE) -> 7 | G12: =VLOOKUP($A12,'RECAP DIRCOM'!$G$6:$EV$12,8,FALSE) -> 1.93 | H12: =VLOOKUP($A12,'RECAP DIRCOM'!$G$6:$EV$12,9,FALSE) -> 9% | I12: =VLOOKUP($A12,'RECAP DIRCOM'!$G$6:$EV$12,10,FALSE) -> 3 | J12: =VLOOKUP($A12,'RECAP DIRCOM'!$G$6:$EV$12,11,FALSE) -> -1.44 | K12: =VLOOKUP($A12,'RECAP DIRCOM'!$G$6:$EV$12,12,FALSE) -> 150% | L12: =VLOOKUP($A12,'RECAP DIRCOM'!$G$6:$EV$12,13,FALSE) -> 7 | M12: =VLOOKUP($A12,'RECAP DIRCOM'!$G$6:$EV$12,14,FALSE) -> 57% | N12: =VLOOKUP($A12,'RECAP DIRCOM'!$G$6:$EV$12,15,FALSE) -> 39% | O12: =VLOOKUP($A12,'RECAP DIRCOM'!$G$6:$EV$12,16,FALSE) -> 4 | P12: =VLOOKUP($A12,'RECAP DIRCOM'!$G$6:$EV$12,17,FALSE) -> 83% | Q12: =VLOOKUP($A12,'RECAP DIRCOM'!$G$6:$EV$12,18,FALSE) -> 69% | R12: =VLOOKUP($A12,'RECAP DIRCOM'!$G$6:$EV$12,19,FALSE) -> 7
A13: 30 | B13: Marne-Ardennes | C13: =VLOOKUP($A13,'RECAP DIRCOM'!$G$6:$EV$12,3,FALSE) -> 240 | D13: =VLOOKUP($A13,'RECAP DIRCOM'!$G$6:$EV$12,5,FALSE) -> -0.36 | E13: =VLOOKUP($A13,'RECAP DIRCOM'!$G$6:$EV$12,6,FALSE) -> 0% | F13: =VLOOKUP($A13,'RECAP DIRCOM'!$G$6:$EV$12,7,FALSE) -> 1 | G13: =VLOOKUP($A13,'RECAP DIRCOM'!$G$6:$EV$12,8,FALSE) -> 1.95 | H13: =VLOOKUP($A13,'RECAP DIRCOM'!$G$6:$EV$12,9,FALSE) -> 8% | I13: =VLOOKUP($A13,'RECAP DIRCOM'!$G$6:$EV$12,10,FALSE) -> 2 | J13: =VLOOKUP($A13,'RECAP DIRCOM'!$G$6:$EV$12,11,FALSE) -> -0.03 | K13: =VLOOKUP($A13,'RECAP DIRCOM'!$G$6:$EV$12,12,FALSE) -> 0% | L13: =VLOOKUP($A13,'RECAP DIRCOM'!$G$6:$EV$12,13,FALSE) -> 1 | M13: =VLOOKUP($A13,'RECAP DIRCOM'!$G$6:$EV$12,14,FALSE) -> 54% | N13: =VLOOKUP($A13,'RECAP DIRCOM'!$G$6:$EV$12,15,FALSE) -> 42% | O13: =VLOOKUP($A13,'RECAP DIRCOM'!$G$6:$EV$12,16,FALSE) -> 5 | P13: =VLOOKUP($A13,'RECAP DIRCOM'!$G$6:$EV$12,17,FALSE) -> 13% | Q13: =VLOOKUP($A13,'RECAP DIRCOM'!$G$6:$EV$12,18,FALSE) -> 0% | R13: =VLOOKUP($A13,'RECAP DIRCOM'!$G$6:$EV$12,19,FALSE) -> 1
A14: 110 | B14: Meurthe et Moselle Meuse | C14: =VLOOKUP($A14,'RECAP DIRCOM'!$G$6:$EV$12,3,FALSE) -> 270 | D14: =VLOOKUP($A14,'RECAP DIRCOM'!$G$6:$EV$12,5,FALSE) -> -0.61 | E14: =VLOOKUP($A14,'RECAP DIRCOM'!$G$6:$EV$12,6,FALSE) -> 26% | F14: =VLOOKUP($A14,'RECAP DIRCOM'!$G$6:$EV$12,7,FALSE) -> 2 | G14: =VLOOKUP($A14,'RECAP DIRCOM'!$G$6:$EV$12,8,FALSE) -> 1.80 | H14: =VLOOKUP($A14,'RECAP DIRCOM'!$G$6:$EV$12,9,FALSE) -> 15% | I14: =VLOOKUP($A14,'RECAP DIRCOM'!$G$6:$EV$12,10,FALSE) -> 5 | J14: =VLOOKUP($A14,'RECAP DIRCOM'!$G$6:$EV$12,11,FALSE) -> -0.76 | K14: =VLOOKUP($A14,'RECAP DIRCOM'!$G$6:$EV$12,12,FALSE) -> 77% | L14: =VLOOKUP($A14,'RECAP DIRCOM'!$G$6:$EV$12,13,FALSE) -> 3 | M14: =VLOOKUP($A14,'RECAP DIRCOM'!$G$6:$EV$12,14,FALSE) -> 92% | N14: =VLOOKUP($A14,'RECAP DIRCOM'!$G$6:$EV$12,15,FALSE) -> 0% | O14: =VLOOKUP($A14,'RECAP DIRCOM'!$G$6:$EV$12,16,FALSE) -> 2 | P14: =VLOOKUP($A14,'RECAP DIRCOM'!$G$6:$EV$12,17,FALSE) -> 27% | Q14: =VLOOKUP($A14,'RECAP DIRCOM'!$G$6:$EV$12,18,FALSE) -> 13% | R14: =VLOOKUP($A14,'RECAP DIRCOM'!$G$6:$EV$12,19,FALSE) -> 2
A15: 160 | B15: Moselle | C15: =VLOOKUP($A15,'RECAP DIRCOM'!$G$6:$EV$12,3,FALSE) -> 312 | D15: =VLOOKUP($A15,'RECAP DIRCOM'!$G$6:$EV$12,5,FALSE) -> -1.02 | E15: =VLOOKUP($A15,'RECAP DIRCOM'!$G$6:$EV$12,6,FALSE) -> 69% | F15: =VLOOKUP($A15,'RECAP DIRCOM'!$G$6:$EV$12,7,FALSE) -> 4 | G15: =VLOOKUP($A15,'RECAP DIRCOM'!$G$6:$EV$12,8,FALSE) -> 2.13 | H15: =VLOOKUP($A15,'RECAP DIRCOM'!$G$6:$EV$12,9,FALSE) -> 0% | I15: =VLOOKUP($A15,'RECAP DIRCOM'!$G$6:$EV$12,10,FALSE) -> 1 | J15: =VLOOKUP($A15,'RECAP DIRCOM'!$G$6:$EV$12,11,FALSE) -> -0.85 | K15: =VLOOKUP($A15,'RECAP DIRCOM'!$G$6:$EV$12,12,FALSE) -> 87% | L15: =VLOOKUP($A15,'RECAP DIRCOM'!$G$6:$EV$12,13,FALSE) -> 4 | M15: =VLOOKUP($A15,'RECAP DIRCOM'!$G$6:$EV$12,14,FALSE) -> 93% | N15: =VLOOKUP($A15,'RECAP DIRCOM'!$G$6:$EV$12,15,FALSE) -> 0% | O15: =VLOOKUP($A15,'RECAP DIRCOM'!$G$6:$EV$12,16,FALSE) -> 1 | P15: =VLOOKUP($A15,'RECAP DIRCOM'!$G$6:$EV$12,17,FALSE) -> 36% | Q15: =VLOOKUP($A15,'RECAP DIRCOM'!$G$6:$EV$12,18,FALSE) -> 22% | R15: =VLOOKUP($A15,'RECAP DIRCOM'!$G$6:$EV$12,19,FALSE) -> 3
A16: 80 | B16: Vosges | C16: =VLOOKUP($A16,'RECAP DIRCOM'!$G$6:$EV$12,3,FALSE) -> 150 | D16: =VLOOKUP($A16,'RECAP DIRCOM'!$G$6:$EV$12,5,FALSE) -> -1.09 | E16: =VLOOKUP($A16,'RECAP DIRCOM'!$G$6:$EV$12,6,FALSE) -> 77% | F16: =VLOOKUP($A16,'RECAP DIRCOM'!$G$6:$EV$12,7,FALSE) -> 5 | G16: =VLOOKUP($A16,'RECAP DIRCOM'!$G$6:$EV$12,8,FALSE) -> 1.86 | H16: =VLOOKUP($A16,'RECAP DIRCOM'!$G$6:$EV$12,9,FALSE) -> 13% | I16: =VLOOKUP($A16,'RECAP DIRCOM'!$G$6:$EV$12,10,FALSE) -> 4 | J16: =VLOOKUP($A16,'RECAP DIRCOM'!$G$6:$EV$12,11,FALSE) -> -1.00 | K16: =VLOOKUP($A16,'RECAP DIRCOM'!$G$6:$EV$12,12,FALSE) -> 103% | L16: =VLOOKUP($A16,'RECAP DIRCOM'!$G$6:$EV$12,13,FALSE) -> 5 | M16: =VLOOKUP($A16,'RECAP DIRCOM'!$G$6:$EV$12,14,FALSE) -> 60% | N16: =VLOOKUP($A16,'RECAP DIRCOM'!$G$6:$EV$12,15,FALSE) -> 35% | O16: =VLOOKUP($A16,'RECAP DIRCOM'!$G$6:$EV$12,16,FALSE) -> 3 | P16: =VLOOKUP($A16,'RECAP DIRCOM'!$G$6:$EV$12,17,FALSE) -> 54% | Q16: =VLOOKUP($A16,'RECAP DIRCOM'!$G$6:$EV$12,18,FALSE) -> 40% | R16: =VLOOKUP($A16,'RECAP DIRCOM'!$G$6:$EV$12,19,FALSE) -> 5
A17: Total CEGEE Directions Commerciales | C17: =SUM(C10:C16) -> 1609

Sheet DC_RISQUES
A1: Accueil | D1: BAROMETRE BDD - DIRECTIONS COMMERCIALES
D2: RISQUES
D3: =ACCUEIL!H7 -> 2019-03-31
D6: Complétude conformité et fiabilisation | J6: Traitement et qualité du traitement des alertes Vigiclient | M6: Total Risques
D7: Nouvelles EER sur flux BDD | G7: EER sur flux cumulés et stock
E8: coef | F8: ='RECAP DIRCOM'!DW4 -> 3% | H8: coef | I8: ='RECAP DIRCOM'!DZ4 -> 3% | K8: coef | L8: ='RECAP DIRCOM'!EC4 -> 4% | N8: coef | O8: ='RECAP DIRCOM'!EF4 -> 10%
A9: eds | B9: Direction | C9: ETP perf | E9: % Ecart au 1er | F9: Rang | H9: % Ecart au 1er | I9: Rang | K9: % Ecart au 1er | L9: Rang | M9: Moyenne ecart au 1er | N9: % Ecart au 1er | O9: Rang CEGEE
A10: 50 | B10: Aube Haute Marne | C10: =VLOOKUP($A10,'RECAP DIRCOM'!$G$6:$EV$12,3,FALSE) -> 151 | D10: =VLOOKUP($A10,'RECAP DIRCOM'!$G$6:$EV$12,119,FALSE) -> 97% | E10: =VLOOKUP($A10,'RECAP DIRCOM'!$G$6:$EV$12,120,FALSE) -> 1% | F10: =VLOOKUP($A10,'RECAP DIRCOM'!$G$6:$EV$12,121,FALSE) -> 2 | G10: =VLOOKUP($A10,'RECAP DIRCOM'!$G$6:$EV$12,122,FALSE) -> 75% | H10: =VLOOKUP($A10,'RECAP DIRCOM'!$G$6:$EV$12,123,FALSE) -> 3% | I10: =VLOOKUP($A10,'RECAP DIRCOM'!$G$6:$EV$12,124,FALSE) -> 3 | J10: =VLOOKUP($A10,'RECAP DIRCOM'!$G$6:$EV$12,125,FALSE) -> 100% | K10: =VLOOKUP($A10,'RECAP DIRCOM'!$G$6:$EV$12,126,FALSE) -> 0% | L10: =VLOOKUP($A10,'RECAP DIRCOM'!$G$6:$EV$12,127,FALSE) -> 1 | M10: =VLOOKUP($A10,'RECAP DIRCOM'!$G$6:$EV$12,128,FALSE) -> 1% | N10: =VLOOKUP($A10,'RECAP DIRCOM'!$G$6:$EV$12,129,FALSE) -> 0% | O10: =VLOOKUP($A10,'RECAP DIRCOM'!$G$6:$EV$12,130,FALSE) -> 1
A11: 262 | B11: Bas-Rhin | C11: =VLOOKUP($A11,'RECAP DIRCOM'!$G$6:$EV$12,3,FALSE) -> 299 | D11: =VLOOKUP($A11,'RECAP DIRCOM'!$G$6:$EV$12,119,FALSE) -> 95% | E11: =VLOOKUP($A11,'RECAP DIRCOM'!$G$6:$EV$12,120,FALSE) -> 3% | F11: =VLOOKUP($A11,'RECAP DIRCOM'!$G$6:$EV$12,121,FALSE) -> 5 | G11: =VLOOKUP($A11,'RECAP DIRCOM'!$G$6:$EV$12,122,FALSE) -> 70% | H11: =VLOOKUP($A11,'RECAP DIRCOM'!$G$6:$EV$12,123,FALSE) -> 8% | I11: =VLOOKUP($A11,'RECAP DIRCOM'!$G$6:$EV$12,124,FALSE) -> 7 | J11: =VLOOKUP($A11,'RECAP DIRCOM'!$G$6:$EV$12,125,FALSE) -> 100% | K11: =VLOOKUP($A11,'RECAP DIRCOM'!$G$6:$EV$12,126,FALSE) -> 0% | L11: =VLOOKUP($A11,'RECAP DIRCOM'!$G$6:$EV$12,127,FALSE) -> 1 | M11: =VLOOKUP($A11,'RECAP DIRCOM'!$G$6:$EV$12,128,FALSE) -> 3% | N11: =VLOOKUP($A11,'RECAP DIRCOM'!$G$6:$EV$12,129,FALSE) -> 2% | O11: =VLOOKUP($A11,'RECAP DIRCOM'!$G$6:$EV$12,130,FALSE) -> 3
A12: 264 | B12: Haut-Rhin | C12: =VLOOKUP($A12,'RECAP DIRCOM'!$G$6:$EV$12,3,FALSE) -> 186 | D12: =VLOOKUP($A12,'RECAP DIRCOM'!$G$6:$EV$12,119,FALSE) -> 95% | E12: =VLOOKUP($A12,'RECAP DIRCOM'!$G$6:$EV$12,120,FALSE) -> 2% | F12: =VLOOKUP($A12,'RECAP DIRCOM'!$G$6:$EV$12,121,FALSE) -> 4 | G12: =VLOOKUP($A12,'RECAP DIRCOM'!$G$6:$EV$12,122,FALSE) -> 72% | H12: =VLOOKUP($A12,'RECAP DIRCOM'!$G$6:$EV$12,123,FALSE) -> 6% | I12: =VLOOKUP($A12,'RECAP DIRCOM'!$G$6:$EV$12,124,FALSE) -> 5 | J12: =VLOOKUP($A12,'RECAP DIRCOM'!$G$6:$EV$12,125,FALSE) -> 97% | K12: =VLOOKUP($A12,'RECAP DIRCOM'!$G$6:$EV$12,126,FALSE) -> 3% | L12: =VLOOKUP($A12,'RECAP DIRCOM'!$G$6:$EV$12,127,FALSE) -> 4 | M12: =VLOOKUP($A12,'RECAP DIRCOM'!$G$6:$EV$12,128,FALSE) -> 4% | N12: =VLOOKUP($A12,'RECAP DIRCOM'!$G$6:$EV$12,129,FALSE) -> 3% | O12: =VLOOKUP($A12,'RECAP DIRCOM'!$G$6:$EV$12,130,FALSE) -> 4
A13: 30 | B13: Marne-Ardennes | C13: =VLOOKUP($A13,'RECAP DIRCOM'!$G$6:$EV$12,3,FALSE) -> 240 | D13: =VLOOKUP($A13,'RECAP DIRCOM'!$G$6:$EV$12,119,FALSE) -> 96% | E13: =VLOOKUP($A13,'RECAP DIRCOM'!$G$6:$EV$12,120,FALSE) -> 2% | F13: =VLOOKUP($A13,'RECAP DIRCOM'!$G$6:$EV$12,121,FALSE) -> 3 | G13: =VLOOKUP($A13,'RECAP DIRCOM'!$G$6:$EV$12,122,FALSE) -> 72% | H13: =VLOOKUP($A13,'RECAP DIRCOM'!$G$6:$EV$12,123,FALSE) -> 7% | I13: =VLOOKUP($A13,'RECAP DIRCOM'!$G$6:$EV$12,124,FALSE) -> 6 | J13: =VLOOKUP($A13,'RECAP DIRCOM'!$G$6:$EV$12,125,FALSE) -> 95% | K13: =VLOOKUP($A13,'RECAP DIRCOM'!$G$6:$EV$12,126,FALSE) -> 5% | L13: =VLOOKUP($A13,'RECAP DIRCOM'!$G$6:$EV$12,127,FALSE) -> 5 | M13: =VLOOKUP($A13,'RECAP DIRCOM'!$G$6:$EV$12,128,FALSE) -> 5% | N13: =VLOOKUP($A13,'RECAP DIRCOM'!$G$6:$EV$12,129,FALSE) -> 4% | O13: =VLOOKUP($A13,'RECAP DIRCOM'!$G$6:$EV$12,130,FALSE) -> 5
A14: 110 | B14: Meurthe et Moselle Meuse | C14: =VLOOKUP($A14,'RECAP DIRCOM'!$G$6:$EV$12,3,FALSE) -> 270 | D14: =VLOOKUP($A14,'RECAP DIRCOM'!$G$6:$EV$12,119,FALSE) -> 93% | E14: =VLOOKUP($A14,'RECAP DIRCOM'!$G$6:$EV$12,120,FALSE) -> 4% | F14: =VLOOKUP($A14,'RECAP DIRCOM'!$G$6:$EV$12,121,FALSE) -> 7 | G14: =VLOOKUP($A14,'RECAP DIRCOM'!$G$6:$EV$12,122,FALSE) -> 74% | H14: =VLOOKUP($A14,'RECAP DIRCOM'!$G$6:$EV$12,123,FALSE) -> 3% | I14: =VLOOKUP($A14,'RECAP DIRCOM'!$G$6:$EV$12,124,FALSE) -> 4 | J14: =VLOOKUP($A14,'RECAP DIRCOM'!$G$6:$EV$12,125,FALSE) -> 75% | K14: =VLOOKUP($A14,'RECAP DIRCOM'!$G$6:$EV$12,126,FALSE) -> 25% | L14: =VLOOKUP($A14,'RECAP DIRCOM'!$G$6:$EV$12,127,FALSE) -> 7 | M14: =VLOOKUP($A14,'RECAP DIRCOM'!$G$6:$EV$12,128,FALSE) -> 12% | N14: =VLOOKUP($A14,'RECAP DIRCOM'!$G$6:$EV$12,129,FALSE) -> 11% | O14: =VLOOKUP($A14,'RECAP DIRCOM'!$G$6:$EV$12,130,FALSE) -> 7
A15: 160 | B15: Moselle | C15: =VLOOKUP($A15,'RECAP DIRCOM'!$G$6:$EV$12,3,FALSE) -> 312 | D15: =VLOOKUP($A15,'RECAP DIRCOM'!$G$6:$EV$12,119,FALSE) -> 94% | E15: =VLOOKUP($A15,'RECAP DIRCOM'!$G$6:$EV$12,120,FALSE) -> 3% | F15: =VLOOKUP($A15,'RECAP DIRCOM'!$G$6:$EV$12,121,FALSE) -> 6 | G15: =VLOOKUP($A15,'RECAP DIRCOM'!$G$6:$EV$12,122,FALSE) -> 77% | H15: =VLOOKUP($A15,'RECAP DIRCOM'!$G$6:$EV$12,123,FALSE) -> 0% | I15: =VLOOKUP($A15,'RECAP DIRCOM'!$G$6:$EV$12,124,FALSE) -> 2 | J15: =VLOOKUP($A15,'RECAP DIRCOM'!$G$6:$EV$12,125,FALSE) -> 99% | K15: =VLOOKUP($A15,'RECAP DIRCOM'!$G$6:$EV$12,126,FALSE) -> 1% | L15: =VLOOKUP($A15,'RECAP DIRCOM'!$G$6:$EV$12,127,FALSE) -> 3 | M15: =VLOOKUP($A15,'RECAP DIRCOM'!$G$6:$EV$12,128,FALSE) -> 2% | N15: =VLOOKUP($A15,'RECAP DIRCOM'!$G$6:$EV$12,129,FALSE) -> 1% | O15: =VLOOKUP($A15,'RECAP DIRCOM'!$G$6:$EV$12,130,FALSE) -> 2
A16: 80 | B16: Vosges | C16: =VLOOKUP($A16,'RECAP DIRCOM'!$G$6:$EV$12,3,FALSE) -> 150 | D16: =VLOOKUP($A16,'RECAP DIRCOM'!$G$6:$EV$12,119,FALSE) -> 98% | E16: =VLOOKUP($A16,'RECAP DIRCOM'!$G$6:$EV$12,120,FALSE) -> 0% | F16: =VLOOKUP($A16,'RECAP DIRCOM'!$G$6:$EV$12,121,FALSE) -> 1 | G16: =VLOOKUP($A16,'RECAP DIRCOM'!$G$6:$EV$12,122,FALSE) -> 77% | H16: =VLOOKUP($A16,'RECAP DIRCOM'!$G$6:$EV$12,123,FALSE) -> 0% | I16: =VLOOKUP($A16,'RECAP DIRCOM'!$G$6:$EV$12,124,FALSE) -> 1 | J16: =VLOOKUP($A16,'RECAP DIRCOM'!$G$6:$EV$12,125,FALSE) -> 84% | K16: =VLOOKUP($A16,'RECAP DIRCOM'!$G$6:$EV$12,126,FALSE) -> 16% | L16: =VLOOKUP($A16,'RECAP DIRCOM'!$G$6:$EV$12,127,FALSE) -> 6 | M16: =VLOOKUP($A16,'RECAP DIRCOM'!$G$6:$EV$12,128,FALSE) -> 6% | N16: =VLOOKUP($A16,'RECAP DIRCOM'!$G$6:$EV$12,129,FALSE) -> 5% | O16: =VLOOKUP($A16,'RECAP DIRCOM'!$G$6:$EV$12,130,FALSE) -> 6
A17: Total CEGEE Directions Commerciales | C17: =SUM(C10:C16) -> 1609

Sheet DC_SATISFACTION
A1: Accueil | D1: BAROMETRE BDD - DIRECTIONS COMMERCIALES
D2: SATISFACTION CLIENTS
D3: =ACCUEIL!H7 -> 2019-03-31
D7: N P S | G7: Enquête Qualité Haute Définition | J7: Total Satisfaction Clients
E8: coef | F8: ='RECAP DIRCOM'!EO4 -> 5% | H8: coef | I8: ='RECAP DIRCOM'!ER4 -> 5% | K8: coef | L8: ='RECAP DIRCOM'!EU4 -> 10%
A9: eds | B9: Direction | C9: ETP perf | E9: % Ecart au 1er | F9: Rang | H9: % Ecart au 1er | I9: Rang | J9: Moyenne ecart au 1er | K9: % Ecart au 1er | L9: Rang CEGEE
A10: 50 | B10: Aube Haute Marne | C10: =VLOOKUP($A10,'RECAP DIRCOM'!$G$6:$EV$12,3,FALSE) -> 151 | D10: =VLOOKUP($A10,'RECAP DIRCOM'!$G$6:$EV$12,137,FALSE) -> -11 | E10: =VLOOKUP($A10,'RECAP DIRCOM'!$G$6:$EV$12,138,FALSE) -> 50% | F10: =VLOOKUP($A10,'RECAP DIRCOM'!$G$6:$EV$12,139,FALSE) -> 2 | G10: =VLOOKUP($A10,'RECAP DIRCOM'!$G$6:$EV$12,140,FALSE) -> 74% | H10: =VLOOKUP($A10,'RECAP DIRCOM'!$G$6:$EV$12,141,FALSE) -> 3% | I10: =VLOOKUP($A10,'RECAP DIRCOM'!$G$6:$EV$12,142,FALSE) -> 5 | J10: =VLOOKUP($A10,'RECAP DIRCOM'!$G$6:$EV$12,143,FALSE) -> 27% | K10: =VLOOKUP($A10,'RECAP DIRCOM'!$G$6:$EV$12,144,FALSE) -> 27% | L10: =VLOOKUP($A10,'RECAP DIRCOM'!$G$6:$EV$12,145,FALSE) -> 2
A11: 262 | B11: Bas-Rhin | C11: =VLOOKUP($A11,'RECAP DIRCOM'!$G$6:$EV$12,3,FALSE) -> 299 | D11: =VLOOKUP($A11,'RECAP DIRCOM'!$G$6:$EV$12,137,FALSE) -> -23 | E11: =VLOOKUP($A11,'RECAP DIRCOM'!$G$6:$EV$12,138,FALSE) -> 150% | F11: =VLOOKUP($A11,'RECAP DIRCOM'!$G$6:$EV$12,139,FALSE) -> 7 | G11: =VLOOKUP($A11,'RECAP DIRCOM'!$G$6:$EV$12,140,FALSE) -> 71% | H11: =VLOOKUP($A11,'RECAP DIRCOM'!$G$6:$EV$12,141,FALSE) -> 8% | I11: =VLOOKUP($A11,'RECAP DIRCOM'!$G$6:$EV$12,142,FALSE) -> 7 | J11: =VLOOKUP($A11,'RECAP DIRCOM'!$G$6:$EV$12,143,FALSE) -> 79% | K11: =VLOOKUP($A11,'RECAP DIRCOM'!$G$6:$EV$12,144,FALSE) -> 79% | L11: =VLOOKUP($A11,'RECAP DIRCOM'!$G$6:$EV$12,145,FALSE) -> 7
A12: 264 | B12: Haut-Rhin | C12: =VLOOKUP($A12,'RECAP DIRCOM'!$G$6:$EV$12,3,FALSE) -> 186 | D12: =VLOOKUP($A12,'RECAP DIRCOM'!$G$6:$EV$12,137,FALSE) -> -21 | E12: =VLOOKUP($A12,'RECAP DIRCOM'!$G$6:$EV$12,138,FALSE) -> 133% | F12: =VLOOKUP($A12,'RECAP DIRCOM'!$G$6:$EV$12,139,FALSE) -> 6 | G12: =VLOOKUP($A12,'RECAP DIRCOM'!$G$6:$EV$12,140,FALSE) -> 75% | H12: =VLOOKUP($A12,'RECAP DIRCOM'!$G$6:$EV$12,141,FALSE) -> 3% | I12: =VLOOKUP($A12,'RECAP DIRCOM'!$G$6:$EV$12,142,FALSE) -> 4 | J12: =VLOOKUP($A12,'RECAP DIRCOM'!$G$6:$EV$12,143,FALSE) -> 68% | K12: =VLOOKUP($A12,'RECAP DIRCOM'!$G$6:$EV$12,144,FALSE) -> 68% | L12: =VLOOKUP($A12,'RECAP DIRCOM'!$G$6:$EV$12,145,FALSE) -> 6
A13: 30 | B13: Marne-Ardennes | C13: =VLOOKUP($A13,'RECAP DIRCOM'!$G$6:$EV$12,3,FALSE) -> 240 | D13: =VLOOKUP($A13,'RECAP DIRCOM'!$G$6:$EV$12,137,FALSE) -> -5 | E13: =VLOOKUP($A13,'RECAP DIRCOM'!$G$6:$EV$12,138,FALSE) -> 0% | F13: =VLOOKUP($A13,'RECAP DIRCOM'!$G$6:$EV$12,139,FALSE) -> 1 | G13: =VLOOKUP($A13,'RECAP DIRCOM'!$G$6:$EV$12,140,FALSE) -> 77% | H13: =VLOOKUP($A13,'RECAP DIRCOM'!$G$6:$EV$12,141,FALSE) -> 0% | I13: =VLOOKUP($A13,'RECAP DIRCOM'!$G$6:$EV$12,142,FALSE) -> 3 | J13: =VLOOKUP($A13,'RECAP DIRCOM'!$G$6:$EV$12,143,FALSE) -> 0% | K13: =VLOOKUP($A13,'RECAP DIRCOM'!$G$6:$EV$12,144,FALSE) -> 0% | L13: =VLOOKUP($A13,'RECAP DIRCOM'!$G$6:$EV$12,145,FALSE) -> 1
A14: 110 | B14: Meurthe et Moselle Meuse | C14: =VLOOKUP($A14,'RECAP DIRCOM'!$G$6:$EV$12,3,FALSE) -> 270 | D14: =VLOOKUP($A14,'RECAP DIRCOM'!$G$6:$EV$12,137,FALSE) -> -14 | E14: =VLOOKUP($A14,'RECAP DIRCOM'!$G$6:$EV$12,138,FALSE) -> 75% | F14: =VLOOKUP($A14,'RECAP DIRCOM'!$G$6:$EV$12,139,FALSE) -> 3 | G14: =VLOOKUP($A14,'RECAP DIRCOM'!$G$6:$EV$12,140,FALSE) -> 73% | H14: =VLOOKUP($A14,'RECAP DIRCOM'!$G$6:$EV$12,141,FALSE) -> 5% | I14: =VLOOKUP($A14,'RECAP DIRCOM'!$G$6:$EV$12,142,FALSE) -> 6 | J14: =VLOOKUP($A14,'RECAP DIRCOM'!$G$6:$EV$12,143,FALSE) -> 40% | K14: =VLOOKUP($A14,'RECAP DIRCOM'!$G$6:$EV$12,144,FALSE) -> 40% | L14: =VLOOKUP($A14,'RECAP DIRCOM'!$G$6:$EV$12,145,FALSE) -> 4
A15: 160 | B15: Moselle | C15: =VLOOKUP($A15,'RECAP DIRCOM'!$G$6:$EV$12,3,FALSE) -> 312 | D15: =VLOOKUP($A15,'RECAP DIRCOM'!$G$6:$EV$12,137,FALSE) -> -15 | E15: =VLOOKUP($A15,'RECAP DIRCOM'!$G$6:$EV$12,138,FALSE) -> 83% | F15: =VLOOKUP($A15,'RECAP DIRCOM'!$G$6:$EV$12,139,FALSE) -> 5 | G15: =VLOOKUP($A15,'RECAP DIRCOM'!$G$6:$EV$12,140,FALSE) -> 77% | H15: =VLOOKUP($A15,'RECAP DIRCOM'!$G$6:$EV$12,141,FALSE) -> 0% | I15: =VLOOKUP($A15,'RECAP DIRCOM'!$G$6:$EV$12,142,FALSE) -> 1 | J15: =VLOOKUP($A15,'RECAP DIRCOM'!$G$6:$EV$12,143,FALSE) -> 42% | K15: =VLOOKUP($A15,'RECAP DIRCOM'!$G$6:$EV$12,144,FALSE) -> 41% | L15: =VLOOKUP($A15,'RECAP DIRCOM'!$G$6:$EV$12,145,FALSE) -> 5
A16: 80 | B16: Vosges | C16: =VLOOKUP($A16,'RECAP DIRCOM'!$G$6:$EV$12,3,FALSE) -> 150 | D16: =VLOOKUP($A16,'RECAP DIRCOM'!$G$6:$EV$12,137,FALSE) -> -14 | E16: =VLOOKUP($A16,'RECAP DIRCOM'!$G$6:$EV$12,138,FALSE) -> 75% | F16: =VLOOKUP($A16,'RECAP DIRCOM'!$G$6:$EV$12,139,FALSE) -> 3 | G16: =VLOOKUP($A16,'RECAP DIRCOM'!$G$6:$EV$12,140,FALSE) -> 77% | H16: =VLOOKUP($A16,'RECAP DIRCOM'!$G$6:$EV$12,141,FALSE) -> 0% | I16: =VLOOKUP($A16,'RECAP DIRCOM'!$G$6:$EV$12,142,FALSE) -> 1 | J16: =VLOOKUP($A16,'RECAP DIRCOM'!$G$6:$EV$12,143,FALSE) -> 38% | K16: =VLOOKUP($A16,'RECAP DIRCOM'!$G$6:$EV$12,144,FALSE) -> 37% | L16: =VLOOKUP($A16,'RECAP DIRCOM'!$G$6:$EV$12,145,FALSE) -> 3
A17: Total CEGEE Directions Commerciales | C17: =SUM(C10:C16) -> 1609

Sheet SE_FICHE
A1: Accueil
A2: BAROMETRE BDD
A4: UNITE: | B4: SECTEUR | K4: ETP perf : | L4: =VLOOKUP(A5,'RECAP SECT'!$G$6:$I$82,3,FALSE) -> 9.92
A5: =VLOOKUP(B5,LISTES!$H$6:$I$82,2,FALSE) -> 33 | B5: COMMERCY
C6: Coefficient du critére | E6: Résultats | I6: Ecart au 1ier | M6: Evolution
E7: du 1ier | G7: du secteur | I7: Du mois | K7: Au 31/12/2018
A9: RANG au CLASSEMENT GENERAL | I9: =VLOOKUP($A$5,'RECAP SECT'!$G$6:$FE$312,154,FALSE) -> 74 | K9: =VLOOKUP($A$5,'RECAP SECT AN'!$G$6:$FE$312,154,FALSE) -> 73 | M9: =+K9-I9 -> -1
A11: CRITERE CONQUETE | C11: 15%
B12: Evolution nette Clients Bancarisés Principaux (BP +JBP) par ETP | C12: 4% | E12: ='RECAP SECT'!K4 -> 2.5 | G12: =VLOOKUP($A$5,'RECAP SECT'!$G$6:$FE$312,5,FALSE) -> -1.4 | I12: =VLOOKUP($A$5,'RECAP SECT'!$G$6:$FE$312,6,FALSE) -> 83% | K12: =VLOOKUP($A$5,'RECAP SECT AN'!$G$6:$FE$312,6,FALSE) -> 137% | M12: =+K12-I12 -> 54%
B13: Evolution nette relations Premium par ETP | C13: 4% | E13: ='RECAP SECT'!N4 -> 3.6 | G13: =VLOOKUP($A$5,'RECAP SECT'!$G$6:$FE$312,8,FALSE) -> 2.2 | I13: =VLOOKUP($A$5,'RECAP SECT'!$G$6:$FE$312,9,FALSE) -> 38% | K13: =VLOOKUP($A$5,'RECAP SECT AN'!$G$6:$FE$312,9,FALSE) -> 109% | M13: =+K13-I13 -> 71%
B14: Evolution nette Clients Bancarisés Principaux équipés par ETP | C14: 3% | E14: ='RECAP SECT'!Q4 -> 3.3 | G14: =VLOOKUP($A$5,'RECAP SECT'!$G$6:$FE$312,11,FALSE) -> -2.4 | I14: =VLOOKUP($A$5,'RECAP SECT'!$G$6:$FE$312,12,FALSE) -> 108% | K14: =VLOOKUP($A$5,'RECAP SECT AN'!$G$6:$FE$312,12,FALSE) -> 84% | M14: -24%
B15: Evolution nette Clients Pro actif équipés par rapport à l’objectif fixé | C15: 4% | E15: ='RECAP SECT'!T4 -> 200% | G15: =VLOOKUP($A$5,'RECAP SECT'!$G$6:$FE$312,14,FALSE) -> 25% | I15: =VLOOKUP($A$5,'RECAP SECT'!$G$6:$FE$312,15,FALSE) -> 88% | K15: =VLOOKUP($A$5,'RECAP SECT AN'!$G$6:$FE$312,15,FALSE) -> 51% | M15: -37%
A17: CRITERE EQUIPEMENT BANCARISATION | C17: 15%
B18: Ventes nettes forfaits (+ 2 options) par ETP | C18: 3% | E18: ='RECAP SECT'!AF4 -> -3.0 | G18: =VLOOKUP($A$5,'RECAP SECT'!$G$6:$FE$312,26,FALSE) -> -11.9 | I18: =VLOOKUP($A$5,'RECAP SECT'!$G$6:$FE$312,27,FALSE) -> 131% | K18: =VLOOKUP($A$5,'RECAP SECT AN'!$G$6:$FE$312,27,FALSE) -> 114% | M18: =+K18-I18 -> -17%
B19: Ventes nettes IZICARTES par ETP | C19: 3% | E19: ='RECAP SECT'!AI4 -> 10.8 | G19: =VLOOKUP($A$5,'RECAP SECT'!$G$6:$FE$312,29,FALSE) -> 3.5 | I19: =VLOOKUP($A$5,'RECAP SECT'!$G$6:$FE$312,30,FALSE) -> 67% | K19: =VLOOKUP($A$5,'RECAP SECT AN'!$G$6:$FE$312,30,FALSE) -> 80% | M19: 13%
B20: Ventes nettes cartes HDG par ETP | C20: 3% | E20: ='RECAP SECT'!AL4 -> 11.8 | G20: =VLOOKUP($A$5,'RECAP SECT'!$G$6:$FE$312,32,FALSE) -> 3.9 | I20: =VLOOKUP($A$5,'RECAP SECT'!$G$6:$FE$312,33,FALSE) -> 67% | K20: =VLOOKUP($A$5,'RECAP SECT AN'!$G$6:$FE$312,33,FALSE) -> 43% | M20: -24%
B21: Vente nette CB débit différé par ETP | C21: 3% | E21: ='RECAP SECT'!AO4 -> 5.4 | G21: =VLOOKUP($A$5,'RECAP SECT'!$G$6:$FE$312,35,FALSE) -> -1.0 | I21: =VLOOKUP($A$5,'RECAP SECT'!$G$6:$FE$312,36,FALSE) -> 119% | K21: =VLOOKUP($A$5,'RECAP SECT AN'!$G$6:$FE$312,36,FALSE) -> 71% | M21: -48%
B22: Ventes nettes banca Pro Forfaits Pro, Carte pro par rapport à l’objectif | C22: 3% | E22: ='RECAP SECT'!AR4 -> 182% | G22: =VLOOKUP($A$5,'RECAP SECT'!$G$6:$FE$312,38,FALSE) -> 30% | I22: =VLOOKUP($A$5,'RECAP SECT'!$G$6:$FE$312,39,FALSE) -> 75% | K22: =VLOOKUP($A$5,'RECAP SECT AN'!$G$6:$FE$312,39,FALSE) -> 94% | M22: 18%
A24: CRITERE EPARGNE | C24: 15%
B25: Excédents de collecte (y.c DAV) par ETP | C25: 2% | E25: ='RECAP SECT'!BD4 -> 260.4 | G25: =VLOOKUP($A$5,'RECAP SECT'!$G$6:$FE$312,50,FALSE) -> 67.0 | I25: =VLOOKUP($A$5,'RECAP SECT'!$G$6:$FE$312,51,FALSE) -> 72% | K25: =VLOOKUP($A$5,'RECAP SECT AN'!$G$6:$FE$312,51,FALSE) -> 116% | M25: =+K25-I25 -> 45%
B26: CA assurance vie par ETP | C26: 2% | E26: ='RECAP SECT'!BG4 -> 344.6 | G26: =VLOOKUP($A$5,'RECAP SECT'!$G$6:$FE$312,53,FALSE) -> 146.4 | I26: =VLOOKUP($A$5,'RECAP SECT'!$G$6:$FE$312,54,FALSE) -> 58% | K26: =VLOOKUP($A$5,'RECAP SECT AN'!$G$6:$FE$312,54,FALSE) -> 67% | M26: 9%
B27: Activité UC (CA+arbitrage) par ETP | C27: 2% | E27: ='RECAP SECT'!BJ4 -> 122.6 | G27: =VLOOKUP($A$5,'RECAP SECT'!$G$6:$FE$312,56,FALSE) -> 56.0 | I27: =VLOOKUP($A$5,'RECAP SECT'!$G$6:$FE$312,57,FALSE) -> 54% | K27: =VLOOKUP($A$5,'RECAP SECT AN'!$G$6:$FE$312,57,FALSE) -> 77% | M27: 22%
B28: Excédents Assurance-vie par ETP | C28: 2% | E28: ='RECAP SECT'!BM4 -> 209.9 | G28: =VLOOKUP($A$5,'RECAP SECT'!$G$6:$FE$312,59,FALSE) -> 58.6 | I28: =VLOOKUP($A$5,'RECAP SECT'!$G$6:$FE$312,60,FALSE) -> 72% | K28: =VLOOKUP($A$5,'RECAP SECT AN'!$G$6:$FE$312,60,FALSE) -> 96% | M28: 24%
B29: Excédents Epargne Bilan (Hors Emprunts CTO) par ETP | C29: 7% | E29: ='RECAP SECT'!BP4 -> 312.1 | G29: =VLOOKUP($A$5,'RECAP SECT'!$G$6:$FE$312,62,FALSE) -> 129.9 | I29: =VLOOKUP($A$5,'RECAP SECT'!$G$6:$FE$312,63,FALSE) -> 58% | K29: =VLOOKUP($A$5,'RECAP SECT AN'!$G$6:$FE$312,63,FALSE) -> 86% | M29: 28%
A31: CRITERE CREDITS | C31: 15%
B32: Engagement Conso par ETP (hors clients 9) | C32: 3% | E32: ='RECAP SECT'!CB4 -> 208.4 | G32: =VLOOKUP($A$5,'RECAP SECT'!$G$6:$FE$312,74,FALSE) -> 88.7 | I32: =VLOOKUP($A$5,'RECAP SECT'!$G$6:$FE$312,75,FALSE) -> 57% | K32: =VLOOKUP($A$5,'RECAP SECT AN'!$G$6:$FE$312,75,FALSE) -> 29% | M32: =+K32-I32 -> -29%
B33: % CNP sur Conso en valeur absolue | C33: 2% | E33: ='RECAP SECT'!CE4 -> 100% | G33: =VLOOKUP($A$5,'RECAP SECT'!$G$6:$FE$312,77,FALSE) -> 91% | I33: =VLOOKUP($A$5,'RECAP SECT'!$G$6:$FE$312,78,FALSE) -> 9% | K33: =VLOOKUP($A$5,'RECAP SECT AN'!$G$6:$FE$312,78,FALSE) -> 14% | M33: 5%
B34: Engagements Immo par rapport à l’objectif | C34: 3% | E34: ='RECAP SECT'!CH4 -> 37% | G34: =VLOOKUP($A$5,'RECAP SECT'!$G$6:$FE$312,80,FALSE) -> 19% | I34: =VLOOKUP($A$5,'RECAP SECT'!$G$6:$FE$312,81,FALSE) -> 48% | K34: =VLOOKUP($A$5,'RECAP SECT AN'!$G$6:$FE$312,81,FALSE) -> 53% | M34: 5%
B35: % CNP sur crédits immo en valeur absolue | C35: 2% | E35: ='RECAP SECT'!CK4 -> 101% | G35: =VLOOKUP($A$5,'RECAP SECT'!$G$6:$FE$312,83,FALSE) -> 69% | I35: =VLOOKUP($A$5,'RECAP SECT'!$G$6:$FE$312,84,FALSE) -> 32% | K35: =VLOOKUP($A$5,'RECAP SECT AN'!$G$6:$FE$312,84,FALSE) -> 8% | M35: -24%
B36: Taux de couverture SACCEF | C36: 2% | E36: ='RECAP SECT'!CN4 -> 100% | G36: =VLOOKUP($A$5,'RECAP SECT'!$G$6:$FE$312,86,FALSE) -> 98% | I36: =VLOOKUP($A$5,'RECAP SECT'!$G$6:$FE$312,87,FALSE) -> 2% | K36: =VLOOKUP($A$5,'RECAP SECT AN'!$G$6:$FE$312,87,FALSE) -> 26% | M36: 24%
B37: Engagements CMLT + CB par rapport à l’objectif | C37: 3% | E37: ='RECAP SECT'!CQ4 -> 69% | G37: =VLOOKUP($A$5,'RECAP SECT'!$G$6:$FE$312,89,FALSE) -> 5% | I37: =VLOOKUP($A$5,'RECAP SECT'!$G$6:$FE$312,90,FALSE) -> 93% | K37: =VLOOKUP($A$5,'RECAP SECT AN'!$G$6:$FE$312,90,FALSE) -> 74% | M37: -19%
A39: CRITERE IARD PREVOYANCE | C39: 20%
B40: Ventes nettes IARD (Auto+MRH+ Pro) par ETP | C40: 7% | E40: ='RECAP SECT'!DC4 -> 6.8 | G40: =VLOOKUP($A$5,'RECAP SECT'!$G$6:$FE$312,101,FALSE) -> 0.8 | I40: =VLOOKUP($A$5,'RECAP SECT'!$G$6:$FE$312,102,FALSE) -> 88% | K40: =VLOOKUP($A$5,'RECAP SECT AN'!$G$6:$FE$312,102,FALSE) -> 87% | M40: =+K40-I40 -> -1%
B41: Ventes nettes Prévoyance (GAV, secur.f,prevoy loc,santé,assist.vie, obséques, Pro) par ETP | C41: 7% | E41: ='RECAP SECT'!DF4 -> 9.4 | G41: =VLOOKUP($A$5,'RECAP SECT'!$G$6:$FE$312,104,FALSE) -> 1.4 | I41: =VLOOKUP($A$5,'RECAP SECT'!$G$6:$FE$312,105,FALSE) -> 85% | K41: =VLOOKUP($A$5,'RECAP SECT AN'!$G$6:$FE$312,105,FALSE) -> 66% | M41: -19%
B42: Chiffre d’affaires IARD (Yc Pro) par ETP | C42: 6% | E42: ='RECAP SECT'!DI4 -> 5.7 | G42: =VLOOKUP($A$5,'RECAP SECT'!$G$6:$FE$312,107,FALSE) -> 3.1 | I42: =VLOOKUP($A$5,'RECAP SECT'!$G$6:$FE$312,108,FALSE) -> 45% | K42: =VLOOKUP($A$5,'RECAP SECT AN'!$G$6:$FE$312,108,FALSE) -> 40% | M42: -5%
A44: CRITERE RISQUES | C44: 10%
B45: Complétude, conformité et fiabilisation des nouvelles EER sur flux BDD | C45: 3% | E45: ='RECAP SECT'!DU4 -> 100% | G45: =VLOOKUP($A$5,'RECAP SECT'!$G$6:$FE$312,119,FALSE) -> 95% | I45: =VLOOKUP($A$5,'RECAP SECT'!$G$6:$FE$312,120,FALSE) -> 5% | K45: =VLOOKUP($A$5,'RECAP SECT AN'!$G$6:$FE$312,120,FALSE) -> 5% | M45: =+K45-I45 -> -1%
B46: Complétude, conformité et fiabilisation des EER sur flux cumulé et stock | C46: 3% | E46: ='RECAP SECT'!DX4 -> 82% | G46: =VLOOKUP($A$5,'RECAP SECT'!$G$6:$FE$312,122,FALSE) -> 75% | I46: =VLOOKUP($A$5,'RECAP SECT'!$G$6:$FE$312,123,FALSE) -> 8% | K46: =VLOOKUP($A$5,'RECAP SECT AN'!$G$6:$FE$312,123,FALSE) -> 8% | M46: 0%
B47: Traitement et qualité du traitement des alertes Vigiclient | C47: 4% | E47: ='RECAP SECT'!EA4 -> 100% | G47: =VLOOKUP($A$5,'RECAP SECT'!$G$6:$FE$312,125,FALSE) -> 100% | I47: =VLOOKUP($A$5,'RECAP SECT'!$G$6:$FE$312,126,FALSE) -> 0% | K47: =VLOOKUP($A$5,'RECAP SECT AN'!$G$6:$FE$312,126,FALSE) -> 0% | M47: 0%
A49: CRITERE Satisfaction Clients | C49: 10%
B50: Objectifs NPS* | C50: 5% | E50: ='RECAP SECT'!EM4 -> 11 | G50: =VLOOKUP($A$5,'RECAP SECT'!$G$6:$FE$312,137,FALSE) -> -35 | I50: =VLOOKUP($A$5,'RECAP SECT'!$G$6:$FE$312,138,FALSE) -> 128% | K50: =VLOOKUP($A$5,'RECAP SECT AN'!$G$6:$FE$312,138,FALSE) -> 103% | M50: =+K50-I50 -> -25%
B51: Enquête Qualité Haute Définition | C51: 5% | E51: ='RECAP SECT'!EP4 -> 87% | G51: =VLOOKUP($A$5,'RECAP SECT'!$G$6:$FE$312,140,FALSE) -> 50% | I51: =VLOOKUP($A$5,'RECAP SECT'!$G$6:$FE$312,141,FALSE) -> 42% | K51: =VLOOKUP($A$5,'RECAP SECT AN'!$G$6:$FE$312,141,FALSE) -> 31% | M51: -11%

Sheet SE_OBJECTIF
A1: Accueil | F1: BAROMETRE BDD - DIRECTIONS COMMERCIALES
F2: PV PART SUR OBJECTIFS
F3: =ACCUEIL!H7 -> 2019-03-31
F7: Excédent de collecte par ETP yc DAV | I7: Engagements crédit conso par ETP (hors clients note octroi à 9 et DRC complet) | L7: Ventes brutes IARD prevoyance Part et Pro (si DRC complet) par ETP | O7: Evolution des Bpe+JBPe par ETP | R7: PNB sur activité nouvelle par ETP
G8: Taux d'atteinte saisonalisé | H8: =VLOOKUP(ACCUEIL!$H$7,Tableau1[],2,FALSE) -> 25% | J8: Taux d'atteinte saisonalisé | K8: =VLOOKUP(ACCUEIL!$H$7,Tableau1[],3,FALSE) -> 25% | M8: Taux d'atteinte saisonalisé | N8: =VLOOKUP(ACCUEIL!$H$7,Tableau1[],4,FALSE) -> 25% | P8: Taux d'atteinte saisonalisé | Q8: =VLOOKUP(ACCUEIL!$H$7,Tableau1[],5,FALSE) -> 25% | S8: Taux d'atteinte saisonalisé | T8: =VLOOKUP(ACCUEIL!$H$7,Tableau1[],6,FALSE) -> 25%
A9: eds | B9: Direction | C9: eds | D9: Secteur | E9: ETP perf | F9: Réal | G9: Obj | H9: % | I9: Réal | J9: Obj | K9: % | L9: Réal | M9: Obj | N9: % | O9: Réal | P9: Obj | Q9: % | R9: Réal | S9: Obj | T9: %
A10: 50 | B10: AUBE HAUTE MARNE | C10: 20 | D10: SECTEUR BAR SUR AUBE | E10: =VLOOKUP($C10,'RECAP SECT'!$G$6:$EV$312,3,FALSE) -> 12.6 | F10: =VLOOKUP($C10,'RECAP SECT'!$G$6:$FZ$85,158,FALSE) -> 134 | G10: =VLOOKUP($C10,'RECAP SECT'!$G$6:$FZ$85,159,FALSE) -> 123 | H10: =VLOOKUP($C10,'RECAP SECT'!$G$6:$FZ$85,160,FALSE) -> 109% | I10: =VLOOKUP($C10,'RECAP SECT'!$G$6:$FZ$85,161,FALSE) -> 170 | J10: =VLOOKUP($C10,'RECAP SECT'!$G$6:$FZ$85,162,FALSE) -> 467 | K10: =VLOOKUP($C10,'RECAP SECT'!$G$6:$FZ$85,163,FALSE) -> 36% | L10: =VLOOKUP($C10,'RECAP SECT'!$G$6:$FZ$85,164,FALSE) -> 15 | M10: =VLOOKUP($C10,'RECAP SECT'!$G$6:$FZ$85,165,FALSE) -> 58 | N10: =VLOOKUP($C10,'RECAP SECT'!$G$6:$FZ$85,166,FALSE) -> 26% | O10: =VLOOKUP($C10,'RECAP SECT'!$G$6:$FZ$85,167,FALSE) -> -2 | P10: =VLOOKUP($C10,'RECAP SECT'!$G$6:$FZ$85,168,FALSE) -> 4 | Q10: =VLOOKUP($C10,'RECAP SECT'!$G$6:$FZ$85,169,FALSE) -> -47% | R10: =VLOOKUP($C10,'RECAP SECT'!$G$6:$FZ$85,170,FALSE) -> 39 | S10: =VLOOKUP($C10,'RECAP SECT'!$G$6:$FZ$85,171,FALSE) -> 144 | T10: =VLOOKUP($C10,'RECAP SECT'!$G$6:$FZ$85,172,FALSE) -> 27%
A11: 50 | B11: AUBE HAUTE MARNE | C11: 21 | D11: SECTEUR CHAUMONT HOTEL DE VILLE | E11: =VLOOKUP($C11,'RECAP SECT'!$G$6:$EV$312,3,FALSE) -> 16.0 | F11: =VLOOKUP($C11,'RECAP SECT'!$G$6:$FZ$85,158,FALSE) -> 125 | G11: =VLOOKUP($C11,'RECAP SECT'!$G$6:$FZ$85,159,FALSE) -> 117 | H11: =VLOOKUP($C11,'RECAP SECT'!$G$6:$FZ$85,160,FALSE) -> 107% | I11: =VLOOKUP($C11,'RECAP SECT'!$G$6:$FZ$85,161,FALSE) -> 208 | J11: =VLOOKUP($C11,'RECAP SECT'!$G$6:$FZ$85,162,FALSE) -> 467 | K11: =VLOOKUP($C11,'RECAP SECT'!$G$6:$FZ$85,163,FALSE) -> 45% | L11: =VLOOKUP($C11,'RECAP SECT'!$G$6:$FZ$85,164,FALSE) -> 16 | M11: =VLOOKUP($C11,'RECAP SECT'!$G$6:$FZ$85,165,FALSE) -> 59 | N11: =VLOOKUP($C11,'RECAP SECT'!$G$6:$FZ$85,166,FALSE) -> 27% | O11: =VLOOKUP($C11,'RECAP SECT'!$G$6:$FZ$85,167,FALSE) -> 2 | P11: =VLOOKUP($C11,'RECAP SECT'!$G$6:$FZ$85,168,FALSE) -> 4 | Q11: =VLOOKUP($C11,'RECAP SECT'!$G$6:$FZ$85,169,FALSE) -> 38% | R11: =VLOOKUP($C11,'RECAP SECT'!$G$6:$FZ$85,170,FALSE) -> 37 | S11: =VLOOKUP($C11,'RECAP SECT'!$G$6:$FZ$85,171,FALSE) -> 135 | T11: =VLOOKUP($C11,'RECAP SECT'!$G$6:$FZ$85,172,FALSE) -> 28%
A12: 50 | B12: AUBE HAUTE MARNE | C12: 22 | D12: SECTEUR JOINVILLE | E12: =VLOOKUP($C12,'RECAP SECT'!$G$6:$EV$312,3,FALSE) -> 6.5 | F12: =VLOOKUP($C12,'RECAP SECT'!$G$6:$FZ$85,158,FALSE) -> -2 | G12: =VLOOKUP($C12,'RECAP SECT'!$G$6:$FZ$85,159,FALSE) -> 106 | H12: =VLOOKUP($C12,'RECAP SECT'!$G$6:$FZ$85,160,FALSE) -> -2% | I12: =VLOOKUP($C12,'RECAP SECT'!$G$6:$FZ$85,161,FALSE) -> 140 | J12: =VLOOKUP($C12,'RECAP SECT'!$G$6:$FZ$85,162,FALSE) -> 467 | K12: =VLOOKUP($C12,'RECAP SECT'!$G$6:$FZ$85,163,FALSE) -> 30% | L12: =VLOOKUP($C12,'RECAP SECT'!$G$6:$FZ$85,164,FALSE) -> 11 | M12: =VLOOKUP($C12,'RECAP SECT'!$G$6:$FZ$85,165,FALSE) -> 59 | N12: =VLOOKUP($C12,'RECAP SECT'!$G$6:$FZ$85,166,FALSE) -> 19% | O12: =VLOOKUP($C12,'RECAP SECT'!$G$6:$FZ$85,167,FALSE) -> -2 | P12: =VLOOKUP($C12,'RECAP SECT'!$G$6:$FZ$85,168,FALSE) -> 4 | Q12: =VLOOKUP($C12,'RECAP SECT'!$G$6:$FZ$85,169,FALSE) -> -54% | R12: =VLOOKUP($C12,'RECAP SECT'!$G$6:$FZ$85,170,FALSE) -> 24 | S12: =VLOOKUP($C12,'RECAP SECT'!$G$6:$FZ$85,171,FALSE) -> 124 | T12: =VLOOKUP($C12,'RECAP SECT'!$G$6:$FZ$85,172,FALSE) -> 19%
A13: 50 | B13: AUBE HAUTE MARNE | C13: 19 | D13: SECTEUR LANGRES | E13: =VLOOKUP($C13,'RECAP SECT'!$G$6:$EV$312,3,FALSE) -> 13.6 | F13: =VLOOKUP($C13,'RECAP SECT'!$G$6:$FZ$85,158,FALSE) -> 5 | G13: =VLOOKUP($C13,'RECAP SECT'!$G$6:$FZ$85,159,FALSE) -> 103 | H13: =VLOOKUP($C13,'RECAP SECT'!$G$6:$FZ$85,160,FALSE) -> 5% | I13: =VLOOKUP($C13,'RECAP SECT'!$G$6:$FZ$85,161,FALSE) -> 180 | J13: =VLOOKUP($C13,'RECAP SECT'!$G$6:$FZ$85,162,FALSE) -> 467 | K13: =VLOOKUP($C13,'RECAP SECT'!$G$6:$FZ$85,163,FALSE) -> 39% | L13: =VLOOKUP($C13,'RECAP SECT'!$G$6:$FZ$85,164,FALSE) -> 15 | M13: =VLOOKUP($C13,'RECAP SECT'!$G$6:$FZ$85,165,FALSE) -> 58 | N13: =VLOOKUP($C13,'RECAP SECT'!$G$6:$FZ$85,166,FALSE) -> 26% | O13: =VLOOKUP($C13,'RECAP SECT'!$G$6:$FZ$85,167,FALSE) -> 1 | P13: =VLOOKUP($C13,'RECAP SECT'!$G$6:$FZ$85,168,FALSE) -> 4 | Q13: =VLOOKUP($C13,'RECAP SECT'!$G$6:$FZ$85,169,FALSE) -> 13% | R13: =VLOOKUP($C13,'RECAP SECT'!$G$6:$FZ$85,170,FALSE) -> 23 | S13: =VLOOKUP($C13,'RECAP SECT'!$G$6:$FZ$85,171,FALSE) -> 120 | T13: =VLOOKUP($C13,'RECAP SECT'!$G$6:$FZ$85,172,FALSE) -> 19%
A14: 50 | B14: AUBE HAUTE MARNE | C14: 18 | D14: SECTEUR ROMILLY SUR SEINE | E14: =VLOOKUP($C14,'RECAP SECT'!$G$6:$EV$312,3,FALSE) -> 17.1 | F14: =VLOOKUP($C14,'RECAP SECT'!$G$6:$FZ$85,158,FALSE) -> -86 | G14: =VLOOKUP($C14,'RECAP SECT'!$G$6:$FZ$85,159,FALSE) -> 131 | H14: =VLOOKUP($C14,'RECAP SECT'!$G$6:$FZ$85,160,FALSE) -> -65% | I14: =VLOOKUP($C14,'RECAP SECT'!$G$6:$FZ$85,161,FALSE) -> 149 | J14: =VLOOKUP($C14,'RECAP SECT'!$G$6:$FZ$85,162,FALSE) -> 467 | K14: =VLOOKUP($C14,'RECAP SECT'!$G$6:$FZ$85,163,FALSE) -> 32% | L14: =VLOOKUP($C14,'RECAP SECT'!$G$6:$FZ$85,164,FALSE) -> 12 | M14: =VLOOKUP($C14,'RECAP SECT'!$G$6:$FZ$85,165,FALSE) -> 59 | N14: =VLOOKUP($C14,'RECAP SECT'!$G$6:$FZ$85,166,FALSE) -> 21% | O14: =VLOOKUP($C14,'RECAP SECT'!$G$6:$FZ$85,167,FALSE) -> -3 | P14: =VLOOKUP($C14,'RECAP SECT'!$G$6:$FZ$85,168,FALSE) -> 4 | Q14: =VLOOKUP($C14,'RECAP SECT'!$G$6:$FZ$85,169,FALSE) -> -69% | R14: =VLOOKUP($C14,'RECAP SECT'!$G$6:$FZ$85,170,FALSE) -> 30 | S14: =VLOOKUP($C14,'RECAP SECT'!$G$6:$FZ$85,171,FALSE) -> 133 | T14: =VLOOKUP($C14,'RECAP SECT'!$G$6:$FZ$85,172,FALSE) -> 22%
A15: 50 | B15: AUBE HAUTE MARNE | C15: 23 | D15: SECTEUR SAINT DIZIER CENTRE | E15: =VLOOKUP($C15,'RECAP SECT'!$G$6:$EV$312,3,FALSE) -> 12.3 | F15: =VLOOKUP($C15,'RECAP SECT'!$G$6:$FZ$85,158,FALSE) -> -143 | G15: =VLOOKUP($C15,'RECAP SECT'!$G$6:$FZ$85,159,FALSE) -> 103 | H15: =VLOOKUP($C15,'RECAP SECT'!$G$6:$FZ$85,160,FALSE) -> -140% | I15: =VLOOKUP($C15,'RECAP SECT'!$G$6:$FZ$85,161,FALSE) -> 141 | J15: =VLOOKUP($C15,'RECAP SECT'!$G$6:$FZ$85,162,FALSE) -> 467 | K15: =VLOOKUP($C15,'RECAP SECT'!$G$6:$FZ$85,163,FALSE) -> 30% | L15: =VLOOKUP($C15,'RECAP SECT'!$G$6:$FZ$85,164,FALSE) -> 12 | M15: =VLOOKUP($C15,'RECAP SECT'!$G$6:$FZ$85,165,FALSE) -> 58 | N15: =VLOOKUP($C15,'RECAP SECT'!$G$6:$FZ$85,166,FALSE) -> 21% | O15: =VLOOKUP($C15,'RECAP SECT'!$G$6:$FZ$85,167,FALSE) -> -1 | P15: =VLOOKUP($C15,'RECAP SECT'!$G$6:$FZ$85,168,FALSE) -> 4 | Q15: =VLOOKUP($C15,'RECAP SECT'!$G$6:$FZ$85,169,FALSE) -> -19% | R15: =VLOOKUP($C15,'RECAP SECT'!$G$6:$FZ$85,170,FALSE) -> 24 | S15: =VLOOKUP($C15,'RECAP SECT'!$G$6:$FZ$85,171,FALSE) -> 123 | T15: =VLOOKUP($C15,'RECAP SECT'!$G$6:$FZ$85,172,FALSE) -> 20%
A16: 50 | B16: AUBE HAUTE MARNE | C16: 17 | D16: SECTEUR SAINT JULIEN LES VILLAS | E16: =VLOOKUP($C16,'RECAP SECT'!$G$6:$EV$312,3,FALSE) -> 16.8 | F16: =VLOOKUP($C16,'RECAP SECT'!$G$6:$FZ$85,158,FALSE) -> -114 | G16: =VLOOKUP($C16,'RECAP SECT'!$G$6:$FZ$85,159,FALSE) -> 118 | H16: =VLOOKUP($C16,'RECAP SECT'!$G$6:$FZ$85,160,FALSE) -> -96% | I16: =VLOOKUP($C16,'RECAP SECT'!$G$6:$FZ$85,161,FALSE) -> 119 | J16: =VLOOKUP($C16,'RECAP SECT'!$G$6:$FZ$85,162,FALSE) -> 467 | K16: =VLOOKUP($C16,'RECAP SECT'!$G$6:$FZ$85,163,FALSE) -> 26% | L16: =VLOOKUP($C16,'RECAP SECT'!$G$6:$FZ$85,164,FALSE) -> 9 | M16: =VLOOKUP($C16,'RECAP SECT'!$G$6:$FZ$85,165,FALSE) -> 59 | N16: =VLOOKUP($C16,'RECAP SECT'!$G$6:$FZ$85,166,FALSE) -> 16% | O16: =VLOOKUP($C16,'RECAP SECT'!$G$6:$FZ$85,167,FALSE) -> 0 | P16: =VLOOKUP($C16,'RECAP SECT'!$G$6:$FZ$85,168,FALSE) -> 4 | Q16: =VLOOKUP($C16,'RECAP SECT'!$G$6:$FZ$85,169,FALSE) -> 9% | R16: =VLOOKUP($C16,'RECAP SECT'!$G$6:$FZ$85,170,FALSE) -> 27 | S16: =VLOOKUP($C16,'RECAP SECT'!$G$6:$FZ$85,171,FALSE) -> 137 | T16: =VLOOKUP($C16,'RECAP SECT'!$G$6:$FZ$85,172,FALSE) -> 19%
A17: 50 | B17: AUBE HAUTE MARNE | C17: 16 | D17: SECTEUR SAINTE SAVINE | E17: =VLOOKUP($C17,'RECAP SECT'!$G$6:$EV$312,3,FALSE) -> 7.6 | F17: =VLOOKUP($C17,'RECAP SECT'!$G$6:$FZ$85,158,FALSE) -> 35 | G17: =VLOOKUP($C17,'RECAP SECT'!$G$6:$FZ$85,159,FALSE) -> 135 | H17: =VLOOKUP($C17,'RECAP SECT'!$G$6:$FZ$85,160,FALSE) -> 26% | I17: =VLOOKUP($C17,'RECAP SECT'!$G$6:$FZ$85,161,FALSE) -> 122 | J17: =VLOOKUP($C17,'RECAP SECT'!$G$6:$FZ$85,162,FALSE) -> 467 | K17: =VLOOKUP($C17,'RECAP SECT'!$G$6:$FZ$85,163,FALSE) -> 26% | L17: =VLOOKUP($C17,'RECAP SECT'!$G$6:$FZ$85,164,FALSE) -> 8 | M17: =VLOOKUP($C17,'RECAP SECT'!$G$6:$FZ$85,165,FALSE) -> 60 | N17: =VLOOKUP($C17,'RECAP SECT'!$G$6:$FZ$85,166,FALSE) -> 13% | O17: =VLOOKUP($C17,'RECAP SECT'!$G$6:$FZ$85,167,FALSE) -> -0 | P17: =VLOOKUP($C17,'RECAP SECT'!$G$6:$FZ$85,168,FALSE) -> 4 | Q17: =VLOOKUP($C17,'RECAP SECT'!$G$6:$FZ$85,169,FALSE) -> -7% | R17: =VLOOKUP($C17,'RECAP SECT'!$G$6:$FZ$85,170,FALSE) -> 21 | S17: =VLOOKUP($C17,'RECAP SECT'!$G$6:$FZ$85,171,FALSE) -> 137 | T17: =VLOOKUP($C17,'RECAP SECT'!$G$6:$FZ$85,172,FALSE) -> 15%
A18: 50 | B18: AUBE HAUTE MARNE | C18: 14 | D18: SECTEUR TROYES GAMBETTA | E18: =VLOOKUP($C18,'RECAP SECT'!$G$6:$EV$312,3,FALSE) -> 20.8 | F18: =VLOOKUP($C18,'RECAP SECT'!$G$6:$FZ$85,158,FALSE) -> 62 | G18: =VLOOKUP($C18,'RECAP SECT'!$G$6:$FZ$85,159,FALSE) -> 122 | H18: =VLOOKUP($C18,'RECAP SECT'!$G$6:$FZ$85,160,FALSE) -> 51% | I18: =VLOOKUP($C18,'RECAP SECT'!$G$6:$FZ$85,161,FALSE) -> 91 | J18: =VLOOKUP($C18,'RECAP SECT'!$G$6:$FZ$85,162,FALSE) -> 467 | K18: =VLOOKUP($C18,'RECAP SECT'!$G$6:$FZ$85,163,FALSE) -> 19% | L18: =VLOOKUP($C18,'RECAP SECT'!$G$6:$FZ$85,164,FALSE) -> 9 | M18: =VLOOKUP($C18,'RECAP SECT'!$G$6:$FZ$85,165,FALSE) -> 59 | N18: =VLOOKUP($C18,'RECAP SECT'!$G$6:$FZ$85,166,FALSE) -> 16% | O18: =VLOOKUP($C18,'RECAP SECT'!$G$6:$FZ$85,167,FALSE) -> -0 | P18: =VLOOKUP($C18,'RECAP SECT'!$G$6:$FZ$85,168,FALSE) -> 4 | Q18: =VLOOKUP($C18,'RECAP SECT'!$G$6:$FZ$85,169,FALSE) -> -6% | R18: =VLOOKUP($C18,'RECAP SECT'!$G$6:$FZ$85,170,FALSE) -> 21 | S18: =VLOOKUP($C18,'RECAP SECT'!$G$6:$FZ$85,171,FALSE) -> 134 | T18: =VLOOKUP($C18,'RECAP SECT'!$G$6:$FZ$85,172,FALSE) -> 15%
A19: 50 | B19: AUBE HAUTE MARNE | C19: 15 | D19: SECTEUR TROYES ZOLA | E19: =VLOOKUP($C19,'RECAP SECT'!$G$6:$EV$312,3,FALSE) -> 8.6 | F19: =VLOOKUP($C19,'RECAP SECT'!$G$6:$FZ$85,158,FALSE) -> 132 | G19: =VLOOKUP($C19,'RECAP SECT'!$G$6:$FZ$85,159,FALSE) -> 99 | H19: =VLOOKUP($C19,'RECAP SECT'!$G$6:$FZ$85,160,FALSE) -> 132% | I19: =VLOOKUP($C19,'RECAP SECT'!$G$6:$FZ$85,161,FALSE) -> 116 | J19: =VLOOKUP($C19,'RECAP SECT'!$G$6:$FZ$85,162,FALSE) -> 467 | K19: =VLOOKUP($C19,'RECAP SECT'!$G$6:$FZ$85,163,FALSE) -> 25% | L19: =VLOOKUP($C19,'RECAP SECT'!$G$6:$FZ$85,164,FALSE) -> 11 | M19: =VLOOKUP($C19,'RECAP SECT'!$G$6:$FZ$85,165,FALSE) -> 59 | N19: =VLOOKUP($C19,'RECAP SECT'!$G$6:$FZ$85,166,FALSE) -> 19% | O19: =VLOOKUP($C19,'RECAP SECT'!$G$6:$FZ$85,167,FALSE) -> 3 | P19: =VLOOKUP($C19,'RECAP SECT'!$G$6:$FZ$85,168,FALSE) -> 4 | Q19: =VLOOKUP($C19,'RECAP SECT'!$G$6:$FZ$85,169,FALSE) -> 82% | R19: =VLOOKUP($C19,'RECAP SECT'!$G$6:$FZ$85,170,FALSE) -> 28 | S19: =VLOOKUP($C19,'RECAP SECT'!$G$6:$FZ$85,171,FALSE) -> 131 | T19: =VLOOKUP($C19,'RECAP SECT'!$G$6:$FZ$85,172,FALSE) -> 22%
A20: 262 | B20: BAS-RHIN | C20: 5030 | D20: SECTEUR BRUMATH | E20: =VLOOKUP($C20,'RECAP SECT'!$G$6:$EV$312,3,FALSE) -> 21.3 | F20: =VLOOKUP($C20,'RECAP SECT'!$G$6:$FZ$85,158,FALSE) -> 105 | G20: =VLOOKUP($C20,'RECAP SECT'!$G$6:$FZ$85,159,FALSE) -> 131 | H20: =VLOOKUP($C20,'RECAP SECT'!$G$6:$FZ$85,160,FALSE) -> 80% | I20: =VLOOKUP($C20,'RECAP SECT'!$G$6:$FZ$85,161,FALSE) -> 101 | J20: =VLOOKUP($C20,'RECAP SECT'!$G$6:$FZ$85,162,FALSE) -> 467 | K20: =VLOOKUP($C20,'RECAP SECT'!$G$6:$FZ$85,163,FALSE) -> 22% | L20: =VLOOKUP($C20,'RECAP SECT'!$G$6:$FZ$85,164,FALSE) -> 14 | M20: =VLOOKUP($C20,'RECAP SECT'!$G$6:$FZ$85,165,FALSE) -> 59 | N20: =VLOOKUP($C20,'RECAP SECT'!$G$6:$FZ$85,166,FALSE) -> 23% | O20: =VLOOKUP($C20,'RECAP SECT'!$G$6:$FZ$85,167,FALSE) -> -0 | P20: =VLOOKUP($C20,'RECAP SECT'!$G$6:$FZ$85,168,FALSE) -> 4 | Q20: =VLOOKUP($C20,'RECAP SECT'!$G$6:$FZ$85,169,FALSE) -> -7% | R20: =VLOOKUP($C20,'RECAP SECT'!$G$6:$FZ$85,170,FALSE) -> 29 | S20: =VLOOKUP($C20,'RECAP SECT'!$G$6:$FZ$85,171,FALSE) -> 140 | T20: =VLOOKUP($C20,'RECAP SECT'!$G$6:$FZ$85,172,FALSE) -> 21%
A21: 262 | B21: BAS-RHIN | C21: 5047 | D21: SECTEUR CRONENBOURG | E21: =VLOOKUP($C21,'RECAP SECT'!$G$6:$EV$312,3,FALSE) -> 22.7 | F21: =VLOOKUP($C21,'RECAP SECT'!$G$6:$FZ$85,158,FALSE) -> 73 | G21: =VLOOKUP($C21,'RECAP SECT'!$G$6:$FZ$85,159,FALSE) -> 126 | H21: =VLOOKUP($C21,'RECAP SECT'!$G$6:$FZ$85,160,FALSE) -> 58% | I21: =VLOOKUP($C21,'RECAP SECT'!$G$6:$FZ$85,161,FALSE) -> 103 | J21: =VLOOKUP($C21,'RECAP SECT'!$G$6:$FZ$85,162,FALSE) -> 467 | K21: =VLOOKUP($C21,'RECAP SECT'!$G$6:$FZ$85,163,FALSE) -> 22% | L21: =VLOOKUP($C21,'RECAP SECT'!$G$6:$FZ$85,164,FALSE) -> 17 | M21: =VLOOKUP($C21,'RECAP SECT'!$G$6:$FZ$85,165,FALSE) -> 59 | N21: =VLOOKUP($C21,'RECAP SECT'!$G$6:$FZ$85,166,FALSE) -> 29% | O21: =VLOOKUP($C21,'RECAP SECT'!$G$6:$FZ$85,167,FALSE) -> -1 | P21: =VLOOKUP($C21,'RECAP SECT'!$G$6:$FZ$85,168,FALSE) -> 4 | Q21: =VLOOKUP($C21,'RECAP SECT'!$G$6:$FZ$85,169,FALSE) -> -23% | R21: =VLOOKUP($C21,'RECAP SECT'!$G$6:$FZ$85,170,FALSE) -> 25 | S21: =VLOOKUP($C21,'RECAP SECT'!$G$6:$FZ$85,171,FALSE) -> 138 | T21: =VLOOKUP($C21,'RECAP SECT'!$G$6:$FZ$85,172,FALSE) -> 18%
A22: 262 | B22: BAS-RHIN | C22: 5060 | D22: SECTEUR HAGUENAU | E22: =VLOOKUP($C22,'RECAP SECT'!$G$6:$EV$312,3,FALSE) -> 23.5 | F22: =VLOOKUP($C22,'RECAP SECT'!$G$6:$FZ$85,158,FALSE) -> 2 | G22: =VLOOKUP($C22,'RECAP SECT'!$G$6:$FZ$85,159,FALSE) -> 120 | H22: =VLOOKUP($C22,'RECAP SECT'!$G$6:$FZ$85,160,FALSE) -> 2% | I22: =VLOOKUP($C22,'RECAP SECT'!$G$6:$FZ$85,161,FALSE) -> 92 | J22: =VLOOKUP($C22,'RECAP SECT'!$G$6:$FZ$85,162,FALSE) -> 467 | K22: =VLOOKUP($C22,'RECAP SECT'!$G$6:$FZ$85,163,FALSE) -> 20% | L22: =VLOOKUP($C22,'RECAP SECT'!$G$6:$FZ$85,164,FALSE) -> 12 | M22: =VLOOKUP($C22,'RECAP SECT'!$G$6:$FZ$85,165,FALSE) -> 59 | N22: =VLOOKUP($C22,'RECAP SECT'!$G$6:$FZ$85,166,FALSE) -> 21% | O22: =VLOOKUP($C22,'RECAP SECT'!$G$6:$FZ$85,167,FALSE) -> -3 | P22: =VLOOKUP($C22,'RECAP SECT'!$G$6:$FZ$85,168,FALSE) -> 4 | Q22: =VLOOKUP($C22,'RECAP SECT'!$G$6:$FZ$85,169,FALSE) -> -74% | R22: =VLOOKUP($C22,'RECAP SECT'!$G$6:$FZ$85,170,FALSE) -> 21 | S22: =VLOOKUP($C22,'RECAP SECT'!$G$6:$FZ$85,171,FALSE) -> 132 | T22: =VLOOKUP($C22,'RECAP SECT'!$G$6:$FZ$85,172,FALSE) -> 16%
A23: 262 | B23: BAS-RHIN | C23: 5043 | D23: SECTEUR HALLES | E23: =VLOOKUP($C23,'RECAP SECT'!$G$6:$EV$312,3,FALSE) -> 24.5 | F23: =VLOOKUP($C23,'RECAP SECT'!$G$6:$FZ$85,158,FALSE) -> -26 | G23: =VLOOKUP($C23,'RECAP SECT'!$G$6:$FZ$85,159,FALSE) -> 129 | H23: =VLOOKUP($C23,'RECAP SECT'!$G$6:$FZ$85,160,FALSE) -> -20% | I23: =VLOOKUP($C23,'RECAP SECT'!$G$6:$FZ$85,161,FALSE) -> 84 | J23: =VLOOKUP($C23,'RECAP SECT'!$G$6:$FZ$85,162,FALSE) -> 467 | K23: =VLOOKUP($C23,'RECAP SECT'!$G$6:$FZ$85,163,FALSE) -> 18% | L23: =VLOOKUP($C23,'RECAP SECT'!$G$6:$FZ$85,164,FALSE) -> 11 | M23: =VLOOKUP($C23,'RECAP SECT'!$G$6:$FZ$85,165,FALSE) -> 59 | N23: =VLOOKUP($C23,'RECAP SECT'!$G$6:$FZ$85,166,FALSE) -> 19% | O23: =VLOOKUP($C23,'RECAP SECT'!$G$6:$FZ$85,167,FALSE) -> -0 | P23: =VLOOKUP($C23,'RECAP SECT'!$G$6:$FZ$85,168,FALSE) -> 4 | Q23: =VLOOKUP($C23,'RECAP SECT'!$G$6:$FZ$85,169,FALSE) -> -2% | R23: =VLOOKUP($C23,'RECAP SECT'!$G$6:$FZ$85,170,FALSE) -> 26 | S23: =VLOOKUP($C23,'RECAP SECT'!$G$6:$FZ$85,171,FALSE) -> 140 | T23: =VLOOKUP($C23,'RECAP SECT'!$G$6:$FZ$85,172,FALSE) -> 19%
A24: 262 | B24: BAS-RHIN | C24: 5007 | D24: SECTEUR ILLKIRCH | E24: =VLOOKUP($C24,'RECAP SECT'!$G$6:$EV$312,3,FALSE) -> 18.3 | F24: =VLOOKUP($C24,'RECAP SECT'!$G$6:$FZ$85,158,FALSE) -> 36 | G24: =VLOOKUP($C24,'RECAP SECT'!$G$6:$FZ$85,159,FALSE) -> 137 | H24: =VLOOKUP($C24,'RECAP SECT'!$G$6:$FZ$85,160,FALSE) -> 26% | I24: =VLOOKUP($C24,'RECAP SECT'!$G$6:$FZ$85,161,FALSE) -> 109 | J24: =VLOOKUP($C24,'RECAP SECT'!$G$6:$FZ$85,162,FALSE) -> 467 | K24: =VLOOKUP($C24,'RECAP SECT'!$G$6:$FZ$85,163,FALSE) -> 23% | L24: =VLOOKUP($C24,'RECAP SECT'!$G$6:$FZ$85,164,FALSE) -> 16 | M24: =VLOOKUP($C24,'RECAP SECT'!$G$6:$FZ$85,165,FALSE) -> 59 | N24: =VLOOKUP($C24,'RECAP SECT'!$G$6:$FZ$85,166,FALSE) -> 28% | O24: =VLOOKUP($C24,'RECAP SECT'!$G$6:$FZ$85,167,FALSE) -> -0 | P24: =VLOOKUP($C24,'RECAP SECT'!$G$6:$FZ$85,168,FALSE) -> 4 | Q24: =VLOOKUP($C24,'RECAP SECT'!$G$6:$FZ$85,169,FALSE) -> -7% | R24: =VLOOKUP($C24,'RECAP SECT'!$G$6:$FZ$85,170,FALSE) -> 26 | S24: =VLOOKUP($C24,'RECAP SECT'!$G$6:$FZ$85,171,FALSE) -> 142 | T24: =VLOOKUP($C24,'RECAP SECT'!$G$6:$FZ$85,172,FALSE) -> 18%
A25: 262 | B25: BAS-RHIN | C25: 5085 | D25: SECTEUR INGWILLER | E25: =VLOOKUP($C25,'RECAP SECT'!$G$6:$EV$312,3,FALSE) -> 19.8 | F25: =VLOOKUP($C25,'RECAP SECT'!$G$6:$FZ$85,158,FALSE) -> 76 | G25: =VLOOKUP($C25,'RECAP SECT'!$G$6:$FZ$85,159,FALSE) -> 121 | H25: =VLOOKUP($C25,'RECAP SECT'!$G$6:$FZ$85,160,FALSE) -> 63% | I25: =VLOOKUP($C25,'RECAP SECT'!$G$6:$FZ$85,161,FALSE) -> 131 | J25: =VLOOKUP($C25,'RECAP SECT'!$G$6:$FZ$85,162,FALSE) -> 467 | K25: =VLOOKUP($C25,'RECAP SECT'!$G$6:$FZ$85,163,FALSE) -> 28% | L25: =VLOOKUP($C25,'RECAP SECT'!$G$6:$FZ$85,164,FALSE) -> 16 | M25: =VLOOKUP($C25,'RECAP SECT'!$G$6:$FZ$85,165,FALSE) -> 59 | N25: =VLOOKUP($C25,'RECAP SECT'!$G$6:$FZ$85,166,FALSE) -> 28% | O25: =VLOOKUP($C25,'RECAP SECT'!$G$6:$FZ$85,167,FALSE) -> -2 | P25: =VLOOKUP($C25,'RECAP SECT'!$G$6:$FZ$85,168,FALSE) -> 4 | Q25: =VLOOKUP($C25,'RECAP SECT'!$G$6:$FZ$85,169,FALSE) -> -42% | R25: =VLOOKUP($C25,'RECAP SECT'!$G$6:$FZ$85,170,FALSE) -> 30 | S25: =VLOOKUP($C25,'RECAP SECT'!$G$6:$FZ$85,171,FALSE) -> 135 | T25: =VLOOKUP($C25,'RECAP SECT'!$G$6:$FZ$85,172,FALSE) -> 23%
A26: 262 | B26: BAS-RHIN | C26: 5116 | D26: SECTEUR MOLSHEIM | E26: =VLOOKUP($C26,'RECAP SECT'!$G$6:$EV$312,3,FALSE) -> 20.5 | F26: =VLOOKUP($C26,'RECAP SECT'!$G$6:$FZ$85,158,FALSE) -> 220 | G26: =VLOOKUP($C26,'RECAP SECT'!$G$6:$FZ$85,159,FALSE) -> 133 | H26: =VLOOKUP($C26,'RECAP SECT'!$G$6:$FZ$85,160,FALSE) -> 165% | I26: =VLOOKUP($C26,'RECAP SECT'!$G$6:$FZ$85,161,FALSE) -> 115 | J26: =VLOOKUP($C26,'RECAP SECT'!$G$6:$FZ$85,162,FALSE) -> 467 | K26: =VLOOKUP($C26,'RECAP SECT'!$G$6:$FZ$85,163,FALSE) -> 25% | L26: =VLOOKUP($C26,'RECAP SECT'!$G$6:$FZ$85,164,FALSE) -> 14 | M26: =VLOOKUP($C26,'RECAP SECT'!$G$6:$FZ$85,165,FALSE) -> 59 | N26: =VLOOKUP($C26,'RECAP SECT'!$G$6:$FZ$85,166,FALSE) -> 24% | O26: =VLOOKUP($C26,'RECAP SECT'!$G$6:$FZ$85,167,FALSE) -> 0 | P26: =VLOOKUP($C26,'RECAP SECT'!$G$6:$FZ$85,168,FALSE) -> 4 | Q26: =VLOOKUP($C26,'RECAP SECT'!$G$6:$FZ$85,169,FALSE) -> 0% | R26: =VLOOKUP($C26,'RECAP SECT'!$G$6:$FZ$85,170,FALSE) -> 31 | S26: =VLOOKUP($C26,'RECAP SECT'!$G$6:$FZ$85,171,FALSE) -> 138 | T26: =VLOOKUP($C26,'RECAP SECT'!$G$6:$FZ$85,172,FALSE) -> 22%
A27: 262 | B27: BAS-RHIN | C27: 5006 | D27: SECTEUR NEUDORF | E27: =VLOOKUP($C27,'RECAP SECT'!$G$6:$EV$312,3,FALSE) -> 22.2 | F27: =VLOOKUP($C27,'RECAP SECT'!$G$6:$FZ$85,158,FALSE) -> -28 | G27: =VLOOKUP($C27,'RECAP SECT'!$G$6:$FZ$85,159,FALSE) -> 122 | H27: =VLOOKUP($C27,'RECAP SECT'!$G$6:$FZ$85,160,FALSE) -> -23% | I27: =VLOOKUP($C27,'RECAP SECT'!$G$6:$FZ$85,161,FALSE) -> 77 | J27: =VLOOKUP($C27,'RECAP SECT'!$G$6:$FZ$85,162,FALSE) -> 467 | K27: =VLOOKUP($C27,'RECAP SECT'!$G$6:$FZ$85,163,FALSE) -> 16% | L27: =VLOOKUP($C27,'RECAP SECT'!$G$6:$FZ$85,164,FALSE) -> 11 | M27: =VLOOKUP($C27,'RECAP SECT'!$G$6:$FZ$85,165,FALSE) -> 59 | N27: =VLOOKUP($C27,'RECAP SECT'!$G$6:$FZ$85,166,FALSE) -> 19% | O27: =VLOOKUP($C27,'RECAP SECT'!$G$6:$FZ$85,167,FALSE) -> -4 | P27: =VLOOKUP($C27,'RECAP SECT'!$G$6:$FZ$85,168,FALSE) -> 4 | Q27: =VLOOKUP($C27,'RECAP SECT'!$G$6:$FZ$85,169,FALSE) -> -107% | R27: =VLOOKUP($C27,'RECAP SECT'!$G$6:$FZ$85,170,FALSE) -> 11 | S27: =VLOOKUP($C27,'RECAP SECT'!$G$6:$FZ$85,171,FALSE) -> 133 | T27: =VLOOKUP($C27,'RECAP SECT'!$G$6:$FZ$85,172,FALSE) -> 8%
A28: 262 | B28: BAS-RHIN | C28: 5119 | D28: SECTEUR OBERNAI | E28: =VLOOKUP($C28,'RECAP SECT'!$G$6:$EV$312,3,FALSE) -> 18.9 | F28: =VLOOKUP($C28,'RECAP SECT'!$G$6:$FZ$85,158,FALSE) -> -39 | G28: =VLOOKUP($C28,'RECAP SECT'!$G$6:$FZ$85,159,FALSE) -> 147 | H28: =VLOOKUP($C28,'RECAP SECT'!$G$6:$FZ$85,160,FALSE) -> -26% | I28: =VLOOKUP($C28,'RECAP SECT'!$G$6:$FZ$85,161,FALSE) -> 103 | J28: =VLOOKUP($C28,'RECAP SECT'!$G$6:$FZ$85,162,FALSE) -> 467 | K28: =VLOOKUP($C28,'RECAP SECT'!$G$6:$FZ$85,163,FALSE) -> 22% | L28: =VLOOKUP($C28,'RECAP SECT'!$G$6:$FZ$85,164,FALSE) -> 13 | M28: =VLOOKUP($C28,'RECAP SECT'!$G$6:$FZ$85,165,FALSE) -> 59 | N28: =VLOOKUP($C28,'RECAP SECT'!$G$6:$FZ$85,166,FALSE) -> 23% | O28: =VLOOKUP($C28,'RECAP SECT'!$G$6:$FZ$85,167,FALSE) -> -4 | P28: =VLOOKUP($C28,'RECAP SECT'!$G$6:$FZ$85,168,FALSE) -> 4 | Q28: =VLOOKUP($C28,'RECAP SECT'!$G$6:$FZ$85,169,FALSE) -> -93% | R28: =VLOOKUP($C28,'RECAP SECT'!$G$6:$FZ$85,170,FALSE) -> 22 | S28: =VLOOKUP($C28,'RECAP SECT'!$G$6:$FZ$85,171,FALSE) -> 142 | T28: =VLOOKUP($C28,'RECAP SECT'!$G$6:$FZ$85,172,FALSE) -> 15%
A29: 262 | B29: BAS-RHIN | C29: 5020 | D29: SECTEUR ROBERTSAU | E29: =VLOOKUP($C29,'RECAP SECT'!$G$6:$EV$312,3,FALSE) -> 18.6 | F29: =VLOOKUP($C29,'RECAP SECT'!$G$6:$FZ$85,158,FALSE) -> 122 | G29: =VLOOKUP($C29,'RECAP SECT'!$G$6:$FZ$85,159,FALSE) -> 121 | H29: =VLOOKUP($C29,'RECAP SECT'!$G$6:$FZ$85,160,FALSE) -> 101% | I29: =VLOOKUP($C29,'RECAP SECT'!$G$6:$FZ$85,161,FALSE) -> 112 | J29: =VLOOKUP($C29,'RECAP SECT'!$G$6:$FZ$85,162,FALSE) -> 467 | K29: =VLOOKUP($C29,'RECAP SECT'!$G$6:$FZ$85,163,FALSE) -> 24% | L29: =VLOOKUP($C29,'RECAP SECT'!$G$6:$FZ$85,164,FALSE) -> 11 | M29: =VLOOKUP($C29,'RECAP SECT'!$G$6:$FZ$85,165,FALSE) -> 59 | N29: =VLOOKUP($C29,'RECAP SECT'!$G$6:$FZ$85,166,FALSE) -> 19% | O29: =VLOOKUP($C29,'RECAP SECT'!$G$6:$FZ$85,167,FALSE) -> -0 | P29: =VLOOKUP($C29,'RECAP SECT'!$G$6:$FZ$85,168,FALSE) -> 4 | Q29: =VLOOKUP($C29,'RECAP SECT'!$G$6:$FZ$85,169,FALSE) -> -5% | R29: =VLOOKUP($C29,'RECAP SECT'!$G$6:$FZ$85,170,FALSE) -> 29 | S29: =VLOOKUP($C29,'RECAP SECT'!$G$6:$FZ$85,171,FALSE) -> 132 | T29: =VLOOKUP($C29,'RECAP SECT'!$G$6:$FZ$85,172,FALSE) -> 22%
A30: 262 | B30: BAS-RHIN | C30: 5087 | D30: SECTEUR SAVERNE | E30: =VLOOKUP($C30,'RECAP SECT'!$G$6:$EV$312,3,FALSE) -> 15.5 | F30: =VLOOKUP($C30,'RECAP SECT'!$G$6:$FZ$85,158,FALSE) -> 30 | G30: =VLOOKUP($C30,'RECAP SECT'!$G$6:$FZ$85,159,FALSE) -> 127 | H30: =VLOOKUP($C30,'RECAP SECT'!$G$6:$FZ$85,160,FALSE) -> 23% | I30: =VLOOKUP($C30,'RECAP SECT'!$G$6:$FZ$85,161,FALSE) -> 110 | J30: =VLOOKUP($C30,'RECAP SECT'!$G$6:$FZ$85,162,FALSE) -> 467 | K30: =VLOOKUP($C30,'RECAP SECT'!$G$6:$FZ$85,163,FALSE) -> 24% | L30: =VLOOKUP($C30,'RECAP SECT'!$G$6:$FZ$85,164,FALSE) -> 14 | M30: =VLOOKUP($C30,'RECAP SECT'!$G$6:$FZ$85,165,FALSE) -> 59 | N30: =VLOOKUP($C30,'RECAP SECT'!$G$6:$FZ$85,166,FALSE) -> 23% | O30: =VLOOKUP($C30,'RECAP SECT'!$G$6:$FZ$85,167,FALSE) -> -1 | P30: =VLOOKUP($C30,'RECAP SECT'!$G$6:$FZ$85,168,FALSE) -> 4 | Q30: =VLOOKUP($C30,'RECAP SECT'!$G$6:$FZ$85,169,FALSE) -> -35% | R30: =VLOOKUP($C30,'RECAP SECT'!$G$6:$FZ$85,170,FALSE) -> 30 | S30: =VLOOKUP($C30,'RECAP SECT'!$G$6:$FZ$85,171,FALSE) -> 130 | T30: =VLOOKUP($C30,'RECAP SECT'!$G$6:$FZ$85,172,FALSE) -> 23%
A31: 262 | B31: BAS-RHIN | C31: 5101 | D31: SECTEUR SELESTAT | E31: =VLOOKUP($C31,'RECAP SECT'!$G$6:$EV$312,3,FALSE) -> 18.7 | F31: =VLOOKUP($C31,'RECAP SECT'!$G$6:$FZ$85,158,FALSE) -> 2 | G31: =VLOOKUP($C31,'RECAP SECT'!$G$6:$FZ$85,159,FALSE) -> 127 | H31: =VLOOKUP($C31,'RECAP SECT'!$G$6:$FZ$85,160,FALSE) -> 1% | I31: =VLOOKUP($C31,'RECAP SECT'!$G$6:$FZ$85,161,FALSE) -> 97 | J31: =VLOOKUP($C31,'RECAP SECT'!$G$6:$FZ$85,162,FALSE) -> 467 | K31: =VLOOKUP($C31,'RECAP SECT'!$G$6:$FZ$85,163,FALSE) -> 21% | L31: =VLOOKUP($C31,'RECAP SECT'!$G$6:$FZ$85,164,FALSE) -> 15 | M31: =VLOOKUP($C31,'RECAP SECT'!$G$6:$FZ$85,165,FALSE) -> 59 | N31: =VLOOKUP($C31,'RECAP SECT'!$G$6:$FZ$85,166,FALSE) -> 26% | O31: =VLOOKUP($C31,'RECAP SECT'!$G$6:$FZ$85,167,FALSE) -> -2 | P31: =VLOOKUP($C31,'RECAP SECT'!$G$6:$FZ$85,168,FALSE) -> 4 | Q31: =VLOOKUP($C31,'RECAP SECT'!$G$6:$FZ$85,169,FALSE) -> -51% | R31: =VLOOKUP($C31,'RECAP SECT'!$G$6:$FZ$85,170,FALSE) -> 20 | S31: =VLOOKUP($C31,'RECAP SECT'!$G$6:$FZ$85,171,FALSE) -> 135 | T31: =VLOOKUP($C31,'RECAP SECT'!$G$6:$FZ$85,172,FALSE) -> 15%
A32: 262 | B32: BAS-RHIN | C32: 5071 | D32: SECTEUR WISSEMBOURG | E32: =VLOOKUP($C32,'RECAP SECT'!$G$6:$EV$312,3,FALSE) -> 15.7 | F32: =VLOOKUP($C32,'RECAP SECT'!$G$6:$FZ$85,158,FALSE) -> 32 | G32: =VLOOKUP($C32,'RECAP SECT'!$G$6:$FZ$85,159,FALSE) -> 118 | H32: =VLOOKUP($C32,'RECAP SECT'!$G$6:$FZ$85,160,FALSE) -> 27% | I32: =VLOOKUP($C32,'RECAP SECT'!$G$6:$FZ$85,161,FALSE) -> 89 | J32: =VLOOKUP($C32,'RECAP SECT'!$G$6:$FZ$85,162,FALSE) -> 467 | K32: =VLOOKUP($C32,'RECAP SECT'!$G$6:$FZ$85,163,FALSE) -> 19% | L32: =VLOOKUP($C32,'RECAP SECT'!$G$6:$FZ$85,164,FALSE) -> 12 | M32: =VLOOKUP($C32,'RECAP SECT'!$G$6:$FZ$85,165,FALSE) -> 59 | N32: =VLOOKUP($C32,'RECAP SECT'!$G$6:$FZ$85,166,FALSE) -> 21% | O32: =VLOOKUP($C32,'RECAP SECT'!$G$6:$FZ$85,167,FALSE) -> -3 | P32: =VLOOKUP($C32,'RECAP SECT'!$G$6:$FZ$85,168,FALSE) -> 4 | Q32: =VLOOKUP($C32,'RECAP SECT'!$G$6:$FZ$85,169,FALSE) -> -80% | R32: =VLOOKUP($C32,'RECAP SECT'!$G$6:$FZ$85,170,FALSE) -> 25 | S32: =VLOOKUP($C32,'RECAP SECT'!$G$6:$FZ$85,171,FALSE) -> 130 | T32: =VLOOKUP($C32,'RECAP SECT'!$G$6:$FZ$85,172,FALSE) -> 19%
A33: 264 | B33: HAUT-RHIN | C33: 5130 | D33: SECTEUR COLMAR | E33: =VLOOKUP($C33,'RECAP SECT'!$G$6:$EV$312,3,FALSE) -> 31.5 | F33: =VLOOKUP($C33,'RECAP SECT'!$G$6:$FZ$85,158,FALSE) -> 25 | G33: =VLOOKUP($C33,'RECAP SECT'!$G$6:$FZ$85,159,FALSE) -> 138 | H33: =VLOOKUP($C33,'RECAP SECT'!$G$6:$FZ$85,160,FALSE) -> 19% | I33: =VLOOKUP($C33,'RECAP SECT'!$G$6:$FZ$85,161,FALSE) -> 92 | J33: =VLOOKUP($C33,'RECAP SECT'!$G$6:$FZ$85,162,FALSE) -> 467 | K33: =VLOOKUP($C33,'RECAP SECT'!$G$6:$FZ$85,163,FALSE) -> 20% | L33: =VLOOKUP($C33,'RECAP SECT'!$G$6:$FZ$85,164,FALSE) -> 13 | M33: =VLOOKUP($C33,'RECAP SECT'!$G$6:$FZ$85,165,FALSE) -> 59 | N33: =VLOOKUP($C33,'RECAP SECT'!$G$6:$FZ$85,166,FALSE) -> 21% | O33: =VLOOKUP($C33,'RECAP SECT'!$G$6:$FZ$85,167,FALSE) -> -2 | P33: =VLOOKUP($C33,'RECAP SECT'!$G$6:$FZ$85,168,FALSE) -> 4 | Q33: =VLOOKUP($C33,'RECAP SECT'!$G$6:$FZ$85,169,FALSE) -> -48% | R33: =VLOOKUP($C33,'RECAP SECT'!$G$6:$FZ$85,170,FALSE) -> 24 | S33: =VLOOKUP($C33,'RECAP SECT'!$G$6:$FZ$85,171,FALSE) -> 143 | T33: =VLOOKUP($C33,'RECAP SECT'!$G$6:$FZ$85,172,FALSE) -> 17%
A34: 264 | B34: HAUT-RHIN | C34: 5147 | D34: SECTEUR GUEBWILLER | E34: =VLOOKUP($C34,'RECAP SECT'!$G$6:$EV$312,3,FALSE) -> 16.7 | F34: =VLOOKUP($C34,'RECAP SECT'!$G$6:$FZ$85,158,FALSE) -> 34 | G34: =VLOOKUP($C34,'RECAP SECT'!$G$6:$FZ$85,159,FALSE) -> 129 | H34: =VLOOKUP($C34,'RECAP SECT'!$G$6:$FZ$85,160,FALSE) -> 27% | I34: =VLOOKUP($C34,'RECAP SECT'!$G$6:$FZ$85,161,FALSE) -> 91 | J34: =VLOOKUP($C34,'RECAP SECT'!$G$6:$FZ$85,162,FALSE) -> 467 | K34: =VLOOKUP($C34,'RECAP SECT'!$G$6:$FZ$85,163,FALSE) -> 19% | L34: =VLOOKUP($C34,'RECAP SECT'!$G$6:$FZ$85,164,FALSE) -> 16 | M34: =VLOOKUP($C34,'RECAP SECT'!$G$6:$FZ$85,165,FALSE) -> 60 | N34: =VLOOKUP($C34,'RECAP SECT'!$G$6:$FZ$85,166,FALSE) -> 27% | O34: =VLOOKUP($C34,'RECAP SECT'!$G$6:$FZ$85,167,FALSE) -> -1 | P34: =VLOOKUP($C34,'RECAP SECT'!$G$6:$FZ$85,168,FALSE) -> 4 | Q34: =VLOOKUP($C34,'RECAP SECT'!$G$6:$FZ$85,169,FALSE) -> -35% | R34: =VLOOKUP($C34,'RECAP SECT'!$G$6:$FZ$85,170,FALSE) -> 26 | S34: =VLOOKUP($C34,'RECAP SECT'!$G$6:$FZ$85,171,FALSE) -> 141 | T34: =VLOOKUP($C34,'RECAP SECT'!$G$6:$FZ$85,172,FALSE) -> 19%
A35: 264 | B35: HAUT-RHIN | C35: 5184 | D35: SECTEUR ILLZACH | E35: =VLOOKUP($C35,'RECAP SECT'!$G$6:$EV$312,3,FALSE) -> 18.6 | F35: =VLOOKUP($C35,'RECAP SECT'!$G$6:$FZ$85,158,FALSE) -> 48 | G35: =VLOOKUP($C35,'RECAP SECT'!$G$6:$FZ$85,159,FALSE) -> 136 | H35: =VLOOKUP($C35,'RECAP SECT'!$G$6:$FZ$85,160,FALSE) -> 36% | I35: =VLOOKUP($C35,'RECAP SECT'!$G$6:$FZ$85,161,FALSE) -> 91 | J35: =VLOOKUP($C35,'RECAP SECT'!$G$6:$FZ$85,162,FALSE) -> 467 | K35: =VLOOKUP($C35,'RECAP SECT'!$G$6:$FZ$85,163,FALSE) -> 20% | L35: =VLOOKUP($C35,'RECAP SECT'!$G$6:$FZ$85,164,FALSE) -> 13 | M35: =VLOOKUP($C35,'RECAP SECT'!$G$6:$FZ$85,165,FALSE) -> 59 | N35: =VLOOKUP($C35,'RECAP SECT'!$G$6:$FZ$85,166,FALSE) -> 22% | O35: =VLOOKUP($C35,'RECAP SECT'!$G$6:$FZ$85,167,FALSE) -> -3 | P35: =VLOOKUP($C35,'RECAP SECT'!$G$6:$FZ$85,168,FALSE) -> 4 | Q35: =VLOOKUP($C35,'RECAP SECT'!$G$6:$FZ$85,169,FALSE) -> -78% | R35: =VLOOKUP($C35,'RECAP SECT'!$G$6:$FZ$85,170,FALSE) -> 25 | S35: =VLOOKUP($C35,'RECAP SECT'!$G$6:$FZ$85,171,FALSE) -> 146 | T35: =VLOOKUP($C35,'RECAP SECT'!$G$6:$FZ$85,172,FALSE) -> 17%
A36: 264 | B36: HAUT-RHIN | C36: 5143 | D36: SECTEUR MUNSTER | E36: =VLOOKUP($C36,'RECAP SECT'!$G$6:$EV$312,3,FALSE) -> 33.4 | F36: =VLOOKUP($C36,'RECAP SECT'!$G$6:$FZ$85,158,FALSE) -> 109 | G36: =VLOOKUP($C36,'RECAP SECT'!$G$6:$FZ$85,159,FALSE) -> 137 | H36: =VLOOKUP($C36,'RECAP SECT'!$G$6:$FZ$85,160,FALSE) -> 79% | I36: =VLOOKUP($C36,'RECAP SECT'!$G$6:$FZ$85,161,FALSE) -> 94 | J36: =VLOOKUP($C36,'RECAP SECT'!$G$6:$FZ$85,162,FALSE) -> 467 | K36: =VLOOKUP($C36,'RECAP SECT'!$G$6:$FZ$85,163,FALSE) -> 20% | L36: =VLOOKUP($C36,'RECAP SECT'!$G$6:$FZ$85,164,FALSE) -> 15 | M36: =VLOOKUP($C36,'RECAP SECT'!$G$6:$FZ$85,165,FALSE) -> 59 | N36: =VLOOKUP($C36,'RECAP SECT'!$G$6:$FZ$85,166,FALSE) -> 25% | O36: =VLOOKUP($C36,'RECAP SECT'!$G$6:$FZ$85,167,FALSE) -> -1 | P36: =VLOOKUP($C36,'RECAP SECT'!$G$6:$FZ$85,168,FALSE) -> 4 | Q36: =VLOOKUP($C36,'RECAP SECT'!$G$6:$FZ$85,169,FALSE) -> -34% | R36: =VLOOKUP($C36,'RECAP SECT'!$G$6:$FZ$85,170,FALSE) -> 24 | S36: =VLOOKUP($C36,'RECAP SECT'!$G$6:$FZ$85,171,FALSE) -> 135 | T36: =VLOOKUP($C36,'RECAP SECT'!$G$6:$FZ$85,172,FALSE) -> 18%
A37: 264 | B37: HAUT-RHIN | C37: 5169 | D37: SECTEUR ROOSEVELT | E37: =VLOOKUP($C37,'RECAP SECT'!$G$6:$EV$312,3,FALSE) -> 20.3 | F37: =VLOOKUP($C37,'RECAP SECT'!$G$6:$FZ$85,158,FALSE) -> 65 | G37: =VLOOKUP($C37,'RECAP SECT'!$G$6:$FZ$85,159,FALSE) -> 120 | H37: =VLOOKUP($C37,'RECAP SECT'!$G$6:$FZ$85,160,FALSE) -> 54% | I37: =VLOOKUP($C37,'RECAP SECT'!$G$6:$FZ$85,161,FALSE) -> 84 | J37: =VLOOKUP($C37,'RECAP SECT'!$G$6:$FZ$85,162,FALSE) -> 467 | K37: =VLOOKUP($C37,'RECAP SECT'!$G$6:$FZ$85,163,FALSE) -> 18% | L37: =VLOOKUP($C37,'RECAP SECT'!$G$6:$FZ$85,164,FALSE) -> 19 | M37: =VLOOKUP($C37,'RECAP SECT'!$G$6:$FZ$85,165,FALSE) -> 59 | N37: =VLOOKUP($C37,'RECAP SECT'!$G$6:$FZ$85,166,FALSE) -> 33% | O37: =VLOOKUP($C37,'RECAP SECT'!$G$6:$FZ$85,167,FALSE) -> -2 | P37: =VLOOKUP($C37,'RECAP SECT'!$G$6:$FZ$85,168,FALSE) -> 4 | Q37: =VLOOKUP($C37,'RECAP SECT'!$G$6:$FZ$85,169,FALSE) -> -56% | R37: =VLOOKUP($C37,'RECAP SECT'!$G$6:$FZ$85,170,FALSE) -> 27 | S37: =VLOOKUP($C37,'RECAP SECT'!$G$6:$FZ$85,171,FALSE) -> 132 | T37: =VLOOKUP($C37,'RECAP SECT'!$G$6:$FZ$85,172,FALSE) -> 21%
A38: 264 | B38: HAUT-RHIN | C38: 5178 | D38: SECTEUR SAINT LOUIS | E38: =VLOOKUP($C38,'RECAP SECT'!$G$6:$EV$312,3,FALSE) -> 16.6 | F38: =VLOOKUP($C38,'RECAP SECT'!$G$6:$FZ$85,158,FALSE) -> 127 | G38: =VLOOKUP($C38,'RECAP SECT'!$G$6:$FZ$85,159,FALSE) -> 147 | H38: =VLOOKUP($C38,'RECAP SECT'!$G$6:$FZ$85,160,FALSE) -> 86% | I38: =VLOOKUP($C38,'RECAP SECT'!$G$6:$FZ$85,161,FALSE) -> 94 | J38: =VLOOKUP($C38,'RECAP SECT'!$G$6:$FZ$85,162,FALSE) -> 467 | K38: =VLOOKUP($C38,'RECAP SECT'!$G$6:$FZ$85,163,FALSE) -> 20% | L38: =VLOOKUP($C38,'RECAP SECT'!$G$6:$FZ$85,164,FALSE) -> 12 | M38: =VLOOKUP($C38,'RECAP SECT'!$G$6:$FZ$85,165,FALSE) -> 59 | N38: =VLOOKUP($C38,'RECAP SECT'!$G$6:$FZ$85,166,FALSE) -> 20% | O38: =VLOOKUP($C38,'RECAP SECT'!$G$6:$FZ$85,167,FALSE) -> -2 | P38: =VLOOKUP($C38,'RECAP SECT'!$G$6:$FZ$85,168,FALSE) -> 4 | Q38: =VLOOKUP($C38,'RECAP SECT'!$G$6:$FZ$85,169,FALSE) -> -41% | R38: =VLOOKUP($C38,'RECAP SECT'!$G$6:$FZ$85,170,FALSE) -> 22 | S38: =VLOOKUP($C38,'RECAP SECT'!$G$6:$FZ$85,171,FALSE) -> 148 | T38: =VLOOKUP($C38,'RECAP SECT'!$G$6:$FZ$85,172,FALSE) -> 15%
A39: 264 | B39: HAUT-RHIN | C39: 5194 | D39: SECTEUR THANN | E39: =VLOOKUP($C39,'RECAP SECT'!$G$6:$EV$312,3,FALSE) -> 24.0 | F39: =VLOOKUP($C39,'RECAP SECT'!$G$6:$FZ$85,158,FALSE) -> 31 | G39: =VLOOKUP($C39,'RECAP SECT'!$G$6:$FZ$85,159,FALSE) -> 119 | H39: =VLOOKUP($C39,'RECAP SECT'!$G$6:$FZ$85,160,FALSE) -> 26% | I39: =VLOOKUP($C39,'RECAP SECT'!$G$6:$FZ$85,161,FALSE) -> 96 | J39: =VLOOKUP($C39,'RECAP SECT'!$G$6:$FZ$85,162,FALSE) -> 467 | K39: =VLOOKUP($C39,'RECAP SECT'!$G$6:$FZ$85,163,FALSE) -> 20% | L39: =VLOOKUP($C39,'RECAP SECT'!$G$6:$FZ$85,164,FALSE) -> 12 | M39: =VLOOKUP($C39,'RECAP SECT'!$G$6:$FZ$85,165,FALSE) -> 59 | N39: =VLOOKUP($C39,'RECAP SECT'!$G$6:$FZ$85,166,FALSE) -> 21% | O39: =VLOOKUP($C39,'RECAP SECT'!$G$6:$FZ$85,167,FALSE) -> -0 | P39: =VLOOKUP($C39,'RECAP SECT'!$G$6:$FZ$85,168,FALSE) -> 4 | Q39: =VLOOKUP($C39,'RECAP SECT'!$G$6:$FZ$85,169,FALSE) -> -12% | R39: =VLOOKUP($C39,'RECAP SECT'!$G$6:$FZ$85,170,FALSE) -> 29 | S39: =VLOOKUP($C39,'RECAP SECT'!$G$6:$FZ$85,171,FALSE) -> 137 | T39: =VLOOKUP($C39,'RECAP SECT'!$G$6:$FZ$85,172,FALSE) -> 21%
A40: 30 | B40: MARNE-ARDENNES | C40: 6 | D40: SECTEUR CHALONS VIVIERS | E40: =VLOOKUP($C40,'RECAP SECT'!$G$6:$EV$312,3,FALSE) -> 25.3 | F40: =VLOOKUP($C40,'RECAP SECT'!$G$6:$FZ$85,158,FALSE) -> 146 | G40: =VLOOKUP($C40,'RECAP SECT'!$G$6:$FZ$85,159,FALSE) -> 126 | H40: =VLOOKUP($C40,'RECAP SECT'!$G$6:$FZ$85,160,FALSE) -> 116% | I40: =VLOOKUP($C40,'RECAP SECT'!$G$6:$FZ$85,161,FALSE) -> 125 | J40: =VLOOKUP($C40,'RECAP SECT'!$G$6:$FZ$85,162,FALSE) -> 467 | K40: =VLOOKUP($C40,'RECAP SECT'!$G$6:$FZ$85,163,FALSE) -> 27% | L40: =VLOOKUP($C40,'RECAP SECT'!$G$6:$FZ$85,164,FALSE) -> 15 | M40: =VLOOKUP($C40,'RECAP SECT'!$G$6:$FZ$85,165,FALSE) -> 59 | N40: =VLOOKUP($C40,'RECAP SECT'!$G$6:$FZ$85,166,FALSE) -> 26% | O40: =VLOOKUP($C40,'RECAP SECT'!$G$6:$FZ$85,167,FALSE) -> -1 | P40: =VLOOKUP($C40,'RECAP SECT'!$G$6:$FZ$85,168,FALSE) -> 4 | Q40: =VLOOKUP($C40,'RECAP SECT'!$G$6:$FZ$85,169,FALSE) -> -13% | R40: =VLOOKUP($C40,'RECAP SECT'!$G$6:$FZ$85,170,FALSE) -> 34 | S40: =VLOOKUP($C40,'RECAP SECT'!$G$6:$FZ$85,171,FALSE) -> 137 | T40: =VLOOKUP($C40,'RECAP SECT'!$G$6:$FZ$85,172,FALSE) -> 25%
A41: 30 | B41: MARNE-ARDENNES | C41: 1 | D41: SECTEUR CHARLEVILLE JEAN JAURES | E41: =VLOOKUP($C41,'RECAP SECT'!$G$6:$EV$312,3,FALSE) -> 13.5 | F41: =VLOOKUP($C41,'RECAP SECT'!$G$6:$FZ$85,158,FALSE) -> -25 | G41: =VLOOKUP($C41,'RECAP SECT'!$G$6:$FZ$85,159,FALSE) -> 140 | H41: =VLOOKUP($C41,'RECAP SECT'!$G$6:$FZ$85,160,FALSE) -> -18% | I41: =VLOOKUP($C41,'RECAP SECT'!$G$6:$FZ$85,161,FALSE) -> 85 | J41: =VLOOKUP($C41,'RECAP SECT'!$G$6:$FZ$85,162,FALSE) -> 467 | K41: =VLOOKUP($C41,'RECAP SECT'!$G$6:$FZ$85,163,FALSE) -> 18% | L41: =VLOOKUP($C41,'RECAP SECT'!$G$6:$FZ$85,164,FALSE) -> 13 | M41: =VLOOKUP($C41,'RECAP SECT'!$G$6:$FZ$85,165,FALSE) -> 59 | N41: =VLOOKUP($C41,'RECAP SECT'!$G$6:$FZ$85,166,FALSE) -> 22% | O41: =VLOOKUP($C41,'RECAP SECT'!$G$6:$FZ$85,167,FALSE) -> -1 | P41: =VLOOKUP($C41,'RECAP SECT'!$G$6:$FZ$85,168,FALSE) -> 4 | Q41: =VLOOKUP($C41,'RECAP SECT'!$G$6:$FZ$85,169,FALSE) -> -19% | R41: =VLOOKUP($C41,'RECAP SECT'!$G$6:$FZ$85,170,FALSE) -> 30 | S41: =VLOOKUP($C41,'RECAP SECT'!$G$6:$FZ$85,171,FALSE) -> 140 | T41: =VLOOKUP($C41,'RECAP SECT'!$G$6:$FZ$85,172,FALSE) -> 21%
A42: 30 | B42: MARNE-ARDENNES | C42: 2 | D42: SECTEUR CHARLEVILLE MEZIERES | E42: =VLOOKUP($C42,'RECAP SECT'!$G$6:$EV$312,3,FALSE) -> 11.1 | F42: =VLOOKUP($C42,'RECAP SECT'!$G$6:$FZ$85,158,FALSE) -> 1 | G42: =VLOOKUP($C42,'RECAP SECT'!$G$6:$FZ$85,159,FALSE) -> 103 | H42: =VLOOKUP($C42,'RECAP SECT'!$G$6:$FZ$85,160,FALSE) -> 1% | I42: =VLOOKUP($C42,'RECAP SECT'!$G$6:$FZ$85,161,FALSE) -> 116 | J42: =VLOOKUP($C42,'RECAP SECT'!$G$6:$FZ$85,162,FALSE) -> 467 | K42: =VLOOKUP($C42,'RECAP SECT'!$G$6:$FZ$85,163,FALSE) -> 25% | L42: =VLOOKUP($C42,'RECAP SECT'!$G$6:$FZ$85,164,FALSE) -> 17 | M42: =VLOOKUP($C42,'RECAP SECT'!$G$6:$FZ$85,165,FALSE) -> 59 | N42: =VLOOKUP($C42,'RECAP SECT'!$G$6:$FZ$85,166,FALSE) -> 30% | O42: =VLOOKUP($C42,'RECAP SECT'!$G$6:$FZ$85,167,FALSE) -> 2 | P42: =VLOOKUP($C42,'RECAP SECT'!$G$6:$FZ$85,168,FALSE) -> 4 | Q42: =VLOOKUP($C42,'RECAP SECT'!$G$6:$FZ$85,169,FALSE) -> 46% | R42: =VLOOKUP($C42,'RECAP SECT'!$G$6:$FZ$85,170,FALSE) -> 45 | S42: =VLOOKUP($C42,'RECAP SECT'!$G$6:$FZ$85,171,FALSE) -> 128 | T42: =VLOOKUP($C42,'RECAP SECT'!$G$6:$FZ$85,172,FALSE) -> 35%
A43: 30 | B43: MARNE-ARDENNES | C43: 13 | D43: SECTEUR EPERNAY | E43: =VLOOKUP($C43,'RECAP SECT'!$G$6:$EV$312,3,FALSE) -> 25.1 | F43: =VLOOKUP($C43,'RECAP SECT'!$G$6:$FZ$85,158,FALSE) -> 210 | G43: =VLOOKUP($C43,'RECAP SECT'!$G$6:$FZ$85,159,FALSE) -> 153 | H43: =VLOOKUP($C43,'RECAP SECT'!$G$6:$FZ$85,160,FALSE) -> 137% | I43: =VLOOKUP($C43,'RECAP SECT'!$G$6:$FZ$85,161,FALSE) -> 169 | J43: =VLOOKUP($C43,'RECAP SECT'!$G$6:$FZ$85,162,FALSE) -> 467 | K43: =VLOOKUP($C43,'RECAP SECT'!$G$6:$FZ$85,163,FALSE) -> 36% | L43: =VLOOKUP($C43,'RECAP SECT'!$G$6:$FZ$85,164,FALSE) -> 12 | M43: =VLOOKUP($C43,'RECAP SECT'!$G$6:$FZ$85,165,FALSE) -> 58 | N43: =VLOOKUP($C43,'RECAP SECT'!$G$6:$FZ$85,166,FALSE) -> 21% | O43: =VLOOKUP($C43,'RECAP SECT'!$G$6:$FZ$85,167,FALSE) -> -0 | P43: =VLOOKUP($C43,'RECAP SECT'!$G$6:$FZ$85,168,FALSE) -> 4 | Q43: =VLOOKUP($C43,'RECAP SECT'!$G$6:$FZ$85,169,FALSE) -> -4% | R43: =VLOOKUP($C43,'RECAP SECT'!$G$6:$FZ$85,170,FALSE) -> 37 | S43: =VLOOKUP($C43,'RECAP SECT'!$G$6:$FZ$85,171,FALSE) -> 153 | T43: =VLOOKUP($C43,'RECAP SECT'!$G$6:$FZ$85,172,FALSE) -> 24%
A44: 30 | B44: MARNE-ARDENNES | C44: 11 | D44: SECTEUR REIMS CENTRE VILLE | E44: =VLOOKUP($C44,'RECAP SECT'!$G$6:$EV$312,3,FALSE) -> 20.4 | F44: =VLOOKUP($C44,'RECAP SECT'!$G$6:$FZ$85,158,FALSE) -> 170 | G44: =VLOOKUP($C44,'RECAP SECT'!$G$6:$FZ$85,159,FALSE) -> 131 | H44: =VLOOKUP($C44,'RECAP SECT'!$G$6:$FZ$85,160,FALSE) -> 130% | I44: =VLOOKUP($C44,'RECAP SECT'!$G$6:$FZ$85,161,FALSE) -> 123 | J44: =VLOOKUP($C44,'RECAP SECT'!$G$6:$FZ$85,162,FALSE) -> 467 | K44: =VLOOKUP($C44,'RECAP SECT'!$G$6:$FZ$85,163,FALSE) -> 26% | L44: =VLOOKUP($C44,'RECAP SECT'!$G$6:$FZ$85,164,FALSE) -> 15 | M44: =VLOOKUP($C44,'RECAP SECT'!$G$6:$FZ$85,165,FALSE) -> 59 | N44: =VLOOKUP($C44,'RECAP SECT'!$G$6:$FZ$85,166,FALSE) -> 25% | O44: =VLOOKUP($C44,'RECAP SECT'!$G$6:$FZ$85,167,FALSE) -> 1 | P44: =VLOOKUP($C44,'RECAP SECT'!$G$6:$FZ$85,168,FALSE) -> 4 | Q44: =VLOOKUP($C44,'RECAP SECT'!$G$6:$FZ$85,169,FALSE) -> 15% | R44: =VLOOKUP($C44,'RECAP SECT'!$G$6:$FZ$85,170,FALSE) -> 31 | S44: =VLOOKUP($C44,'RECAP SECT'!$G$6:$FZ$85,171,FALSE) -> 143 | T44: =VLOOKUP($C44,'RECAP SECT'!$G$6:$FZ$85,172,FALSE) -> 22%
A45: 30 | B45: MARNE-ARDENNES | C45: 9 | D45: SECTEUR REIMS HOTEL DE VILLE | E45: =VLOOKUP($C45,'RECAP SECT'!$G$6:$EV$312,3,FALSE) -> 22.4 | F45: =VLOOKUP($C45,'RECAP SECT'!$G$6:$FZ$85,158,FALSE) -> 218 | G45: =VLOOKUP($C45,'RECAP SECT'!$G$6:$FZ$85,159,FALSE) -> 144 | H45: =VLOOKUP($C45,'RECAP SECT'!$G$6:$FZ$85,160,FALSE) -> 151% | I45: =VLOOKUP($C45,'RECAP SECT'!$G$6:$FZ$85,161,FALSE) -> 139 | J45: =VLOOKUP($C45,'RECAP SECT'!$G$6:$FZ$85,162,FALSE) -> 467 | K45: =VLOOKUP($C45,'RECAP SECT'!$G$6:$FZ$85,163,FALSE) -> 30% | L45: =VLOOKUP($C45,'RECAP SECT'!$G$6:$FZ$85,164,FALSE) -> 15 | M45: =VLOOKUP($C45,'RECAP SECT'!$G$6:$FZ$85,165,FALSE) -> 59 | N45: =VLOOKUP($C45,'RECAP SECT'!$G$6:$FZ$85,166,FALSE) -> 26% | O45: =VLOOKUP($C45,'RECAP SECT'!$G$6:$FZ$85,167,FALSE) -> 1 | P45: =VLOOKUP($C45,'RECAP SECT'!$G$6:$FZ$85,168,FALSE) -> 4 | Q45: =VLOOKUP($C45,'RECAP SECT'!$G$6:$FZ$85,169,FALSE) -> 17% | R45: =VLOOKUP($C45,'RECAP SECT'!$G$6:$FZ$85,170,FALSE) -> 35 | S45: =VLOOKUP($C45,'RECAP SECT'!$G$6:$FZ$85,171,FALSE) -> 145 | T45: =VLOOKUP($C45,'RECAP SECT'!$G$6:$FZ$85,172,FALSE) -> 24%
A46: 30 | B46: MARNE-ARDENNES | C46: 10 | D46: SECTEUR REIMS SAINT THOMAS | E46: =VLOOKUP($C46,'RECAP SECT'!$G$6:$EV$312,3,FALSE) -> 12.7 | F46: =VLOOKUP($C46,'RECAP SECT'!$G$6:$FZ$85,158,FALSE) -> 114 | G46: =VLOOKUP($C46,'RECAP SECT'!$G$6:$FZ$85,159,FALSE) -> 140 | H46: =VLOOKUP($C46,'RECAP SECT'!$G$6:$FZ$85,160,FALSE) -> 81% | I46: =VLOOKUP($C46,'RECAP SECT'!$G$6:$FZ$85,161,FALSE) -> 123 | J46: =VLOOKUP($C46,'RECAP SECT'!$G$6:$FZ$85,162,FALSE) -> 467 | K46: =VLOOKUP($C46,'RECAP SECT'!$G$6:$FZ$85,163,FALSE) -> 26% | L46: =VLOOKUP($C46,'RECAP SECT'!$G$6:$FZ$85,164,FALSE) -> 14 | M46: =VLOOKUP($C46,'RECAP SECT'!$G$6:$FZ$85,165,FALSE) -> 59 | N46: =VLOOKUP($C46,'RECAP SECT'!$G$6:$FZ$85,166,FALSE) -> 23% | O46: =VLOOKUP($C46,'RECAP SECT'!$G$6:$FZ$85,167,FALSE) -> -3 | P46: =VLOOKUP($C46,'RECAP SECT'!$G$6:$FZ$85,168,FALSE) -> 4 | Q46: =VLOOKUP($C46,'RECAP SECT'!$G$6:$FZ$85,169,FALSE) -> -88% | R46: =VLOOKUP($C46,'RECAP SECT'!$G$6:$FZ$85,170,FALSE) -> 33 | S46: =VLOOKUP($C46,'RECAP SECT'!$G$6:$FZ$85,171,FALSE) -> 146 | T46: =VLOOKUP($C46,'RECAP SECT'!$G$6:$FZ$85,172,FALSE) -> 22%
A47: 30 | B47: MARNE-ARDENNES | C47: 4 | D47: SECTEUR RETHEL | E47: =VLOOKUP($C47,'RECAP SECT'!$G$6:$EV$312,3,FALSE) -> 10.9 | F47: =VLOOKUP($C47,'RECAP SECT'!$G$6:$FZ$85,158,FALSE) -> 10 | G47: =VLOOKUP($C47,'RECAP SECT'!$G$6:$FZ$85,159,FALSE) -> 116 | H47: =VLOOKUP($C47,'RECAP SECT'!$G$6:$FZ$85,160,FALSE) -> 8% | I47: =VLOOKUP($C47,'RECAP SECT'!$G$6:$FZ$85,161,FALSE) -> 109 | J47: =VLOOKUP($C47,'RECAP SECT'!$G$6:$FZ$85,162,FALSE) -> 467 | K47: =VLOOKUP($C47,'RECAP SECT'!$G$6:$FZ$85,163,FALSE) -> 23% | L47: =VLOOKUP($C47,'RECAP SECT'!$G$6:$FZ$85,164,FALSE) -> 20 | M47: =VLOOKUP($C47,'RECAP SECT'!$G$6:$FZ$85,165,FALSE) -> 58 | N47: =VLOOKUP($C47,'RECAP SECT'!$G$6:$FZ$85,166,FALSE) -> 34% | O47: =VLOOKUP($C47,'RECAP SECT'!$G$6:$FZ$85,167,FALSE) -> 0 | P47: =VLOOKUP($C47,'RECAP SECT'!$G$6:$FZ$85,168,FALSE) -> 4 | Q47: =VLOOKUP($C47,'RECAP SECT'!$G$6:$FZ$85,169,FALSE) -> 5% | R47: =VLOOKUP($C47,'RECAP SECT'!$G$6:$FZ$85,170,FALSE) -> 22 | S47: =VLOOKUP($C47,'RECAP SECT'!$G$6:$FZ$85,171,FALSE) -> 128 | T47: =VLOOKUP($C47,'RECAP SECT'!$G$6:$FZ$85,172,FALSE) -> 17%
A48: 30 | B48: MARNE-ARDENNES | C48: 5 | D48: SECTEUR REVIN | E48: =VLOOKUP($C48,'RECAP SECT'!$G$6:$EV$312,3,FALSE) -> 12.1 | F48: =VLOOKUP($C48,'RECAP SECT'!$G$6:$FZ$85,158,FALSE) -> -123 | G48: =VLOOKUP($C48,'RECAP SECT'!$G$6:$FZ$85,159,FALSE) -> 114 | H48: =VLOOKUP($C48,'RECAP SECT'!$G$6:$FZ$85,160,FALSE) -> -108% | I48: =VLOOKUP($C48,'RECAP SECT'!$G$6:$FZ$85,161,FALSE) -> 118 | J48: =VLOOKUP($C48,'RECAP SECT'!$G$6:$FZ$85,162,FALSE) -> 467 | K48: =VLOOKUP($C48,'RECAP SECT'!$G$6:$FZ$85,163,FALSE) -> 25% | L48: =VLOOKUP($C48,'RECAP SECT'!$G$6:$FZ$85,164,FALSE) -> 11 | M48: =VLOOKUP($C48,'RECAP SECT'!$G$6:$FZ$85,165,FALSE) -> 59 | N48: =VLOOKUP($C48,'RECAP SECT'!$G$6:$FZ$85,166,FALSE) -> 19% | O48: =VLOOKUP($C48,'RECAP SECT'!$G$6:$FZ$85,167,FALSE) -> -2 | P48: =VLOOKUP($C48,'RECAP SECT'!$G$6:$FZ$85,168,FALSE) -> 4 | Q48: =VLOOKUP($C48,'RECAP SECT'!$G$6:$FZ$85,169,FALSE) -> -46% | R48: =VLOOKUP($C48,'RECAP SECT'!$G$6:$FZ$85,170,FALSE) -> 21 | S48: =VLOOKUP($C48,'RECAP SECT'!$G$6:$FZ$85,171,FALSE) -> 125 | T48: =VLOOKUP($C48,'RECAP SECT'!$G$6:$FZ$85,172,FALSE) -> 17%
A49: 30 | B49: MARNE-ARDENNES | C49: 3 | D49: SECTEUR SEDAN | E49: =VLOOKUP($C49,'RECAP SECT'!$G$6:$EV$312,3,FALSE) -> 16.6 | F49: =VLOOKUP($C49,'RECAP SECT'!$G$6:$FZ$85,158,FALSE) -> -47 | G49: =VLOOKUP($C49,'RECAP SECT'!$G$6:$FZ$85,159,FALSE) -> 129 | H49: =VLOOKUP($C49,'RECAP SECT'!$G$6:$FZ$85,160,FALSE) -> -36% | I49: =VLOOKUP($C49,'RECAP SECT'!$G$6:$FZ$85,161,FALSE) -> 184 | J49: =VLOOKUP($C49,'RECAP SECT'!$G$6:$FZ$85,162,FALSE) -> 467 | K49: =VLOOKUP($C49,'RECAP SECT'!$G$6:$FZ$85,163,FALSE) -> 39% | L49: =VLOOKUP($C49,'RECAP SECT'!$G$6:$FZ$85,164,FALSE) -> 16 | M49: =VLOOKUP($C49,'RECAP SECT'!$G$6:$FZ$85,165,FALSE) -> 59 | N49: =VLOOKUP($C49,'RECAP SECT'!$G$6:$FZ$85,166,FALSE) -> 27% | O49: =VLOOKUP($C49,'RECAP SECT'!$G$6:$FZ$85,167,FALSE) -> 2 | P49: =VLOOKUP($C49,'RECAP SECT'!$G$6:$FZ$85,168,FALSE) -> 4 | Q49: =VLOOKUP($C49,'RECAP SECT'!$G$6:$FZ$85,169,FALSE) -> 47% | R49: =VLOOKUP($C49,'RECAP SECT'!$G$6:$FZ$85,170,FALSE) -> 34 | S49: =VLOOKUP($C49,'RECAP SECT'!$G$6:$FZ$85,171,FALSE) -> 134 | T49: =VLOOKUP($C49,'RECAP SECT'!$G$6:$FZ$85,172,FALSE) -> 26%
A50: 30 | B50: MARNE-ARDENNES | C50: 8 | D50: SECTEUR SEZANNE | E50: =VLOOKUP($C50,'RECAP SECT'!$G$6:$EV$312,3,FALSE) -> 12.9 | F50: =VLOOKUP($C50,'RECAP SECT'!$G$6:$FZ$85,158,FALSE) -> -112 | G50: =VLOOKUP($C50,'RECAP SECT'!$G$6:$FZ$85,159,FALSE) -> 145 | H50: =VLOOKUP($C50,'RECAP SECT'!$G$6:$FZ$85,160,FALSE) -> -77% | I50: =VLOOKUP($C50,'RECAP SECT'!$G$6:$FZ$85,161,FALSE) -> 124 | J50: =VLOOKUP($C50,'RECAP SECT'!$G$6:$FZ$85,162,FALSE) -> 467 | K50: =VLOOKUP($C50,'RECAP SECT'!$G$6:$FZ$85,163,FALSE) -> 27% | L50: =VLOOKUP($C50,'RECAP SECT'!$G$6:$FZ$85,164,FALSE) -> 10 | M50: =VLOOKUP($C50,'RECAP SECT'!$G$6:$FZ$85,165,FALSE) -> 59 | N50: =VLOOKUP($C50,'RECAP SECT'!$G$6:$FZ$85,166,FALSE) -> 17% | O50: =VLOOKUP($C50,'RECAP SECT'!$G$6:$FZ$85,167,FALSE) -> 0 | P50: =VLOOKUP($C50,'RECAP SECT'!$G$6:$FZ$85,168,FALSE) -> 4 | Q50: =VLOOKUP($C50,'RECAP SECT'!$G$6:$FZ$85,169,FALSE) -> 2% | R50: =VLOOKUP($C50,'RECAP SECT'!$G$6:$FZ$85,170,FALSE) -> 26 | S50: =VLOOKUP($C50,'RECAP SECT'!$G$6:$FZ$85,171,FALSE) -> 148 | T50: =VLOOKUP($C50,'RECAP SECT'!$G$6:$FZ$85,172,FALSE) -> 18%
A51: 30 | B51: MARNE-ARDENNES | C51: 12 | D51: SECTEUR TINQUEUX | E51: =VLOOKUP($C51,'RECAP SECT'!$G$6:$EV$312,3,FALSE) -> 12.1 | F51: =VLOOKUP($C51,'RECAP SECT'!$G$6:$FZ$85,158,FALSE) -> 203 | G51: =VLOOKUP($C51,'RECAP SECT'!$G$6:$FZ$85,159,FALSE) -> 144 | H51: =VLOOKUP($C51,'RECAP SECT'!$G$6:$FZ$85,160,FALSE) -> 141% | I51: =VLOOKUP($C51,'RECAP SECT'!$G$6:$FZ$85,161,FALSE) -> 144 | J51: =VLOOKUP($C51,'RECAP SECT'!$G$6:$FZ$85,162,FALSE) -> 467 | K51: =VLOOKUP($C51,'RECAP SECT'!$G$6:$FZ$85,163,FALSE) -> 31% | L51: =VLOOKUP($C51,'RECAP SECT'!$G$6:$FZ$85,164,FALSE) -> 15 | M51: =VLOOKUP($C51,'RECAP SECT'!$G$6:$FZ$85,165,FALSE) -> 59 | N51: =VLOOKUP($C51,'RECAP SECT'!$G$6:$FZ$85,166,FALSE) -> 26% | O51: =VLOOKUP($C51,'RECAP SECT'!$G$6:$FZ$85,167,FALSE) -> 2 | P51: =VLOOKUP($C51,'RECAP SECT'!$G$6:$FZ$85,168,FALSE) -> 4 | Q51: =VLOOKUP($C51,'RECAP SECT'!$G$6:$FZ$85,169,FALSE) -> 59% | R51: =VLOOKUP($C51,'RECAP SECT'!$G$6:$FZ$85,170,FALSE) -> 37 | S51: =VLOOKUP($C51,'RECAP SECT'!$G$6:$FZ$85,171,FALSE) -> 153 | T51: =VLOOKUP($C51,'RECAP SECT'!$G$6:$FZ$85,172,FALSE) -> 24%
A52: 30 | B52: MARNE-ARDENNES | C52: 7 | D52: SECTEUR VITRY LE FRANCOIS | E52: =VLOOKUP($C52,'RECAP SECT'!$G$6:$EV$312,3,FALSE) -> 10.7 | F52: =VLOOKUP($C52,'RECAP SECT'!$G$6:$FZ$85,158,FALSE) -> -70 | G52: =VLOOKUP($C52,'RECAP SECT'!$G$6:$FZ$85,159,FALSE) -> 120 | H52: =VLOOKUP($C52,'RECAP SECT'!$G$6:$FZ$85,160,FALSE) -> -59% | I52: =VLOOKUP($C52,'RECAP SECT'!$G$6:$FZ$85,161,FALSE) -> 91 | J52: =VLOOKUP($C52,'RECAP SECT'!$G$6:$FZ$85,162,FALSE) -> 467 | K52: =VLOOKUP($C52,'RECAP SECT'!$G$6:$FZ$85,163,FALSE) -> 19% | L52: =VLOOKUP($C52,'RECAP SECT'!$G$6:$FZ$85,164,FALSE) -> 10 | M52: =VLOOKUP($C52,'RECAP SECT'!$G$6:$FZ$85,165,FALSE) -> 58 | N52: =VLOOKUP($C52,'RECAP SECT'!$G$6:$FZ$85,166,FALSE) -> 17% | O52: =VLOOKUP($C52,'RECAP SECT'!$G$6:$FZ$85,167,FALSE) -> -2 | P52: =VLOOKUP($C52,'RECAP SECT'!$G$6:$FZ$85,168,FALSE) -> 4 | Q52: =VLOOKUP($C52,'RECAP SECT'!$G$6:$FZ$85,169,FALSE) -> -55% | R52: =VLOOKUP($C52,'RECAP SECT'!$G$6:$FZ$85,170,FALSE) -> 15 | S52: =VLOOKUP($C52,'RECAP SECT'!$G$6:$FZ$85,171,FALSE) -> 124 | T52: =VLOOKUP($C52,'RECAP SECT'!$G$6:$FZ$85,172,FALSE) -> 12%
A53: 110 | B53: MEURTHE ET MOSELLE MEUSE | C53: 32 | D53: SECTEUR BAR LE DUC | E53: =VLOOKUP($C53,'RECAP SECT'!$G$6:$EV$312,3,FALSE) -> 17.5 | F53: =VLOOKUP($C53,'RECAP SECT'!$G$6:$FZ$85,158,FALSE) -> -95 | G53: =VLOOKUP($C53,'RECAP SECT'!$G$6:$FZ$85,159,FALSE) -> 124 | H53: =VLOOKUP($C53,'RECAP SECT'!$G$6:$FZ$85,160,FALSE) -> -77% | I53: =VLOOKUP($C53,'RECAP SECT'!$G$6:$FZ$85,161,FALSE) -> 152 | J53: =VLOOKUP($C53,'RECAP SECT'!$G$6:$FZ$85,162,FALSE) -> 467 | K53: =VLOOKUP($C53,'RECAP SECT'!$G$6:$FZ$85,163,FALSE) -> 33% | L53: =VLOOKUP($C53,'RECAP SECT'!$G$6:$FZ$85,164,FALSE) -> 9 | M53: =VLOOKUP($C53,'RECAP SECT'!$G$6:$FZ$85,165,FALSE) -> 58 | N53: =VLOOKUP($C53,'RECAP SECT'!$G$6:$FZ$85,166,FALSE) -> 16% | O53: =VLOOKUP($C53,'RECAP SECT'!$G$6:$FZ$85,167,FALSE) -> -1 | P53: =VLOOKUP($C53,'RECAP SECT'!$G$6:$FZ$85,168,FALSE) -> 4 | Q53: =VLOOKUP($C53,'RECAP SECT'!$G$6:$FZ$85,169,FALSE) -> -29% | R53: =VLOOKUP($C53,'RECAP SECT'!$G$6:$FZ$85,170,FALSE) -> 27 | S53: =VLOOKUP($C53,'RECAP SECT'!$G$6:$FZ$85,171,FALSE) -> 125 | T53: =VLOOKUP($C53,'RECAP SECT'!$G$6:$FZ$85,172,FALSE) -> 21%
A54: 110 | B54: MEURTHE ET MOSELLE MEUSE | C54: 33 | D54: SECTEUR COMMERCY | E54: =VLOOKUP($C54,'RECAP SECT'!$G$6:$EV$312,3,FALSE) -> 9.9 | F54: =VLOOKUP($C54,'RECAP SECT'!$G$6:$FZ$85,158,FALSE) -> 67 | G54: =VLOOKUP($C54,'RECAP SECT'!$G$6:$FZ$85,159,FALSE) -> 112 | H54: =VLOOKUP($C54,'RECAP SECT'!$G$6:$FZ$85,160,FALSE) -> 60% | I54: =VLOOKUP($C54,'RECAP SECT'!$G$6:$FZ$85,161,FALSE) -> 89 | J54: =VLOOKUP($C54,'RECAP SECT'!$G$6:$FZ$85,162,FALSE) -> 467 | K54: =VLOOKUP($C54,'RECAP SECT'!$G$6:$FZ$85,163,FALSE) -> 19% | L54: =VLOOKUP($C54,'RECAP SECT'!$G$6:$FZ$85,164,FALSE) -> 12 | M54: =VLOOKUP($C54,'RECAP SECT'!$G$6:$FZ$85,165,FALSE) -> 59 | N54: =VLOOKUP($C54,'RECAP SECT'!$G$6:$FZ$85,166,FALSE) -> 20% | O54: =VLOOKUP($C54,'RECAP SECT'!$G$6:$FZ$85,167,FALSE) -> -2 | P54: =VLOOKUP($C54,'RECAP SECT'!$G$6:$FZ$85,168,FALSE) -> 4 | Q54: =VLOOKUP($C54,'RECAP SECT'!$G$6:$FZ$85,169,FALSE) -> -62% | R54: =VLOOKUP($C54,'RECAP SECT'!$G$6:$FZ$85,170,FALSE) -> 20 | S54: =VLOOKUP($C54,'RECAP SECT'!$G$6:$FZ$85,171,FALSE) -> 124 | T54: =VLOOKUP($C54,'RECAP SECT'!$G$6:$FZ$85,172,FALSE) -> 16%
A55: 110 | B55: MEURTHE ET MOSELLE MEUSE | C55: 28 | D55: SECTEUR JARNY | E55: =VLOOKUP($C55,'RECAP SECT'!$G$6:$EV$312,3,FALSE) -> 14.9 | F55: =VLOOKUP($C55,'RECAP SECT'!$G$6:$FZ$85,158,FALSE) -> 140 | G55: =VLOOKUP($C55,'RECAP SECT'!$G$6:$FZ$85,159,FALSE) -> 117 | H55: =VLOOKUP($C55,'RECAP SECT'!$G$6:$FZ$85,160,FALSE) -> 120% | I55: =VLOOKUP($C55,'RECAP SECT'!$G$6:$FZ$85,161,FALSE) -> 108 | J55: =VLOOKUP($C55,'RECAP SECT'!$G$6:$FZ$85,162,FALSE) -> 467 | K55: =VLOOKUP($C55,'RECAP SECT'!$G$6:$FZ$85,163,FALSE) -> 23% | L55: =VLOOKUP($C55,'RECAP SECT'!$G$6:$FZ$85,164,FALSE) -> 13 | M55: =VLOOKUP($C55,'RECAP SECT'!$G$6:$FZ$85,165,FALSE) -> 59 | N55: =VLOOKUP($C55,'RECAP SECT'!$G$6:$FZ$85,166,FALSE) -> 22% | O55: =VLOOKUP($C55,'RECAP SECT'!$G$6:$FZ$85,167,FALSE) -> -1 | P55: =VLOOKUP($C55,'RECAP SECT'!$G$6:$FZ$85,168,FALSE) -> 4 | Q55: =VLOOKUP($C55,'RECAP SECT'!$G$6:$FZ$85,169,FALSE) -> -24% | R55: =VLOOKUP($C55,'RECAP SECT'!$G$6:$FZ$85,170,FALSE) -> 32 | S55: =VLOOKUP($C55,'RECAP SECT'!$G$6:$FZ$85,171,FALSE) -> 131 | T55: =VLOOKUP($C55,'RECAP SECT'!$G$6:$FZ$85,172,FALSE) -> 24%
A56: 110 | B56: MEURTHE ET MOSELLE MEUSE | C56: 29 | D56: SECTEUR LONGWY HAUT | E56: =VLOOKUP($C56,'RECAP SECT'!$G$6:$EV$312,3,FALSE) -> 16.7 | F56: =VLOOKUP($C56,'RECAP SECT'!$G$6:$FZ$85,158,FALSE) -> 88 | G56: =VLOOKUP($C56,'RECAP SECT'!$G$6:$FZ$85,159,FALSE) -> 115 | H56: =VLOOKUP($C56,'RECAP SECT'!$G$6:$FZ$85,160,FALSE) -> 76% | I56: =VLOOKUP($C56,'RECAP SECT'!$G$6:$FZ$85,161,FALSE) -> 150 | J56: =VLOOKUP($C56,'RECAP SECT'!$G$6:$FZ$85,162,FALSE) -> 467 | K56: =VLOOKUP($C56,'RECAP SECT'!$G$6:$FZ$85,163,FALSE) -> 32% | L56: =VLOOKUP($C56,'RECAP SECT'!$G$6:$FZ$85,164,FALSE) -> 11 | M56: =VLOOKUP($C56,'RECAP SECT'!$G$6:$FZ$85,165,FALSE) -> 59 | N56: =VLOOKUP($C56,'RECAP SECT'!$G$6:$FZ$85,166,FALSE) -> 19% | O56: =VLOOKUP($C56,'RECAP SECT'!$G$6:$FZ$85,167,FALSE) -> -1 | P56: =VLOOKUP($C56,'RECAP SECT'!$G$6:$FZ$85,168,FALSE) -> 4 | Q56: =VLOOKUP($C56,'RECAP SECT'!$G$6:$FZ$85,169,FALSE) -> -29% | R56: =VLOOKUP($C56,'RECAP SECT'!$G$6:$FZ$85,170,FALSE) -> 32 | S56: =VLOOKUP($C56,'RECAP SECT'!$G$6:$FZ$85,171,FALSE) -> 135 | T56: =VLOOKUP($C56,'RECAP SECT'!$G$6:$FZ$85,172,FALSE) -> 23%
A57: 110 | B57: MEURTHE ET MOSELLE MEUSE | C57: 24 | D57: SECTEUR LUNEVILLE CARNOT | E57: =VLOOKUP($C57,'RECAP SECT'!$G$6:$EV$312,3,FALSE) -> 20.8 | F57: =VLOOKUP($C57,'RECAP SECT'!$G$6:$FZ$85,158,FALSE) -> -12 | G57: =VLOOKUP($C57,'RECAP SECT'!$G$6:$FZ$85,159,FALSE) -> 117 | H57: =VLOOKUP($C57,'RECAP SECT'!$G$6:$FZ$85,160,FALSE) -> -10% | I57: =VLOOKUP($C57,'RECAP SECT'!$G$6:$FZ$85,161,FALSE) -> 125 | J57: =VLOOKUP($C57,'RECAP SECT'!$G$6:$FZ$85,162,FALSE) -> 467 | K57: =VLOOKUP($C57,'RECAP SECT'!$G$6:$FZ$85,163,FALSE) -> 27% | L57: =VLOOKUP($C57,'RECAP SECT'!$G$6:$FZ$85,164,FALSE) -> 13 | M57: =VLOOKUP($C57,'RECAP SECT'!$G$6:$FZ$85,165,FALSE) -> 59 | N57: =VLOOKUP($C57,'RECAP SECT'!$G$6:$FZ$85,166,FALSE) -> 22% | O57: =VLOOKUP($C57,'RECAP SECT'!$G$6:$FZ$85,167,FALSE) -> -0 | P57: =VLOOKUP($C57,'RECAP SECT'!$G$6:$FZ$85,168,FALSE) -> 4 | Q57: =VLOOKUP($C57,'RECAP SECT'!$G$6:$FZ$85,169,FALSE) -> -12% | R57: =VLOOKUP($C57,'RECAP SECT'!$G$6:$FZ$85,170,FALSE) -> 28 | S57: =VLOOKUP($C57,'RECAP SECT'!$G$6:$FZ$85,171,FALSE) -> 130 | T57: =VLOOKUP($C57,'RECAP SECT'!$G$6:$FZ$85,172,FALSE) -> 22%
A58: 110 | B58: MEURTHE ET MOSELLE MEUSE | C58: 30 | D58: SECTEUR MONTMEDY | E58: =VLOOKUP($C58,'RECAP SECT'!$G$6:$EV$312,3,FALSE) -> 6.6 | F58: =VLOOKUP($C58,'RECAP SECT'!$G$6:$FZ$85,158,FALSE) -> 25 | G58: =VLOOKUP($C58,'RECAP SECT'!$G$6:$FZ$85,159,FALSE) -> 103 | H58: =VLOOKUP($C58,'RECAP SECT'!$G$6:$FZ$85,160,FALSE) -> 24% | I58: =VLOOKUP($C58,'RECAP SECT'!$G$6:$FZ$85,161,FALSE) -> 116 | J58: =VLOOKUP($C58,'RECAP SECT'!$G$6:$FZ$85,162,FALSE) -> 467 | K58: =VLOOKUP($C58,'RECAP SECT'!$G$6:$FZ$85,163,FALSE) -> 25% | L58: =VLOOKUP($C58,'RECAP SECT'!$G$6:$FZ$85,164,FALSE) -> 12 | M58: =VLOOKUP($C58,'RECAP SECT'!$G$6:$FZ$85,165,FALSE) -> 59 | N58: =VLOOKUP($C58,'RECAP SECT'!$G$6:$FZ$85,166,FALSE) -> 21% | O58: =VLOOKUP($C58,'RECAP SECT'!$G$6:$FZ$85,167,FALSE) -> -2 | P58: =VLOOKUP($C58,'RECAP SECT'!$G$6:$FZ$85,168,FALSE) -> 4 | Q58: =VLOOKUP($C58,'RECAP SECT'!$G$6:$FZ$85,169,FALSE) -> -46% | R58: =VLOOKUP($C58,'RECAP SECT'!$G$6:$FZ$85,170,FALSE) -> 30 | S58: =VLOOKUP($C58,'RECAP SECT'!$G$6:$FZ$85,171,FALSE) -> 129 | T58: =VLOOKUP($C58,'RECAP SECT'!$G$6:$FZ$85,172,FALSE) -> 23%
A59: 110 | B59: MEURTHE ET MOSELLE MEUSE | C59: 26 | D59: SECTEUR NANCY PLACE DOMBASLE | E59: =VLOOKUP($C59,'RECAP SECT'!$G$6:$EV$312,3,FALSE) -> 36.6 | F59: =VLOOKUP($C59,'RECAP SECT'!$G$6:$FZ$85,158,FALSE) -> 132 | G59: =VLOOKUP($C59,'RECAP SECT'!$G$6:$FZ$85,159,FALSE) -> 124 | H59: =VLOOKUP($C59,'RECAP SECT'!$G$6:$FZ$85,160,FALSE) -> 106% | I59: =VLOOKUP($C59,'RECAP SECT'!$G$6:$FZ$85,161,FALSE) -> 125 | J59: =VLOOKUP($C59,'RECAP SECT'!$G$6:$FZ$85,162,FALSE) -> 467 | K59: =VLOOKUP($C59,'RECAP SECT'!$G$6:$FZ$85,163,FALSE) -> 27% | L59: =VLOOKUP($C59,'RECAP SECT'!$G$6:$FZ$85,164,FALSE) -> 14 | M59: =VLOOKUP($C59,'RECAP SECT'!$G$6:$FZ$85,165,FALSE) -> 59 | N59: =VLOOKUP($C59,'RECAP SECT'!$G$6:$FZ$85,166,FALSE) -> 24% | O59: =VLOOKUP($C59,'RECAP SECT'!$G$6:$FZ$85,167,FALSE) -> -1 | P59: =VLOOKUP($C59,'RECAP SECT'!$G$6:$FZ$85,168,FALSE) -> 4 | Q59: =VLOOKUP($C59,'RECAP SECT'!$G$6:$FZ$85,169,FALSE) -> -19% | R59: =VLOOKUP($C59,'RECAP SECT'!$G$6:$FZ$85,170,FALSE) -> 33 | S59: =VLOOKUP($C59,'RECAP SECT'!$G$6:$FZ$85,171,FALSE) -> 134 | T59: =VLOOKUP($C59,'RECAP SECT'!$G$6:$FZ$85,172,FALSE) -> 25%
A60: 110 | B60: MEURTHE ET MOSELLE MEUSE | C60: 27 | D60: SECTEUR PONT A MOUSSON CENTRALE | E60: =VLOOKUP($C60,'RECAP SECT'!$G$6:$EV$312,3,FALSE) -> 27.8 | F60: =VLOOKUP($C60,'RECAP SECT'!$G$6:$FZ$85,158,FALSE) -> 69 | G60: =VLOOKUP($C60,'RECAP SECT'!$G$6:$FZ$85,159,FALSE) -> 116 | H60: =VLOOKUP($C60,'RECAP SECT'!$G$6:$FZ$85,160,FALSE) -> 60% | I60: =VLOOKUP($C60,'RECAP SECT'!$G$6:$FZ$85,161,FALSE) -> 122 | J60: =VLOOKUP($C60,'RECAP SECT'!$G$6:$FZ$85,162,FALSE) -> 467 | K60: =VLOOKUP($C60,'RECAP SECT'!$G$6:$FZ$85,163,FALSE) -> 26% | L60: =VLOOKUP($C60,'RECAP SECT'!$G$6:$FZ$85,164,FALSE) -> 12 | M60: =VLOOKUP($C60,'RECAP SECT'!$G$6:$FZ$85,165,FALSE) -> 59 | N60: =VLOOKUP($C60,'RECAP SECT'!$G$6:$FZ$85,166,FALSE) -> 20% | O60: =VLOOKUP($C60,'RECAP SECT'!$G$6:$FZ$85,167,FALSE) -> -1 | P60: =VLOOKUP($C60,'RECAP SECT'!$G$6:$FZ$85,168,FALSE) -> 4 | Q60: =VLOOKUP($C60,'RECAP SECT'!$G$6:$FZ$85,169,FALSE) -> -24% | R60: =VLOOKUP($C60,'RECAP SECT'!$G$6:$FZ$85,170,FALSE) -> 25 | S60: =VLOOKUP($C60,'RECAP SECT'!$G$6:$FZ$85,171,FALSE) -> 134 | T60: =VLOOKUP($C60,'RECAP SECT'!$G$6:$FZ$85,172,FALSE) -> 19%
A61: 110 | B61: MEURTHE ET MOSELLE MEUSE | C61: 34 | D61: SECTEUR TOUL | E61: =VLOOKUP($C61,'RECAP SECT'!$G$6:$EV$312,3,FALSE) -> 21.9 | F61: =VLOOKUP($C61,'RECAP SECT'!$G$6:$FZ$85,158,FALSE) -> 49 | G61: =VLOOKUP($C61,'RECAP SECT'!$G$6:$FZ$85,159,FALSE) -> 123 | H61: =VLOOKUP($C61,'RECAP SECT'!$G$6:$FZ$85,160,FALSE) -> 39% | I61: =VLOOKUP($C61,'RECAP SECT'!$G$6:$FZ$85,161,FALSE) -> 90 | J61: =VLOOKUP($C61,'RECAP SECT'!$G$6:$FZ$85,162,FALSE) -> 467 | K61: =VLOOKUP($C61,'RECAP SECT'!$G$6:$FZ$85,163,FALSE) -> 19% | L61: =VLOOKUP($C61,'RECAP SECT'!$G$6:$FZ$85,164,FALSE) -> 11 | M61: =VLOOKUP($C61,'RECAP SECT'!$G$6:$FZ$85,165,FALSE) -> 59 | N61: =VLOOKUP($C61,'RECAP SECT'!$G$6:$FZ$85,166,FALSE) -> 18% | O61: =VLOOKUP($C61,'RECAP SECT'!$G$6:$FZ$85,167,FALSE) -> -0 | P61: =VLOOKUP($C61,'RECAP SECT'!$G$6:$FZ$85,168,FALSE) -> 4 | Q61: =VLOOKUP($C61,'RECAP SECT'!$G$6:$FZ$85,169,FALSE) -> -9% | R61: =VLOOKUP($C61,'RECAP SECT'!$G$6:$FZ$85,170,FALSE) -> 20 | S61: =VLOOKUP($C61,'RECAP SECT'!$G$6:$FZ$85,171,FALSE) -> 135 | T61: =VLOOKUP($C61,'RECAP SECT'!$G$6:$FZ$85,172,FALSE) -> 15%
A62: 110 | B62: MEURTHE ET MOSELLE MEUSE | C62: 35 | D62: SECTEUR VANDOEUVRE LES NANCY | E62: =VLOOKUP($C62,'RECAP SECT'!$G$6:$EV$312,3,FALSE) -> 22.9 | F62: =VLOOKUP($C62,'RECAP SECT'!$G$6:$FZ$85,158,FALSE) -> -27 | G62: =VLOOKUP($C62,'RECAP SECT'!$G$6:$FZ$85,159,FALSE) -> 111 | H62: =VLOOKUP($C62,'RECAP SECT'!$G$6:$FZ$85,160,FALSE) -> -24% | I62: =VLOOKUP($C62,'RECAP SECT'!$G$6:$FZ$85,161,FALSE) -> 109 | J62: =VLOOKUP($C62,'RECAP SECT'!$G$6:$FZ$85,162,FALSE) -> 467 | K62: =VLOOKUP($C62,'RECAP SECT'!$G$6:$FZ$85,163,FALSE) -> 23% | L62: =VLOOKUP($C62,'RECAP SECT'!$G$6:$FZ$85,164,FALSE) -> 13 | M62: =VLOOKUP($C62,'RECAP SECT'!$G$6:$FZ$85,165,FALSE) -> 58 | N62: =VLOOKUP($C62,'RECAP SECT'!$G$6:$FZ$85,166,FALSE) -> 23% | O62: =VLOOKUP($C62,'RECAP SECT'!$G$6:$FZ$85,167,FALSE) -> -2 | P62: =VLOOKUP($C62,'RECAP SECT'!$G$6:$FZ$85,168,FALSE) -> 4 | Q62: =VLOOKUP($C62,'RECAP SECT'!$G$6:$FZ$85,169,FALSE) -> -39% | R62: =VLOOKUP($C62,'RECAP SECT'!$G$6:$FZ$85,170,FALSE) -> 20 | S62: =VLOOKUP($C62,'RECAP SECT'!$G$6:$FZ$85,171,FALSE) -> 129 | T62: =VLOOKUP($C62,'RECAP SECT'!$G$6:$FZ$85,172,FALSE) -> 16%
A63: 110 | B63: MEURTHE ET MOSELLE MEUSE | C63: 31 | D63: SECTEUR VERDUN CENTRALE | E63: =VLOOKUP($C63,'RECAP SECT'!$G$6:$EV$312,3,FALSE) -> 17.6 | F63: =VLOOKUP($C63,'RECAP SECT'!$G$6:$FZ$85,158,FALSE) -> 230 | G63: =VLOOKUP($C63,'RECAP SECT'!$G$6:$FZ$85,159,FALSE) -> 115 | H63: =VLOOKUP($C63,'RECAP SECT'!$G$6:$FZ$85,160,FALSE) -> 199% | I63: =VLOOKUP($C63,'RECAP SECT'!$G$6:$FZ$85,161,FALSE) -> 111 | J63: =VLOOKUP($C63,'RECAP SECT'!$G$6:$FZ$85,162,FALSE) -> 467 | K63: =VLOOKUP($C63,'RECAP SECT'!$G$6:$FZ$85,163,FALSE) -> 24% | L63: =VLOOKUP($C63,'RECAP SECT'!$G$6:$FZ$85,164,FALSE) -> 10 | M63: =VLOOKUP($C63,'RECAP SECT'!$G$6:$FZ$85,165,FALSE) -> 59 | N63: =VLOOKUP($C63,'RECAP SECT'!$G$6:$FZ$85,166,FALSE) -> 18% | O63: =VLOOKUP($C63,'RECAP SECT'!$G$6:$FZ$85,167,FALSE) -> -1 | P63: =VLOOKUP($C63,'RECAP SECT'!$G$6:$FZ$85,168,FALSE) -> 4 | Q63: =VLOOKUP($C63,'RECAP SECT'!$G$6:$FZ$85,169,FALSE) -> -31% | R63: =VLOOKUP($C63,'RECAP SECT'!$G$6:$FZ$85,170,FALSE) -> 35 | S63: =VLOOKUP($C63,'RECAP SECT'!$G$6:$FZ$85,171,FALSE) -> 135 | T63: =VLOOKUP($C63,'RECAP SECT'!$G$6:$FZ$85,172,FALSE) -> 26%
A64: 110 | B64: MEURTHE ET MOSELLE MEUSE | C64: 36 | D64: SECTEUR VILLERS GENERAL LECLERC | E64: =VLOOKUP($C64,'RECAP SECT'!$G$6:$EV$312,3,FALSE) -> 26.4 | F64: =VLOOKUP($C64,'RECAP SECT'!$G$6:$FZ$85,158,FALSE) -> 123 | G64: =VLOOKUP($C64,'RECAP SECT'!$G$6:$FZ$85,159,FALSE) -> 117 | H64: =VLOOKUP($C64,'RECAP SECT'!$G$6:$FZ$85,160,FALSE) -> 105% | I64: =VLOOKUP($C64,'RECAP SECT'!$G$6:$FZ$85,161,FALSE) -> 151 | J64: =VLOOKUP($C64,'RECAP SECT'!$G$6:$FZ$85,162,FALSE) -> 467 | K64: =VLOOKUP($C64,'RECAP SECT'!$G$6:$FZ$85,163,FALSE) -> 32% | L64: =VLOOKUP($C64,'RECAP SECT'!$G$6:$FZ$85,164,FALSE) -> 17 | M64: =VLOOKUP($C64,'RECAP SECT'!$G$6:$FZ$85,165,FALSE) -> 58 | N64: =VLOOKUP($C64,'RECAP SECT'!$G$6:$FZ$85,166,FALSE) -> 28% | O64: =VLOOKUP($C64,'RECAP SECT'!$G$6:$FZ$85,167,FALSE) -> 0 | P64: =VLOOKUP($C64,'RECAP SECT'!$G$6:$FZ$85,168,FALSE) -> 4 | Q64: =VLOOKUP($C64,'RECAP SECT'!$G$6:$FZ$85,169,FALSE) -> 12% | R64: =VLOOKUP($C64,'RECAP SECT'!$G$6:$FZ$85,170,FALSE) -> 35 | S64: =VLOOKUP($C64,'RECAP SECT'!$G$6:$FZ$85,171,FALSE) -> 130 | T64: =VLOOKUP($C64,'RECAP SECT'!$G$6:$FZ$85,172,FALSE) -> 27%
A65: 160 | B65: MOSELLE | C65: 47 | D65: SECTEUR BASSE YUTZ | E65: =VLOOKUP($C65,'RECAP SECT'!$G$6:$EV$312,3,FALSE) -> 15.0 | F65: =VLOOKUP($C65,'RECAP SECT'!$G$6:$FZ$85,158,FALSE) -> 155 | G65: =VLOOKUP($C65,'RECAP SECT'!$G$6:$FZ$85,159,FALSE) -> 126 | H65: =VLOOKUP($C65,'RECAP SECT'!$G$6:$FZ$85,160,FALSE) -> 123% | I65: =VLOOKUP($C65,'RECAP SECT'!$G$6:$FZ$85,161,FALSE) -> 133 | J65: =VLOOKUP($C65,'RECAP SECT'!$G$6:$FZ$85,162,FALSE) -> 467 | K65: =VLOOKUP($C65,'RECAP SECT'!$G$6:$FZ$85,163,FALSE) -> 28% | L65: =VLOOKUP($C65,'RECAP SECT'!$G$6:$FZ$85,164,FALSE) -> 16 | M65: =VLOOKUP($C65,'RECAP SECT'!$G$6:$FZ$85,165,FALSE) -> 59 | N65: =VLOOKUP($C65,'RECAP SECT'!$G$6:$FZ$85,166,FALSE) -> 27% | O65: =VLOOKUP($C65,'RECAP SECT'!$G$6:$FZ$85,167,FALSE) -> -2 | P65: =VLOOKUP($C65,'RECAP SECT'!$G$6:$FZ$85,168,FALSE) -> 4 | Q65: =VLOOKUP($C65,'RECAP SECT'!$G$6:$FZ$85,169,FALSE) -> -55% | R65: =VLOOKUP($C65,'RECAP SECT'!$G$6:$FZ$85,170,FALSE) -> 30 | S65: =VLOOKUP($C65,'RECAP SECT'!$G$6:$FZ$85,171,FALSE) -> 138 | T65: =VLOOKUP($C65,'RECAP SECT'!$G$6:$FZ$85,172,FALSE) -> 21%
A66: 160 | B66: MOSELLE | C66: 39 | D66: SECTEUR DIEUZE | E66: =VLOOKUP($C66,'RECAP SECT'!$G$6:$EV$312,3,FALSE) -> 14.7 | F66: =VLOOKUP($C66,'RECAP SECT'!$G$6:$FZ$85,158,FALSE) -> 143 | G66: =VLOOKUP($C66,'RECAP SECT'!$G$6:$FZ$85,159,FALSE) -> 92 | H66: =VLOOKUP($C66,'RECAP SECT'!$G$6:$FZ$85,160,FALSE) -> 157% | I66: =VLOOKUP($C66,'RECAP SECT'!$G$6:$FZ$85,161,FALSE) -> 109 | J66: =VLOOKUP($C66,'RECAP SECT'!$G$6:$FZ$85,162,FALSE) -> 467 | K66: =VLOOKUP($C66,'RECAP SECT'!$G$6:$FZ$85,163,FALSE) -> 23% | L66: =VLOOKUP($C66,'RECAP SECT'!$G$6:$FZ$85,164,FALSE) -> 20 | M66: =VLOOKUP($C66,'RECAP SECT'!$G$6:$FZ$85,165,FALSE) -> 59 | N66: =VLOOKUP($C66,'RECAP SECT'!$G$6:$FZ$85,166,FALSE) -> 34% | O66: =VLOOKUP($C66,'RECAP SECT'!$G$6:$FZ$85,167,FALSE) -> -0 | P66: =VLOOKUP($C66,'RECAP SECT'!$G$6:$FZ$85,168,FALSE) -> 4 | Q66: =VLOOKUP($C66,'RECAP SECT'!$G$6:$FZ$85,169,FALSE) -> -9% | R66: =VLOOKUP($C66,'RECAP SECT'!$G$6:$FZ$85,170,FALSE) -> 34 | S66: =VLOOKUP($C66,'RECAP SECT'!$G$6:$FZ$85,171,FALSE) -> 125 | T66: =VLOOKUP($C66,'RECAP SECT'!$G$6:$FZ$85,172,FALSE) -> 27%
A67: 160 | B67: MOSELLE | C67: 49 | D67: SECTEUR FLORANGE | E67: =VLOOKUP($C67,'RECAP SECT'!$G$6:$EV$312,3,FALSE) -> 14.0 | F67: =VLOOKUP($C67,'RECAP SECT'!$G$6:$FZ$85,158,FALSE) -> 19 | G67: =VLOOKUP($C67,'RECAP SECT'!$G$6:$FZ$85,159,FALSE) -> 111 | H67: =VLOOKUP($C67,'RECAP SECT'!$G$6:$FZ$85,160,FALSE) -> 17% | I67: =VLOOKUP($C67,'RECAP SECT'!$G$6:$FZ$85,161,FALSE) -> 135 | J67: =VLOOKUP($C67,'RECAP SECT'!$G$6:$FZ$85,162,FALSE) -> 467 | K67: =VLOOKUP($C67,'RECAP SECT'!$G$6:$FZ$85,163,FALSE) -> 29% | L67: =VLOOKUP($C67,'RECAP SECT'!$G$6:$FZ$85,164,FALSE) -> 15 | M67: =VLOOKUP($C67,'RECAP SECT'!$G$6:$FZ$85,165,FALSE) -> 59 | N67: =VLOOKUP($C67,'RECAP SECT'!$G$6:$FZ$85,166,FALSE) -> 26% | O67: =VLOOKUP($C67,'RECAP SECT'!$G$6:$FZ$85,167,FALSE) -> -2 | P67: =VLOOKUP($C67,'RECAP SECT'!$G$6:$FZ$85,168,FALSE) -> 4 | Q67: =VLOOKUP($C67,'RECAP SECT'!$G$6:$FZ$85,169,FALSE) -> -61% | R67: =VLOOKUP($C67,'RECAP SECT'!$G$6:$FZ$85,170,FALSE) -> 40 | S67: =VLOOKUP($C67,'RECAP SECT'!$G$6:$FZ$85,171,FALSE) -> 133 | T67: =VLOOKUP($C67,'RECAP SECT'!$G$6:$FZ$85,172,FALSE) -> 30%
A68: 160 | B68: MOSELLE | C68: 43 | D68: SECTEUR FORBACH CENTRALE | E68: =VLOOKUP($C68,'RECAP SECT'!$G$6:$EV$312,3,FALSE) -> 14.9 | F68: =VLOOKUP($C68,'RECAP SECT'!$G$6:$FZ$85,158,FALSE) -> 1 | G68: =VLOOKUP($C68,'RECAP SECT'!$G$6:$FZ$85,159,FALSE) -> 115 | H68: =VLOOKUP($C68,'RECAP SECT'!$G$6:$FZ$85,160,FALSE) -> 1% | I68: =VLOOKUP($C68,'RECAP SECT'!$G$6:$FZ$85,161,FALSE) -> 94 | J68: =VLOOKUP($C68,'RECAP SECT'!$G$6:$FZ$85,162,FALSE) -> 467 | K68: =VLOOKUP($C68,'RECAP SECT'!$G$6:$FZ$85,163,FALSE) -> 20% | L68: =VLOOKUP($C68,'RECAP SECT'!$G$6:$FZ$85,164,FALSE) -> 13 | M68: =VLOOKUP($C68,'RECAP SECT'!$G$6:$FZ$85,165,FALSE) -> 59 | N68: =VLOOKUP($C68,'RECAP SECT'!$G$6:$FZ$85,166,FALSE) -> 23% | O68: =VLOOKUP($C68,'RECAP SECT'!$G$6:$FZ$85,167,FALSE) -> -1 | P68: =VLOOKUP($C68,'RECAP SECT'!$G$6:$FZ$85,168,FALSE) -> 4 | Q68: =VLOOKUP($C68,'RECAP SECT'!$G$6:$FZ$85,169,FALSE) -> -21% | R68: =VLOOKUP($C68,'RECAP SECT'!$G$6:$FZ$85,170,FALSE) -> 30 | S68: =VLOOKUP($C68,'RECAP SECT'!$G$6:$FZ$85,171,FALSE) -> 129 | T68: =VLOOKUP($C68,'RECAP SECT'!$G$6:$FZ$85,172,FALSE) -> 23%
A69: 160 | B69: MOSELLE | C69: 44 | D69: SECTEUR HAGONDANGE | E69: =VLOOKUP($C69,'RECAP SECT'!$G$6:$EV$312,3,FALSE) -> 21.7 | F69: =VLOOKUP($C69,'RECAP SECT'!$G$6:$FZ$85,158,FALSE) -> 139 | G69: =VLOOKUP($C69,'RECAP SECT'!$G$6:$FZ$85,159,FALSE) -> 119 | H69: =VLOOKUP($C69,'RECAP SECT'!$G$6:$FZ$85,160,FALSE) -> 117% | I69: =VLOOKUP($C69,'RECAP SECT'!$G$6:$FZ$85,161,FALSE) -> 139 | J69: =VLOOKUP($C69,'RECAP SECT'!$G$6:$FZ$85,162,FALSE) -> 467 | K69: =VLOOKUP($C69,'RECAP SECT'!$G$6:$FZ$85,163,FALSE) -> 30% | L69: =VLOOKUP($C69,'RECAP SECT'!$G$6:$FZ$85,164,FALSE) -> 18 | M69: =VLOOKUP($C69,'RECAP SECT'!$G$6:$FZ$85,165,FALSE) -> 59 | N69: =VLOOKUP($C69,'RECAP SECT'!$G$6:$FZ$85,166,FALSE) -> 31% | O69: =VLOOKUP($C69,'RECAP SECT'!$G$6:$FZ$85,167,FALSE) -> -1 | P69: =VLOOKUP($C69,'RECAP SECT'!$G$6:$FZ$85,168,FALSE) -> 4 | Q69: =VLOOKUP($C69,'RECAP SECT'!$G$6:$FZ$85,169,FALSE) -> -17% | R69: =VLOOKUP($C69,'RECAP SECT'!$G$6:$FZ$85,170,FALSE) -> 42 | S69: =VLOOKUP($C69,'RECAP SECT'!$G$6:$FZ$85,171,FALSE) -> 134 | T69: =VLOOKUP($C69,'RECAP SECT'!$G$6:$FZ$85,172,FALSE) -> 31%
A70: 160 | B70: MOSELLE | C70: 50 | D70: SECTEUR HAYANGE | E70: =VLOOKUP($C70,'RECAP SECT'!$G$6:$EV$312,3,FALSE) -> 17.5 | F70: =VLOOKUP($C70,'RECAP SECT'!$G$6:$FZ$85,158,FALSE) -> -2 | G70: =VLOOKUP($C70,'RECAP SECT'!$G$6:$FZ$85,159,FALSE) -> 117 | H70: =VLOOKUP($C70,'RECAP SECT'!$G$6:$FZ$85,160,FALSE) -> -1% | I70: =VLOOKUP($C70,'RECAP SECT'!$G$6:$FZ$85,161,FALSE) -> 118 | J70: =VLOOKUP($C70,'RECAP SECT'!$G$6:$FZ$85,162,FALSE) -> 467 | K70: =VLOOKUP($C70,'RECAP SECT'!$G$6:$FZ$85,163,FALSE) -> 25% | L70: =VLOOKUP($C70,'RECAP SECT'!$G$6:$FZ$85,164,FALSE) -> 14 | M70: =VLOOKUP($C70,'RECAP SECT'!$G$6:$FZ$85,165,FALSE) -> 59 | N70: =VLOOKUP($C70,'RECAP SECT'!$G$6:$FZ$85,166,FALSE) -> 24% | O70: =VLOOKUP($C70,'RECAP SECT'!$G$6:$FZ$85,167,FALSE) -> -1 | P70: =VLOOKUP($C70,'RECAP SECT'!$G$6:$FZ$85,168,FALSE) -> 4 | Q70: =VLOOKUP($C70,'RECAP SECT'!$G$6:$FZ$85,169,FALSE) -> -16% | R70: =VLOOKUP($C70,'RECAP SECT'!$G$6:$FZ$85,170,FALSE) -> 25 | S70: =VLOOKUP($C70,'RECAP SECT'!$G$6:$FZ$85,171,FALSE) -> 136 | T70: =VLOOKUP($C70,'RECAP SECT'!$G$6:$FZ$85,172,FALSE) -> 18%
A71: 160 | B71: MOSELLE | C71: 37 | D71: SECTEUR MERLEBACH | E71: =VLOOKUP($C71,'RECAP SECT'!$G$6:$EV$312,3,FALSE) -> 7.1 | F71: =VLOOKUP($C71,'RECAP SECT'!$G$6:$FZ$85,158,FALSE) -> 50 | G71: =VLOOKUP($C71,'RECAP SECT'!$G$6:$FZ$85,159,FALSE) -> 143 | H71: =VLOOKUP($C71,'RECAP SECT'!$G$6:$FZ$85,160,FALSE) -> 35% | I71: =VLOOKUP($C71,'RECAP SECT'!$G$6:$FZ$85,161,FALSE) -> 99 | J71: =VLOOKUP($C71,'RECAP SECT'!$G$6:$FZ$85,162,FALSE) -> 467 | K71: =VLOOKUP($C71,'RECAP SECT'!$G$6:$FZ$85,163,FALSE) -> 21% | L71: =VLOOKUP($C71,'RECAP SECT'!$G$6:$FZ$85,164,FALSE) -> 17 | M71: =VLOOKUP($C71,'RECAP SECT'!$G$6:$FZ$85,165,FALSE) -> 59 | N71: =VLOOKUP($C71,'RECAP SECT'!$G$6:$FZ$85,166,FALSE) -> 28% | O71: =VLOOKUP($C71,'RECAP SECT'!$G$6:$FZ$85,167,FALSE) -> -5 | P71: =VLOOKUP($C71,'RECAP SECT'!$G$6:$FZ$85,168,FALSE) -> 4 | Q71: =VLOOKUP($C71,'RECAP SECT'!$G$6:$FZ$85,169,FALSE) -> -116% | R71: =VLOOKUP($C71,'RECAP SECT'!$G$6:$FZ$85,170,FALSE) -> 23 | S71: =VLOOKUP($C71,'RECAP SECT'!$G$6:$FZ$85,171,FALSE) -> 141 | T71: =VLOOKUP($C71,'RECAP SECT'!$G$6:$FZ$85,172,FALSE) -> 16%
A72: 160 | B72: MOSELLE | C72: 45 | D72: SECTEUR METZ REPUBLIQUE | E72: =VLOOKUP($C72,'RECAP SECT'!$G$6:$EV$312,3,FALSE) -> 34.9 | F72: =VLOOKUP($C72,'RECAP SECT'!$G$6:$FZ$85,158,FALSE) -> 142 | G72: =VLOOKUP($C72,'RECAP SECT'!$G$6:$FZ$85,159,FALSE) -> 125 | H72: =VLOOKUP($C72,'RECAP SECT'!$G$6:$FZ$85,160,FALSE) -> 113% | I72: =VLOOKUP($C72,'RECAP SECT'!$G$6:$FZ$85,161,FALSE) -> 102 | J72: =VLOOKUP($C72,'RECAP SECT'!$G$6:$FZ$85,162,FALSE) -> 467 | K72: =VLOOKUP($C72,'RECAP SECT'!$G$6:$FZ$85,163,FALSE) -> 22% | L72: =VLOOKUP($C72,'RECAP SECT'!$G$6:$FZ$85,164,FALSE) -> 12 | M72: =VLOOKUP($C72,'RECAP SECT'!$G$6:$FZ$85,165,FALSE) -> 59 | N72: =VLOOKUP($C72,'RECAP SECT'!$G$6:$FZ$85,166,FALSE) -> 21% | O72: =VLOOKUP($C72,'RECAP SECT'!$G$6:$FZ$85,167,FALSE) -> 1 | P72: =VLOOKUP($C72,'RECAP SECT'!$G$6:$FZ$85,168,FALSE) -> 4 | Q72: =VLOOKUP($C72,'RECAP SECT'!$G$6:$FZ$85,169,FALSE) -> 22% | R72: =VLOOKUP($C72,'RECAP SECT'!$G$6:$FZ$85,170,FALSE) -> 33 | S72: =VLOOKUP($C72,'RECAP SECT'!$G$6:$FZ$85,171,FALSE) -> 136 | T72: =VLOOKUP($C72,'RECAP SECT'!$G$6:$FZ$85,172,FALSE) -> 24%
A73: 160 | B73: MOSELLE | C73: 46 | D73: SECTEUR METZ SAINT LOUIS | E73: =VLOOKUP($C73,'RECAP SECT'!$G$6:$EV$312,3,FALSE) -> 31.0 | F73: =VLOOKUP($C73,'RECAP SECT'!$G$6:$FZ$85,158,FALSE) -> 260 | G73: =VLOOKUP($C73,'RECAP SECT'!$G$6:$FZ$85,159,FALSE) -> 116 | H73: =VLOOKUP($C73,'RECAP SECT'!$G$6:$FZ$85,160,FALSE) -> 224% | I73: =VLOOKUP($C73,'RECAP SECT'!$G$6:$FZ$85,161,FALSE) -> 133 | J73: =VLOOKUP($C73,'RECAP SECT'!$G$6:$FZ$85,162,FALSE) -> 467 | K73: =VLOOKUP($C73,'RECAP SECT'!$G$6:$FZ$85,163,FALSE) -> 29% | L73: =VLOOKUP($C73,'RECAP SECT'!$G$6:$FZ$85,164,FALSE) -> 16 | M73: =VLOOKUP($C73,'RECAP SECT'!$G$6:$FZ$85,165,FALSE) -> 58 | N73: =VLOOKUP($C73,'RECAP SECT'!$G$6:$FZ$85,166,FALSE) -> 27% | O73: =VLOOKUP($C73,'RECAP SECT'!$G$6:$FZ$85,167,FALSE) -> 0 | P73: =VLOOKUP($C73,'RECAP SECT'!$G$6:$FZ$85,168,FALSE) -> 4 | Q73: =VLOOKUP($C73,'RECAP SECT'!$G$6:$FZ$85,169,FALSE) -> 8% | R73: =VLOOKUP($C73,'RECAP SECT'!$G$6:$FZ$85,170,FALSE) -> 36 | S73: =VLOOKUP($C73,'RECAP SECT'!$G$6:$FZ$85,171,FALSE) -> 136 | T73: =VLOOKUP($C73,'RECAP SECT'!$G$6:$FZ$85,172,FALSE) -> 26%
A74: 160 | B74: MOSELLE | C74: 41 | D74: SECTEUR MONTIGNY LES METZ | E74: =VLOOKUP($C74,'RECAP SECT'!$G$6:$EV$312,3,FALSE) -> 19.5 | F74: =VLOOKUP($C74,'RECAP SECT'!$G$6:$FZ$85,158,FALSE) -> 143 | G74: =VLOOKUP($C74,'RECAP SECT'!$G$6:$FZ$85,159,FALSE) -> 139 | H74: =VLOOKUP($C74,'RECAP SECT'!$G$6:$FZ$85,160,FALSE) -> 103% | I74: =VLOOKUP($C74,'RECAP SECT'!$G$6:$FZ$85,161,FALSE) -> 174 | J74: =VLOOKUP($C74,'RECAP SECT'!$G$6:$FZ$85,162,FALSE) -> 467 | K74: =VLOOKUP($C74,'RECAP SECT'!$G$6:$FZ$85,163,FALSE) -> 37% | L74: =VLOOKUP($C74,'RECAP SECT'!$G$6:$FZ$85,164,FALSE) -> 17 | M74: =VLOOKUP($C74,'RECAP SECT'!$G$6:$FZ$85,165,FALSE) -> 58 | N74: =VLOOKUP($C74,'RECAP SECT'!$G$6:$FZ$85,166,FALSE) -> 29% | O74: =VLOOKUP($C74,'RECAP SECT'!$G$6:$FZ$85,167,FALSE) -> -0 | P74: =VLOOKUP($C74,'RECAP SECT'!$G$6:$FZ$85,168,FALSE) -> 4 | Q74: =VLOOKUP($C74,'RECAP SECT'!$G$6:$FZ$85,169,FALSE) -> -4% | R74: =VLOOKUP($C74,'RECAP SECT'!$G$6:$FZ$85,170,FALSE) -> 37 | S74: =VLOOKUP($C74,'RECAP SECT'!$G$6:$FZ$85,171,FALSE) -> 140 | T74: =VLOOKUP($C74,'RECAP SECT'!$G$6:$FZ$85,172,FALSE) -> 27%
A75: 160 | B75: MOSELLE | C75: 51 | D75: SECTEUR ROMBAS | E75: =VLOOKUP($C75,'RECAP SECT'!$G$6:$EV$312,3,FALSE) -> 21.1 | F75: =VLOOKUP($C75,'RECAP SECT'!$G$6:$FZ$85,158,FALSE) -> 63 | G75: =VLOOKUP($C75,'RECAP SECT'!$G$6:$FZ$85,159,FALSE) -> 123 | H75: =VLOOKUP($C75,'RECAP SECT'!$G$6:$FZ$85,160,FALSE) -> 51% | I75: =VLOOKUP($C75,'RECAP SECT'!$G$6:$FZ$85,161,FALSE) -> 113 | J75: =VLOOKUP($C75,'RECAP SECT'!$G$6:$FZ$85,162,FALSE) -> 467 | K75: =VLOOKUP($C75,'RECAP SECT'!$G$6:$FZ$85,163,FALSE) -> 24% | L75: =VLOOKUP($C75,'RECAP SECT'!$G$6:$FZ$85,164,FALSE) -> 14 | M75: =VLOOKUP($C75,'RECAP SECT'!$G$6:$FZ$85,165,FALSE) -> 59 | N75: =VLOOKUP($C75,'RECAP SECT'!$G$6:$FZ$85,166,FALSE) -> 24% | O75: =VLOOKUP($C75,'RECAP SECT'!$G$6:$FZ$85,167,FALSE) -> -2 | P75: =VLOOKUP($C75,'RECAP SECT'!$G$6:$FZ$85,168,FALSE) -> 4 | Q75: =VLOOKUP($C75,'RECAP SECT'!$G$6:$FZ$85,169,FALSE) -> -59% | R75: =VLOOKUP($C75,'RECAP SECT'!$G$6:$FZ$85,170,FALSE) -> 33 | S75: =VLOOKUP($C75,'RECAP SECT'!$G$6:$FZ$85,171,FALSE) -> 134 | T75: =VLOOKUP($C75,'RECAP SECT'!$G$6:$FZ$85,172,FALSE) -> 24%
A76: 160 | B76: MOSELLE | C76: 40 | D76: SECTEUR SAINT AVOLD | E76: =VLOOKUP($C76,'RECAP SECT'!$G$6:$EV$312,3,FALSE) -> 18.8 | F76: =VLOOKUP($C76,'RECAP SECT'!$G$6:$FZ$85,158,FALSE) -> 124 | G76: =VLOOKUP($C76,'RECAP SECT'!$G$6:$FZ$85,159,FALSE) -> 105 | H76: =VLOOKUP($C76,'RECAP SECT'!$G$6:$FZ$85,160,FALSE) -> 118% | I76: =VLOOKUP($C76,'RECAP SECT'!$G$6:$FZ$85,161,FALSE) -> 113 | J76: =VLOOKUP($C76,'RECAP SECT'!$G$6:$FZ$85,162,FALSE) -> 467 | K76: =VLOOKUP($C76,'RECAP SECT'!$G$6:$FZ$85,163,FALSE) -> 24% | L76: =VLOOKUP($C76,'RECAP SECT'!$G$6:$FZ$85,164,FALSE) -> 15 | M76: =VLOOKUP($C76,'RECAP SECT'!$G$6:$FZ$85,165,FALSE) -> 58 | N76: =VLOOKUP($C76,'RECAP SECT'!$G$6:$FZ$85,166,FALSE) -> 27% | O76: =VLOOKUP($C76,'RECAP SECT'!$G$6:$FZ$85,167,FALSE) -> -2 | P76: =VLOOKUP($C76,'RECAP SECT'!$G$6:$FZ$85,168,FALSE) -> 4 | Q76: =VLOOKUP($C76,'RECAP SECT'!$G$6:$FZ$85,169,FALSE) -> -48% | R76: =VLOOKUP($C76,'RECAP SECT'!$G$6:$FZ$85,170,FALSE) -> 42 | S76: =VLOOKUP($C76,'RECAP SECT'!$G$6:$FZ$85,171,FALSE) -> 127 | T76: =VLOOKUP($C76,'RECAP SECT'!$G$6:$FZ$85,172,FALSE) -> 33%
A77: 160 | B77: MOSELLE | C77: 38 | D77: SECTEUR SARREBOURG | E77: =VLOOKUP($C77,'RECAP SECT'!$G$6:$EV$312,3,FALSE) -> 13.6 | F77: =VLOOKUP($C77,'RECAP SECT'!$G$6:$FZ$85,158,FALSE) -> 10 | G77: =VLOOKUP($C77,'RECAP SECT'!$G$6:$FZ$85,159,FALSE) -> 107 | H77: =VLOOKUP($C77,'RECAP SECT'!$G$6:$FZ$85,160,FALSE) -> 10% | I77: =VLOOKUP($C77,'RECAP SECT'!$G$6:$FZ$85,161,FALSE) -> 144 | J77: =VLOOKUP($C77,'RECAP SECT'!$G$6:$FZ$85,162,FALSE) -> 467 | K77: =VLOOKUP($C77,'RECAP SECT'!$G$6:$FZ$85,163,FALSE) -> 31% | L77: =VLOOKUP($C77,'RECAP SECT'!$G$6:$FZ$85,164,FALSE) -> 15 | M77: =VLOOKUP($C77,'RECAP SECT'!$G$6:$FZ$85,165,FALSE) -> 58 | N77: =VLOOKUP($C77,'RECAP SECT'!$G$6:$FZ$85,166,FALSE) -> 26% | O77: =VLOOKUP($C77,'RECAP SECT'!$G$6:$FZ$85,167,FALSE) -> -2 | P77: =VLOOKUP($C77,'RECAP SECT'!$G$6:$FZ$85,168,FALSE) -> 4 | Q77: =VLOOKUP($C77,'RECAP SECT'!$G$6:$FZ$85,169,FALSE) -> -48% | R77: =VLOOKUP($C77,'RECAP SECT'!$G$6:$FZ$85,170,FALSE) -> 41 | S77: =VLOOKUP($C77,'RECAP SECT'!$G$6:$FZ$85,171,FALSE) -> 139 | T77: =VLOOKUP($C77,'RECAP SECT'!$G$6:$FZ$85,172,FALSE) -> 30%
A78: 160 | B78: MOSELLE | C78: 42 | D78: SECTEUR SARREGUEMINES | E78: =VLOOKUP($C78,'RECAP SECT'!$G$6:$EV$312,3,FALSE) -> 20.1 | F78: =VLOOKUP($C78,'RECAP SECT'!$G$6:$FZ$85,158,FALSE) -> 94 | G78: =VLOOKUP($C78,'RECAP SECT'!$G$6:$FZ$85,159,FALSE) -> 102 | H78: =VLOOKUP($C78,'RECAP SECT'!$G$6:$FZ$85,160,FALSE) -> 93% | I78: =VLOOKUP($C78,'RECAP SECT'!$G$6:$FZ$85,161,FALSE) -> 108 | J78: =VLOOKUP($C78,'RECAP SECT'!$G$6:$FZ$85,162,FALSE) -> 467 | K78: =VLOOKUP($C78,'RECAP SECT'!$G$6:$FZ$85,163,FALSE) -> 23% | L78: =VLOOKUP($C78,'RECAP SECT'!$G$6:$FZ$85,164,FALSE) -> 11 | M78: =VLOOKUP($C78,'RECAP SECT'!$G$6:$FZ$85,165,FALSE) -> 59 | N78: =VLOOKUP($C78,'RECAP SECT'!$G$6:$FZ$85,166,FALSE) -> 18% | O78: =VLOOKUP($C78,'RECAP SECT'!$G$6:$FZ$85,167,FALSE) -> -1 | P78: =VLOOKUP($C78,'RECAP SECT'!$G$6:$FZ$85,168,FALSE) -> 4 | Q78: =VLOOKUP($C78,'RECAP SECT'!$G$6:$FZ$85,169,FALSE) -> -27% | R78: =VLOOKUP($C78,'RECAP SECT'!$G$6:$FZ$85,170,FALSE) -> 30 | S78: =VLOOKUP($C78,'RECAP SECT'!$G$6:$FZ$85,171,FALSE) -> 131 | T78: =VLOOKUP($C78,'RECAP SECT'!$G$6:$FZ$85,172,FALSE) -> 23%
A79: 160 | B79: MOSELLE | C79: 48 | D79: SECTEUR THIONVILLE CENTRALE | E79: =VLOOKUP($C79,'RECAP SECT'!$G$6:$EV$312,3,FALSE) -> 14.4 | F79: =VLOOKUP($C79,'RECAP SECT'!$G$6:$FZ$85,158,FALSE) -> 51 | G79: =VLOOKUP($C79,'RECAP SECT'!$G$6:$FZ$85,159,FALSE) -> 120 | H79: =VLOOKUP($C79,'RECAP SECT'!$G$6:$FZ$85,160,FALSE) -> 42% | I79: =VLOOKUP($C79,'RECAP SECT'!$G$6:$FZ$85,161,FALSE) -> 128 | J79: =VLOOKUP($C79,'RECAP SECT'!$G$6:$FZ$85,162,FALSE) -> 467 | K79: =VLOOKUP($C79,'RECAP SECT'!$G$6:$FZ$85,163,FALSE) -> 27% | L79: =VLOOKUP($C79,'RECAP SECT'!$G$6:$FZ$85,164,FALSE) -> 14 | M79: =VLOOKUP($C79,'RECAP SECT'!$G$6:$FZ$85,165,FALSE) -> 59 | N79: =VLOOKUP($C79,'RECAP SECT'!$G$6:$FZ$85,166,FALSE) -> 25% | O79: =VLOOKUP($C79,'RECAP SECT'!$G$6:$FZ$85,167,FALSE) -> -2 | P79: =VLOOKUP($C79,'RECAP SECT'!$G$6:$FZ$85,168,FALSE) -> 4 | Q79: =VLOOKUP($C79,'RECAP SECT'!$G$6:$FZ$85,169,FALSE) -> -44% | R79: =VLOOKUP($C79,'RECAP SECT'!$G$6:$FZ$85,170,FALSE) -> 31 | S79: =VLOOKUP($C79,'RECAP SECT'!$G$6:$FZ$85,171,FALSE) -> 127 | T79: =VLOOKUP($C79,'RECAP SECT'!$G$6:$FZ$85,172,FALSE) -> 25%
A80: 80 | B80: VOSGES | C80: 57 | D80: SECTEUR EPINAL ARISTIDE BRIAND | E80: =VLOOKUP($C80,'RECAP SECT'!$G$6:$EV$312,3,FALSE) -> 21.6 | F80: =VLOOKUP($C80,'RECAP SECT'!$G$6:$FZ$85,158,FALSE) -> 160 | G80: =VLOOKUP($C80,'RECAP SECT'!$G$6:$FZ$85,159,FALSE) -> 118 | H80: =VLOOKUP($C80,'RECAP SECT'!$G$6:$FZ$85,160,FALSE) -> 136% | I80: =VLOOKUP($C80,'RECAP SECT'!$G$6:$FZ$85,161,FALSE) -> 123 | J80: =VLOOKUP($C80,'RECAP SECT'!$G$6:$FZ$85,162,FALSE) -> 467 | K80: =VLOOKUP($C80,'RECAP SECT'!$G$6:$FZ$85,163,FALSE) -> 26% | L80: =VLOOKUP($C80,'RECAP SECT'!$G$6:$FZ$85,164,FALSE) -> 12 | M80: =VLOOKUP($C80,'RECAP SECT'!$G$6:$FZ$85,165,FALSE) -> 59 | N80: =VLOOKUP($C80,'RECAP SECT'!$G$6:$FZ$85,166,FALSE) -> 21% | O80: =VLOOKUP($C80,'RECAP SECT'!$G$6:$FZ$85,167,FALSE) -> -0 | P80: =VLOOKUP($C80,'RECAP SECT'!$G$6:$FZ$85,168,FALSE) -> 4 | Q80: =VLOOKUP($C80,'RECAP SECT'!$G$6:$FZ$85,169,FALSE) -> -1% | R80: =VLOOKUP($C80,'RECAP SECT'!$G$6:$FZ$85,170,FALSE) -> 31 | S80: =VLOOKUP($C80,'RECAP SECT'!$G$6:$FZ$85,171,FALSE) -> 135 | T80: =VLOOKUP($C80,'RECAP SECT'!$G$6:$FZ$85,172,FALSE) -> 23%
A81: 80 | B81: VOSGES | C81: 52 | D81: SECTEUR GERARDMER | E81: =VLOOKUP($C81,'RECAP SECT'!$G$6:$EV$312,3,FALSE) -> 23.1 | F81: =VLOOKUP($C81,'RECAP SECT'!$G$6:$FZ$85,158,FALSE) -> 181 | G81: =VLOOKUP($C81,'RECAP SECT'!$G$6:$FZ$85,159,FALSE) -> 115 | H81: =VLOOKUP($C81,'RECAP SECT'!$G$6:$FZ$85,160,FALSE) -> 157% | I81: =VLOOKUP($C81,'RECAP SECT'!$G$6:$FZ$85,161,FALSE) -> 154 | J81: =VLOOKUP($C81,'RECAP SECT'!$G$6:$FZ$85,162,FALSE) -> 467 | K81: =VLOOKUP($C81,'RECAP SECT'!$G$6:$FZ$85,163,FALSE) -> 33% | L81: =VLOOKUP($C81,'RECAP SECT'!$G$6:$FZ$85,164,FALSE) -> 15 | M81: =VLOOKUP($C81,'RECAP SECT'!$G$6:$FZ$85,165,FALSE) -> 59 | N81: =VLOOKUP($C81,'RECAP SECT'!$G$6:$FZ$85,166,FALSE) -> 26% | O81: =VLOOKUP($C81,'RECAP SECT'!$G$6:$FZ$85,167,FALSE) -> -2 | P81: =VLOOKUP($C81,'RECAP SECT'!$G$6:$FZ$85,168,FALSE) -> 4 | Q81: =VLOOKUP($C81,'RECAP SECT'!$G$6:$FZ$85,169,FALSE) -> -62% | R81: =VLOOKUP($C81,'RECAP SECT'!$G$6:$FZ$85,170,FALSE) -> 38 | S81: =VLOOKUP($C81,'RECAP SECT'!$G$6:$FZ$85,171,FALSE) -> 129 | T81: =VLOOKUP($C81,'RECAP SECT'!$G$6:$FZ$85,172,FALSE) -> 29%
A82: 80 | B82: VOSGES | C82: 58 | D82: SECTEUR MIRECOURT | E82: =VLOOKUP($C82,'RECAP SECT'!$G$6:$EV$312,3,FALSE) -> 14.8 | F82: =VLOOKUP($C82,'RECAP SECT'!$G$6:$FZ$85,158,FALSE) -> 30 | G82: =VLOOKUP($C82,'RECAP SECT'!$G$6:$FZ$85,159,FALSE) -> 105 | H82: =VLOOKUP($C82,'RECAP SECT'!$G$6:$FZ$85,160,FALSE) -> 28% | I82: =VLOOKUP($C82,'RECAP SECT'!$G$6:$FZ$85,161,FALSE) -> 135 | J82: =VLOOKUP($C82,'RECAP SECT'!$G$6:$FZ$85,162,FALSE) -> 467 | K82: =VLOOKUP($C82,'RECAP SECT'!$G$6:$FZ$85,163,FALSE) -> 29% | L82: =VLOOKUP($C82,'RECAP SECT'!$G$6:$FZ$85,164,FALSE) -> 16 | M82: =VLOOKUP($C82,'RECAP SECT'!$G$6:$FZ$85,165,FALSE) -> 59 | N82: =VLOOKUP($C82,'RECAP SECT'!$G$6:$FZ$85,166,FALSE) -> 28% | O82: =VLOOKUP($C82,'RECAP SECT'!$G$6:$FZ$85,167,FALSE) -> 1 | P82: =VLOOKUP($C82,'RECAP SECT'!$G$6:$FZ$85,168,FALSE) -> 4 | Q82: =VLOOKUP($C82,'RECAP SECT'!$G$6:$FZ$85,169,FALSE) -> 22% | R82: =VLOOKUP($C82,'RECAP SECT'!$G$6:$FZ$85,170,FALSE) -> 34 | S82: =VLOOKUP($C82,'RECAP SECT'!$G$6:$FZ$85,171,FALSE) -> 124 | T82: =VLOOKUP($C82,'RECAP SECT'!$G$6:$FZ$85,172,FALSE) -> 27%
A83: 80 | B83: VOSGES | C83: 54 | D83: SECTEUR RAON L ETAPE | E83: =VLOOKUP($C83,'RECAP SECT'!$G$6:$EV$312,3,FALSE) -> 15.2 | F83: =VLOOKUP($C83,'RECAP SECT'!$G$6:$FZ$85,158,FALSE) -> 82 | G83: =VLOOKUP($C83,'RECAP SECT'!$G$6:$FZ$85,159,FALSE) -> 95 | H83: =VLOOKUP($C83,'RECAP SECT'!$G$6:$FZ$85,160,FALSE) -> 86% | I83: =VLOOKUP($C83,'RECAP SECT'!$G$6:$FZ$85,161,FALSE) -> 131 | J83: =VLOOKUP($C83,'RECAP SECT'!$G$6:$FZ$85,162,FALSE) -> 467 | K83: =VLOOKUP($C83,'RECAP SECT'!$G$6:$FZ$85,163,FALSE) -> 28% | L83: =VLOOKUP($C83,'RECAP SECT'!$G$6:$FZ$85,164,FALSE) -> 13 | M83: =VLOOKUP($C83,'RECAP SECT'!$G$6:$FZ$85,165,FALSE) -> 58 | N83: =VLOOKUP($C83,'RECAP SECT'!$G$6:$FZ$85,166,FALSE) -> 22% | O83: =VLOOKUP($C83,'RECAP SECT'!$G$6:$FZ$85,167,FALSE) -> -1 | P83: =VLOOKUP($C83,'RECAP SECT'!$G$6:$FZ$85,168,FALSE) -> 4 | Q83: =VLOOKUP($C83,'RECAP SECT'!$G$6:$FZ$85,169,FALSE) -> -20% | R83: =VLOOKUP($C83,'RECAP SECT'!$G$6:$FZ$85,170,FALSE) -> 29 | S83: =VLOOKUP($C83,'RECAP SECT'!$G$6:$FZ$85,171,FALSE) -> 120 | T83: =VLOOKUP($C83,'RECAP SECT'!$G$6:$FZ$85,172,FALSE) -> 24%
A84: 80 | B84: VOSGES | C84: 56 | D84: SECTEUR REMIREMONT | E84: =VLOOKUP($C84,'RECAP SECT'!$G$6:$EV$312,3,FALSE) -> 19.8 | F84: =VLOOKUP($C84,'RECAP SECT'!$G$6:$FZ$85,158,FALSE) -> 45 | G84: =VLOOKUP($C84,'RECAP SECT'!$G$6:$FZ$85,159,FALSE) -> 107 | H84: =VLOOKUP($C84,'RECAP SECT'!$G$6:$FZ$85,160,FALSE) -> 42% | I84: =VLOOKUP($C84,'RECAP SECT'!$G$6:$FZ$85,161,FALSE) -> 98 | J84: =VLOOKUP($C84,'RECAP SECT'!$G$6:$FZ$85,162,FALSE) -> 467 | K84: =VLOOKUP($C84,'RECAP SECT'!$G$6:$FZ$85,163,FALSE) -> 21% | L84: =VLOOKUP($C84,'RECAP SECT'!$G$6:$FZ$85,164,FALSE) -> 12 | M84: =VLOOKUP($C84,'RECAP SECT'!$G$6:$FZ$85,165,FALSE) -> 59 | N84: =VLOOKUP($C84,'RECAP SECT'!$G$6:$FZ$85,166,FALSE) -> 20% | O84: =VLOOKUP($C84,'RECAP SECT'!$G$6:$FZ$85,167,FALSE) -> -1 | P84: =VLOOKUP($C84,'RECAP SECT'!$G$6:$FZ$85,168,FALSE) -> 4 | Q84: =VLOOKUP($C84,'RECAP SECT'!$G$6:$FZ$85,169,FALSE) -> -15% | R84: =VLOOKUP($C84,'RECAP SECT'!$G$6:$FZ$85,170,FALSE) -> 23 | S84: =VLOOKUP($C84,'RECAP SECT'!$G$6:$FZ$85,171,FALSE) -> 124 | T84: =VLOOKUP($C84,'RECAP SECT'!$G$6:$FZ$85,172,FALSE) -> 19%
A85: 80 | B85: VOSGES | C85: 55 | D85: SECTEUR SAINT DIE | E85: =VLOOKUP($C85,'RECAP SECT'!$G$6:$EV$312,3,FALSE) -> 22.0 | F85: =VLOOKUP($C85,'RECAP SECT'!$G$6:$FZ$85,158,FALSE) -> 176 | G85: =VLOOKUP($C85,'RECAP SECT'!$G$6:$FZ$85,159,FALSE) -> 122 | H85: =VLOOKUP($C85,'RECAP SECT'!$G$6:$FZ$85,160,FALSE) -> 144% | I85: =VLOOKUP($C85,'RECAP SECT'!$G$6:$FZ$85,161,FALSE) -> 122 | J85: =VLOOKUP($C85,'RECAP SECT'!$G$6:$FZ$85,162,FALSE) -> 467 | K85: =VLOOKUP($C85,'RECAP SECT'!$G$6:$FZ$85,163,FALSE) -> 26% | L85: =VLOOKUP($C85,'RECAP SECT'!$G$6:$FZ$85,164,FALSE) -> 14 | M85: =VLOOKUP($C85,'RECAP SECT'!$G$6:$FZ$85,165,FALSE) -> 59 | N85: =VLOOKUP($C85,'RECAP SECT'!$G$6:$FZ$85,166,FALSE) -> 24% | O85: =VLOOKUP($C85,'RECAP SECT'!$G$6:$FZ$85,167,FALSE) -> -2 | P85: =VLOOKUP($C85,'RECAP SECT'!$G$6:$FZ$85,168,FALSE) -> 4 | Q85: =VLOOKUP($C85,'RECAP SECT'!$G$6:$FZ$85,169,FALSE) -> -44% | R85: =VLOOKUP($C85,'RECAP SECT'!$G$6:$FZ$85,170,FALSE) -> 31 | S85: =VLOOKUP($C85,'RECAP SECT'!$G$6:$FZ$85,171,FALSE) -> 130 | T85: =VLOOKUP($C85,'RECAP SECT'!$G$6:$FZ$85,172,FALSE) -> 24%
A86: 80 | B86: VOSGES | C86: 53 | D86: SECTEUR VITTEL | E86: =VLOOKUP($C86,'RECAP SECT'!$G$6:$EV$312,3,FALSE) -> 13.7 | F86: =VLOOKUP($C86,'RECAP SECT'!$G$6:$FZ$85,158,FALSE) -> -23 | G86: =VLOOKUP($C86,'RECAP SECT'!$G$6:$FZ$85,159,FALSE) -> 98 | H86: =VLOOKUP($C86,'RECAP SECT'!$G$6:$FZ$85,160,FALSE) -> -23% | I86: =VLOOKUP($C86,'RECAP SECT'!$G$6:$FZ$85,161,FALSE) -> 106 | J86: =VLOOKUP($C86,'RECAP SECT'!$G$6:$FZ$85,162,FALSE) -> 467 | K86: =VLOOKUP($C86,'RECAP SECT'!$G$6:$FZ$85,163,FALSE) -> 23% | L86: =VLOOKUP($C86,'RECAP SECT'!$G$6:$FZ$85,164,FALSE) -> 13 | M86: =VLOOKUP($C86,'RECAP SECT'!$G$6:$FZ$85,165,FALSE) -> 59 | N86: =VLOOKUP($C86,'RECAP SECT'!$G$6:$FZ$85,166,FALSE) -> 21% | O86: =VLOOKUP($C86,'RECAP SECT'!$G$6:$FZ$85,167,FALSE) -> -3 | P86: =VLOOKUP($C86,'RECAP SECT'!$G$6:$FZ$85,168,FALSE) -> 4 | Q86: =VLOOKUP($C86,'RECAP SECT'!$G$6:$FZ$85,169,FALSE) -> -81% | R86: =VLOOKUP($C86,'RECAP SECT'!$G$6:$FZ$85,170,FALSE) -> 19 | S86: =VLOOKUP($C86,'RECAP SECT'!$G$6:$FZ$85,171,FALSE) -> 119 | T86: =VLOOKUP($C86,'RECAP SECT'!$G$6:$FZ$85,172,FALSE) -> 16%
A87: Total CEGEE Directions Commerciales | E87: =SUM(E10:E86) -> 1407

Sheet SE_TOTAL
A1: Accueil | F1: BAROMETRE BDD - DIRECTIONS COMMERCIALES
F2: TOTAL GENERAL
F3: =ACCUEIL!H7 -> 2019-03-31
F7: TOTAL GENERAL | I7: Total Conquête | L7: Total Equipement Bancarisation | O7: Total Epargne | R7: Total Crédits | U7: Total IARD Prévoyance | X7: Total Risques | AA7: Total Satisfaction Clients
G8: coef | H8: 100% | J8: coef | K8: ='RECAP DIRCOM'!$Y$4 -> 15% | M8: coef | N8: ='RECAP DIRCOM'!$AW$4 -> 15% | P8: coef | Q8: ='RECAP DIRCOM'!$BU$4 -> 15% | S8: coef | T8: ='RECAP DIRCOM'!$CV$4 -> 15% | V8: coef | W8: ='RECAP DIRCOM'!$DN$4 -> 20% | Y8: coef | Z8: ='RECAP DIRCOM'!$EF$4 -> 10% | AB8: coef | AC8: ='RECAP DIRCOM'!$EU$4 -> 10%
A9: eds | B9: Direction | C9: eds | D9: Secteur | E9: ETP perf | F9: Moyenne ecart au 1er | G9: % Ecart au 1er | H9: Rang CEGEE | I9: Moyenne ecart au 1er | J9: % Ecart au 1er | K9: Rang CEGEE | L9: Moyenne ecart au 1er | M9: % Ecart au 1er | N9: Rang CEGEE | O9: Moyenne ecart au 1er | P9: % Ecart au 1er | Q9: Rang CEGEE | R9: Moyenne ecart au 1er | S9: % Ecart au 1er | T9: Rang CEGEE | U9: Moyenne ecart au 1er | V9: % Ecart au 1er | W9: Rang CEGEE | X9: Moyenne ecart au 1er | Y9: % Ecart au 1er | Z9: Rang CEGEE | AA9: Moyenne ecart au 1er | AB9: % Ecart au 1er | AC9: Rang CEGEE
A10: 30 | B10: MARNE-ARDENNES | C10: 2 | D10: SECTEUR CHARLEVILLE MEZIERES | E10: 11.1 | F10: 16% | G10: 0% | H10: 1 | I10: 23% | J10: 0% | K10: 1 | L10: 40% | M10: 5% | N10: 3 | O10: 86% | P10: 62% | Q10: 69 | R10: 13% | S10: 0% | T10: 1 | U10: 38% | V10: 23% | W10: 7 | X10: 3% | Y10: 2% | Z10: 10 | AA10: 18% | AB10: 13% | AC10: 8
A11: 30 | B11: MARNE-ARDENNES | C11: 12 | D11: SECTEUR TINQUEUX | E11: 12.1 | F11: 21% | G11: 5% | H11: 2 | I11: 31% | J11: 8% | K11: 2 | L11: 69% | M11: 35% | N11: 32 | O11: 48% | P11: 24% | Q11: 10 | R11: 36% | S11: 23% | T11: 36 | U11: 48% | V11: 34% | W11: 23 | X11: 5% | Y11: 4% | Z11: 44 | AA11: 9% | AB11: 4% | AC11: 3
A12: 30 | B12: MARNE-ARDENNES | C12: 13 | D12: SECTEUR EPERNAY | E12: 25.1 | F12: 21% | G12: 5% | H12: 3 | I12: 58% | J12: 35% | K12: 23 | L12: 57% | M12: 23% | N12: 13 | O12: 35% | P12: 12% | Q12: 4 | R12: 24% | S12: 11% | T12: 3 | U12: 56% | V12: 41% | W12: 40 | X12: 5% | Y12: 4% | Z12: 43 | AA12: 10% | AB12: 5% | AC12: 4
A13: 160 | B13: MOSELLE | C13: 44 | D13: SECTEUR HAGONDANGE | E13: 21.7 | F13: 22% | G13: 6% | H13: 4 | I13: 45% | J13: 21% | K13: 5 | L13: 48% | M13: 13% | N13: 6 | O13: 65% | P13: 41% | Q13: 29 | R13: 38% | S13: 25% | T13: 42 | U13: 32% | V13: 17% | W13: 4 | X13: 1% | Y13: 0% | Z13: 2 | AA13: 41% | AB13: 36% | AC13: 36
A14: 160 | B14: MOSELLE | C14: 39 | D14: SECTEUR DIEUZE | E14: 14.7 | F14: 22% | G14: 6% | H14: 5 | I14: 63% | J14: 40% | K14: 32 | L14: 36% | M14: 1% | N14: 2 | O14: 59% | P14: 35% | Q14: 17 | R14: 42% | S14: 29% | T14: 59 | U14: 30% | V14: 16% | W14: 3 | X14: 4% | Y14: 3% | Z14: 24 | AA14: 36% | AB14: 31% | AC14: 23
A15: 30 | B15: MARNE-ARDENNES | C15: 9 | D15: SECTEUR REIMS HOTEL DE VILLE | E15: 22.4 | F15: 23% | G15: 7% | H15: 6 | I15: 55% | J15: 32% | K15: 19 | L15: 60% | M15: 25% | N15: 16 | O15: 35% | P15: 11% | Q15: 3 | R15: 29% | S15: 16% | T15: 11 | U15: 55% | V15: 41% | W15: 38 | X15: 9% | Y15: 7% | Z15: 60 | AA15: 18% | AB15: 13% | AC15: 6
A16: 160 | B16: MOSELLE | C16: 46 | D16: SECTEUR METZ SAINT LOUIS | E16: 31.0 | F16: 23% | G16: 7% | H16: 7 | I16: 52% | J16: 28% | K16: 14 | L16: 64% | M16: 29% | N16: 20 | O16: 24% | P16: 0% | Q16: 1 | R16: 40% | S16: 27% | T16: 46 | U16: 46% | V16: 32% | W16: 19 | X16: 10% | Y16: 9% | Z16: 64 | AA16: 35% | AB16: 30% | AC16: 22
A17: 80 | B17: VOSGES | C17: 52 | D17: SECTEUR GERARDMER | E17: 23.1 | F17: 23% | G17: 7% | H17: 8 | I17: 70% | J17: 47% | K17: 51 | L17: 57% | M17: 23% | N17: 12 | O17: 56% | P17: 32% | Q17: 13 | R17: 25% | S17: 11% | T17: 5 | U17: 40% | V17: 25% | W17: 11 | X17: 2% | Y17: 1% | Z17: 4 | AA17: 13% | AB17: 8% | AC17: 5
A18: 30 | B18: MARNE-ARDENNES | C18: 6 | D18: SECTEUR CHALONS VIVIERS | E18: 25.3 | F18: 24% | G18: 8% | H18: 9 | I18: 64% | J18: 41% | K18: 35 | L18: 53% | M18: 19% | N18: 7 | O18: 38% | P18: 14% | Q18: 6 | R18: 31% | S18: 17% | T18: 18 | U18: 49% | V18: 35% | W18: 27 | X18: 4% | Y18: 2% | Z18: 17 | AA18: 37% | AB18: 32% | AC18: 28
A19: 160 | B19: MOSELLE | C19: 40 | D19: SECTEUR SAINT AVOLD | E19: 18.8 | F19: 24% | G19: 8% | H19: 10 | I19: 59% | J19: 36% | K19: 25 | L19: 34% | M19: 0% | N19: 1 | O19: 63% | P19: 39% | Q19: 25 | R19: 26% | S19: 13% | T19: 8 | U19: 54% | V19: 39% | W19: 36 | X19: 3% | Y19: 2% | Z19: 9 | AA19: 33% | AB19: 28% | AC19: 18
A20: 160 | B20: MOSELLE | C20: 41 | D20: SECTEUR MONTIGNY LES METZ | E20: 19.5 | F20: 24% | G20: 8% | H20: 11 | I20: 50% | J20: 26% | K20: 11 | L20: 67% | M20: 32% | N20: 27 | O20: 48% | P20: 24% | Q20: 9 | R20: 41% | S20: 28% | T20: 53 | U20: 32% | V20: 17% | W20: 5 | X20: 4% | Y20: 2% | Z20: 19 | AA20: 48% | AB20: 43% | AC20: 52
A21: 160 | B21: MOSELLE | C21: 45 | D21: SECTEUR METZ REPUBLIQUE | E21: 34.9 | F21: 27% | G21: 11% | H21: 12 | I21: 45% | J21: 22% | K21: 7 | L21: 42% | M21: 8% | N21: 4 | O21: 62% | P21: 38% | Q21: 21 | R21: 34% | S21: 21% | T21: 30 | U21: 64% | V21: 50% | W21: 59 | X21: 5% | Y21: 3% | Z21: 35 | AA21: 40% | AB21: 35% | AC21: 31
A22: 110 | B22: MEURTHE ET MOSELLE MEUSE | C22: 36 | D22: SECTEUR VILLERS GENERAL LECLERC | E22: 26.4 | F22: 27% | G22: 11% | H22: 13 | I22: 53% | J22: 29% | K22: 15 | L22: 74% | M22: 40% | N22: 44 | O22: 47% | P22: 23% | Q22: 8 | R22: 31% | S22: 18% | T22: 20 | U22: 38% | V22: 24% | W22: 9 | X22: 31% | Y22: 30% | Z22: 77 | AA22: 36% | AB22: 32% | AC22: 27
A23: 50 | B23: AUBE HAUTE MARNE | C23: 20 | D23: SECTEUR BAR SUR AUBE | E23: 12.6 | F23: 28% | G23: 11% | H23: 14 | I23: 75% | J23: 51% | K23: 55 | L23: 58% | M23: 23% | N23: 14 | O23: 62% | P23: 38% | Q23: 22 | R23: 23% | S23: 10% | T23: 2 | U23: 42% | V23: 27% | W23: 12 | X23: 5% | Y23: 4% | Z23: 39 | AA23: 40% | AB23: 35% | AC23: 33
A24: 80 | B24: VOSGES | C24: 55 | D24: SECTEUR SAINT DIE | E24: 22.0 | F24: 28% | G24: 12% | H24: 15 | I24: 57% | J24: 34% | K24: 22 | L24: 62% | M24: 28% | N24: 18 | O24: 45% | P24: 21% | Q24: 7 | R24: 36% | S24: 23% | T24: 37 | U24: 50% | V24: 36% | W24: 31 | X24: 11% | Y24: 10% | Z24: 65 | AA24: 47% | AB24: 42% | AC24: 51
A25: 160 | B25: MOSELLE | C25: 38 | D25: SECTEUR SARREBOURG | E25: 13.6 | F25: 29% | G25: 13% | H25: 16 | I25: 65% | J25: 42% | K25: 38 | L25: 57% | M25: 22% | N25: 10 | O25: 79% | P25: 55% | Q25: 53 | R25: 27% | S25: 14% | T25: 9 | U25: 52% | V25: 38% | W25: 33 | X25: 4% | Y25: 3% | Z25: 22 | AA25: 18% | AB25: 13% | AC25: 7
A26: 160 | B26: MOSELLE | C26: 47 | D26: SECTEUR BASSE YUTZ | E26: 15.0 | F26: 29% | G26: 13% | H26: 17 | I26: 63% | J26: 39% | K26: 31 | L26: 60% | M26: 25% | N26: 15 | O26: 57% | P26: 33% | Q26: 15 | R26: 40% | S26: 27% | T26: 50 | U26: 47% | V26: 33% | W26: 21 | X26: 3% | Y26: 1% | Z26: 7 | AA26: 43% | AB26: 38% | AC26: 40
A27: 262 | B27: BAS-RHIN | C27: 5087 | D27: SECTEUR SAVERNE | E27: 15.5 | F27: 30% | G27: 13% | H27: 18 | I27: 68% | J27: 45% | K27: 45 | L27: 77% | M27: 43% | N27: 53 | O27: 38% | P27: 14% | Q27: 5 | R27: 44% | S27: 31% | T27: 65 | U27: 48% | V27: 34% | W27: 24 | X27: 6% | Y27: 5% | Z27: 52 | AA27: 29% | AB27: 24% | AC27: 13
A28: 50 | B28: AUBE HAUTE MARNE | C28: 21 | D28: SECTEUR CHAUMONT HOTEL DE VILLE | E28: 16.0 | F28: 30% | G28: 13% | H28: 19 | I28: 46% | J28: 23% | K28: 9 | L28: 76% | M28: 42% | N28: 50 | O28: 67% | P28: 43% | Q28: 32 | R28: 29% | S28: 16% | T28: 14 | U28: 60% | V28: 46% | W28: 48 | X28: 2% | Y28: 1% | Z28: 6 | AA28: 23% | AB28: 19% | AC28: 10
A29: 30 | B29: MARNE-ARDENNES | C29: 4 | D29: SECTEUR RETHEL | E29: 10.9 | F29: 30% | G29: 14% | H29: 20 | I29: 78% | J29: 54% | K29: 62 | L29: 83% | M29: 48% | N29: 64 | O29: 73% | P29: 49% | Q29: 42 | R29: 31% | S29: 17% | T29: 17 | U29: 14% | V29: 0% | W29: 1 | X29: 3% | Y29: 2% | Z29: 13 | AA29: 49% | AB29: 44% | AC29: 54
A30: 110 | B30: MEURTHE ET MOSELLE MEUSE | C30: 26 | D30: SECTEUR NANCY PLACE DOMBASLE | E30: 36.6 | F30: 30% | G30: 14% | H30: 21 | I30: 62% | J30: 38% | K30: 30 | L30: 65% | M30: 31% | N30: 23 | O30: 53% | P30: 29% | Q30: 11 | R30: 38% | S30: 25% | T30: 41 | U30: 50% | V30: 35% | W30: 28 | X30: 6% | Y30: 5% | Z30: 54 | AA30: 46% | AB30: 41% | AC30: 48
A31: 262 | B31: BAS-RHIN | C31: 5116 | D31: SECTEUR MOLSHEIM | E31: 20.5 | F31: 30% | G31: 14% | H31: 22 | I31: 53% | J31: 30% | K31: 16 | L31: 69% | M31: 35% | N31: 33 | O31: 66% | P31: 42% | Q31: 31 | R31: 26% | S31: 13% | T31: 6 | U31: 45% | V31: 31% | W31: 18 | X31: 5% | Y31: 4% | Z31: 47 | AA31: 61% | AB31: 56% | AC31: 65
A32: 110 | B32: MEURTHE ET MOSELLE MEUSE | C32: 31 | D32: SECTEUR VERDUN CENTRALE | E32: 17.6 | F32: 30% | G32: 14% | H32: 23 | I32: 45% | J32: 22% | K32: 6 | L32: 88% | M32: 54% | N32: 72 | O32: 34% | P32: 10% | Q32: 2 | R32: 33% | S32: 20% | T32: 28 | U32: 68% | V32: 54% | W32: 65 | X32: 13% | Y32: 11% | Z32: 67 | AA32: 28% | AB32: 23% | AC32: 12
A33: 80 | B33: VOSGES | C33: 57 | D33: SECTEUR EPINAL ARISTIDE BRIAND | E33: 21.6 | F33: 30% | G33: 14% | H33: 24 | I33: 43% | J33: 20% | K33: 4 | L33: 76% | M33: 41% | N33: 48 | O33: 59% | P33: 35% | Q33: 18 | R33: 28% | S33: 15% | T33: 10 | U33: 63% | V33: 49% | W33: 53 | X33: 9% | Y33: 8% | Z33: 63 | AA33: 35% | AB33: 30% | AC33: 21
A34: 160 | B34: MOSELLE | C34: 49 | D34: SECTEUR FLORANGE | E34: 14.0 | F34: 32% | G34: 15% | H34: 25 | I34: 69% | J34: 46% | K34: 48 | L34: 54% | M34: 19% | N34: 8 | O34: 83% | P34: 59% | Q34: 60 | R34: 29% | S34: 16% | T34: 15 | U34: 43% | V34: 29% | W34: 15 | X34: 5% | Y34: 4% | Z34: 40 | AA34: 50% | AB34: 45% | AC34: 55
A35: 262 | B35: BAS-RHIN | C35: 5030 | D35: SECTEUR BRUMATH | E35: 21.3 | F35: 32% | G35: 15% | H35: 26 | I35: 55% | J35: 32% | K35: 18 | L35: 73% | M35: 39% | N35: 39 | O35: 67% | P35: 43% | Q35: 33 | R35: 40% | S35: 27% | T35: 47 | U35: 47% | V35: 32% | W35: 20 | X35: 4% | Y35: 3% | Z35: 26 | AA35: 43% | AB35: 38% | AC35: 39
A36: 80 | B36: VOSGES | C36: 58 | D36: SECTEUR MIRECOURT | E36: 14.8 | F36: 32% | G36: 16% | H36: 27 | I36: 81% | J36: 58% | K36: 66 | L36: 69% | M36: 34% | N36: 30 | O36: 69% | P36: 46% | Q36: 36 | R36: 33% | S36: 20% | T36: 26 | U36: 26% | V36: 12% | W36: 2 | X36: 12% | Y36: 11% | Z36: 66 | AA36: 54% | AB36: 49% | AC36: 61
A37: 160 | B37: MOSELLE | C37: 43 | D37: SECTEUR FORBACH CENTRALE | E37: 14.9 | F37: 32% | G37: 16% | H37: 28 | I37: 48% | J37: 24% | K37: 10 | L37: 55% | M37: 20% | N37: 9 | O37: 80% | P37: 57% | Q37: 58 | R37: 42% | S37: 29% | T37: 57 | U37: 60% | V37: 45% | W37: 46 | X37: 4% | Y37: 3% | Z37: 20 | AA37: 40% | AB37: 35% | AC37: 32
A38: 30 | B38: MARNE-ARDENNES | C38: 3 | D38: SECTEUR SEDAN | E38: 16.6 | F38: 32% | G38: 16% | H38: 29 | I38: 46% | J38: 23% | K38: 8 | L38: 90% | M38: 55% | N38: 75 | O38: 80% | P38: 56% | Q38: 56 | R38: 29% | S38: 16% | T38: 13 | U38: 48% | V38: 34% | W38: 25 | X38: 4% | Y38: 3% | Z38: 29 | AA38: 32% | AB38: 27% | AC38: 16
A39: 30 | B39: MARNE-ARDENNES | C39: 11 | D39: SECTEUR REIMS CENTRE VILLE | E39: 20.4 | F39: 33% | G39: 17% | H39: 30 | I39: 65% | J39: 42% | K39: 39 | L39: 66% | M39: 32% | N39: 26 | O39: 55% | P39: 32% | Q39: 12 | R39: 38% | S39: 25% | T39: 43 | U39: 52% | V39: 38% | W39: 34 | X39: 28% | Y39: 26% | Z39: 75 | AA39: 36% | AB39: 32% | AC39: 26
A40: 50 | B40: AUBE HAUTE MARNE | C40: 19 | D40: SECTEUR LANGRES | E40: 13.6 | F40: 33% | G40: 17% | H40: 31 | I40: 63% | J40: 40% | K40: 33 | L40: 68% | M40: 33% | N40: 28 | O40: 90% | P40: 66% | Q40: 73 | R40: 45% | S40: 32% | T40: 67 | U40: 42% | V40: 27% | W40: 13 | X40: 4% | Y40: 3% | Z40: 32 | AA40: 19% | AB40: 14% | AC40: 9
A41: 262 | B41: BAS-RHIN | C41: 5007 | D41: SECTEUR ILLKIRCH | E41: 18.3 | F41: 33% | G41: 17% | H41: 32 | I41: 68% | J41: 45% | K41: 44 | L41: 64% | M41: 30% | N41: 21 | O41: 60% | P41: 36% | Q41: 19 | R41: 40% | S41: 27% | T41: 49 | U41: 42% | V41: 28% | W41: 14 | X41: 4% | Y41: 3% | Z41: 33 | AA41: 69% | AB41: 64% | AC41: 70
A42: 160 | B42: MOSELLE | C42: 42 | D42: SECTEUR SARREGUEMINES | E42: 20.1 | F42: 33% | G42: 17% | H42: 33 | I42: 68% | J42: 45% | K42: 43 | L42: 47% | M42: 13% | N42: 5 | O42: 64% | P42: 40% | Q42: 26 | R42: 49% | S42: 36% | T42: 75 | U42: 64% | V42: 49% | W42: 58 | X42: 4% | Y42: 3% | Z42: 21 | AA42: 36% | AB42: 31% | AC42: 25
A43: 30 | B43: MARNE-ARDENNES | C43: 10 | D43: SECTEUR REIMS SAINT THOMAS | E43: 12.7 | F43: 34% | G43: 18% | H43: 34 | I43: 76% | J43: 52% | K43: 57 | L43: 77% | M43: 43% | N43: 51 | O43: 65% | P43: 41% | Q43: 28 | R43: 24% | S43: 11% | T43: 4 | U43: 54% | V43: 39% | W43: 35 | X43: 3% | Y43: 2% | Z43: 14 | AA43: 42% | AB43: 37% | AC43: 37
A44: 262 | B44: BAS-RHIN | C44: 5047 | D44: SECTEUR CRONENBOURG | E44: 22.7 | F44: 34% | G44: 18% | H44: 35 | I44: 62% | J44: 38% | K44: 29 | L44: 72% | M44: 37% | N44: 36 | O44: 73% | P44: 49% | Q44: 44 | R44: 46% | S44: 33% | T44: 71 | U44: 44% | V44: 29% | W44: 16 | X44: 4% | Y44: 3% | Z44: 30 | AA44: 46% | AB44: 41% | AC44: 47
A45: 264 | B45: HAUT-RHIN | C45: 5143 | D45: SECTEUR MUNSTER | E45: 33.4 | F45: 34% | G45: 18% | H45: 36 | I45: 70% | J45: 46% | K45: 50 | L45: 63% | M45: 28% | N45: 19 | O45: 63% | P45: 39% | Q45: 24 | R45: 50% | S45: 37% | T45: 76 | U45: 48% | V45: 33% | W45: 22 | X45: 5% | Y45: 3% | Z45: 37 | AA45: 51% | AB45: 47% | AC45: 59
A46: 262 | B46: BAS-RHIN | C46: 5085 | D46: SECTEUR INGWILLER | E46: 19.8 | F46: 34% | G46: 18% | H46: 37 | I46: 70% | J46: 47% | K46: 52 | L46: 74% | M46: 39% | N46: 40 | O46: 71% | P46: 47% | Q46: 39 | R46: 35% | S46: 22% | T46: 35 | U46: 55% | V46: 41% | W46: 39 | X46: 6% | Y46: 5% | Z46: 53 | AA46: 29% | AB46: 24% | AC46: 14
A47: 50 | B47: AUBE HAUTE MARNE | C47: 23 | D47: SECTEUR SAINT DIZIER CENTRE | E47: 12.3 | F47: 35% | G47: 18% | H47: 38 | I47: 61% | J47: 37% | K47: 28 | L47: 62% | M47: 28% | N47: 17 | O47: 111% | P47: 87% | Q47: 77 | R47: 31% | S47: 18% | T47: 19 | U47: 49% | V47: 34% | W47: 26 | X47: 3% | Y47: 2% | Z47: 8 | AA47: 25% | AB47: 20% | AC47: 11
A48: 30 | B48: MARNE-ARDENNES | C48: 1 | D48: SECTEUR CHARLEVILLE JEAN JAURES | E48: 13.5 | F48: 35% | G48: 19% | H48: 39 | I48: 50% | J48: 27% | K48: 12 | L48: 66% | M48: 31% | N48: 24 | O48: 78% | P48: 54% | Q48: 51 | R48: 30% | S48: 16% | T48: 16 | U48: 64% | V48: 49% | W48: 56 | X48: 6% | Y48: 5% | Z48: 56 | AA48: 56% | AB48: 52% | AC48: 64
A49: 30 | B49: MARNE-ARDENNES | C49: 8 | D49: SECTEUR SEZANNE | E49: 12.9 | F49: 35% | G49: 19% | H49: 40 | I49: 60% | J49: 37% | K49: 27 | L49: 72% | M49: 38% | N49: 38 | O49: 70% | P49: 46% | Q49: 38 | R49: 33% | S49: 19% | T49: 24 | U49: 68% | V49: 53% | W49: 64 | X49: 5% | Y49: 4% | Z49: 42 | AA49: 33% | AB49: 28% | AC49: 17
A50: 110 | B50: MEURTHE ET MOSELLE MEUSE | C50: 28 | D50: SECTEUR JARNY | E50: 14.9 | F50: 35% | G50: 19% | H50: 41 | I50: 56% | J50: 33% | K50: 20 | L50: 80% | M50: 45% | N50: 60 | O50: 58% | P50: 34% | Q50: 16 | R50: 32% | S50: 19% | T50: 23 | U50: 66% | V50: 52% | W50: 63 | X50: 15% | Y50: 13% | Z50: 70 | AA50: 39% | AB50: 35% | AC50: 30
A51: 160 | B51: MOSELLE | C51: 48 | D51: SECTEUR THIONVILLE CENTRALE | E51: 14.4 | F51: 35% | G51: 19% | H51: 42 | I51: 71% | J51: 48% | K51: 54 | L51: 57% | M51: 23% | N51: 11 | O51: 65% | P51: 41% | Q51: 27 | R51: 40% | S51: 27% | T51: 48 | U51: 45% | V51: 30% | W51: 17 | X51: 5% | Y51: 4% | Z51: 41 | AA51: 82% | AB51: 78% | AC51: 73
A52: 160 | B52: MOSELLE | C52: 51 | D52: SECTEUR ROMBAS | E52: 21.1 | F52: 36% | G52: 19% | H52: 43 | I52: 87% | J52: 64% | K52: 72 | L52: 74% | M52: 40% | N52: 42 | O52: 69% | P52: 46% | Q52: 37 | R52: 33% | S52: 20% | T52: 27 | U52: 50% | V52: 36% | W52: 30 | X52: 4% | Y52: 3% | Z52: 25 | AA52: 34% | AB52: 29% | AC52: 20
A53: 110 | B53: MEURTHE ET MOSELLE MEUSE | C53: 27 | D53: SECTEUR PONT A MOUSSON CENTRALE | E53: 27.8 | F53: 36% | G53: 20% | H53: 44 | I53: 38% | J53: 14% | K53: 3 | L53: 89% | M53: 54% | N53: 74 | O53: 77% | P53: 53% | Q53: 50 | R53: 37% | S53: 24% | T53: 38 | U53: 64% | V53: 49% | W53: 57 | X53: 4% | Y53: 3% | Z53: 23 | AA53: 45% | AB53: 40% | AC53: 44
A54: 264 | B54: HAUT-RHIN | C54: 5147 | D54: SECTEUR GUEBWILLER | E54: 16.7 | F54: 36% | G54: 20% | H54: 45 | I54: 68% | J54: 44% | K54: 42 | L54: 74% | M54: 40% | N54: 41 | O54: 81% | P54: 57% | Q54: 59 | R54: 31% | S54: 18% | T54: 21 | U54: 39% | V54: 25% | W54: 10 | X54: 6% | Y54: 4% | Z54: 48 | AA54: 72% | AB54: 68% | AC54: 72
A55: 80 | B55: VOSGES | C55: 54 | D55: SECTEUR RAON L ETAPE | E55: 15.2 | F55: 36% | G55: 20% | H55: 46 | I55: 65% | J55: 42% | K55: 37 | L55: 79% | M55: 45% | N55: 58 | O55: 72% | P55: 48% | Q55: 41 | R55: 35% | S55: 21% | T55: 31 | U55: 57% | V55: 43% | W55: 43 | X55: 16% | Y55: 15% | Z55: 71 | AA55: 34% | AB55: 29% | AC55: 19
A56: 264 | B56: HAUT-RHIN | C56: 5194 | D56: SECTEUR THANN | E56: 24.0 | F56: 37% | G56: 21% | H56: 47 | I56: 69% | J56: 45% | K56: 47 | L56: 76% | M56: 41% | N56: 49 | O56: 74% | P56: 50% | Q56: 46 | R56: 35% | S56: 21% | T56: 33 | U56: 62% | V56: 47% | W56: 51 | X56: 5% | Y56: 4% | Z56: 46 | AA56: 41% | AB56: 36% | AC56: 35
A57: 110 | B57: MEURTHE ET MOSELLE MEUSE | C57: 29 | D57: SECTEUR LONGWY HAUT | E57: 16.7 | F57: 37% | G57: 21% | H57: 48 | I57: 64% | J57: 40% | K57: 34 | L57: 88% | M57: 53% | N57: 70 | O57: 75% | P57: 51% | Q57: 49 | R57: 26% | S57: 13% | T57: 7 | U57: 64% | V57: 49% | W57: 55 | X57: 13% | Y57: 12% | Z57: 68 | AA57: 30% | AB57: 25% | AC57: 15
A58: 110 | B58: MEURTHE ET MOSELLE MEUSE | C58: 24 | D58: SECTEUR LUNEVILLE CARNOT | E58: 20.8 | F58: 37% | G58: 21% | H58: 49 | I58: 52% | J58: 28% | K58: 13 | L58: 79% | M58: 45% | N58: 57 | O58: 80% | P58: 56% | Q58: 57 | R58: 35% | S58: 22% | T58: 34 | U58: 51% | V58: 37% | W58: 32 | X58: 20% | Y58: 19% | Z58: 73 | AA58: 61% | AB58: 56% | AC58: 67
A59: 264 | B59: HAUT-RHIN | C59: 5130 | D59: SECTEUR COLMAR | E59: 31.5 | F59: 37% | G59: 21% | H59: 50 | I59: 76% | J59: 53% | K59: 58 | L59: 65% | M59: 30% | N59: 22 | O59: 69% | P59: 45% | Q59: 35 | R59: 43% | S59: 30% | T59: 64 | U59: 60% | V59: 46% | W59: 47 | X59: 6% | Y59: 5% | Z59: 51 | AA59: 46% | AB59: 42% | AC59: 49
A60: 160 | B60: MOSELLE | C60: 50 | D60: SECTEUR HAYANGE | E60: 17.5 | F60: 38% | G60: 21% | H60: 51 | I60: 55% | J60: 32% | K60: 17 | L60: 71% | M60: 36% | N60: 35 | O60: 85% | P60: 61% | Q60: 64 | R60: 45% | S60: 32% | T60: 69 | U60: 55% | V60: 40% | W60: 37 | X60: 5% | Y60: 3% | Z60: 36 | AA60: 55% | AB60: 50% | AC60: 62
A61: 264 | B61: HAUT-RHIN | C61: 5178 | D61: SECTEUR SAINT LOUIS | E61: 16.6 | F61: 38% | G61: 22% | H61: 52 | I61: 69% | J61: 45% | K61: 46 | L61: 75% | M61: 40% | N61: 46 | O61: 66% | P61: 42% | Q61: 30 | R61: 46% | S61: 32% | T61: 70 | U61: 56% | V61: 41% | W61: 41 | X61: 5% | Y61: 4% | Z61: 45 | AA61: 61% | AB61: 56% | AC61: 66
A62: 50 | B62: AUBE HAUTE MARNE | C62: 15 | D62: SECTEUR TROYES ZOLA | E62: 8.6 | F62: 38% | G62: 22% | H62: 53 | I62: 59% | J62: 35% | K62: 24 | L62: 74% | M62: 40% | N62: 45 | O62: 69% | P62: 45% | Q62: 34 | R62: 43% | S62: 30% | T62: 61 | U62: 70% | V62: 55% | W62: 66 | X62: 4% | Y62: 2% | Z62: 18 | AA62: 51% | AB62: 46% | AC62: 57
A63: 110 | B63: MEURTHE ET MOSELLE MEUSE | C63: 32 | D63: SECTEUR BAR LE DUC | E63: 17.5 | F63: 39% | G63: 22% | H63: 54 | I63: 75% | J63: 52% | K63: 56 | L63: 77% | M63: 43% | N63: 52 | O63: 75% | P63: 51% | Q63: 48 | R63: 42% | S63: 29% | T63: 56 | U63: 73% | V63: 58% | W63: 70 | X63: 6% | Y63: 5% | Z63: 50 | AA63: 9% | AB63: 4% | AC63: 2
A64: 80 | B64: VOSGES | C64: 56 | D64: SECTEUR REMIREMONT | E64: 19.8 | F64: 39% | G64: 23% | H64: 55 | I64: 78% | J64: 54% | K64: 61 | L64: 75% | M64: 41% | N64: 47 | O64: 73% | P64: 49% | Q64: 43 | R64: 41% | S64: 28% | T64: 52 | U64: 61% | V64: 46% | W64: 50 | X64: 2% | Y64: 1% | Z64: 5 | AA64: 42% | AB64: 38% | AC64: 38
A65: 262 | B65: BAS-RHIN | C65: 5020 | D65: SECTEUR ROBERTSAU | E65: 18.6 | F65: 39% | G65: 23% | H65: 56 | I65: 66% | J65: 42% | K65: 40 | L65: 79% | M65: 44% | N65: 56 | O65: 62% | P65: 38% | Q65: 23 | R65: 35% | S65: 21% | T65: 32 | U65: 74% | V65: 59% | W65: 72 | X65: 9% | Y65: 7% | Z65: 62 | AA65: 50% | AB65: 45% | AC65: 56
A66: 262 | B66: BAS-RHIN | C66: 5071 | D66: SECTEUR WISSEMBOURG | E66: 15.7 | F66: 39% | G66: 23% | H66: 57 | I66: 82% | J66: 59% | K66: 68 | L66: 68% | M66: 34% | N66: 29 | O66: 85% | P66: 61% | Q66: 65 | R66: 41% | S66: 28% | T66: 51 | U66: 58% | V66: 43% | W66: 44 | X66: 4% | Y66: 3% | Z66: 31 | AA66: 36% | AB66: 31% | AC66: 24
A67: 50 | B67: AUBE HAUTE MARNE | C67: 17 | D67: SECTEUR SAINT JULIEN LES VILLAS | E67: 16.8 | F67: 39% | G67: 23% | H67: 58 | I67: 60% | J67: 37% | K67: 26 | L67: 72% | M67: 37% | N67: 37 | O67: 95% | P67: 71% | Q67: 74 | R67: 37% | S67: 24% | T67: 40 | U67: 66% | V67: 51% | W67: 62 | X67: 2% | Y67: 1% | Z67: 3 | AA67: 40% | AB67: 35% | AC67: 34
A68: 30 | B68: MARNE-ARDENNES | C68: 5 | D68: SECTEUR REVIN | E68: 12.1 | F68: 39% | G68: 23% | H68: 59 | I68: 82% | J68: 58% | K68: 67 | L68: 66% | M68: 31% | N68: 25 | O68: 104% | P68: 80% | Q68: 76 | R68: 40% | S68: 26% | T68: 45 | U68: 63% | V68: 49% | W68: 54 | X68: 3% | Y68: 2% | Z68: 12 | AA68: 5% | AB68: 0% | AC68: 1
A69: 264 | B69: HAUT-RHIN | C69: 5169 | D69: SECTEUR ROOSEVELT | E69: 20.3 | F69: 39% | G69: 23% | H69: 60 | I69: 85% | J69: 61% | K69: 70 | L69: 83% | M69: 48% | N69: 65 | O69: 74% | P69: 51% | Q69: 47 | R69: 42% | S69: 29% | T69: 58 | U69: 38% | V69: 24% | W69: 8 | X69: 6% | Y69: 5% | Z69: 57 | AA69: 62% | AB69: 57% | AC69: 68
A70: 264 | B70: HAUT-RHIN | C70: 5184 | D70: SECTEUR ILLZACH | E70: 18.6 | F70: 39% | G70: 23% | H70: 61 | I70: 79% | J70: 55% | K70: 63 | L70: 88% | M70: 54% | N70: 73 | O70: 57% | P70: 33% | Q70: 14 | R70: 37% | S70: 24% | T70: 39 | U70: 60% | V70: 46% | W70: 49 | X70: 13% | Y70: 12% | Z70: 69 | AA70: 45% | AB70: 40% | AC70: 45
A71: 50 | B71: AUBE HAUTE MARNE | C71: 14 | D71: SECTEUR TROYES GAMBETTA | E71: 20.8 | F71: 41% | G71: 25% | H71: 62 | I71: 66% | J71: 43% | K71: 41 | L71: 79% | M71: 45% | N71: 59 | O71: 78% | P71: 55% | Q71: 52 | R71: 34% | S71: 21% | T71: 29 | U71: 74% | V71: 60% | W71: 74 | X71: 6% | Y71: 4% | Z71: 49 | AA71: 44% | AB71: 39% | AC71: 42
A72: 50 | B72: AUBE HAUTE MARNE | C72: 22 | D72: SECTEUR JOINVILLE | E72: 6.5 | F72: 42% | G72: 26% | H72: 63 | I72: 84% | J72: 60% | K72: 69 | L72: 85% | M72: 51% | N72: 67 | O72: 88% | P72: 64% | Q72: 71 | R72: 41% | S72: 28% | T72: 54 | U72: 50% | V72: 36% | W72: 29 | X72: 4% | Y72: 2% | Z72: 16 | AA72: 44% | AB72: 39% | AC72: 41
A73: 160 | B73: MOSELLE | C73: 37 | D73: SECTEUR MERLEBACH | E73: 7.1 | F73: 42% | G73: 26% | H73: 64 | I73: 103% | J73: 80% | K73: 77 | L73: 88% | M73: 53% | N73: 69 | O73: 80% | P73: 56% | Q73: 55 | R73: 47% | S73: 34% | T73: 73 | U73: 37% | V73: 22% | W73: 6 | X73: 3% | Y73: 2% | Z73: 15 | AA73: 47% | AB73: 42% | AC73: 50
A74: 110 | B74: MEURTHE ET MOSELLE MEUSE | C74: 34 | D74: SECTEUR TOUL | E74: 21.9 | F74: 42% | G74: 26% | H74: 65 | I74: 64% | J74: 41% | K74: 36 | L74: 88% | M74: 54% | N74: 71 | O74: 83% | P74: 59% | Q74: 61 | R74: 42% | S74: 28% | T74: 55 | U74: 59% | V74: 45% | W74: 45 | X74: 23% | Y74: 22% | Z74: 74 | AA74: 45% | AB74: 40% | AC74: 46
A75: 110 | B75: MEURTHE ET MOSELLE MEUSE | C75: 30 | D75: SECTEUR MONTMEDY | E75: 6.6 | F75: 43% | G75: 27% | H75: 66 | I75: 80% | J75: 57% | K75: 65 | L75: 69% | M75: 35% | N75: 31 | O75: 72% | P75: 48% | Q75: 40 | R75: 33% | S75: 19% | T75: 25 | U75: 71% | V75: 56% | W75: 67 | X75: 1% | Y75: 0% | Z75: 1 | AA75: 85% | AB75: 81% | AC75: 75
A76: 262 | B76: BAS-RHIN | C76: 5101 | D76: SECTEUR SELESTAT | E76: 18.7 | F76: 43% | G76: 27% | H76: 67 | I76: 77% | J76: 53% | K76: 59 | L76: 81% | M76: 46% | N76: 63 | O76: 85% | P76: 61% | Q76: 63 | R76: 39% | S76: 26% | T76: 44 | U76: 66% | V76: 51% | W76: 61 | X76: 5% | Y76: 3% | Z76: 38 | AA76: 51% | AB76: 46% | AC76: 58
A77: 50 | B77: AUBE HAUTE MARNE | C77: 18 | D77: SECTEUR ROMILLY SUR SEINE | E77: 17.1 | F77: 44% | G77: 28% | H77: 68 | I77: 89% | J77: 65% | K77: 73 | L77: 70% | M77: 36% | N77: 34 | O77: 101% | P77: 77% | Q77: 75 | R77: 32% | S77: 19% | T77: 22 | U77: 62% | V77: 47% | W77: 52 | X77: 3% | Y77: 2% | Z77: 11 | AA77: 53% | AB77: 48% | AC77: 60
A78: 262 | B78: BAS-RHIN | C78: 5043 | D78: SECTEUR HALLES | E78: 24.5 | F78: 44% | G78: 28% | H78: 69 | I78: 57% | J78: 33% | K78: 21 | L78: 78% | M78: 43% | N78: 54 | O78: 73% | P78: 50% | Q78: 45 | R78: 48% | S78: 35% | T78: 74 | U78: 71% | V78: 57% | W78: 68 | X78: 9% | Y78: 7% | Z78: 61 | AA78: 86% | AB78: 81% | AC78: 76
A79: 110 | B79: MEURTHE ET MOSELLE MEUSE | C79: 35 | D79: SECTEUR VANDOEUVRE LES NANCY | E79: 22.9 | F79: 45% | G79: 29% | H79: 70 | I79: 79% | J79: 56% | K79: 64 | L79: 86% | M79: 52% | N79: 68 | O79: 85% | P79: 61% | Q79: 66 | R79: 43% | S79: 30% | T79: 63 | U79: 57% | V79: 43% | W79: 42 | X79: 28% | Y79: 27% | Z79: 76 | AA79: 45% | AB79: 40% | AC79: 43
A80: 50 | B80: AUBE HAUTE MARNE | C80: 16 | D80: SECTEUR SAINTE SAVINE | E80: 7.6 | F80: 45% | G80: 29% | H80: 71 | I80: 70% | J80: 46% | K80: 49 | L80: 81% | M80: 46% | N80: 62 | O80: 80% | P80: 56% | Q80: 54 | R80: 45% | S80: 32% | T80: 66 | U80: 81% | V80: 67% | W80: 76 | X80: 4% | Y80: 3% | Z80: 28 | AA80: 48% | AB80: 43% | AC80: 53
A81: 262 | B81: BAS-RHIN | C81: 5060 | D81: SECTEUR HAGUENAU | E81: 23.5 | F81: 46% | G81: 29% | H81: 72 | I81: 91% | J81: 68% | K81: 74 | L81: 74% | M81: 40% | N81: 43 | O81: 84% | P81: 60% | Q81: 62 | R81: 46% | S81: 33% | T81: 72 | U81: 64% | V81: 50% | W81: 60 | X81: 4% | Y81: 3% | Z81: 34 | AA81: 56% | AB81: 51% | AC81: 63
A82: 30 | B82: MARNE-ARDENNES | C82: 7 | D82: SECTEUR VITRY LE FRANCOIS | E82: 10.7 | F82: 46% | G82: 30% | H82: 73 | I82: 71% | J82: 47% | K82: 53 | L82: 85% | M82: 50% | N82: 66 | O82: 90% | P82: 66% | Q82: 72 | R82: 43% | S82: 30% | T82: 62 | U82: 78% | V82: 64% | W82: 75 | X82: 8% | Y82: 6% | Z82: 58 | AA82: 39% | AB82: 34% | AC82: 29
A83: 110 | B83: MEURTHE ET MOSELLE MEUSE | C83: 33 | D83: SECTEUR COMMERCY | E83: 9.9 | F83: 47% | G83: 31% | H83: 74 | I83: 77% | J83: 54% | K83: 60 | L83: 92% | M83: 57% | N83: 77 | O83: 61% | P83: 38% | Q83: 20 | R83: 45% | S83: 32% | T83: 68 | U83: 74% | V83: 60% | W83: 73 | X83: 4% | Y83: 3% | Z83: 27 | AA83: 85% | AB83: 80% | AC83: 74
A84: 80 | B84: VOSGES | C84: 53 | D84: SECTEUR VITTEL | E84: 13.7 | F84: 50% | G84: 33% | H84: 75 | I84: 85% | J84: 62% | K84: 71 | L84: 78% | M84: 44% | N84: 55 | O84: 86% | P84: 62% | Q84: 68 | R84: 42% | S84: 29% | T84: 60 | U84: 73% | V84: 58% | W84: 69 | X84: 20% | Y84: 19% | Z84: 72 | AA84: 72% | AB84: 67% | AC84: 71
A85: 262 | B85: BAS-RHIN | C85: 5119 | D85: SECTEUR OBERNAI | E85: 18.9 | F85: 51% | G85: 35% | H85: 76 | I85: 101% | J85: 77% | K85: 76 | L85: 80% | M85: 46% | N85: 61 | O85: 88% | P85: 64% | Q85: 70 | R85: 29% | S85: 16% | T85: 12 | U85: 74% | V85: 59% | W85: 71 | X85: 8% | Y85: 6% | Z85: 59 | AA85: 88% | AB85: 83% | AC85: 77
A86: 262 | B86: BAS-RHIN | C86: 5006 | D86: SECTEUR NEUDORF | E86: 22.2 | F86: 57% | G86: 41% | H86: 77 | I86: 92% | J86: 69% | K86: 75 | L86: 91% | M86: 57% | N86: 76 | O86: 86% | P86: 62% | Q86: 67 | R86: 53% | S86: 40% | T86: 77 | U86: 94% | V86: 80% | W86: 77 | X86: 6% | Y86: 5% | Z86: 55 | AA86: 68% | AB86: 63% | AC86: 69
A87: Total CEGEE Directions Commerciales | E87: =SUM(E10:E86) -> 1407

Sheet SE_BANCA
A1: Accueil | F1: BAROMETRE BDD - DIRECTIONS COMMERCIALES
F2: EQUIPEMENT BANCARISATION
F3: =ACCUEIL!H7 -> 2019-03-31
F7: Ventes nettes FORFAITS avec 2 options | I7: Ventes nettes IZICARTES | L7: Ventes nettes Cartes HDG | O7: Ventes nettes CB débit différé | R7: Ventes nettes banca Pro | U7: Total Equipement Bancarisation
G8: coef | H8: ='RECAP DIRCOM'!AH4 -> 3% | J8: coef | K8: ='RECAP DIRCOM'!AK4 -> 3% | M8: coef | N8: ='RECAP DIRCOM'!AN4 -> 3% | P8: coef | Q8: ='RECAP DIRCOM'!AQ4 -> 3% | S8: coef | T8: ='RECAP DIRCOM'!AT4 -> 3% | V8: coef | W8: ='RECAP DIRCOM'!AW4 -> 15%
A9: eds | B9: Direction | C9: eds | D9: Secteur | E9: ETP perf | F9: Nb / ETP | G9: % Ecart au 1er | H9: Rang | I9: Nb / ETP | J9: % Ecart au 1er | K9: Rang | L9: Nb / ETP | M9: % Ecart au 1er | N9: Rang | O9: Nb / ETP | P9: % Ecart au 1er | Q9: Rang | R9: Taux réal objectif | S9: % Ecart au 1er | T9: Rang | U9: Moyenne ecart au 1er | V9: % Ecart au 1er | W9: Rang CEGEE
A10: 50 | B10: AUBE HAUTE MARNE | C10: 20 | D10: SECTEUR BAR SUR AUBE | E10: =VLOOKUP($C10,'RECAP SECT'!$G$6:$EV$312,3,FALSE) -> 12.6 | F10: =VLOOKUP($C10,'RECAP SECT'!$G$6:$EV$312,26,FALSE) -> -6.89 | G10: =VLOOKUP($C10,'RECAP SECT'!$G$6:$EV$312,27,FALSE) -> 57% | H10: =VLOOKUP($C10,'RECAP SECT'!$G$6:$EV$312,28,FALSE) -> 29 | I10: =VLOOKUP($C10,'RECAP SECT'!$G$6:$EV$312,29,FALSE) -> 4.28 | J10: =VLOOKUP($C10,'RECAP SECT'!$G$6:$EV$312,30,FALSE) -> 60% | K10: =VLOOKUP($C10,'RECAP SECT'!$G$6:$EV$312,31,FALSE) -> 20 | L10: =VLOOKUP($C10,'RECAP SECT'!$G$6:$EV$312,32,FALSE) -> 6.65 | M10: =VLOOKUP($C10,'RECAP SECT'!$G$6:$EV$312,33,FALSE) -> 44% | N10: =VLOOKUP($C10,'RECAP SECT'!$G$6:$EV$312,34,FALSE) -> 18 | O10: =VLOOKUP($C10,'RECAP SECT'!$G$6:$EV$312,35,FALSE) -> 2.22 | P10: =VLOOKUP($C10,'RECAP SECT'!$G$6:$EV$312,36,FALSE) -> 59% | Q10: =VLOOKUP($C10,'RECAP SECT'!$G$6:$EV$312,37,FALSE) -> 16 | R10: =VLOOKUP($C10,'RECAP SECT'!$G$6:$EV$312,38,FALSE) -> 46% | S10: =VLOOKUP($C10,'RECAP SECT'!$G$6:$EV$312,39,FALSE) -> 68% | T10: =VLOOKUP($C10,'RECAP SECT'!$G$6:$EV$312,40,FALSE) -> 24 | U10: =VLOOKUP($C10,'RECAP SECT'!$G$6:$EV$312,41,FALSE) -> 58% | V10: =VLOOKUP($C10,'RECAP SECT'!$G$6:$EV$312,42,FALSE) -> 23% | W10: =VLOOKUP($C10,'RECAP SECT'!$G$6:$EV$312,43,FALSE) -> 14
A11: 50 | B11: AUBE HAUTE MARNE | C11: 21 | D11: SECTEUR CHAUMONT HOTEL DE VILLE | E11: =VLOOKUP($C11,'RECAP SECT'!$G$6:$EV$312,3,FALSE) -> 16.0 | F11: =VLOOKUP($C11,'RECAP SECT'!$G$6:$EV$312,26,FALSE) -> -7.02 | G11: =VLOOKUP($C11,'RECAP SECT'!$G$6:$EV$312,27,FALSE) -> 59% | H11: =VLOOKUP($C11,'RECAP SECT'!$G$6:$EV$312,28,FALSE) -> 31 | I11: =VLOOKUP($C11,'RECAP SECT'!$G$6:$EV$312,29,FALSE) -> 4.07 | J11: =VLOOKUP($C11,'RECAP SECT'!$G$6:$EV$312,30,FALSE) -> 62% | K11: =VLOOKUP($C11,'RECAP SECT'!$G$6:$EV$312,31,FALSE) -> 25 | L11: =VLOOKUP($C11,'RECAP SECT'!$G$6:$EV$312,32,FALSE) -> 0.25 | M11: =VLOOKUP($C11,'RECAP SECT'!$G$6:$EV$312,33,FALSE) -> 98% | N11: =VLOOKUP($C11,'RECAP SECT'!$G$6:$EV$312,34,FALSE) -> 71 | O11: =VLOOKUP($C11,'RECAP SECT'!$G$6:$EV$312,35,FALSE) -> 0.63 | P11: =VLOOKUP($C11,'RECAP SECT'!$G$6:$EV$312,36,FALSE) -> 88% | Q11: =VLOOKUP($C11,'RECAP SECT'!$G$6:$EV$312,37,FALSE) -> 45 | R11: =VLOOKUP($C11,'RECAP SECT'!$G$6:$EV$312,38,FALSE) -> 33% | S11: =VLOOKUP($C11,'RECAP SECT'!$G$6:$EV$312,39,FALSE) -> 74% | T11: =VLOOKUP($C11,'RECAP SECT'!$G$6:$EV$312,40,FALSE) -> 33 | U11: =VLOOKUP($C11,'RECAP SECT'!$G$6:$EV$312,41,FALSE) -> 76% | V11: =VLOOKUP($C11,'RECAP SECT'!$G$6:$EV$312,42,FALSE) -> 42% | W11: =VLOOKUP($C11,'RECAP SECT'!$G$6:$EV$312,43,FALSE) -> 50
A12: 50 | B12: AUBE HAUTE MARNE | C12: 22 | D12: SECTEUR JOINVILLE | E12: =VLOOKUP($C12,'RECAP SECT'!$G$6:$EV$312,3,FALSE) -> 6.5 | F12: =VLOOKUP($C12,'RECAP SECT'!$G$6:$EV$312,26,FALSE) -> -7.11 | G12: =VLOOKUP($C12,'RECAP SECT'!$G$6:$EV$312,27,FALSE) -> 60% | H12: =VLOOKUP($C12,'RECAP SECT'!$G$6:$EV$312,28,FALSE) -> 36 | I12: =VLOOKUP($C12,'RECAP SECT'!$G$6:$EV$312,29,FALSE) -> 1.55 | J12: =VLOOKUP($C12,'RECAP SECT'!$G$6:$EV$312,30,FALSE) -> 86% | K12: =VLOOKUP($C12,'RECAP SECT'!$G$6:$EV$312,31,FALSE) -> 57 | L12: =VLOOKUP($C12,'RECAP SECT'!$G$6:$EV$312,32,FALSE) -> 0.31 | M12: =VLOOKUP($C12,'RECAP SECT'!$G$6:$EV$312,33,FALSE) -> 97% | N12: =VLOOKUP($C12,'RECAP SECT'!$G$6:$EV$312,34,FALSE) -> 70 | O12: =VLOOKUP($C12,'RECAP SECT'!$G$6:$EV$312,35,FALSE) -> 0.77 | P12: =VLOOKUP($C12,'RECAP SECT'!$G$6:$EV$312,36,FALSE) -> 86% | Q12: =VLOOKUP($C12,'RECAP SECT'!$G$6:$EV$312,37,FALSE) -> 39 | R12: =VLOOKUP($C12,'RECAP SECT'!$G$6:$EV$312,38,FALSE) -> -14% | S12: =VLOOKUP($C12,'RECAP SECT'!$G$6:$EV$312,39,FALSE) -> 97% | T12: =VLOOKUP($C12,'RECAP SECT'!$G$6:$EV$312,40,FALSE) -> 71 | U12: =VLOOKUP($C12,'RECAP SECT'!$G$6:$EV$312,41,FALSE) -> 85% | V12: =VLOOKUP($C12,'RECAP SECT'!$G$6:$EV$312,42,FALSE) -> 51% | W12: =VLOOKUP($C12,'RECAP SECT'!$G$6:$EV$312,43,FALSE) -> 67
A13: 50 | B13: AUBE HAUTE MARNE | C13: 19 | D13: SECTEUR LANGRES | E13: =VLOOKUP($C13,'RECAP SECT'!$G$6:$EV$312,3,FALSE) -> 13.6 | F13: =VLOOKUP($C13,'RECAP SECT'!$G$6:$EV$312,26,FALSE) -> -3.98 | G13: =VLOOKUP($C13,'RECAP SECT'!$G$6:$EV$312,27,FALSE) -> 14% | H13: =VLOOKUP($C13,'RECAP SECT'!$G$6:$EV$312,28,FALSE) -> 5 | I13: =VLOOKUP($C13,'RECAP SECT'!$G$6:$EV$312,29,FALSE) -> 2.21 | J13: =VLOOKUP($C13,'RECAP SECT'!$G$6:$EV$312,30,FALSE) -> 80% | K13: =VLOOKUP($C13,'RECAP SECT'!$G$6:$EV$312,31,FALSE) -> 47 | L13: =VLOOKUP($C13,'RECAP SECT'!$G$6:$EV$312,32,FALSE) -> 1.70 | M13: =VLOOKUP($C13,'RECAP SECT'!$G$6:$EV$312,33,FALSE) -> 86% | N13: =VLOOKUP($C13,'RECAP SECT'!$G$6:$EV$312,34,FALSE) -> 58 | O13: =VLOOKUP($C13,'RECAP SECT'!$G$6:$EV$312,35,FALSE) -> 1.55 | P13: =VLOOKUP($C13,'RECAP SECT'!$G$6:$EV$312,36,FALSE) -> 71% | Q13: =VLOOKUP($C13,'RECAP SECT'!$G$6:$EV$312,37,FALSE) -> 28 | R13: =VLOOKUP($C13,'RECAP SECT'!$G$6:$EV$312,38,FALSE) -> 8% | S13: =VLOOKUP($C13,'RECAP SECT'!$G$6:$EV$312,39,FALSE) -> 87% | T13: =VLOOKUP($C13,'RECAP SECT'!$G$6:$EV$312,40,FALSE) -> 58 | U13: =VLOOKUP($C13,'RECAP SECT'!$G$6:$EV$312,41,FALSE) -> 68% | V13: =VLOOKUP($C13,'RECAP SECT'!$G$6:$EV$312,42,FALSE) -> 33% | W13: =VLOOKUP($C13,'RECAP SECT'!$G$6:$EV$312,43,FALSE) -> 28
A14: 50 | B14: AUBE HAUTE MARNE | C14: 18 | D14: SECTEUR ROMILLY SUR SEINE | E14: =VLOOKUP($C14,'RECAP SECT'!$G$6:$EV$312,3,FALSE) -> 17.1 | F14: =VLOOKUP($C14,'RECAP SECT'!$G$6:$EV$312,26,FALSE) -> -8.36 | G14: =VLOOKUP($C14,'RECAP SECT'!$G$6:$EV$312,27,FALSE) -> 79% | H14: =VLOOKUP($C14,'RECAP SECT'!$G$6:$EV$312,28,FALSE) -> 56 | I14: =VLOOKUP($C14,'RECAP SECT'!$G$6:$EV$312,29,FALSE) -> 7.60 | J14: =VLOOKUP($C14,'RECAP SECT'!$G$6:$EV$312,30,FALSE) -> 30% | K14: =VLOOKUP($C14,'RECAP SECT'!$G$6:$EV$312,31,FALSE) -> 7 | L14: =VLOOKUP($C14,'RECAP SECT'!$G$6:$EV$312,32,FALSE) -> 3.92 | M14: =VLOOKUP($C14,'RECAP SECT'!$G$6:$EV$312,33,FALSE) -> 67% | N14: =VLOOKUP($C14,'RECAP SECT'!$G$6:$EV$312,34,FALSE) -> 32 | O14: =VLOOKUP($C14,'RECAP SECT'!$G$6:$EV$312,35,FALSE) -> 0.41 | P14: =VLOOKUP($C14,'RECAP SECT'!$G$6:$EV$312,36,FALSE) -> 92% | Q14: =VLOOKUP($C14,'RECAP SECT'!$G$6:$EV$312,37,FALSE) -> 50 | R14: =VLOOKUP($C14,'RECAP SECT'!$G$6:$EV$312,38,FALSE) -> 17% | S14: =VLOOKUP($C14,'RECAP SECT'!$G$6:$EV$312,39,FALSE) -> 82% | T14: =VLOOKUP($C14,'RECAP SECT'!$G$6:$EV$312,40,FALSE) -> 50 | U14: =VLOOKUP($C14,'RECAP SECT'!$G$6:$EV$312,41,FALSE) -> 70% | V14: =VLOOKUP($C14,'RECAP SECT'!$G$6:$EV$312,42,FALSE) -> 36% | W14: =VLOOKUP($C14,'RECAP SECT'!$G$6:$EV$312,43,FALSE) -> 34
A15: 50 | B15: AUBE HAUTE MARNE | C15: 23 | D15: SECTEUR SAINT DIZIER CENTRE | E15: =VLOOKUP($C15,'RECAP SECT'!$G$6:$EV$312,3,FALSE) -> 12.3 | F15: =VLOOKUP($C15,'RECAP SECT'!$G$6:$EV$312,26,FALSE) -> -8.69 | G15: =VLOOKUP($C15,'RECAP SECT'!$G$6:$EV$312,27,FALSE) -> 84% | H15: =VLOOKUP($C15,'RECAP SECT'!$G$6:$EV$312,28,FALSE) -> 59 | I15: =VLOOKUP($C15,'RECAP SECT'!$G$6:$EV$312,29,FALSE) -> 3.98 | J15: =VLOOKUP($C15,'RECAP SECT'!$G$6:$EV$312,30,FALSE) -> 63% | K15: =VLOOKUP($C15,'RECAP SECT'!$G$6:$EV$312,31,FALSE) -> 29 | L15: =VLOOKUP($C15,'RECAP SECT'!$G$6:$EV$312,32,FALSE) -> 8.28 | M15: =VLOOKUP($C15,'RECAP SECT'!$G$6:$EV$312,33,FALSE) -> 30% | N15: =VLOOKUP($C15,'RECAP SECT'!$G$6:$EV$312,34,FALSE) -> 9 | O15: =VLOOKUP($C15,'RECAP SECT'!$G$6:$EV$312,35,FALSE) -> 1.14 | P15: =VLOOKUP($C15,'RECAP SECT'!$G$6:$EV$312,36,FALSE) -> 79% | Q15: =VLOOKUP($C15,'RECAP SECT'!$G$6:$EV$312,37,FALSE) -> 31 | R15: =VLOOKUP($C15,'RECAP SECT'!$G$6:$EV$312,38,FALSE) -> 69% | S15: =VLOOKUP($C15,'RECAP SECT'!$G$6:$EV$312,39,FALSE) -> 56% | T15: =VLOOKUP($C15,'RECAP SECT'!$G$6:$EV$312,40,FALSE) -> 10 | U15: =VLOOKUP($C15,'RECAP SECT'!$G$6:$EV$312,41,FALSE) -> 62% | V15: =VLOOKUP($C15,'RECAP SECT'!$G$6:$EV$312,42,FALSE) -> 28% | W15: =VLOOKUP($C15,'RECAP SECT'!$G$6:$EV$312,43,FALSE) -> 17
A16: 50 | B16: AUBE HAUTE MARNE | C16: 17 | D16: SECTEUR SAINT JULIEN LES VILLAS | E16: =VLOOKUP($C16,'RECAP SECT'!$G$6:$EV$312,3,FALSE) -> 16.8 | F16: =VLOOKUP($C16,'RECAP SECT'!$G$6:$EV$312,26,FALSE) -> -7.72 | G16: =VLOOKUP($C16,'RECAP SECT'!$G$6:$EV$312,27,FALSE) -> 69% | H16: =VLOOKUP($C16,'RECAP SECT'!$G$6:$EV$312,28,FALSE) -> 43 | I16: =VLOOKUP($C16,'RECAP SECT'!$G$6:$EV$312,29,FALSE) -> 2.20 | J16: =VLOOKUP($C16,'RECAP SECT'!$G$6:$EV$312,30,FALSE) -> 80% | K16: =VLOOKUP($C16,'RECAP SECT'!$G$6:$EV$312,31,FALSE) -> 48 | L16: =VLOOKUP($C16,'RECAP SECT'!$G$6:$EV$312,32,FALSE) -> 6.83 | M16: =VLOOKUP($C16,'RECAP SECT'!$G$6:$EV$312,33,FALSE) -> 42% | N16: =VLOOKUP($C16,'RECAP SECT'!$G$6:$EV$312,34,FALSE) -> 16 | O16: =VLOOKUP($C16,'RECAP SECT'!$G$6:$EV$312,35,FALSE) -> 0.06 | P16: =VLOOKUP($C16,'RECAP SECT'!$G$6:$EV$312,36,FALSE) -> 99% | Q16: =VLOOKUP($C16,'RECAP SECT'!$G$6:$EV$312,37,FALSE) -> 68 | R16: =VLOOKUP($C16,'RECAP SECT'!$G$6:$EV$312,38,FALSE) -> 44% | S16: =VLOOKUP($C16,'RECAP SECT'!$G$6:$EV$312,39,FALSE) -> 68% | T16: =VLOOKUP($C16,'RECAP SECT'!$G$6:$EV$312,40,FALSE) -> 25 | U16: =VLOOKUP($C16,'RECAP SECT'!$G$6:$EV$312,41,FALSE) -> 72% | V16: =VLOOKUP($C16,'RECAP SECT'!$G$6:$EV$312,42,FALSE) -> 37% | W16: =VLOOKUP($C16,'RECAP SECT'!$G$6:$EV$312,43,FALSE) -> 37
A17: 50 | B17: AUBE HAUTE MARNE | C17: 16 | D17: SECTEUR SAINTE SAVINE | E17: =VLOOKUP($C17,'RECAP SECT'!$G$6:$EV$312,3,FALSE) -> 7.6 | F17: =VLOOKUP($C17,'RECAP SECT'!$G$6:$EV$312,26,FALSE) -> -7.80 | G17: =VLOOKUP($C17,'RECAP SECT'!$G$6:$EV$312,27,FALSE) -> 71% | H17: =VLOOKUP($C17,'RECAP SECT'!$G$6:$EV$312,28,FALSE) -> 47 | I17: =VLOOKUP($C17,'RECAP SECT'!$G$6:$EV$312,29,FALSE) -> 3.04 | J17: =VLOOKUP($C17,'RECAP SECT'!$G$6:$EV$312,30,FALSE) -> 72% | K17: =VLOOKUP($C17,'RECAP SECT'!$G$6:$EV$312,31,FALSE) -> 39 | L17: =VLOOKUP($C17,'RECAP SECT'!$G$6:$EV$312,32,FALSE) -> 1.45 | M17: =VLOOKUP($C17,'RECAP SECT'!$G$6:$EV$312,33,FALSE) -> 88% | N17: =VLOOKUP($C17,'RECAP SECT'!$G$6:$EV$312,34,FALSE) -> 65 | O17: =VLOOKUP($C17,'RECAP SECT'!$G$6:$EV$312,35,FALSE) -> 0.79 | P17: =VLOOKUP($C17,'RECAP SECT'!$G$6:$EV$312,36,FALSE) -> 85% | Q17: =VLOOKUP($C17,'RECAP SECT'!$G$6:$EV$312,37,FALSE) -> 38 | R17: =VLOOKUP($C17,'RECAP SECT'!$G$6:$EV$312,38,FALSE) -> 4% | S17: =VLOOKUP($C17,'RECAP SECT'!$G$6:$EV$312,39,FALSE) -> 88% | T17: =VLOOKUP($C17,'RECAP SECT'!$G$6:$EV$312,40,FALSE) -> 62 | U17: =VLOOKUP($C17,'RECAP SECT'!$G$6:$EV$312,41,FALSE) -> 81% | V17: =VLOOKUP($C17,'RECAP SECT'!$G$6:$EV$312,42,FALSE) -> 46% | W17: =VLOOKUP($C17,'RECAP SECT'!$G$6:$EV$312,43,FALSE) -> 62
A18: 50 | B18: AUBE HAUTE MARNE | C18: 14 | D18: SECTEUR TROYES GAMBETTA | E18: =VLOOKUP($C18,'RECAP SECT'!$G$6:$EV$312,3,FALSE) -> 20.8 | F18: =VLOOKUP($C18,'RECAP SECT'!$G$6:$EV$312,26,FALSE) -> -9.36 | G18: =VLOOKUP($C18,'RECAP SECT'!$G$6:$EV$312,27,FALSE) -> 93% | H18: =VLOOKUP($C18,'RECAP SECT'!$G$6:$EV$312,28,FALSE) -> 71 | I18: =VLOOKUP($C18,'RECAP SECT'!$G$6:$EV$312,29,FALSE) -> 4.03 | J18: =VLOOKUP($C18,'RECAP SECT'!$G$6:$EV$312,30,FALSE) -> 63% | K18: =VLOOKUP($C18,'RECAP SECT'!$G$6:$EV$312,31,FALSE) -> 28 | L18: =VLOOKUP($C18,'RECAP SECT'!$G$6:$EV$312,32,FALSE) -> 2.30 | M18: =VLOOKUP($C18,'RECAP SECT'!$G$6:$EV$312,33,FALSE) -> 81% | N18: =VLOOKUP($C18,'RECAP SECT'!$G$6:$EV$312,34,FALSE) -> 48 | O18: =VLOOKUP($C18,'RECAP SECT'!$G$6:$EV$312,35,FALSE) -> 0.10 | P18: =VLOOKUP($C18,'RECAP SECT'!$G$6:$EV$312,36,FALSE) -> 98% | Q18: =VLOOKUP($C18,'RECAP SECT'!$G$6:$EV$312,37,FALSE) -> 65 | R18: =VLOOKUP($C18,'RECAP SECT'!$G$6:$EV$312,38,FALSE) -> 57% | S18: =VLOOKUP($C18,'RECAP SECT'!$G$6:$EV$312,39,FALSE) -> 62% | T18: =VLOOKUP($C18,'RECAP SECT'!$G$6:$EV$312,40,FALSE) -> 15 | U18: =VLOOKUP($C18,'RECAP SECT'!$G$6:$EV$312,41,FALSE) -> 79% | V18: =VLOOKUP($C18,'RECAP SECT'!$G$6:$EV$312,42,FALSE) -> 45% | W18: =VLOOKUP($C18,'RECAP SECT'!$G$6:$EV$312,43,FALSE) -> 59
A19: 50 | B19: AUBE HAUTE MARNE | C19: 15 | D19: SECTEUR TROYES ZOLA | E19: =VLOOKUP($C19,'RECAP SECT'!$G$6:$EV$312,3,FALSE) -> 8.6 | F19: =VLOOKUP($C19,'RECAP SECT'!$G$6:$EV$312,26,FALSE) -> -8.99 | G19: =VLOOKUP($C19,'RECAP SECT'!$G$6:$EV$312,27,FALSE) -> 88% | H19: =VLOOKUP($C19,'RECAP SECT'!$G$6:$EV$312,28,FALSE) -> 64 | I19: =VLOOKUP($C19,'RECAP SECT'!$G$6:$EV$312,29,FALSE) -> 4.20 | J19: =VLOOKUP($C19,'RECAP SECT'!$G$6:$EV$312,30,FALSE) -> 61% | K19: =VLOOKUP($C19,'RECAP SECT'!$G$6:$EV$312,31,FALSE) -> 22 | L19: =VLOOKUP($C19,'RECAP SECT'!$G$6:$EV$312,32,FALSE) -> 5.95 | M19: =VLOOKUP($C19,'RECAP SECT'!$G$6:$EV$312,33,FALSE) -> 50% | N19: =VLOOKUP($C19,'RECAP SECT'!$G$6:$EV$312,34,FALSE) -> 20 | O19: =VLOOKUP($C19,'RECAP SECT'!$G$6:$EV$312,35,FALSE) -> 0.23 | P19: =VLOOKUP($C19,'RECAP SECT'!$G$6:$EV$312,36,FALSE) -> 96% | Q19: =VLOOKUP($C19,'RECAP SECT'!$G$6:$EV$312,37,FALSE) -> 60 | R19: =VLOOKUP($C19,'RECAP SECT'!$G$6:$EV$312,38,FALSE) -> 25% | S19: =VLOOKUP($C19,'RECAP SECT'!$G$6:$EV$312,39,FALSE) -> 78% | T19: =VLOOKUP($C19,'RECAP SECT'!$G$6:$EV$312,40,FALSE) -> 42 | U19: =VLOOKUP($C19,'RECAP SECT'!$G$6:$EV$312,41,FALSE) -> 74% | V19: =VLOOKUP($C19,'RECAP SECT'!$G$6:$EV$312,42,FALSE) -> 40% | W19: =VLOOKUP($C19,'RECAP SECT'!$G$6:$EV$312,43,FALSE) -> 45
A20: 262 | B20: BAS-RHIN | C20: 5030 | D20: SECTEUR BRUMATH | E20: =VLOOKUP($C20,'RECAP SECT'!$G$6:$EV$312,3,FALSE) -> 21.3 | F20: =VLOOKUP($C20,'RECAP SECT'!$G$6:$EV$312,26,FALSE) -> -5.87 | G20: =VLOOKUP($C20,'RECAP SECT'!$G$6:$EV$312,27,FALSE) -> 42% | H20: =VLOOKUP($C20,'RECAP SECT'!$G$6:$EV$312,28,FALSE) -> 16 | I20: =VLOOKUP($C20,'RECAP SECT'!$G$6:$EV$312,29,FALSE) -> 1.31 | J20: =VLOOKUP($C20,'RECAP SECT'!$G$6:$EV$312,30,FALSE) -> 88% | K20: =VLOOKUP($C20,'RECAP SECT'!$G$6:$EV$312,31,FALSE) -> 64 | L20: =VLOOKUP($C20,'RECAP SECT'!$G$6:$EV$312,32,FALSE) -> 3.52 | M20: =VLOOKUP($C20,'RECAP SECT'!$G$6:$EV$312,33,FALSE) -> 70% | N20: =VLOOKUP($C20,'RECAP SECT'!$G$6:$EV$312,34,FALSE) -> 36 | O20: =VLOOKUP($C20,'RECAP SECT'!$G$6:$EV$312,35,FALSE) -> 1.13 | P20: =VLOOKUP($C20,'RECAP SECT'!$G$6:$EV$312,36,FALSE) -> 79% | Q20: =VLOOKUP($C20,'RECAP SECT'!$G$6:$EV$312,37,FALSE) -> 33 | R20: =VLOOKUP($C20,'RECAP SECT'!$G$6:$EV$312,38,FALSE) -> 8% | S20: =VLOOKUP($C20,'RECAP SECT'!$G$6:$EV$312,39,FALSE) -> 87% | T20: =VLOOKUP($C20,'RECAP SECT'!$G$6:$EV$312,40,FALSE) -> 58 | U20: =VLOOKUP($C20,'RECAP SECT'!$G$6:$EV$312,41,FALSE) -> 73% | V20: =VLOOKUP($C20,'RECAP SECT'!$G$6:$EV$312,42,FALSE) -> 39% | W20: =VLOOKUP($C20,'RECAP SECT'!$G$6:$EV$312,43,FALSE) -> 39
A21: 262 | B21: BAS-RHIN | C21: 5047 | D21: SECTEUR CRONENBOURG | E21: =VLOOKUP($C21,'RECAP SECT'!$G$6:$EV$312,3,FALSE) -> 22.7 | F21: =VLOOKUP($C21,'RECAP SECT'!$G$6:$EV$312,26,FALSE) -> -4.41 | G21: =VLOOKUP($C21,'RECAP SECT'!$G$6:$EV$312,27,FALSE) -> 21% | H21: =VLOOKUP($C21,'RECAP SECT'!$G$6:$EV$312,28,FALSE) -> 7 | I21: =VLOOKUP($C21,'RECAP SECT'!$G$6:$EV$312,29,FALSE) -> 0.79 | J21: =VLOOKUP($C21,'RECAP SECT'!$G$6:$EV$312,30,FALSE) -> 93% | K21: =VLOOKUP($C21,'RECAP SECT'!$G$6:$EV$312,31,FALSE) -> 70 | L21: =VLOOKUP($C21,'RECAP SECT'!$G$6:$EV$312,32,FALSE) -> 4.68 | M21: =VLOOKUP($C21,'RECAP SECT'!$G$6:$EV$312,33,FALSE) -> 61% | N21: =VLOOKUP($C21,'RECAP SECT'!$G$6:$EV$312,34,FALSE) -> 24 | O21: =VLOOKUP($C21,'RECAP SECT'!$G$6:$EV$312,35,FALSE) -> 0.31 | P21: =VLOOKUP($C21,'RECAP SECT'!$G$6:$EV$312,36,FALSE) -> 94% | Q21: =VLOOKUP($C21,'RECAP SECT'!$G$6:$EV$312,37,FALSE) -> 54 | R21: =VLOOKUP($C21,'RECAP SECT'!$G$6:$EV$312,38,FALSE) -> 2% | S21: =VLOOKUP($C21,'RECAP SECT'!$G$6:$EV$312,39,FALSE) -> 90% | T21: =VLOOKUP($C21,'RECAP SECT'!$G$6:$EV$312,40,FALSE) -> 64 | U21: =VLOOKUP($C21,'RECAP SECT'!$G$6:$EV$312,41,FALSE) -> 72% | V21: =VLOOKUP($C21,'RECAP SECT'!$G$6:$EV$312,42,FALSE) -> 37% | W21: =VLOOKUP($C21,'RECAP SECT'!$G$6:$EV$312,43,FALSE) -> 36
A22: 262 | B22: BAS-RHIN | C22: 5060 | D22: SECTEUR HAGUENAU | E22: =VLOOKUP($C22,'RECAP SECT'!$G$6:$EV$312,3,FALSE) -> 23.5 | F22: =VLOOKUP($C22,'RECAP SECT'!$G$6:$EV$312,26,FALSE) -> -4.81 | G22: =VLOOKUP($C22,'RECAP SECT'!$G$6:$EV$312,27,FALSE) -> 27% | H22: =VLOOKUP($C22,'RECAP SECT'!$G$6:$EV$312,28,FALSE) -> 9 | I22: =VLOOKUP($C22,'RECAP SECT'!$G$6:$EV$312,29,FALSE) -> 1.32 | J22: =VLOOKUP($C22,'RECAP SECT'!$G$6:$EV$312,30,FALSE) -> 88% | K22: =VLOOKUP($C22,'RECAP SECT'!$G$6:$EV$312,31,FALSE) -> 63 | L22: =VLOOKUP($C22,'RECAP SECT'!$G$6:$EV$312,32,FALSE) -> 2.51 | M22: =VLOOKUP($C22,'RECAP SECT'!$G$6:$EV$312,33,FALSE) -> 79% | N22: =VLOOKUP($C22,'RECAP SECT'!$G$6:$EV$312,34,FALSE) -> 46 | O22: =VLOOKUP($C22,'RECAP SECT'!$G$6:$EV$312,35,FALSE) -> 0.13 | P22: =VLOOKUP($C22,'RECAP SECT'!$G$6:$EV$312,36,FALSE) -> 98% | Q22: =VLOOKUP($C22,'RECAP SECT'!$G$6:$EV$312,37,FALSE) -> 62 | R22: =VLOOKUP($C22,'RECAP SECT'!$G$6:$EV$312,38,FALSE) -> 20% | S22: =VLOOKUP($C22,'RECAP SECT'!$G$6:$EV$312,39,FALSE) -> 80% | T22: =VLOOKUP($C22,'RECAP SECT'!$G$6:$EV$312,40,FALSE) -> 47 | U22: =VLOOKUP($C22,'RECAP SECT'!$G$6:$EV$312,41,FALSE) -> 74% | V22: =VLOOKUP($C22,'RECAP SECT'!$G$6:$EV$312,42,FALSE) -> 40% | W22: =VLOOKUP($C22,'RECAP SECT'!$G$6:$EV$312,43,FALSE) -> 43
A23: 262 | B23: BAS-RHIN | C23: 5043 | D23: SECTEUR HALLES | E23: =VLOOKUP($C23,'RECAP SECT'!$G$6:$EV$312,3,FALSE) -> 24.5 | F23: =VLOOKUP($C23,'RECAP SECT'!$G$6:$EV$312,26,FALSE) -> -3.47 | G23: =VLOOKUP($C23,'RECAP SECT'!$G$6:$EV$312,27,FALSE) -> 7% | H23: =VLOOKUP($C23,'RECAP SECT'!$G$6:$EV$312,28,FALSE) -> 3 | I23: =VLOOKUP($C23,'RECAP SECT'!$G$6:$EV$312,29,FALSE) -> 0.61 | J23: =VLOOKUP($C23,'RECAP SECT'!$G$6:$EV$312,30,FALSE) -> 94% | K23: =VLOOKUP($C23,'RECAP SECT'!$G$6:$EV$312,31,FALSE) -> 72 | L23: =VLOOKUP($C23,'RECAP SECT'!$G$6:$EV$312,32,FALSE) -> -0.12 | M23: =VLOOKUP($C23,'RECAP SECT'!$G$6:$EV$312,33,FALSE) -> 101% | N23: =VLOOKUP($C23,'RECAP SECT'!$G$6:$EV$312,34,FALSE) -> 74 | O23: =VLOOKUP($C23,'RECAP SECT'!$G$6:$EV$312,35,FALSE) -> -0.45 | P23: =VLOOKUP($C23,'RECAP SECT'!$G$6:$EV$312,36,FALSE) -> 108% | Q23: =VLOOKUP($C23,'RECAP SECT'!$G$6:$EV$312,37,FALSE) -> 75 | R23: =VLOOKUP($C23,'RECAP SECT'!$G$6:$EV$312,38,FALSE) -> 27% | S23: =VLOOKUP($C23,'RECAP SECT'!$G$6:$EV$312,39,FALSE) -> 77% | T23: =VLOOKUP($C23,'RECAP SECT'!$G$6:$EV$312,40,FALSE) -> 39 | U23: =VLOOKUP($C23,'RECAP SECT'!$G$6:$EV$312,41,FALSE) -> 78% | V23: =VLOOKUP($C23,'RECAP SECT'!$G$6:$EV$312,42,FALSE) -> 43% | W23: =VLOOKUP($C23,'RECAP SECT'!$G$6:$EV$312,43,FALSE) -> 54
A24: 262 | B24: BAS-RHIN | C24: 5007 | D24: SECTEUR ILLKIRCH | E24: =VLOOKUP($C24,'RECAP SECT'!$G$6:$EV$312,3,FALSE) -> 18.3 | F24: =VLOOKUP($C24,'RECAP SECT'!$G$6:$EV$312,26,FALSE) -> -5.42 | G24: =VLOOKUP($C24,'RECAP SECT'!$G$6:$EV$312,27,FALSE) -> 36% | H24: =VLOOKUP($C24,'RECAP SECT'!$G$6:$EV$312,28,FALSE) -> 12 | I24: =VLOOKUP($C24,'RECAP SECT'!$G$6:$EV$312,29,FALSE) -> 2.19 | J24: =VLOOKUP($C24,'RECAP SECT'!$G$6:$EV$312,30,FALSE) -> 80% | K24: =VLOOKUP($C24,'RECAP SECT'!$G$6:$EV$312,31,FALSE) -> 49 | L24: =VLOOKUP($C24,'RECAP SECT'!$G$6:$EV$312,32,FALSE) -> 3.23 | M24: =VLOOKUP($C24,'RECAP SECT'!$G$6:$EV$312,33,FALSE) -> 73% | N24: =VLOOKUP($C24,'RECAP SECT'!$G$6:$EV$312,34,FALSE) -> 37 | O24: =VLOOKUP($C24,'RECAP SECT'!$G$6:$EV$312,35,FALSE) -> 2.68 | P24: =VLOOKUP($C24,'RECAP SECT'!$G$6:$EV$312,36,FALSE) -> 51% | Q24: =VLOOKUP($C24,'RECAP SECT'!$G$6:$EV$312,37,FALSE) -> 11 | R24: =VLOOKUP($C24,'RECAP SECT'!$G$6:$EV$312,38,FALSE) -> 13% | S24: =VLOOKUP($C24,'RECAP SECT'!$G$6:$EV$312,39,FALSE) -> 84% | T24: =VLOOKUP($C24,'RECAP SECT'!$G$6:$EV$312,40,FALSE) -> 51 | U24: =VLOOKUP($C24,'RECAP SECT'!$G$6:$EV$312,41,FALSE) -> 64% | V24: =VLOOKUP($C24,'RECAP SECT'!$G$6:$EV$312,42,FALSE) -> 30% | W24: =VLOOKUP($C24,'RECAP SECT'!$G$6:$EV$312,43,FALSE) -> 21
A25: 262 | B25: BAS-RHIN | C25: 5085 | D25: SECTEUR INGWILLER | E25: =VLOOKUP($C25,'RECAP SECT'!$G$6:$EV$312,3,FALSE) -> 19.8 | F25: =VLOOKUP($C25,'RECAP SECT'!$G$6:$EV$312,26,FALSE) -> -5.36 | G25: =VLOOKUP($C25,'RECAP SECT'!$G$6:$EV$312,27,FALSE) -> 35% | H25: =VLOOKUP($C25,'RECAP SECT'!$G$6:$EV$312,28,FALSE) -> 11 | I25: =VLOOKUP($C25,'RECAP SECT'!$G$6:$EV$312,29,FALSE) -> 1.42 | J25: =VLOOKUP($C25,'RECAP SECT'!$G$6:$EV$312,30,FALSE) -> 87% | K25: =VLOOKUP($C25,'RECAP SECT'!$G$6:$EV$312,31,FALSE) -> 60 | L25: =VLOOKUP($C25,'RECAP SECT'!$G$6:$EV$312,32,FALSE) -> 3.03 | M25: =VLOOKUP($C25,'RECAP SECT'!$G$6:$EV$312,33,FALSE) -> 74% | N25: =VLOOKUP($C25,'RECAP SECT'!$G$6:$EV$312,34,FALSE) -> 40 | O25: =VLOOKUP($C25,'RECAP SECT'!$G$6:$EV$312,35,FALSE) -> 1.01 | P25: =VLOOKUP($C25,'RECAP SECT'!$G$6:$EV$312,36,FALSE) -> 81% | Q25: =VLOOKUP($C25,'RECAP SECT'!$G$6:$EV$312,37,FALSE) -> 35 | R25: =VLOOKUP($C25,'RECAP SECT'!$G$6:$EV$312,38,FALSE) -> -2% | S25: =VLOOKUP($C25,'RECAP SECT'!$G$6:$EV$312,39,FALSE) -> 91% | T25: =VLOOKUP($C25,'RECAP SECT'!$G$6:$EV$312,40,FALSE) -> 67 | U25: =VLOOKUP($C25,'RECAP SECT'!$G$6:$EV$312,41,FALSE) -> 74% | V25: =VLOOKUP($C25,'RECAP SECT'!$G$6:$EV$312,42,FALSE) -> 39% | W25: =VLOOKUP($C25,'RECAP SECT'!$G$6:$EV$312,43,FALSE) -> 40
A26: 262 | B26: BAS-RHIN | C26: 5116 | D26: SECTEUR MOLSHEIM | E26: =VLOOKUP($C26,'RECAP SECT'!$G$6:$EV$312,3,FALSE) -> 20.5 | F26: =VLOOKUP($C26,'RECAP SECT'!$G$6:$EV$312,26,FALSE) -> -7.38 | G26: =VLOOKUP($C26,'RECAP SECT'!$G$6:$EV$312,27,FALSE) -> 64% | H26: =VLOOKUP($C26,'RECAP SECT'!$G$6:$EV$312,28,FALSE) -> 39 | I26: =VLOOKUP($C26,'RECAP SECT'!$G$6:$EV$312,29,FALSE) -> 2.79 | J26: =VLOOKUP($C26,'RECAP SECT'!$G$6:$EV$312,30,FALSE) -> 74% | K26: =VLOOKUP($C26,'RECAP SECT'!$G$6:$EV$312,31,FALSE) -> 43 | L26: =VLOOKUP($C26,'RECAP SECT'!$G$6:$EV$312,32,FALSE) -> 4.11 | M26: =VLOOKUP($C26,'RECAP SECT'!$G$6:$EV$312,33,FALSE) -> 65% | N26: =VLOOKUP($C26,'RECAP SECT'!$G$6:$EV$312,34,FALSE) -> 29 | O26: =VLOOKUP($C26,'RECAP SECT'!$G$6:$EV$312,35,FALSE) -> 1.76 | P26: =VLOOKUP($C26,'RECAP SECT'!$G$6:$EV$312,36,FALSE) -> 68% | Q26: =VLOOKUP($C26,'RECAP SECT'!$G$6:$EV$312,37,FALSE) -> 25 | R26: =VLOOKUP($C26,'RECAP SECT'!$G$6:$EV$312,38,FALSE) -> 32% | S26: =VLOOKUP($C26,'RECAP SECT'!$G$6:$EV$312,39,FALSE) -> 75% | T26: =VLOOKUP($C26,'RECAP SECT'!$G$6:$EV$312,40,FALSE) -> 36 | U26: =VLOOKUP($C26,'RECAP SECT'!$G$6:$EV$312,41,FALSE) -> 69% | V26: =VLOOKUP($C26,'RECAP SECT'!$G$6:$EV$312,42,FALSE) -> 35% | W26: =VLOOKUP($C26,'RECAP SECT'!$G$6:$EV$312,43,FALSE) -> 33
A27: 262 | B27: BAS-RHIN | C27: 5006 | D27: SECTEUR NEUDORF | E27: =VLOOKUP($C27,'RECAP SECT'!$G$6:$EV$312,3,FALSE) -> 22.2 | F27: =VLOOKUP($C27,'RECAP SECT'!$G$6:$EV$312,26,FALSE) -> -8.03 | G27: =VLOOKUP($C27,'RECAP SECT'!$G$6:$EV$312,27,FALSE) -> 74% | H27: =VLOOKUP($C27,'RECAP SECT'!$G$6:$EV$312,28,FALSE) -> 50 | I27: =VLOOKUP($C27,'RECAP SECT'!$G$6:$EV$312,29,FALSE) -> 1.08 | J27: =VLOOKUP($C27,'RECAP SECT'!$G$6:$EV$312,30,FALSE) -> 90% | K27: =VLOOKUP($C27,'RECAP SECT'!$G$6:$EV$312,31,FALSE) -> 66 | L27: =VLOOKUP($C27,'RECAP SECT'!$G$6:$EV$312,32,FALSE) -> -0.32 | M27: =VLOOKUP($C27,'RECAP SECT'!$G$6:$EV$312,33,FALSE) -> 103% | N27: =VLOOKUP($C27,'RECAP SECT'!$G$6:$EV$312,34,FALSE) -> 75 | O27: =VLOOKUP($C27,'RECAP SECT'!$G$6:$EV$312,35,FALSE) -> 0.50 | P27: =VLOOKUP($C27,'RECAP SECT'!$G$6:$EV$312,36,FALSE) -> 91% | Q27: =VLOOKUP($C27,'RECAP SECT'!$G$6:$EV$312,37,FALSE) -> 49 | R27: =VLOOKUP($C27,'RECAP SECT'!$G$6:$EV$312,38,FALSE) -> -15% | S27: =VLOOKUP($C27,'RECAP SECT'!$G$6:$EV$312,39,FALSE) -> 98% | T27: =VLOOKUP($C27,'RECAP SECT'!$G$6:$EV$312,40,FALSE) -> 73 | U27: =VLOOKUP($C27,'RECAP SECT'!$G$6:$EV$312,41,FALSE) -> 91% | V27: =VLOOKUP($C27,'RECAP SECT'!$G$6:$EV$312,42,FALSE) -> 57% | W27: =VLOOKUP($C27,'RECAP SECT'!$G$6:$EV$312,43,FALSE) -> 76
A28: 262 | B28: BAS-RHIN | C28: 5119 | D28: SECTEUR OBERNAI | E28: =VLOOKUP($C28,'RECAP SECT'!$G$6:$EV$312,3,FALSE) -> 18.9 | F28: =VLOOKUP($C28,'RECAP SECT'!$G$6:$EV$312,26,FALSE) -> -6.09 | G28: =VLOOKUP($C28,'RECAP SECT'!$G$6:$EV$312,27,FALSE) -> 45% | H28: =VLOOKUP($C28,'RECAP SECT'!$G$6:$EV$312,28,FALSE) -> 19 | I28: =VLOOKUP($C28,'RECAP SECT'!$G$6:$EV$312,29,FALSE) -> 0.16 | J28: =VLOOKUP($C28,'RECAP SECT'!$G$6:$EV$312,30,FALSE) -> 99% | K28: =VLOOKUP($C28,'RECAP SECT'!$G$6:$EV$312,31,FALSE) -> 75 | L28: =VLOOKUP($C28,'RECAP SECT'!$G$6:$EV$312,32,FALSE) -> 1.48 | M28: =VLOOKUP($C28,'RECAP SECT'!$G$6:$EV$312,33,FALSE) -> 87% | N28: =VLOOKUP($C28,'RECAP SECT'!$G$6:$EV$312,34,FALSE) -> 64 | O28: =VLOOKUP($C28,'RECAP SECT'!$G$6:$EV$312,35,FALSE) -> 0.74 | P28: =VLOOKUP($C28,'RECAP SECT'!$G$6:$EV$312,36,FALSE) -> 86% | Q28: =VLOOKUP($C28,'RECAP SECT'!$G$6:$EV$312,37,FALSE) -> 40 | R28: =VLOOKUP($C28,'RECAP SECT'!$G$6:$EV$312,38,FALSE) -> 13% | S28: =VLOOKUP($C28,'RECAP SECT'!$G$6:$EV$312,39,FALSE) -> 84% | T28: =VLOOKUP($C28,'RECAP SECT'!$G$6:$EV$312,40,FALSE) -> 52 | U28: =VLOOKUP($C28,'RECAP SECT'!$G$6:$EV$312,41,FALSE) -> 80% | V28: =VLOOKUP($C28,'RECAP SECT'!$G$6:$EV$312,42,FALSE) -> 46% | W28: =VLOOKUP($C28,'RECAP SECT'!$G$6:$EV$312,43,FALSE) -> 61
A29: 262 | B29: BAS-RHIN | C29: 5020 | D29: SECTEUR ROBERTSAU | E29: =VLOOKUP($C29,'RECAP SECT'!$G$6:$EV$312,3,FALSE) -> 18.6 | F29: =VLOOKUP($C29,'RECAP SECT'!$G$6:$EV$312,26,FALSE) -> -6.46 | G29: =VLOOKUP($C29,'RECAP SECT'!$G$6:$EV$312,27,FALSE) -> 51% | H29: =VLOOKUP($C29,'RECAP SECT'!$G$6:$EV$312,28,FALSE) -> 23 | I29: =VLOOKUP($C29,'RECAP SECT'!$G$6:$EV$312,29,FALSE) -> 1.56 | J29: =VLOOKUP($C29,'RECAP SECT'!$G$6:$EV$312,30,FALSE) -> 86% | K29: =VLOOKUP($C29,'RECAP SECT'!$G$6:$EV$312,31,FALSE) -> 56 | L29: =VLOOKUP($C29,'RECAP SECT'!$G$6:$EV$312,32,FALSE) -> 2.15 | M29: =VLOOKUP($C29,'RECAP SECT'!$G$6:$EV$312,33,FALSE) -> 82% | N29: =VLOOKUP($C29,'RECAP SECT'!$G$6:$EV$312,34,FALSE) -> 50 | O29: =VLOOKUP($C29,'RECAP SECT'!$G$6:$EV$312,35,FALSE) -> 1.08 | P29: =VLOOKUP($C29,'RECAP SECT'!$G$6:$EV$312,36,FALSE) -> 80% | Q29: =VLOOKUP($C29,'RECAP SECT'!$G$6:$EV$312,37,FALSE) -> 34 | R29: =VLOOKUP($C29,'RECAP SECT'!$G$6:$EV$312,38,FALSE) -> -9% | S29: =VLOOKUP($C29,'RECAP SECT'!$G$6:$EV$312,39,FALSE) -> 95% | T29: =VLOOKUP($C29,'RECAP SECT'!$G$6:$EV$312,40,FALSE) -> 70 | U29: =VLOOKUP($C29,'RECAP SECT'!$G$6:$EV$312,41,FALSE) -> 79% | V29: =VLOOKUP($C29,'RECAP SECT'!$G$6:$EV$312,42,FALSE) -> 44% | W29: =VLOOKUP($C29,'RECAP SECT'!$G$6:$EV$312,43,FALSE) -> 56
A30: 262 | B30: BAS-RHIN | C30: 5087 | D30: SECTEUR SAVERNE | E30: =VLOOKUP($C30,'RECAP SECT'!$G$6:$EV$312,3,FALSE) -> 15.5 | F30: =VLOOKUP($C30,'RECAP SECT'!$G$6:$EV$312,26,FALSE) -> -6.57 | G30: =VLOOKUP($C30,'RECAP SECT'!$G$6:$EV$312,27,FALSE) -> 52% | H30: =VLOOKUP($C30,'RECAP SECT'!$G$6:$EV$312,28,FALSE) -> 27 | I30: =VLOOKUP($C30,'RECAP SECT'!$G$6:$EV$312,29,FALSE) -> 1.68 | J30: =VLOOKUP($C30,'RECAP SECT'!$G$6:$EV$312,30,FALSE) -> 84% | K30: =VLOOKUP($C30,'RECAP SECT'!$G$6:$EV$312,31,FALSE) -> 55 | L30: =VLOOKUP($C30,'RECAP SECT'!$G$6:$EV$312,32,FALSE) -> 3.03 | M30: =VLOOKUP($C30,'RECAP SECT'!$G$6:$EV$312,33,FALSE) -> 74% | N30: =VLOOKUP($C30,'RECAP SECT'!$G$6:$EV$312,34,FALSE) -> 41 | O30: =VLOOKUP($C30,'RECAP SECT'!$G$6:$EV$312,35,FALSE) -> 0.58 | P30: =VLOOKUP($C30,'RECAP SECT'!$G$6:$EV$312,36,FALSE) -> 89% | Q30: =VLOOKUP($C30,'RECAP SECT'!$G$6:$EV$312,37,FALSE) -> 47 | R30: =VLOOKUP($C30,'RECAP SECT'!$G$6:$EV$312,38,FALSE) -> 8% | S30: =VLOOKUP($C30,'RECAP SECT'!$G$6:$EV$312,39,FALSE) -> 86% | T30: =VLOOKUP($C30,'RECAP SECT'!$G$6:$EV$312,40,FALSE) -> 57 | U30: =VLOOKUP($C30,'RECAP SECT'!$G$6:$EV$312,41,FALSE) -> 77% | V30: =VLOOKUP($C30,'RECAP SECT'!$G$6:$EV$312,42,FALSE) -> 43% | W30: =VLOOKUP($C30,'RECAP SECT'!$G$6:$EV$312,43,FALSE) -> 53
A31: 262 | B31: BAS-RHIN | C31: 5101 | D31: SECTEUR SELESTAT | E31: =VLOOKUP($C31,'RECAP SECT'!$G$6:$EV$312,3,FALSE) -> 18.7 | F31: =VLOOKUP($C31,'RECAP SECT'!$G$6:$EV$312,26,FALSE) -> -4.21 | G31: =VLOOKUP($C31,'RECAP SECT'!$G$6:$EV$312,27,FALSE) -> 18% | H31: =VLOOKUP($C31,'RECAP SECT'!$G$6:$EV$312,28,FALSE) -> 6 | I31: =VLOOKUP($C31,'RECAP SECT'!$G$6:$EV$312,29,FALSE) -> -0.59 | J31: =VLOOKUP($C31,'RECAP SECT'!$G$6:$EV$312,30,FALSE) -> 105% | K31: =VLOOKUP($C31,'RECAP SECT'!$G$6:$EV$312,31,FALSE) -> 76 | L31: =VLOOKUP($C31,'RECAP SECT'!$G$6:$EV$312,32,FALSE) -> 1.23 | M31: =VLOOKUP($C31,'RECAP SECT'!$G$6:$EV$312,33,FALSE) -> 90% | N31: =VLOOKUP($C31,'RECAP SECT'!$G$6:$EV$312,34,FALSE) -> 68 | O31: =VLOOKUP($C31,'RECAP SECT'!$G$6:$EV$312,35,FALSE) -> -0.27 | P31: =VLOOKUP($C31,'RECAP SECT'!$G$6:$EV$312,36,FALSE) -> 105% | Q31: =VLOOKUP($C31,'RECAP SECT'!$G$6:$EV$312,37,FALSE) -> 72 | R31: =VLOOKUP($C31,'RECAP SECT'!$G$6:$EV$312,38,FALSE) -> 9% | S31: =VLOOKUP($C31,'RECAP SECT'!$G$6:$EV$312,39,FALSE) -> 86% | T31: =VLOOKUP($C31,'RECAP SECT'!$G$6:$EV$312,40,FALSE) -> 55 | U31: =VLOOKUP($C31,'RECAP SECT'!$G$6:$EV$312,41,FALSE) -> 81% | V31: =VLOOKUP($C31,'RECAP SECT'!$G$6:$EV$312,42,FALSE) -> 46% | W31: =VLOOKUP($C31,'RECAP SECT'!$G$6:$EV$312,43,FALSE) -> 63
A32: 262 | B32: BAS-RHIN | C32: 5071 | D32: SECTEUR WISSEMBOURG | E32: =VLOOKUP($C32,'RECAP SECT'!$G$6:$EV$312,3,FALSE) -> 15.7 | F32: =VLOOKUP($C32,'RECAP SECT'!$G$6:$EV$312,26,FALSE) -> -3.77 | G32: =VLOOKUP($C32,'RECAP SECT'!$G$6:$EV$312,27,FALSE) -> 11% | H32: =VLOOKUP($C32,'RECAP SECT'!$G$6:$EV$312,28,FALSE) -> 4 | I32: =VLOOKUP($C32,'RECAP SECT'!$G$6:$EV$312,29,FALSE) -> 1.53 | J32: =VLOOKUP($C32,'RECAP SECT'!$G$6:$EV$312,30,FALSE) -> 86% | K32: =VLOOKUP($C32,'RECAP SECT'!$G$6:$EV$312,31,FALSE) -> 58 | L32: =VLOOKUP($C32,'RECAP SECT'!$G$6:$EV$312,32,FALSE) -> 1.85 | M32: =VLOOKUP($C32,'RECAP SECT'!$G$6:$EV$312,33,FALSE) -> 84% | N32: =VLOOKUP($C32,'RECAP SECT'!$G$6:$EV$312,34,FALSE) -> 54 | O32: =VLOOKUP($C32,'RECAP SECT'!$G$6:$EV$312,35,FALSE) -> 0.70 | P32: =VLOOKUP($C32,'RECAP SECT'!$G$6:$EV$312,36,FALSE) -> 87% | Q32: =VLOOKUP($C32,'RECAP SECT'!$G$6:$EV$312,37,FALSE) -> 43 | R32: =VLOOKUP($C32,'RECAP SECT'!$G$6:$EV$312,38,FALSE) -> 36% | S32: =VLOOKUP($C32,'RECAP SECT'!$G$6:$EV$312,39,FALSE) -> 72% | T32: =VLOOKUP($C32,'RECAP SECT'!$G$6:$EV$312,40,FALSE) -> 29 | U32: =VLOOKUP($C32,'RECAP SECT'!$G$6:$EV$312,41,FALSE) -> 68% | V32: =VLOOKUP($C32,'RECAP SECT'!$G$6:$EV$312,42,FALSE) -> 34% | W32: =VLOOKUP($C32,'RECAP SECT'!$G$6:$EV$312,43,FALSE) -> 29
A33: 264 | B33: HAUT-RHIN | C33: 5130 | D33: SECTEUR COLMAR | E33: =VLOOKUP($C33,'RECAP SECT'!$G$6:$EV$312,3,FALSE) -> 31.5 | F33: =VLOOKUP($C33,'RECAP SECT'!$G$6:$EV$312,26,FALSE) -> -3.21 | G33: =VLOOKUP($C33,'RECAP SECT'!$G$6:$EV$312,27,FALSE) -> 3% | H33: =VLOOKUP($C33,'RECAP SECT'!$G$6:$EV$312,28,FALSE) -> 2 | I33: =VLOOKUP($C33,'RECAP SECT'!$G$6:$EV$312,29,FALSE) -> 1.36 | J33: =VLOOKUP($C33,'RECAP SECT'!$G$6:$EV$312,30,FALSE) -> 87% | K33: =VLOOKUP($C33,'RECAP SECT'!$G$6:$EV$312,31,FALSE) -> 62 | L33: =VLOOKUP($C33,'RECAP SECT'!$G$6:$EV$312,32,FALSE) -> 1.68 | M33: =VLOOKUP($C33,'RECAP SECT'!$G$6:$EV$312,33,FALSE) -> 86% | N33: =VLOOKUP($C33,'RECAP SECT'!$G$6:$EV$312,34,FALSE) -> 61 | O33: =VLOOKUP($C33,'RECAP SECT'!$G$6:$EV$312,35,FALSE) -> 1.68 | P33: =VLOOKUP($C33,'RECAP SECT'!$G$6:$EV$312,36,FALSE) -> 69% | Q33: =VLOOKUP($C33,'RECAP SECT'!$G$6:$EV$312,37,FALSE) -> 26 | R33: =VLOOKUP($C33,'RECAP SECT'!$G$6:$EV$312,38,FALSE) -> 23% | S33: =VLOOKUP($C33,'RECAP SECT'!$G$6:$EV$312,39,FALSE) -> 79% | T33: =VLOOKUP($C33,'RECAP SECT'!$G$6:$EV$312,40,FALSE) -> 45 | U33: =VLOOKUP($C33,'RECAP SECT'!$G$6:$EV$312,41,FALSE) -> 65% | V33: =VLOOKUP($C33,'RECAP SECT'!$G$6:$EV$312,42,FALSE) -> 30% | W33: =VLOOKUP($C33,'RECAP SECT'!$G$6:$EV$312,43,FALSE) -> 22
A34: 264 | B34: HAUT-RHIN | C34: 5147 | D34: SECTEUR GUEBWILLER | E34: =VLOOKUP($C34,'RECAP SECT'!$G$6:$EV$312,3,FALSE) -> 16.7 | F34: =VLOOKUP($C34,'RECAP SECT'!$G$6:$EV$312,26,FALSE) -> -7.05 | G34: =VLOOKUP($C34,'RECAP SECT'!$G$6:$EV$312,27,FALSE) -> 59% | H34: =VLOOKUP($C34,'RECAP SECT'!$G$6:$EV$312,28,FALSE) -> 33 | I34: =VLOOKUP($C34,'RECAP SECT'!$G$6:$EV$312,29,FALSE) -> 1.13 | J34: =VLOOKUP($C34,'RECAP SECT'!$G$6:$EV$312,30,FALSE) -> 89% | K34: =VLOOKUP($C34,'RECAP SECT'!$G$6:$EV$312,31,FALSE) -> 65 | L34: =VLOOKUP($C34,'RECAP SECT'!$G$6:$EV$312,32,FALSE) -> 2.87 | M34: =VLOOKUP($C34,'RECAP SECT'!$G$6:$EV$312,33,FALSE) -> 76% | N34: =VLOOKUP($C34,'RECAP SECT'!$G$6:$EV$312,34,FALSE) -> 42 | O34: =VLOOKUP($C34,'RECAP SECT'!$G$6:$EV$312,35,FALSE) -> 1.79 | P34: =VLOOKUP($C34,'RECAP SECT'!$G$6:$EV$312,36,FALSE) -> 67% | Q34: =VLOOKUP($C34,'RECAP SECT'!$G$6:$EV$312,37,FALSE) -> 24 | R34: =VLOOKUP($C34,'RECAP SECT'!$G$6:$EV$312,38,FALSE) -> 24% | S34: =VLOOKUP($C34,'RECAP SECT'!$G$6:$EV$312,39,FALSE) -> 78% | T34: =VLOOKUP($C34,'RECAP SECT'!$G$6:$EV$312,40,FALSE) -> 44 | U34: =VLOOKUP($C34,'RECAP SECT'!$G$6:$EV$312,41,FALSE) -> 74% | V34: =VLOOKUP($C34,'RECAP SECT'!$G$6:$EV$312,42,FALSE) -> 40% | W34: =VLOOKUP($C34,'RECAP SECT'!$G$6:$EV$312,43,FALSE) -> 41
A35: 264 | B35: HAUT-RHIN | C35: 5184 | D35: SECTEUR ILLZACH | E35: =VLOOKUP($C35,'RECAP SECT'!$G$6:$EV$312,3,FALSE) -> 18.6 | F35: =VLOOKUP($C35,'RECAP SECT'!$G$6:$EV$312,26,FALSE) -> -7.05 | G35: =VLOOKUP($C35,'RECAP SECT'!$G$6:$EV$312,27,FALSE) -> 59% | H35: =VLOOKUP($C35,'RECAP SECT'!$G$6:$EV$312,28,FALSE) -> 34 | I35: =VLOOKUP($C35,'RECAP SECT'!$G$6:$EV$312,29,FALSE) -> -0.59 | J35: =VLOOKUP($C35,'RECAP SECT'!$G$6:$EV$312,30,FALSE) -> 105% | K35: =VLOOKUP($C35,'RECAP SECT'!$G$6:$EV$312,31,FALSE) -> 77 | L35: =VLOOKUP($C35,'RECAP SECT'!$G$6:$EV$312,32,FALSE) -> 1.51 | M35: =VLOOKUP($C35,'RECAP SECT'!$G$6:$EV$312,33,FALSE) -> 87% | N35: =VLOOKUP($C35,'RECAP SECT'!$G$6:$EV$312,34,FALSE) -> 63 | O35: =VLOOKUP($C35,'RECAP SECT'!$G$6:$EV$312,35,FALSE) -> -0.48 | P35: =VLOOKUP($C35,'RECAP SECT'!$G$6:$EV$312,36,FALSE) -> 109% | Q35: =VLOOKUP($C35,'RECAP SECT'!$G$6:$EV$312,37,FALSE) -> 76 | R35: =VLOOKUP($C35,'RECAP SECT'!$G$6:$EV$312,38,FALSE) -> 20% | S35: =VLOOKUP($C35,'RECAP SECT'!$G$6:$EV$312,39,FALSE) -> 81% | T35: =VLOOKUP($C35,'RECAP SECT'!$G$6:$EV$312,40,FALSE) -> 49 | U35: =VLOOKUP($C35,'RECAP SECT'!$G$6:$EV$312,41,FALSE) -> 88% | V35: =VLOOKUP($C35,'RECAP SECT'!$G$6:$EV$312,42,FALSE) -> 54% | W35: =VLOOKUP($C35,'RECAP SECT'!$G$6:$EV$312,43,FALSE) -> 73
A36: 264 | B36: HAUT-RHIN | C36: 5143 | D36: SECTEUR MUNSTER | E36: =VLOOKUP($C36,'RECAP SECT'!$G$6:$EV$312,3,FALSE) -> 33.4 | F36: =VLOOKUP($C36,'RECAP SECT'!$G$6:$EV$312,26,FALSE) -> -3.00 | G36: =VLOOKUP($C36,'RECAP SECT'!$G$6:$EV$312,27,FALSE) -> 0% | H36: =VLOOKUP($C36,'RECAP SECT'!$G$6:$EV$312,28,FALSE) -> 1 | I36: =VLOOKUP($C36,'RECAP SECT'!$G$6:$EV$312,29,FALSE) -> 0.90 | J36: =VLOOKUP($C36,'RECAP SECT'!$G$6:$EV$312,30,FALSE) -> 92% | K36: =VLOOKUP($C36,'RECAP SECT'!$G$6:$EV$312,31,FALSE) -> 69 | L36: =VLOOKUP($C36,'RECAP SECT'!$G$6:$EV$312,32,FALSE) -> 3.63 | M36: =VLOOKUP($C36,'RECAP SECT'!$G$6:$EV$312,33,FALSE) -> 69% | N36: =VLOOKUP($C36,'RECAP SECT'!$G$6:$EV$312,34,FALSE) -> 34 | O36: =VLOOKUP($C36,'RECAP SECT'!$G$6:$EV$312,35,FALSE) -> 1.29 | P36: =VLOOKUP($C36,'RECAP SECT'!$G$6:$EV$312,36,FALSE) -> 76% | Q36: =VLOOKUP($C36,'RECAP SECT'!$G$6:$EV$312,37,FALSE) -> 29 | R36: =VLOOKUP($C36,'RECAP SECT'!$G$6:$EV$312,38,FALSE) -> 28% | S36: =VLOOKUP($C36,'RECAP SECT'!$G$6:$EV$312,39,FALSE) -> 77% | T36: =VLOOKUP($C36,'RECAP SECT'!$G$6:$EV$312,40,FALSE) -> 38 | U36: =VLOOKUP($C36,'RECAP SECT'!$G$6:$EV$312,41,FALSE) -> 63% | V36: =VLOOKUP($C36,'RECAP SECT'!$G$6:$EV$312,42,FALSE) -> 28% | W36: =VLOOKUP($C36,'RECAP SECT'!$G$6:$EV$312,43,FALSE) -> 19
A37: 264 | B37: HAUT-RHIN | C37: 5169 | D37: SECTEUR ROOSEVELT | E37: =VLOOKUP($C37,'RECAP SECT'!$G$6:$EV$312,3,FALSE) -> 20.3 | F37: =VLOOKUP($C37,'RECAP SECT'!$G$6:$EV$312,26,FALSE) -> -8.22 | G37: =VLOOKUP($C37,'RECAP SECT'!$G$6:$EV$312,27,FALSE) -> 77% | H37: =VLOOKUP($C37,'RECAP SECT'!$G$6:$EV$312,28,FALSE) -> 54 | I37: =VLOOKUP($C37,'RECAP SECT'!$G$6:$EV$312,29,FALSE) -> 1.48 | J37: =VLOOKUP($C37,'RECAP SECT'!$G$6:$EV$312,30,FALSE) -> 86% | K37: =VLOOKUP($C37,'RECAP SECT'!$G$6:$EV$312,31,FALSE) -> 59 | L37: =VLOOKUP($C37,'RECAP SECT'!$G$6:$EV$312,32,FALSE) -> 2.46 | M37: =VLOOKUP($C37,'RECAP SECT'!$G$6:$EV$312,33,FALSE) -> 79% | N37: =VLOOKUP($C37,'RECAP SECT'!$G$6:$EV$312,34,FALSE) -> 47 | O37: =VLOOKUP($C37,'RECAP SECT'!$G$6:$EV$312,35,FALSE) -> 0.74 | P37: =VLOOKUP($C37,'RECAP SECT'!$G$6:$EV$312,36,FALSE) -> 86% | Q37: =VLOOKUP($C37,'RECAP SECT'!$G$6:$EV$312,37,FALSE) -> 41 | R37: =VLOOKUP($C37,'RECAP SECT'!$G$6:$EV$312,38,FALSE) -> 10% | S37: =VLOOKUP($C37,'RECAP SECT'!$G$6:$EV$312,39,FALSE) -> 85% | T37: =VLOOKUP($C37,'RECAP SECT'!$G$6:$EV$312,40,FALSE) -> 53 | U37: =VLOOKUP($C37,'RECAP SECT'!$G$6:$EV$312,41,FALSE) -> 83% | V37: =VLOOKUP($C37,'RECAP SECT'!$G$6:$EV$312,42,FALSE) -> 48% | W37: =VLOOKUP($C37,'RECAP SECT'!$G$6:$EV$312,43,FALSE) -> 65
A38: 264 | B38: HAUT-RHIN | C38: 5178 | D38: SECTEUR SAINT LOUIS | E38: =VLOOKUP($C38,'RECAP SECT'!$G$6:$EV$312,3,FALSE) -> 16.6 | F38: =VLOOKUP($C38,'RECAP SECT'!$G$6:$EV$312,26,FALSE) -> -6.04 | G38: =VLOOKUP($C38,'RECAP SECT'!$G$6:$EV$312,27,FALSE) -> 45% | H38: =VLOOKUP($C38,'RECAP SECT'!$G$6:$EV$312,28,FALSE) -> 17 | I38: =VLOOKUP($C38,'RECAP SECT'!$G$6:$EV$312,29,FALSE) -> 0.42 | J38: =VLOOKUP($C38,'RECAP SECT'!$G$6:$EV$312,30,FALSE) -> 96% | K38: =VLOOKUP($C38,'RECAP SECT'!$G$6:$EV$312,31,FALSE) -> 73 | L38: =VLOOKUP($C38,'RECAP SECT'!$G$6:$EV$312,32,FALSE) -> 1.93 | M38: =VLOOKUP($C38,'RECAP SECT'!$G$6:$EV$312,33,FALSE) -> 84% | N38: =VLOOKUP($C38,'RECAP SECT'!$G$6:$EV$312,34,FALSE) -> 53 | O38: =VLOOKUP($C38,'RECAP SECT'!$G$6:$EV$312,35,FALSE) -> 0.97 | P38: =VLOOKUP($C38,'RECAP SECT'!$G$6:$EV$312,36,FALSE) -> 82% | Q38: =VLOOKUP($C38,'RECAP SECT'!$G$6:$EV$312,37,FALSE) -> 37 | R38: =VLOOKUP($C38,'RECAP SECT'!$G$6:$EV$312,38,FALSE) -> 47% | S38: =VLOOKUP($C38,'RECAP SECT'!$G$6:$EV$312,39,FALSE) -> 67% | T38: =VLOOKUP($C38,'RECAP SECT'!$G$6:$EV$312,40,FALSE) -> 23 | U38: =VLOOKUP($C38,'RECAP SECT'!$G$6:$EV$312,41,FALSE) -> 75% | V38: =VLOOKUP($C38,'RECAP SECT'!$G$6:$EV$312,42,FALSE) -> 40% | W38: =VLOOKUP($C38,'RECAP SECT'!$G$6:$EV$312,43,FALSE) -> 46
A39: 264 | B39: HAUT-RHIN | C39: 5194 | D39: SECTEUR THANN | E39: =VLOOKUP($C39,'RECAP SECT'!$G$6:$EV$312,3,FALSE) -> 24.0 | F39: =VLOOKUP($C39,'RECAP SECT'!$G$6:$EV$312,26,FALSE) -> -6.72 | G39: =VLOOKUP($C39,'RECAP SECT'!$G$6:$EV$312,27,FALSE) -> 55% | H39: =VLOOKUP($C39,'RECAP SECT'!$G$6:$EV$312,28,FALSE) -> 28 | I39: =VLOOKUP($C39,'RECAP SECT'!$G$6:$EV$312,29,FALSE) -> 0.71 | J39: =VLOOKUP($C39,'RECAP SECT'!$G$6:$EV$312,30,FALSE) -> 93% | K39: =VLOOKUP($C39,'RECAP SECT'!$G$6:$EV$312,31,FALSE) -> 71 | L39: =VLOOKUP($C39,'RECAP SECT'!$G$6:$EV$312,32,FALSE) -> 2.63 | M39: =VLOOKUP($C39,'RECAP SECT'!$G$6:$EV$312,33,FALSE) -> 78% | N39: =VLOOKUP($C39,'RECAP SECT'!$G$6:$EV$312,34,FALSE) -> 45 | O39: =VLOOKUP($C39,'RECAP SECT'!$G$6:$EV$312,35,FALSE) -> 1.13 | P39: =VLOOKUP($C39,'RECAP SECT'!$G$6:$EV$312,36,FALSE) -> 79% | Q39: =VLOOKUP($C39,'RECAP SECT'!$G$6:$EV$312,37,FALSE) -> 32 | R39: =VLOOKUP($C39,'RECAP SECT'!$G$6:$EV$312,38,FALSE) -> 33% | S39: =VLOOKUP($C39,'RECAP SECT'!$G$6:$EV$312,39,FALSE) -> 74% | T39: =VLOOKUP($C39,'RECAP SECT'!$G$6:$EV$312,40,FALSE) -> 33 | U39: =VLOOKUP($C39,'RECAP SECT'!$G$6:$EV$312,41,FALSE) -> 76% | V39: =VLOOKUP($C39,'RECAP SECT'!$G$6:$EV$312,42,FALSE) -> 41% | W39: =VLOOKUP($C39,'RECAP SECT'!$G$6:$EV$312,43,FALSE) -> 49
A40: 30 | B40: MARNE-ARDENNES | C40: 6 | D40: SECTEUR CHALONS VIVIERS | E40: =VLOOKUP($C40,'RECAP SECT'!$G$6:$EV$312,3,FALSE) -> 25.3 | F40: =VLOOKUP($C40,'RECAP SECT'!$G$6:$EV$312,26,FALSE) -> -7.96 | G40: =VLOOKUP($C40,'RECAP SECT'!$G$6:$EV$312,27,FALSE) -> 73% | H40: =VLOOKUP($C40,'RECAP SECT'!$G$6:$EV$312,28,FALSE) -> 48 | I40: =VLOOKUP($C40,'RECAP SECT'!$G$6:$EV$312,29,FALSE) -> 10.29 | J40: =VLOOKUP($C40,'RECAP SECT'!$G$6:$EV$312,30,FALSE) -> 5% | K40: =VLOOKUP($C40,'RECAP SECT'!$G$6:$EV$312,31,FALSE) -> 3 | L40: =VLOOKUP($C40,'RECAP SECT'!$G$6:$EV$312,32,FALSE) -> 4.67 | M40: =VLOOKUP($C40,'RECAP SECT'!$G$6:$EV$312,33,FALSE) -> 61% | N40: =VLOOKUP($C40,'RECAP SECT'!$G$6:$EV$312,34,FALSE) -> 25 | O40: =VLOOKUP($C40,'RECAP SECT'!$G$6:$EV$312,35,FALSE) -> 1.58 | P40: =VLOOKUP($C40,'RECAP SECT'!$G$6:$EV$312,36,FALSE) -> 71% | Q40: =VLOOKUP($C40,'RECAP SECT'!$G$6:$EV$312,37,FALSE) -> 27 | R40: =VLOOKUP($C40,'RECAP SECT'!$G$6:$EV$312,38,FALSE) -> 68% | S40: =VLOOKUP($C40,'RECAP SECT'!$G$6:$EV$312,39,FALSE) -> 57% | T40: =VLOOKUP($C40,'RECAP SECT'!$G$6:$EV$312,40,FALSE) -> 13 | U40: =VLOOKUP($C40,'RECAP SECT'!$G$6:$EV$312,41,FALSE) -> 53% | V40: =VLOOKUP($C40,'RECAP SECT'!$G$6:$EV$312,42,FALSE) -> 19% | W40: =VLOOKUP($C40,'RECAP SECT'!$G$6:$EV$312,43,FALSE) -> 7
A41: 30 | B41: MARNE-ARDENNES | C41: 1 | D41: SECTEUR CHARLEVILLE JEAN JAURES | E41: =VLOOKUP($C41,'RECAP SECT'!$G$6:$EV$312,3,FALSE) -> 13.5 | F41: =VLOOKUP($C41,'RECAP SECT'!$G$6:$EV$312,26,FALSE) -> -8.72 | G41: =VLOOKUP($C41,'RECAP SECT'!$G$6:$EV$312,27,FALSE) -> 84% | H41: =VLOOKUP($C41,'RECAP SECT'!$G$6:$EV$312,28,FALSE) -> 60 | I41: =VLOOKUP($C41,'RECAP SECT'!$G$6:$EV$312,29,FALSE) -> 3.03 | J41: =VLOOKUP($C41,'RECAP SECT'!$G$6:$EV$312,30,FALSE) -> 72% | K41: =VLOOKUP($C41,'RECAP SECT'!$G$6:$EV$312,31,FALSE) -> 40 | L41: =VLOOKUP($C41,'RECAP SECT'!$G$6:$EV$312,32,FALSE) -> 3.55 | M41: =VLOOKUP($C41,'RECAP SECT'!$G$6:$EV$312,33,FALSE) -> 70% | N41: =VLOOKUP($C41,'RECAP SECT'!$G$6:$EV$312,34,FALSE) -> 35 | O41: =VLOOKUP($C41,'RECAP SECT'!$G$6:$EV$312,35,FALSE) -> 2.81 | P41: =VLOOKUP($C41,'RECAP SECT'!$G$6:$EV$312,36,FALSE) -> 48% | Q41: =VLOOKUP($C41,'RECAP SECT'!$G$6:$EV$312,37,FALSE) -> 9 | R41: =VLOOKUP($C41,'RECAP SECT'!$G$6:$EV$312,38,FALSE) -> 74% | S41: =VLOOKUP($C41,'RECAP SECT'!$G$6:$EV$312,39,FALSE) -> 53% | T41: =VLOOKUP($C41,'RECAP SECT'!$G$6:$EV$312,40,FALSE) -> 8 | U41: =VLOOKUP($C41,'RECAP SECT'!$G$6:$EV$312,41,FALSE) -> 66% | V41: =VLOOKUP($C41,'RECAP SECT'!$G$6:$EV$312,42,FALSE) -> 31% | W41: =VLOOKUP($C41,'RECAP SECT'!$G$6:$EV$312,43,FALSE) -> 24
A42: 30 | B42: MARNE-ARDENNES | C42: 2 | D42: SECTEUR CHARLEVILLE MEZIERES | E42: =VLOOKUP($C42,'RECAP SECT'!$G$6:$EV$312,3,FALSE) -> 11.1 | F42: =VLOOKUP($C42,'RECAP SECT'!$G$6:$EV$312,26,FALSE) -> -7.66 | G42: =VLOOKUP($C42,'RECAP SECT'!$G$6:$EV$312,27,FALSE) -> 68% | H42: =VLOOKUP($C42,'RECAP SECT'!$G$6:$EV$312,28,FALSE) -> 41 | I42: =VLOOKUP($C42,'RECAP SECT'!$G$6:$EV$312,29,FALSE) -> 10.36 | J42: =VLOOKUP($C42,'RECAP SECT'!$G$6:$EV$312,30,FALSE) -> 4% | K42: =VLOOKUP($C42,'RECAP SECT'!$G$6:$EV$312,31,FALSE) -> 2 | L42: =VLOOKUP($C42,'RECAP SECT'!$G$6:$EV$312,32,FALSE) -> 7.66 | M42: =VLOOKUP($C42,'RECAP SECT'!$G$6:$EV$312,33,FALSE) -> 35% | N42: =VLOOKUP($C42,'RECAP SECT'!$G$6:$EV$312,34,FALSE) -> 12 | O42: =VLOOKUP($C42,'RECAP SECT'!$G$6:$EV$312,35,FALSE) -> 2.16 | P42: =VLOOKUP($C42,'RECAP SECT'!$G$6:$EV$312,36,FALSE) -> 60% | Q42: =VLOOKUP($C42,'RECAP SECT'!$G$6:$EV$312,37,FALSE) -> 18 | R42: =VLOOKUP($C42,'RECAP SECT'!$G$6:$EV$312,38,FALSE) -> 121% | S42: =VLOOKUP($C42,'RECAP SECT'!$G$6:$EV$312,39,FALSE) -> 30% | T42: =VLOOKUP($C42,'RECAP SECT'!$G$6:$EV$312,40,FALSE) -> 2 | U42: =VLOOKUP($C42,'RECAP SECT'!$G$6:$EV$312,41,FALSE) -> 40% | V42: =VLOOKUP($C42,'RECAP SECT'!$G$6:$EV$312,42,FALSE) -> 5% | W42: =VLOOKUP($C42,'RECAP SECT'!$G$6:$EV$312,43,FALSE) -> 3
A43: 30 | B43: MARNE-ARDENNES | C43: 13 | D43: SECTEUR EPERNAY | E43: =VLOOKUP($C43,'RECAP SECT'!$G$6:$EV$312,3,FALSE) -> 25.1 | F43: =VLOOKUP($C43,'RECAP SECT'!$G$6:$EV$312,26,FALSE) -> -5.75 | G43: =VLOOKUP($C43,'RECAP SECT'!$G$6:$EV$312,27,FALSE) -> 40% | H43: =VLOOKUP($C43,'RECAP SECT'!$G$6:$EV$312,28,FALSE) -> 14 | I43: =VLOOKUP($C43,'RECAP SECT'!$G$6:$EV$312,29,FALSE) -> 9.98 | J43: =VLOOKUP($C43,'RECAP SECT'!$G$6:$EV$312,30,FALSE) -> 8% | K43: =VLOOKUP($C43,'RECAP SECT'!$G$6:$EV$312,31,FALSE) -> 4 | L43: =VLOOKUP($C43,'RECAP SECT'!$G$6:$EV$312,32,FALSE) -> 4.31 | M43: =VLOOKUP($C43,'RECAP SECT'!$G$6:$EV$312,33,FALSE) -> 64% | N43: =VLOOKUP($C43,'RECAP SECT'!$G$6:$EV$312,34,FALSE) -> 26 | O43: =VLOOKUP($C43,'RECAP SECT'!$G$6:$EV$312,35,FALSE) -> 0.12 | P43: =VLOOKUP($C43,'RECAP SECT'!$G$6:$EV$312,36,FALSE) -> 98% | Q43: =VLOOKUP($C43,'RECAP SECT'!$G$6:$EV$312,37,FALSE) -> 63 | R43: =VLOOKUP($C43,'RECAP SECT'!$G$6:$EV$312,38,FALSE) -> 27% | S43: =VLOOKUP($C43,'RECAP SECT'!$G$6:$EV$312,39,FALSE) -> 77% | T43: =VLOOKUP($C43,'RECAP SECT'!$G$6:$EV$312,40,FALSE) -> 39 | U43: =VLOOKUP($C43,'RECAP SECT'!$G$6:$EV$312,41,FALSE) -> 57% | V43: =VLOOKUP($C43,'RECAP SECT'!$G$6:$EV$312,42,FALSE) -> 23% | W43: =VLOOKUP($C43,'RECAP SECT'!$G$6:$EV$312,43,FALSE) -> 13
A44: 30 | B44: MARNE-ARDENNES | C44: 11 | D44: SECTEUR REIMS CENTRE VILLE | E44: =VLOOKUP($C44,'RECAP SECT'!$G$6:$EV$312,3,FALSE) -> 20.4 | F44: =VLOOKUP($C44,'RECAP SECT'!$G$6:$EV$312,26,FALSE) -> -8.61 | G44: =VLOOKUP($C44,'RECAP SECT'!$G$6:$EV$312,27,FALSE) -> 82% | H44: =VLOOKUP($C44,'RECAP SECT'!$G$6:$EV$312,28,FALSE) -> 58 | I44: =VLOOKUP($C44,'RECAP SECT'!$G$6:$EV$312,29,FALSE) -> 5.53 | J44: =VLOOKUP($C44,'RECAP SECT'!$G$6:$EV$312,30,FALSE) -> 49% | K44: =VLOOKUP($C44,'RECAP SECT'!$G$6:$EV$312,31,FALSE) -> 11 | L44: =VLOOKUP($C44,'RECAP SECT'!$G$6:$EV$312,32,FALSE) -> 2.20 | M44: =VLOOKUP($C44,'RECAP SECT'!$G$6:$EV$312,33,FALSE) -> 81% | N44: =VLOOKUP($C44,'RECAP SECT'!$G$6:$EV$312,34,FALSE) -> 49 | O44: =VLOOKUP($C44,'RECAP SECT'!$G$6:$EV$312,35,FALSE) -> 2.69 | P44: =VLOOKUP($C44,'RECAP SECT'!$G$6:$EV$312,36,FALSE) -> 50% | Q44: =VLOOKUP($C44,'RECAP SECT'!$G$6:$EV$312,37,FALSE) -> 10 | R44: =VLOOKUP($C44,'RECAP SECT'!$G$6:$EV$312,38,FALSE) -> 48% | S44: =VLOOKUP($C44,'RECAP SECT'!$G$6:$EV$312,39,FALSE) -> 67% | T44: =VLOOKUP($C44,'RECAP SECT'!$G$6:$EV$312,40,FALSE) -> 21 | U44: =VLOOKUP($C44,'RECAP SECT'!$G$6:$EV$312,41,FALSE) -> 66% | V44: =VLOOKUP($C44,'RECAP SECT'!$G$6:$EV$312,42,FALSE) -> 32% | W44: =VLOOKUP($C44,'RECAP SECT'!$G$6:$EV$312,43,FALSE) -> 26
A45: 30 | B45: MARNE-ARDENNES | C45: 9 | D45: SECTEUR REIMS HOTEL DE VILLE | E45: =VLOOKUP($C45,'RECAP SECT'!$G$6:$EV$312,3,FALSE) -> 22.4 | F45: =VLOOKUP($C45,'RECAP SECT'!$G$6:$EV$312,26,FALSE) -> -7.11 | G45: =VLOOKUP($C45,'RECAP SECT'!$G$6:$EV$312,27,FALSE) -> 60% | H45: =VLOOKUP($C45,'RECAP SECT'!$G$6:$EV$312,28,FALSE) -> 35 | I45: =VLOOKUP($C45,'RECAP SECT'!$G$6:$EV$312,29,FALSE) -> 8.05 | J45: =VLOOKUP($C45,'RECAP SECT'!$G$6:$EV$312,30,FALSE) -> 25% | K45: =VLOOKUP($C45,'RECAP SECT'!$G$6:$EV$312,31,FALSE) -> 5 | L45: =VLOOKUP($C45,'RECAP SECT'!$G$6:$EV$312,32,FALSE) -> 1.56 | M45: =VLOOKUP($C45,'RECAP SECT'!$G$6:$EV$312,33,FALSE) -> 87% | N45: =VLOOKUP($C45,'RECAP SECT'!$G$6:$EV$312,34,FALSE) -> 62 | O45: =VLOOKUP($C45,'RECAP SECT'!$G$6:$EV$312,35,FALSE) -> 0.27 | P45: =VLOOKUP($C45,'RECAP SECT'!$G$6:$EV$312,36,FALSE) -> 95% | Q45: =VLOOKUP($C45,'RECAP SECT'!$G$6:$EV$312,37,FALSE) -> 59 | R45: =VLOOKUP($C45,'RECAP SECT'!$G$6:$EV$312,38,FALSE) -> 119% | S45: =VLOOKUP($C45,'RECAP SECT'!$G$6:$EV$312,39,FALSE) -> 31% | T45: =VLOOKUP($C45,'RECAP SECT'!$G$6:$EV$312,40,FALSE) -> 3 | U45: =VLOOKUP($C45,'RECAP SECT'!$G$6:$EV$312,41,FALSE) -> 60% | V45: =VLOOKUP($C45,'RECAP SECT'!$G$6:$EV$312,42,FALSE) -> 25% | W45: =VLOOKUP($C45,'RECAP SECT'!$G$6:$EV$312,43,FALSE) -> 16
A46: 30 | B46: MARNE-ARDENNES | C46: 10 | D46: SECTEUR REIMS SAINT THOMAS | E46: =VLOOKUP($C46,'RECAP SECT'!$G$6:$EV$312,3,FALSE) -> 12.7 | F46: =VLOOKUP($C46,'RECAP SECT'!$G$6:$EV$312,26,FALSE) -> -10.61 | G46: =VLOOKUP($C46,'RECAP SECT'!$G$6:$EV$312,27,FALSE) -> 112% | H46: =VLOOKUP($C46,'RECAP SECT'!$G$6:$EV$312,28,FALSE) -> 73 | I46: =VLOOKUP($C46,'RECAP SECT'!$G$6:$EV$312,29,FALSE) -> 7.78 | J46: =VLOOKUP($C46,'RECAP SECT'!$G$6:$EV$312,30,FALSE) -> 28% | K46: =VLOOKUP($C46,'RECAP SECT'!$G$6:$EV$312,31,FALSE) -> 6 | L46: =VLOOKUP($C46,'RECAP SECT'!$G$6:$EV$312,32,FALSE) -> 0.00 | M46: =VLOOKUP($C46,'RECAP SECT'!$G$6:$EV$312,33,FALSE) -> 100% | N46: =VLOOKUP($C46,'RECAP SECT'!$G$6:$EV$312,34,FALSE) -> 73 | O46: =VLOOKUP($C46,'RECAP SECT'!$G$6:$EV$312,35,FALSE) -> 0.55 | P46: =VLOOKUP($C46,'RECAP SECT'!$G$6:$EV$312,36,FALSE) -> 90% | Q46: =VLOOKUP($C46,'RECAP SECT'!$G$6:$EV$312,37,FALSE) -> 48 | R46: =VLOOKUP($C46,'RECAP SECT'!$G$6:$EV$312,38,FALSE) -> 69% | S46: =VLOOKUP($C46,'RECAP SECT'!$G$6:$EV$312,39,FALSE) -> 56% | T46: =VLOOKUP($C46,'RECAP SECT'!$G$6:$EV$312,40,FALSE) -> 11 | U46: =VLOOKUP($C46,'RECAP SECT'!$G$6:$EV$312,41,FALSE) -> 77% | V46: =VLOOKUP($C46,'RECAP SECT'!$G$6:$EV$312,42,FALSE) -> 43% | W46: =VLOOKUP($C46,'RECAP SECT'!$G$6:$EV$312,43,FALSE) -> 51
A47: 30 | B47: MARNE-ARDENNES | C47: 4 | D47: SECTEUR RETHEL | E47: =VLOOKUP($C47,'RECAP SECT'!$G$6:$EV$312,3,FALSE) -> 10.9 | F47: =VLOOKUP($C47,'RECAP SECT'!$G$6:$EV$312,26,FALSE) -> -8.78 | G47: =VLOOKUP($C47,'RECAP SECT'!$G$6:$EV$312,27,FALSE) -> 85% | H47: =VLOOKUP($C47,'RECAP SECT'!$G$6:$EV$312,28,FALSE) -> 61 | I47: =VLOOKUP($C47,'RECAP SECT'!$G$6:$EV$312,29,FALSE) -> 4.12 | J47: =VLOOKUP($C47,'RECAP SECT'!$G$6:$EV$312,30,FALSE) -> 62% | K47: =VLOOKUP($C47,'RECAP SECT'!$G$6:$EV$312,31,FALSE) -> 23 | L47: =VLOOKUP($C47,'RECAP SECT'!$G$6:$EV$312,32,FALSE) -> 1.28 | M47: =VLOOKUP($C47,'RECAP SECT'!$G$6:$EV$312,33,FALSE) -> 89% | N47: =VLOOKUP($C47,'RECAP SECT'!$G$6:$EV$312,34,FALSE) -> 66 | O47: =VLOOKUP($C47,'RECAP SECT'!$G$6:$EV$312,35,FALSE) -> -0.27 | P47: =VLOOKUP($C47,'RECAP SECT'!$G$6:$EV$312,36,FALSE) -> 105% | Q47: =VLOOKUP($C47,'RECAP SECT'!$G$6:$EV$312,37,FALSE) -> 73 | R47: =VLOOKUP($C47,'RECAP SECT'!$G$6:$EV$312,38,FALSE) -> 36% | S47: =VLOOKUP($C47,'RECAP SECT'!$G$6:$EV$312,39,FALSE) -> 72% | T47: =VLOOKUP($C47,'RECAP SECT'!$G$6:$EV$312,40,FALSE) -> 29 | U47: =VLOOKUP($C47,'RECAP SECT'!$G$6:$EV$312,41,FALSE) -> 83% | V47: =VLOOKUP($C47,'RECAP SECT'!$G$6:$EV$312,42,FALSE) -> 48% | W47: =VLOOKUP($C47,'RECAP SECT'!$G$6:$EV$312,43,FALSE) -> 64
A48: 30 | B48: MARNE-ARDENNES | C48: 5 | D48: SECTEUR REVIN | E48: =VLOOKUP($C48,'RECAP SECT'!$G$6:$EV$312,3,FALSE) -> 12.1 | F48: =VLOOKUP($C48,'RECAP SECT'!$G$6:$EV$312,26,FALSE) -> -9.01 | G48: =VLOOKUP($C48,'RECAP SECT'!$G$6:$EV$312,27,FALSE) -> 88% | H48: =VLOOKUP($C48,'RECAP SECT'!$G$6:$EV$312,28,FALSE) -> 65 | I48: =VLOOKUP($C48,'RECAP SECT'!$G$6:$EV$312,29,FALSE) -> 3.97 | J48: =VLOOKUP($C48,'RECAP SECT'!$G$6:$EV$312,30,FALSE) -> 63% | K48: =VLOOKUP($C48,'RECAP SECT'!$G$6:$EV$312,31,FALSE) -> 31 | L48: =VLOOKUP($C48,'RECAP SECT'!$G$6:$EV$312,32,FALSE) -> 5.29 | M48: =VLOOKUP($C48,'RECAP SECT'!$G$6:$EV$312,33,FALSE) -> 55% | N48: =VLOOKUP($C48,'RECAP SECT'!$G$6:$EV$312,34,FALSE) -> 21 | O48: =VLOOKUP($C48,'RECAP SECT'!$G$6:$EV$312,35,FALSE) -> 1.24 | P48: =VLOOKUP($C48,'RECAP SECT'!$G$6:$EV$312,36,FALSE) -> 77% | Q48: =VLOOKUP($C48,'RECAP SECT'!$G$6:$EV$312,37,FALSE) -> 30 | R48: =VLOOKUP($C48,'RECAP SECT'!$G$6:$EV$312,38,FALSE) -> 93% | S48: =VLOOKUP($C48,'RECAP SECT'!$G$6:$EV$312,39,FALSE) -> 44% | T48: =VLOOKUP($C48,'RECAP SECT'!$G$6:$EV$312,40,FALSE) -> 6 | U48: =VLOOKUP($C48,'RECAP SECT'!$G$6:$EV$312,41,FALSE) -> 66% | V48: =VLOOKUP($C48,'RECAP SECT'!$G$6:$EV$312,42,FALSE) -> 31% | W48: =VLOOKUP($C48,'RECAP SECT'!$G$6:$EV$312,43,FALSE) -> 25
A49: 30 | B49: MARNE-ARDENNES | C49: 3 | D49: SECTEUR SEDAN | E49: =VLOOKUP($C49,'RECAP SECT'!$G$6:$EV$312,3,FALSE) -> 16.6 | F49: =VLOOKUP($C49,'RECAP SECT'!$G$6:$EV$312,26,FALSE) -> -13.22 | G49: =VLOOKUP($C49,'RECAP SECT'!$G$6:$EV$312,27,FALSE) -> 150% | H49: =VLOOKUP($C49,'RECAP SECT'!$G$6:$EV$312,28,FALSE) -> 77 | I49: =VLOOKUP($C49,'RECAP SECT'!$G$6:$EV$312,29,FALSE) -> 5.25 | J49: =VLOOKUP($C49,'RECAP SECT'!$G$6:$EV$312,30,FALSE) -> 51% | K49: =VLOOKUP($C49,'RECAP SECT'!$G$6:$EV$312,31,FALSE) -> 14 | L49: =VLOOKUP($C49,'RECAP SECT'!$G$6:$EV$312,32,FALSE) -> 3.08 | M49: =VLOOKUP($C49,'RECAP SECT'!$G$6:$EV$312,33,FALSE) -> 74% | N49: =VLOOKUP($C49,'RECAP SECT'!$G$6:$EV$312,34,FALSE) -> 38 | O49: =VLOOKUP($C49,'RECAP SECT'!$G$6:$EV$312,35,FALSE) -> 0.30 | P49: =VLOOKUP($C49,'RECAP SECT'!$G$6:$EV$312,36,FALSE) -> 94% | Q49: =VLOOKUP($C49,'RECAP SECT'!$G$6:$EV$312,37,FALSE) -> 56 | R49: =VLOOKUP($C49,'RECAP SECT'!$G$6:$EV$312,38,FALSE) -> 23% | S49: =VLOOKUP($C49,'RECAP SECT'!$G$6:$EV$312,39,FALSE) -> 79% | T49: =VLOOKUP($C49,'RECAP SECT'!$G$6:$EV$312,40,FALSE) -> 46 | U49: =VLOOKUP($C49,'RECAP SECT'!$G$6:$EV$312,41,FALSE) -> 90% | V49: =VLOOKUP($C49,'RECAP SECT'!$G$6:$EV$312,42,FALSE) -> 55% | W49: =VLOOKUP($C49,'RECAP SECT'!$G$6:$EV$312,43,FALSE) -> 75
A50: 30 | B50: MARNE-ARDENNES | C50: 8 | D50: SECTEUR SEZANNE | E50: =VLOOKUP($C50,'RECAP SECT'!$G$6:$EV$312,3,FALSE) -> 12.9 | F50: =VLOOKUP($C50,'RECAP SECT'!$G$6:$EV$312,26,FALSE) -> -4.65 | G50: =VLOOKUP($C50,'RECAP SECT'!$G$6:$EV$312,27,FALSE) -> 24% | H50: =VLOOKUP($C50,'RECAP SECT'!$G$6:$EV$312,28,FALSE) -> 8 | I50: =VLOOKUP($C50,'RECAP SECT'!$G$6:$EV$312,29,FALSE) -> 1.94 | J50: =VLOOKUP($C50,'RECAP SECT'!$G$6:$EV$312,30,FALSE) -> 82% | K50: =VLOOKUP($C50,'RECAP SECT'!$G$6:$EV$312,31,FALSE) -> 52 | L50: =VLOOKUP($C50,'RECAP SECT'!$G$6:$EV$312,32,FALSE) -> 1.78 | M50: =VLOOKUP($C50,'RECAP SECT'!$G$6:$EV$312,33,FALSE) -> 85% | N50: =VLOOKUP($C50,'RECAP SECT'!$G$6:$EV$312,34,FALSE) -> 56 | O50: =VLOOKUP($C50,'RECAP SECT'!$G$6:$EV$312,35,FALSE) -> 1.01 | P50: =VLOOKUP($C50,'RECAP SECT'!$G$6:$EV$312,36,FALSE) -> 81% | Q50: =VLOOKUP($C50,'RECAP SECT'!$G$6:$EV$312,37,FALSE) -> 36 | R50: =VLOOKUP($C50,'RECAP SECT'!$G$6:$EV$312,38,FALSE) -> 6% | S50: =VLOOKUP($C50,'RECAP SECT'!$G$6:$EV$312,39,FALSE) -> 87% | T50: =VLOOKUP($C50,'RECAP SECT'!$G$6:$EV$312,40,FALSE) -> 61 | U50: =VLOOKUP($C50,'RECAP SECT'!$G$6:$EV$312,41,FALSE) -> 72% | V50: =VLOOKUP($C50,'RECAP SECT'!$G$6:$EV$312,42,FALSE) -> 38% | W50: =VLOOKUP($C50,'RECAP SECT'!$G$6:$EV$312,43,FALSE) -> 38
A51: 30 | B51: MARNE-ARDENNES | C51: 12 | D51: SECTEUR TINQUEUX | E51: =VLOOKUP($C51,'RECAP SECT'!$G$6:$EV$312,3,FALSE) -> 12.1 | F51: =VLOOKUP($C51,'RECAP SECT'!$G$6:$EV$312,26,FALSE) -> -9.30 | G51: =VLOOKUP($C51,'RECAP SECT'!$G$6:$EV$312,27,FALSE) -> 93% | H51: =VLOOKUP($C51,'RECAP SECT'!$G$6:$EV$312,28,FALSE) -> 69 | I51: =VLOOKUP($C51,'RECAP SECT'!$G$6:$EV$312,29,FALSE) -> 10.79 | J51: =VLOOKUP($C51,'RECAP SECT'!$G$6:$EV$312,30,FALSE) -> 0% | K51: =VLOOKUP($C51,'RECAP SECT'!$G$6:$EV$312,31,FALSE) -> 1 | L51: =VLOOKUP($C51,'RECAP SECT'!$G$6:$EV$312,32,FALSE) -> 1.24 | M51: =VLOOKUP($C51,'RECAP SECT'!$G$6:$EV$312,33,FALSE) -> 90% | N51: =VLOOKUP($C51,'RECAP SECT'!$G$6:$EV$312,34,FALSE) -> 67 | O51: =VLOOKUP($C51,'RECAP SECT'!$G$6:$EV$312,35,FALSE) -> 0.16 | P51: =VLOOKUP($C51,'RECAP SECT'!$G$6:$EV$312,36,FALSE) -> 97% | Q51: =VLOOKUP($C51,'RECAP SECT'!$G$6:$EV$312,37,FALSE) -> 61 | R51: =VLOOKUP($C51,'RECAP SECT'!$G$6:$EV$312,38,FALSE) -> 50% | S51: =VLOOKUP($C51,'RECAP SECT'!$G$6:$EV$312,39,FALSE) -> 66% | T51: =VLOOKUP($C51,'RECAP SECT'!$G$6:$EV$312,40,FALSE) -> 19 | U51: =VLOOKUP($C51,'RECAP SECT'!$G$6:$EV$312,41,FALSE) -> 69% | V51: =VLOOKUP($C51,'RECAP SECT'!$G$6:$EV$312,42,FALSE) -> 35% | W51: =VLOOKUP($C51,'RECAP SECT'!$G$6:$EV$312,43,FALSE) -> 32
A52: 30 | B52: MARNE-ARDENNES | C52: 7 | D52: SECTEUR VITRY LE FRANCOIS | E52: =VLOOKUP($C52,'RECAP SECT'!$G$6:$EV$312,3,FALSE) -> 10.7 | F52: =VLOOKUP($C52,'RECAP SECT'!$G$6:$EV$312,26,FALSE) -> -6.53 | G52: =VLOOKUP($C52,'RECAP SECT'!$G$6:$EV$312,27,FALSE) -> 52% | H52: =VLOOKUP($C52,'RECAP SECT'!$G$6:$EV$312,28,FALSE) -> 25 | I52: =VLOOKUP($C52,'RECAP SECT'!$G$6:$EV$312,29,FALSE) -> 4.48 | J52: =VLOOKUP($C52,'RECAP SECT'!$G$6:$EV$312,30,FALSE) -> 59% | K52: =VLOOKUP($C52,'RECAP SECT'!$G$6:$EV$312,31,FALSE) -> 19 | L52: =VLOOKUP($C52,'RECAP SECT'!$G$6:$EV$312,32,FALSE) -> 1.77 | M52: =VLOOKUP($C52,'RECAP SECT'!$G$6:$EV$312,33,FALSE) -> 85% | N52: =VLOOKUP($C52,'RECAP SECT'!$G$6:$EV$312,34,FALSE) -> 57 | O52: =VLOOKUP($C52,'RECAP SECT'!$G$6:$EV$312,35,FALSE) -> 0.09 | P52: =VLOOKUP($C52,'RECAP SECT'!$G$6:$EV$312,36,FALSE) -> 98% | Q52: =VLOOKUP($C52,'RECAP SECT'!$G$6:$EV$312,37,FALSE) -> 66 | R52: =VLOOKUP($C52,'RECAP SECT'!$G$6:$EV$312,38,FALSE) -> -80% | S52: =VLOOKUP($C52,'RECAP SECT'!$G$6:$EV$312,39,FALSE) -> 130% | T52: =VLOOKUP($C52,'RECAP SECT'!$G$6:$EV$312,40,FALSE) -> 76 | U52: =VLOOKUP($C52,'RECAP SECT'!$G$6:$EV$312,41,FALSE) -> 85% | V52: =VLOOKUP($C52,'RECAP SECT'!$G$6:$EV$312,42,FALSE) -> 50% | W52: =VLOOKUP($C52,'RECAP SECT'!$G$6:$EV$312,43,FALSE) -> 66
A53: 110 | B53: MEURTHE ET MOSELLE MEUSE | C53: 32 | D53: SECTEUR BAR LE DUC | E53: =VLOOKUP($C53,'RECAP SECT'!$G$6:$EV$312,3,FALSE) -> 17.5 | F53: =VLOOKUP($C53,'RECAP SECT'!$G$6:$EV$312,26,FALSE) -> -7.78 | G53: =VLOOKUP($C53,'RECAP SECT'!$G$6:$EV$312,27,FALSE) -> 70% | H53: =VLOOKUP($C53,'RECAP SECT'!$G$6:$EV$312,28,FALSE) -> 46 | I53: =VLOOKUP($C53,'RECAP SECT'!$G$6:$EV$312,29,FALSE) -> 4.52 | J53: =VLOOKUP($C53,'RECAP SECT'!$G$6:$EV$312,30,FALSE) -> 58% | K53: =VLOOKUP($C53,'RECAP SECT'!$G$6:$EV$312,31,FALSE) -> 16 | L53: =VLOOKUP($C53,'RECAP SECT'!$G$6:$EV$312,32,FALSE) -> 2.63 | M53: =VLOOKUP($C53,'RECAP SECT'!$G$6:$EV$312,33,FALSE) -> 78% | N53: =VLOOKUP($C53,'RECAP SECT'!$G$6:$EV$312,34,FALSE) -> 44 | O53: =VLOOKUP($C53,'RECAP SECT'!$G$6:$EV$312,35,FALSE) -> 0.29 | P53: =VLOOKUP($C53,'RECAP SECT'!$G$6:$EV$312,36,FALSE) -> 95% | Q53: =VLOOKUP($C53,'RECAP SECT'!$G$6:$EV$312,37,FALSE) -> 57 | R53: =VLOOKUP($C53,'RECAP SECT'!$G$6:$EV$312,38,FALSE) -> 10% | S53: =VLOOKUP($C53,'RECAP SECT'!$G$6:$EV$312,39,FALSE) -> 86% | T53: =VLOOKUP($C53,'RECAP SECT'!$G$6:$EV$312,40,FALSE) -> 54 | U53: =VLOOKUP($C53,'RECAP SECT'!$G$6:$EV$312,41,FALSE) -> 77% | V53: =VLOOKUP($C53,'RECAP SECT'!$G$6:$EV$312,42,FALSE) -> 43% | W53: =VLOOKUP($C53,'RECAP SECT'!$G$6:$EV$312,43,FALSE) -> 52
A54: 110 | B54: MEURTHE ET MOSELLE MEUSE | C54: 33 | D54: SECTEUR COMMERCY | E54: =VLOOKUP($C54,'RECAP SECT'!$G$6:$EV$312,3,FALSE) -> 9.9 | F54: =VLOOKUP($C54,'RECAP SECT'!$G$6:$EV$312,26,FALSE) -> -11.90 | G54: =VLOOKUP($C54,'RECAP SECT'!$G$6:$EV$312,27,FALSE) -> 131% | H54: =VLOOKUP($C54,'RECAP SECT'!$G$6:$EV$312,28,FALSE) -> 75 | I54: =VLOOKUP($C54,'RECAP SECT'!$G$6:$EV$312,29,FALSE) -> 3.53 | J54: =VLOOKUP($C54,'RECAP SECT'!$G$6:$EV$312,30,FALSE) -> 67% | K54: =VLOOKUP($C54,'RECAP SECT'!$G$6:$EV$312,31,FALSE) -> 34 | L54: =VLOOKUP($C54,'RECAP SECT'!$G$6:$EV$312,32,FALSE) -> 3.93 | M54: =VLOOKUP($C54,'RECAP SECT'!$G$6:$EV$312,33,FALSE) -> 67% | N54: =VLOOKUP($C54,'RECAP SECT'!$G$6:$EV$312,34,FALSE) -> 31 | O54: =VLOOKUP($C54,'RECAP SECT'!$G$6:$EV$312,35,FALSE) -> -1.01 | P54: =VLOOKUP($C54,'RECAP SECT'!$G$6:$EV$312,36,FALSE) -> 119% | Q54: =VLOOKUP($C54,'RECAP SECT'!$G$6:$EV$312,37,FALSE) -> 77 | R54: =VLOOKUP($C54,'RECAP SECT'!$G$6:$EV$312,38,FALSE) -> 30% | S54: =VLOOKUP($C54,'RECAP SECT'!$G$6:$EV$312,39,FALSE) -> 75% | T54: =VLOOKUP($C54,'RECAP SECT'!$G$6:$EV$312,40,FALSE) -> 37 | U54: =VLOOKUP($C54,'RECAP SECT'!$G$6:$EV$312,41,FALSE) -> 92% | V54: =VLOOKUP($C54,'RECAP SECT'!$G$6:$EV$312,42,FALSE) -> 57% | W54: =VLOOKUP($C54,'RECAP SECT'!$G$6:$EV$312,43,FALSE) -> 77
A55: 110 | B55: MEURTHE ET MOSELLE MEUSE | C55: 28 | D55: SECTEUR JARNY | E55: =VLOOKUP($C55,'RECAP SECT'!$G$6:$EV$312,3,FALSE) -> 14.9 | F55: =VLOOKUP($C55,'RECAP SECT'!$G$6:$EV$312,26,FALSE) -> -8.84 | G55: =VLOOKUP($C55,'RECAP SECT'!$G$6:$EV$312,27,FALSE) -> 86% | H55: =VLOOKUP($C55,'RECAP SECT'!$G$6:$EV$312,28,FALSE) -> 62 | I55: =VLOOKUP($C55,'RECAP SECT'!$G$6:$EV$312,29,FALSE) -> 2.55 | J55: =VLOOKUP($C55,'RECAP SECT'!$G$6:$EV$312,30,FALSE) -> 76% | K55: =VLOOKUP($C55,'RECAP SECT'!$G$6:$EV$312,31,FALSE) -> 45 | L55: =VLOOKUP($C55,'RECAP SECT'!$G$6:$EV$312,32,FALSE) -> 3.75 | M55: =VLOOKUP($C55,'RECAP SECT'!$G$6:$EV$312,33,FALSE) -> 68% | N55: =VLOOKUP($C55,'RECAP SECT'!$G$6:$EV$312,34,FALSE) -> 33 | O55: =VLOOKUP($C55,'RECAP SECT'!$G$6:$EV$312,35,FALSE) -> -0.07 | P55: =VLOOKUP($C55,'RECAP SECT'!$G$6:$EV$312,36,FALSE) -> 101% | Q55: =VLOOKUP($C55,'RECAP SECT'!$G$6:$EV$312,37,FALSE) -> 69 | R55: =VLOOKUP($C55,'RECAP SECT'!$G$6:$EV$312,38,FALSE) -> 47% | S55: =VLOOKUP($C55,'RECAP SECT'!$G$6:$EV$312,39,FALSE) -> 67% | T55: =VLOOKUP($C55,'RECAP SECT'!$G$6:$EV$312,40,FALSE) -> 22 | U55: =VLOOKUP($C55,'RECAP SECT'!$G$6:$EV$312,41,FALSE) -> 80% | V55: =VLOOKUP($C55,'RECAP SECT'!$G$6:$EV$312,42,FALSE) -> 45% | W55: =VLOOKUP($C55,'RECAP SECT'!$G$6:$EV$312,43,FALSE) -> 60
A56: 110 | B56: MEURTHE ET MOSELLE MEUSE | C56: 29 | D56: SECTEUR LONGWY HAUT | E56: =VLOOKUP($C56,'RECAP SECT'!$G$6:$EV$312,3,FALSE) -> 16.7 | F56: =VLOOKUP($C56,'RECAP SECT'!$G$6:$EV$312,26,FALSE) -> -8.27 | G56: =VLOOKUP($C56,'RECAP SECT'!$G$6:$EV$312,27,FALSE) -> 77% | H56: =VLOOKUP($C56,'RECAP SECT'!$G$6:$EV$312,28,FALSE) -> 55 | I56: =VLOOKUP($C56,'RECAP SECT'!$G$6:$EV$312,29,FALSE) -> 2.22 | J56: =VLOOKUP($C56,'RECAP SECT'!$G$6:$EV$312,30,FALSE) -> 79% | K56: =VLOOKUP($C56,'RECAP SECT'!$G$6:$EV$312,31,FALSE) -> 46 | L56: =VLOOKUP($C56,'RECAP SECT'!$G$6:$EV$312,32,FALSE) -> 0.12 | M56: =VLOOKUP($C56,'RECAP SECT'!$G$6:$EV$312,33,FALSE) -> 99% | N56: =VLOOKUP($C56,'RECAP SECT'!$G$6:$EV$312,34,FALSE) -> 72 | O56: =VLOOKUP($C56,'RECAP SECT'!$G$6:$EV$312,35,FALSE) -> -0.12 | P56: =VLOOKUP($C56,'RECAP SECT'!$G$6:$EV$312,36,FALSE) -> 102% | Q56: =VLOOKUP($C56,'RECAP SECT'!$G$6:$EV$312,37,FALSE) -> 70 | R56: =VLOOKUP($C56,'RECAP SECT'!$G$6:$EV$312,38,FALSE) -> 20% | S56: =VLOOKUP($C56,'RECAP SECT'!$G$6:$EV$312,39,FALSE) -> 80% | T56: =VLOOKUP($C56,'RECAP SECT'!$G$6:$EV$312,40,FALSE) -> 47 | U56: =VLOOKUP($C56,'RECAP SECT'!$G$6:$EV$312,41,FALSE) -> 88% | V56: =VLOOKUP($C56,'RECAP SECT'!$G$6:$EV$312,42,FALSE) -> 53% | W56: =VLOOKUP($C56,'RECAP SECT'!$G$6:$EV$312,43,FALSE) -> 70
A57: 110 | B57: MEURTHE ET MOSELLE MEUSE | C57: 24 | D57: SECTEUR LUNEVILLE CARNOT | E57: =VLOOKUP($C57,'RECAP SECT'!$G$6:$EV$312,3,FALSE) -> 20.8 | F57: =VLOOKUP($C57,'RECAP SECT'!$G$6:$EV$312,26,FALSE) -> -8.04 | G57: =VLOOKUP($C57,'RECAP SECT'!$G$6:$EV$312,27,FALSE) -> 74% | H57: =VLOOKUP($C57,'RECAP SECT'!$G$6:$EV$312,28,FALSE) -> 51 | I57: =VLOOKUP($C57,'RECAP SECT'!$G$6:$EV$312,29,FALSE) -> 0.29 | J57: =VLOOKUP($C57,'RECAP SECT'!$G$6:$EV$312,30,FALSE) -> 97% | K57: =VLOOKUP($C57,'RECAP SECT'!$G$6:$EV$312,31,FALSE) -> 74 | L57: =VLOOKUP($C57,'RECAP SECT'!$G$6:$EV$312,32,FALSE) -> 2.02 | M57: =VLOOKUP($C57,'RECAP SECT'!$G$6:$EV$312,33,FALSE) -> 83% | N57: =VLOOKUP($C57,'RECAP SECT'!$G$6:$EV$312,34,FALSE) -> 52 | O57: =VLOOKUP($C57,'RECAP SECT'!$G$6:$EV$312,35,FALSE) -> 0.67 | P57: =VLOOKUP($C57,'RECAP SECT'!$G$6:$EV$312,36,FALSE) -> 88% | Q57: =VLOOKUP($C57,'RECAP SECT'!$G$6:$EV$312,37,FALSE) -> 44 | R57: =VLOOKUP($C57,'RECAP SECT'!$G$6:$EV$312,38,FALSE) -> 74% | S57: =VLOOKUP($C57,'RECAP SECT'!$G$6:$EV$312,39,FALSE) -> 53% | T57: =VLOOKUP($C57,'RECAP SECT'!$G$6:$EV$312,40,FALSE) -> 8 | U57: =VLOOKUP($C57,'RECAP SECT'!$G$6:$EV$312,41,FALSE) -> 79% | V57: =VLOOKUP($C57,'RECAP SECT'!$G$6:$EV$312,42,FALSE) -> 45% | W57: =VLOOKUP($C57,'RECAP SECT'!$G$6:$EV$312,43,FALSE) -> 57
A58: 110 | B58: MEURTHE ET MOSELLE MEUSE | C58: 30 | D58: SECTEUR MONTMEDY | E58: =VLOOKUP($C58,'RECAP SECT'!$G$6:$EV$312,3,FALSE) -> 6.6 | F58: =VLOOKUP($C58,'RECAP SECT'!$G$6:$EV$312,26,FALSE) -> -5.49 | G58: =VLOOKUP($C58,'RECAP SECT'!$G$6:$EV$312,27,FALSE) -> 37% | H58: =VLOOKUP($C58,'RECAP SECT'!$G$6:$EV$312,28,FALSE) -> 13 | I58: =VLOOKUP($C58,'RECAP SECT'!$G$6:$EV$312,29,FALSE) -> 5.79 | J58: =VLOOKUP($C58,'RECAP SECT'!$G$6:$EV$312,30,FALSE) -> 46% | K58: =VLOOKUP($C58,'RECAP SECT'!$G$6:$EV$312,31,FALSE) -> 10 | L58: =VLOOKUP($C58,'RECAP SECT'!$G$6:$EV$312,32,FALSE) -> 4.72 | M58: =VLOOKUP($C58,'RECAP SECT'!$G$6:$EV$312,33,FALSE) -> 60% | N58: =VLOOKUP($C58,'RECAP SECT'!$G$6:$EV$312,34,FALSE) -> 23 | O58: =VLOOKUP($C58,'RECAP SECT'!$G$6:$EV$312,35,FALSE) -> 0.30 | P58: =VLOOKUP($C58,'RECAP SECT'!$G$6:$EV$312,36,FALSE) -> 94% | Q58: =VLOOKUP($C58,'RECAP SECT'!$G$6:$EV$312,37,FALSE) -> 55 | R58: =VLOOKUP($C58,'RECAP SECT'!$G$6:$EV$312,38,FALSE) -> -33% | S58: =VLOOKUP($C58,'RECAP SECT'!$G$6:$EV$312,39,FALSE) -> 107% | T58: =VLOOKUP($C58,'RECAP SECT'!$G$6:$EV$312,40,FALSE) -> 74 | U58: =VLOOKUP($C58,'RECAP SECT'!$G$6:$EV$312,41,FALSE) -> 69% | V58: =VLOOKUP($C58,'RECAP SECT'!$G$6:$EV$312,42,FALSE) -> 35% | W58: =VLOOKUP($C58,'RECAP SECT'!$G$6:$EV$312,43,FALSE) -> 31
A59: 110 | B59: MEURTHE ET MOSELLE MEUSE | C59: 26 | D59: SECTEUR NANCY PLACE DOMBASLE | E59: =VLOOKUP($C59,'RECAP SECT'!$G$6:$EV$312,3,FALSE) -> 36.6 | F59: =VLOOKUP($C59,'RECAP SECT'!$G$6:$EV$312,26,FALSE) -> -7.41 | G59: =VLOOKUP($C59,'RECAP SECT'!$G$6:$EV$312,27,FALSE) -> 65% | H59: =VLOOKUP($C59,'RECAP SECT'!$G$6:$EV$312,28,FALSE) -> 40 | I59: =VLOOKUP($C59,'RECAP SECT'!$G$6:$EV$312,29,FALSE) -> 2.79 | J59: =VLOOKUP($C59,'RECAP SECT'!$G$6:$EV$312,30,FALSE) -> 74% | K59: =VLOOKUP($C59,'RECAP SECT'!$G$6:$EV$312,31,FALSE) -> 42 | L59: =VLOOKUP($C59,'RECAP SECT'!$G$6:$EV$312,32,FALSE) -> 4.24 | M59: =VLOOKUP($C59,'RECAP SECT'!$G$6:$EV$312,33,FALSE) -> 64% | N59: =VLOOKUP($C59,'RECAP SECT'!$G$6:$EV$312,34,FALSE) -> 27 | O59: =VLOOKUP($C59,'RECAP SECT'!$G$6:$EV$312,35,FALSE) -> 2.38 | P59: =VLOOKUP($C59,'RECAP SECT'!$G$6:$EV$312,36,FALSE) -> 56% | Q59: =VLOOKUP($C59,'RECAP SECT'!$G$6:$EV$312,37,FALSE) -> 14 | R59: =VLOOKUP($C59,'RECAP SECT'!$G$6:$EV$312,38,FALSE) -> 51% | S59: =VLOOKUP($C59,'RECAP SECT'!$G$6:$EV$312,39,FALSE) -> 65% | T59: =VLOOKUP($C59,'RECAP SECT'!$G$6:$EV$312,40,FALSE) -> 18 | U59: =VLOOKUP($C59,'RECAP SECT'!$G$6:$EV$312,41,FALSE) -> 65% | V59: =VLOOKUP($C59,'RECAP SECT'!$G$6:$EV$312,42,FALSE) -> 31% | W59: =VLOOKUP($C59,'RECAP SECT'!$G$6:$EV$312,43,FALSE) -> 23
A60: 110 | B60: MEURTHE ET MOSELLE MEUSE | C60: 27 | D60: SECTEUR PONT A MOUSSON CENTRALE | E60: =VLOOKUP($C60,'RECAP SECT'!$G$6:$EV$312,3,FALSE) -> 27.8 | F60: =VLOOKUP($C60,'RECAP SECT'!$G$6:$EV$312,26,FALSE) -> -8.20 | G60: =VLOOKUP($C60,'RECAP SECT'!$G$6:$EV$312,27,FALSE) -> 76% | H60: =VLOOKUP($C60,'RECAP SECT'!$G$6:$EV$312,28,FALSE) -> 53 | I60: =VLOOKUP($C60,'RECAP SECT'!$G$6:$EV$312,29,FALSE) -> 1.87 | J60: =VLOOKUP($C60,'RECAP SECT'!$G$6:$EV$312,30,FALSE) -> 83% | K60: =VLOOKUP($C60,'RECAP SECT'!$G$6:$EV$312,31,FALSE) -> 54 | L60: =VLOOKUP($C60,'RECAP SECT'!$G$6:$EV$312,32,FALSE) -> -0.40 | M60: =VLOOKUP($C60,'RECAP SECT'!$G$6:$EV$312,33,FALSE) -> 103% | N60: =VLOOKUP($C60,'RECAP SECT'!$G$6:$EV$312,34,FALSE) -> 76 | O60: =VLOOKUP($C60,'RECAP SECT'!$G$6:$EV$312,35,FALSE) -> 0.61 | P60: =VLOOKUP($C60,'RECAP SECT'!$G$6:$EV$312,36,FALSE) -> 89% | Q60: =VLOOKUP($C60,'RECAP SECT'!$G$6:$EV$312,37,FALSE) -> 46 | R60: =VLOOKUP($C60,'RECAP SECT'!$G$6:$EV$312,38,FALSE) -> -3% | S60: =VLOOKUP($C60,'RECAP SECT'!$G$6:$EV$312,39,FALSE) -> 92% | T60: =VLOOKUP($C60,'RECAP SECT'!$G$6:$EV$312,40,FALSE) -> 68 | U60: =VLOOKUP($C60,'RECAP SECT'!$G$6:$EV$312,41,FALSE) -> 89% | V60: =VLOOKUP($C60,'RECAP SECT'!$G$6:$EV$312,42,FALSE) -> 54% | W60: =VLOOKUP($C60,'RECAP SECT'!$G$6:$EV$312,43,FALSE) -> 74
A61: 110 | B61: MEURTHE ET MOSELLE MEUSE | C61: 34 | D61: SECTEUR TOUL | E61: =VLOOKUP($C61,'RECAP SECT'!$G$6:$EV$312,3,FALSE) -> 21.9 | F61: =VLOOKUP($C61,'RECAP SECT'!$G$6:$EV$312,26,FALSE) -> -9.03 | G61: =VLOOKUP($C61,'RECAP SECT'!$G$6:$EV$312,27,FALSE) -> 89% | H61: =VLOOKUP($C61,'RECAP SECT'!$G$6:$EV$312,28,FALSE) -> 66 | I61: =VLOOKUP($C61,'RECAP SECT'!$G$6:$EV$312,29,FALSE) -> 2.01 | J61: =VLOOKUP($C61,'RECAP SECT'!$G$6:$EV$312,30,FALSE) -> 81% | K61: =VLOOKUP($C61,'RECAP SECT'!$G$6:$EV$312,31,FALSE) -> 51 | L61: =VLOOKUP($C61,'RECAP SECT'!$G$6:$EV$312,32,FALSE) -> 1.69 | M61: =VLOOKUP($C61,'RECAP SECT'!$G$6:$EV$312,33,FALSE) -> 86% | N61: =VLOOKUP($C61,'RECAP SECT'!$G$6:$EV$312,34,FALSE) -> 59 | O61: =VLOOKUP($C61,'RECAP SECT'!$G$6:$EV$312,35,FALSE) -> 0.36 | P61: =VLOOKUP($C61,'RECAP SECT'!$G$6:$EV$312,36,FALSE) -> 93% | Q61: =VLOOKUP($C61,'RECAP SECT'!$G$6:$EV$312,37,FALSE) -> 51 | R61: =VLOOKUP($C61,'RECAP SECT'!$G$6:$EV$312,38,FALSE) -> 0% | S61: =VLOOKUP($C61,'RECAP SECT'!$G$6:$EV$312,39,FALSE) -> 90% | T61: =VLOOKUP($C61,'RECAP SECT'!$G$6:$EV$312,40,FALSE) -> 65 | U61: =VLOOKUP($C61,'RECAP SECT'!$G$6:$EV$312,41,FALSE) -> 88% | V61: =VLOOKUP($C61,'RECAP SECT'!$G$6:$EV$312,42,FALSE) -> 54% | W61: =VLOOKUP($C61,'RECAP SECT'!$G$6:$EV$312,43,FALSE) -> 71
A62: 110 | B62: MEURTHE ET MOSELLE MEUSE | C62: 35 | D62: SECTEUR VANDOEUVRE LES NANCY | E62: =VLOOKUP($C62,'RECAP SECT'!$G$6:$EV$312,3,FALSE) -> 22.9 | F62: =VLOOKUP($C62,'RECAP SECT'!$G$6:$EV$312,26,FALSE) -> -7.69 | G62: =VLOOKUP($C62,'RECAP SECT'!$G$6:$EV$312,27,FALSE) -> 69% | H62: =VLOOKUP($C62,'RECAP SECT'!$G$6:$EV$312,28,FALSE) -> 42 | I62: =VLOOKUP($C62,'RECAP SECT'!$G$6:$EV$312,29,FALSE) -> 0.96 | J62: =VLOOKUP($C62,'RECAP SECT'!$G$6:$EV$312,30,FALSE) -> 91% | K62: =VLOOKUP($C62,'RECAP SECT'!$G$6:$EV$312,31,FALSE) -> 68 | L62: =VLOOKUP($C62,'RECAP SECT'!$G$6:$EV$312,32,FALSE) -> -0.52 | M62: =VLOOKUP($C62,'RECAP SECT'!$G$6:$EV$312,33,FALSE) -> 104% | N62: =VLOOKUP($C62,'RECAP SECT'!$G$6:$EV$312,34,FALSE) -> 77 | O62: =VLOOKUP($C62,'RECAP SECT'!$G$6:$EV$312,35,FALSE) -> 0.35 | P62: =VLOOKUP($C62,'RECAP SECT'!$G$6:$EV$312,36,FALSE) -> 94% | Q62: =VLOOKUP($C62,'RECAP SECT'!$G$6:$EV$312,37,FALSE) -> 53 | R62: =VLOOKUP($C62,'RECAP SECT'!$G$6:$EV$312,38,FALSE) -> 35% | S62: =VLOOKUP($C62,'RECAP SECT'!$G$6:$EV$312,39,FALSE) -> 73% | T62: =VLOOKUP($C62,'RECAP SECT'!$G$6:$EV$312,40,FALSE) -> 32 | U62: =VLOOKUP($C62,'RECAP SECT'!$G$6:$EV$312,41,FALSE) -> 86% | V62: =VLOOKUP($C62,'RECAP SECT'!$G$6:$EV$312,42,FALSE) -> 52% | W62: =VLOOKUP($C62,'RECAP SECT'!$G$6:$EV$312,43,FALSE) -> 68
A63: 110 | B63: MEURTHE ET MOSELLE MEUSE | C63: 31 | D63: SECTEUR VERDUN CENTRALE | E63: =VLOOKUP($C63,'RECAP SECT'!$G$6:$EV$312,3,FALSE) -> 17.6 | F63: =VLOOKUP($C63,'RECAP SECT'!$G$6:$EV$312,26,FALSE) -> -9.36 | G63: =VLOOKUP($C63,'RECAP SECT'!$G$6:$EV$312,27,FALSE) -> 93% | H63: =VLOOKUP($C63,'RECAP SECT'!$G$6:$EV$312,28,FALSE) -> 70 | I63: =VLOOKUP($C63,'RECAP SECT'!$G$6:$EV$312,29,FALSE) -> 1.08 | J63: =VLOOKUP($C63,'RECAP SECT'!$G$6:$EV$312,30,FALSE) -> 90% | K63: =VLOOKUP($C63,'RECAP SECT'!$G$6:$EV$312,31,FALSE) -> 67 | L63: =VLOOKUP($C63,'RECAP SECT'!$G$6:$EV$312,32,FALSE) -> 3.06 | M63: =VLOOKUP($C63,'RECAP SECT'!$G$6:$EV$312,33,FALSE) -> 74% | N63: =VLOOKUP($C63,'RECAP SECT'!$G$6:$EV$312,34,FALSE) -> 39 | O63: =VLOOKUP($C63,'RECAP SECT'!$G$6:$EV$312,35,FALSE) -> -0.28 | P63: =VLOOKUP($C63,'RECAP SECT'!$G$6:$EV$312,36,FALSE) -> 105% | Q63: =VLOOKUP($C63,'RECAP SECT'!$G$6:$EV$312,37,FALSE) -> 74 | R63: =VLOOKUP($C63,'RECAP SECT'!$G$6:$EV$312,38,FALSE) -> 25% | S63: =VLOOKUP($C63,'RECAP SECT'!$G$6:$EV$312,39,FALSE) -> 78% | T63: =VLOOKUP($C63,'RECAP SECT'!$G$6:$EV$312,40,FALSE) -> 42 | U63: =VLOOKUP($C63,'RECAP SECT'!$G$6:$EV$312,41,FALSE) -> 88% | V63: =VLOOKUP($C63,'RECAP SECT'!$G$6:$EV$312,42,FALSE) -> 54% | W63: =VLOOKUP($C63,'RECAP SECT'!$G$6:$EV$312,43,FALSE) -> 72
A64: 110 | B64: MEURTHE ET MOSELLE MEUSE | C64: 36 | D64: SECTEUR VILLERS GENERAL LECLERC | E64: =VLOOKUP($C64,'RECAP SECT'!$G$6:$EV$312,3,FALSE) -> 26.4 | F64: =VLOOKUP($C64,'RECAP SECT'!$G$6:$EV$312,26,FALSE) -> -9.27 | G64: =VLOOKUP($C64,'RECAP SECT'!$G$6:$EV$312,27,FALSE) -> 92% | H64: =VLOOKUP($C64,'RECAP SECT'!$G$6:$EV$312,28,FALSE) -> 68 | I64: =VLOOKUP($C64,'RECAP SECT'!$G$6:$EV$312,29,FALSE) -> 3.97 | J64: =VLOOKUP($C64,'RECAP SECT'!$G$6:$EV$312,30,FALSE) -> 63% | K64: =VLOOKUP($C64,'RECAP SECT'!$G$6:$EV$312,31,FALSE) -> 30 | L64: =VLOOKUP($C64,'RECAP SECT'!$G$6:$EV$312,32,FALSE) -> 6.51 | M64: =VLOOKUP($C64,'RECAP SECT'!$G$6:$EV$312,33,FALSE) -> 45% | N64: =VLOOKUP($C64,'RECAP SECT'!$G$6:$EV$312,34,FALSE) -> 19 | O64: =VLOOKUP($C64,'RECAP SECT'!$G$6:$EV$312,35,FALSE) -> 0.11 | P64: =VLOOKUP($C64,'RECAP SECT'!$G$6:$EV$312,36,FALSE) -> 98% | Q64: =VLOOKUP($C64,'RECAP SECT'!$G$6:$EV$312,37,FALSE) -> 64 | R64: =VLOOKUP($C64,'RECAP SECT'!$G$6:$EV$312,38,FALSE) -> 33% | S64: =VLOOKUP($C64,'RECAP SECT'!$G$6:$EV$312,39,FALSE) -> 74% | T64: =VLOOKUP($C64,'RECAP SECT'!$G$6:$EV$312,40,FALSE) -> 33 | U64: =VLOOKUP($C64,'RECAP SECT'!$G$6:$EV$312,41,FALSE) -> 74% | V64: =VLOOKUP($C64,'RECAP SECT'!$G$6:$EV$312,42,FALSE) -> 40% | W64: =VLOOKUP($C64,'RECAP SECT'!$G$6:$EV$312,43,FALSE) -> 44
A65: 160 | B65: MOSELLE | C65: 47 | D65: SECTEUR BASSE YUTZ | E65: =VLOOKUP($C65,'RECAP SECT'!$G$6:$EV$312,3,FALSE) -> 15.0 | F65: =VLOOKUP($C65,'RECAP SECT'!$G$6:$EV$312,26,FALSE) -> -6.55 | G65: =VLOOKUP($C65,'RECAP SECT'!$G$6:$EV$312,27,FALSE) -> 52% | H65: =VLOOKUP($C65,'RECAP SECT'!$G$6:$EV$312,28,FALSE) -> 26 | I65: =VLOOKUP($C65,'RECAP SECT'!$G$6:$EV$312,29,FALSE) -> 3.48 | J65: =VLOOKUP($C65,'RECAP SECT'!$G$6:$EV$312,30,FALSE) -> 68% | K65: =VLOOKUP($C65,'RECAP SECT'!$G$6:$EV$312,31,FALSE) -> 35 | L65: =VLOOKUP($C65,'RECAP SECT'!$G$6:$EV$312,32,FALSE) -> 7.35 | M65: =VLOOKUP($C65,'RECAP SECT'!$G$6:$EV$312,33,FALSE) -> 38% | N65: =VLOOKUP($C65,'RECAP SECT'!$G$6:$EV$312,34,FALSE) -> 13 | O65: =VLOOKUP($C65,'RECAP SECT'!$G$6:$EV$312,35,FALSE) -> 2.67 | P65: =VLOOKUP($C65,'RECAP SECT'!$G$6:$EV$312,36,FALSE) -> 51% | Q65: =VLOOKUP($C65,'RECAP SECT'!$G$6:$EV$312,37,FALSE) -> 12 | R65: =VLOOKUP($C65,'RECAP SECT'!$G$6:$EV$312,38,FALSE) -> 0% | S65: =VLOOKUP($C65,'RECAP SECT'!$G$6:$EV$312,39,FALSE) -> 90% | T65: =VLOOKUP($C65,'RECAP SECT'!$G$6:$EV$312,40,FALSE) -> 65 | U65: =VLOOKUP($C65,'RECAP SECT'!$G$6:$EV$312,41,FALSE) -> 60% | V65: =VLOOKUP($C65,'RECAP SECT'!$G$6:$EV$312,42,FALSE) -> 25% | W65: =VLOOKUP($C65,'RECAP SECT'!$G$6:$EV$312,43,FALSE) -> 15
A66: 160 | B66: MOSELLE | C66: 39 | D66: SECTEUR DIEUZE | E66: =VLOOKUP($C66,'RECAP SECT'!$G$6:$EV$312,3,FALSE) -> 14.7 | F66: =VLOOKUP($C66,'RECAP SECT'!$G$6:$EV$312,26,FALSE) -> -6.46 | G66: =VLOOKUP($C66,'RECAP SECT'!$G$6:$EV$312,27,FALSE) -> 51% | H66: =VLOOKUP($C66,'RECAP SECT'!$G$6:$EV$312,28,FALSE) -> 24 | I66: =VLOOKUP($C66,'RECAP SECT'!$G$6:$EV$312,29,FALSE) -> 4.49 | J66: =VLOOKUP($C66,'RECAP SECT'!$G$6:$EV$312,30,FALSE) -> 58% | K66: =VLOOKUP($C66,'RECAP SECT'!$G$6:$EV$312,31,FALSE) -> 18 | L66: =VLOOKUP($C66,'RECAP SECT'!$G$6:$EV$312,32,FALSE) -> 11.50 | M66: =VLOOKUP($C66,'RECAP SECT'!$G$6:$EV$312,33,FALSE) -> 3% | N66: =VLOOKUP($C66,'RECAP SECT'!$G$6:$EV$312,34,FALSE) -> 2 | O66: =VLOOKUP($C66,'RECAP SECT'!$G$6:$EV$312,35,FALSE) -> 1.84 | P66: =VLOOKUP($C66,'RECAP SECT'!$G$6:$EV$312,36,FALSE) -> 66% | Q66: =VLOOKUP($C66,'RECAP SECT'!$G$6:$EV$312,37,FALSE) -> 22 | R66: =VLOOKUP($C66,'RECAP SECT'!$G$6:$EV$312,38,FALSE) -> 182% | S66: =VLOOKUP($C66,'RECAP SECT'!$G$6:$EV$312,39,FALSE) -> 0% | T66: =VLOOKUP($C66,'RECAP SECT'!$G$6:$EV$312,40,FALSE) -> 1 | U66: =VLOOKUP($C66,'RECAP SECT'!$G$6:$EV$312,41,FALSE) -> 36% | V66: =VLOOKUP($C66,'RECAP SECT'!$G$6:$EV$312,42,FALSE) -> 1% | W66: =VLOOKUP($C66,'RECAP SECT'!$G$6:$EV$312,43,FALSE) -> 2
A67: 160 | B67: MOSELLE | C67: 49 | D67: SECTEUR FLORANGE | E67: =VLOOKUP($C67,'RECAP SECT'!$G$6:$EV$312,3,FALSE) -> 14.0 | F67: =VLOOKUP($C67,'RECAP SECT'!$G$6:$EV$312,26,FALSE) -> -9.50 | G67: =VLOOKUP($C67,'RECAP SECT'!$G$6:$EV$312,27,FALSE) -> 95% | H67: =VLOOKUP($C67,'RECAP SECT'!$G$6:$EV$312,28,FALSE) -> 72 | I67: =VLOOKUP($C67,'RECAP SECT'!$G$6:$EV$312,29,FALSE) -> 6.36 | J67: =VLOOKUP($C67,'RECAP SECT'!$G$6:$EV$312,30,FALSE) -> 41% | K67: =VLOOKUP($C67,'RECAP SECT'!$G$6:$EV$312,31,FALSE) -> 8 | L67: =VLOOKUP($C67,'RECAP SECT'!$G$6:$EV$312,32,FALSE) -> 10.29 | M67: =VLOOKUP($C67,'RECAP SECT'!$G$6:$EV$312,33,FALSE) -> 13% | N67: =VLOOKUP($C67,'RECAP SECT'!$G$6:$EV$312,34,FALSE) -> 3 | O67: =VLOOKUP($C67,'RECAP SECT'!$G$6:$EV$312,35,FALSE) -> 2.43 | P67: =VLOOKUP($C67,'RECAP SECT'!$G$6:$EV$312,36,FALSE) -> 55% | Q67: =VLOOKUP($C67,'RECAP SECT'!$G$6:$EV$312,37,FALSE) -> 13 | R67: =VLOOKUP($C67,'RECAP SECT'!$G$6:$EV$312,38,FALSE) -> 56% | S67: =VLOOKUP($C67,'RECAP SECT'!$G$6:$EV$312,39,FALSE) -> 63% | T67: =VLOOKUP($C67,'RECAP SECT'!$G$6:$EV$312,40,FALSE) -> 16 | U67: =VLOOKUP($C67,'RECAP SECT'!$G$6:$EV$312,41,FALSE) -> 54% | V67: =VLOOKUP($C67,'RECAP SECT'!$G$6:$EV$312,42,FALSE) -> 19% | W67: =VLOOKUP($C67,'RECAP SECT'!$G$6:$EV$312,43,FALSE) -> 8
A68: 160 | B68: MOSELLE | C68: 43 | D68: SECTEUR FORBACH CENTRALE | E68: =VLOOKUP($C68,'RECAP SECT'!$G$6:$EV$312,3,FALSE) -> 14.9 | F68: =VLOOKUP($C68,'RECAP SECT'!$G$6:$EV$312,26,FALSE) -> -6.18 | G68: =VLOOKUP($C68,'RECAP SECT'!$G$6:$EV$312,27,FALSE) -> 47% | H68: =VLOOKUP($C68,'RECAP SECT'!$G$6:$EV$312,28,FALSE) -> 20 | I68: =VLOOKUP($C68,'RECAP SECT'!$G$6:$EV$312,29,FALSE) -> 1.41 | J68: =VLOOKUP($C68,'RECAP SECT'!$G$6:$EV$312,30,FALSE) -> 87% | K68: =VLOOKUP($C68,'RECAP SECT'!$G$6:$EV$312,31,FALSE) -> 61 | L68: =VLOOKUP($C68,'RECAP SECT'!$G$6:$EV$312,32,FALSE) -> 8.60 | M68: =VLOOKUP($C68,'RECAP SECT'!$G$6:$EV$312,33,FALSE) -> 27% | N68: =VLOOKUP($C68,'RECAP SECT'!$G$6:$EV$312,34,FALSE) -> 8 | O68: =VLOOKUP($C68,'RECAP SECT'!$G$6:$EV$312,35,FALSE) -> 2.89 | P68: =VLOOKUP($C68,'RECAP SECT'!$G$6:$EV$312,36,FALSE) -> 47% | Q68: =VLOOKUP($C68,'RECAP SECT'!$G$6:$EV$312,37,FALSE) -> 7 | R68: =VLOOKUP($C68,'RECAP SECT'!$G$6:$EV$312,38,FALSE) -> 50% | S68: =VLOOKUP($C68,'RECAP SECT'!$G$6:$EV$312,39,FALSE) -> 66% | T68: =VLOOKUP($C68,'RECAP SECT'!$G$6:$EV$312,40,FALSE) -> 19 | U68: =VLOOKUP($C68,'RECAP SECT'!$G$6:$EV$312,41,FALSE) -> 55% | V68: =VLOOKUP($C68,'RECAP SECT'!$G$6:$EV$312,42,FALSE) -> 20% | W68: =VLOOKUP($C68,'RECAP SECT'!$G$6:$EV$312,43,FALSE) -> 9
A69: 160 | B69: MOSELLE | C69: 44 | D69: SECTEUR HAGONDANGE | E69: =VLOOKUP($C69,'RECAP SECT'!$G$6:$EV$312,3,FALSE) -> 21.7 | F69: =VLOOKUP($C69,'RECAP SECT'!$G$6:$EV$312,26,FALSE) -> -7.97 | G69: =VLOOKUP($C69,'RECAP SECT'!$G$6:$EV$312,27,FALSE) -> 73% | H69: =VLOOKUP($C69,'RECAP SECT'!$G$6:$EV$312,28,FALSE) -> 49 | I69: =VLOOKUP($C69,'RECAP SECT'!$G$6:$EV$312,29,FALSE) -> 5.07 | J69: =VLOOKUP($C69,'RECAP SECT'!$G$6:$EV$312,30,FALSE) -> 53% | K69: =VLOOKUP($C69,'RECAP SECT'!$G$6:$EV$312,31,FALSE) -> 15 | L69: =VLOOKUP($C69,'RECAP SECT'!$G$6:$EV$312,32,FALSE) -> 11.85 | M69: =VLOOKUP($C69,'RECAP SECT'!$G$6:$EV$312,33,FALSE) -> 0% | N69: =VLOOKUP($C69,'RECAP SECT'!$G$6:$EV$312,34,FALSE) -> 1 | O69: =VLOOKUP($C69,'RECAP SECT'!$G$6:$EV$312,35,FALSE) -> 4.61 | P69: =VLOOKUP($C69,'RECAP SECT'!$G$6:$EV$312,36,FALSE) -> 15% | Q69: =VLOOKUP($C69,'RECAP SECT'!$G$6:$EV$312,37,FALSE) -> 2 | R69: =VLOOKUP($C69,'RECAP SECT'!$G$6:$EV$312,38,FALSE) -> -15% | S69: =VLOOKUP($C69,'RECAP SECT'!$G$6:$EV$312,39,FALSE) -> 98% | T69: =VLOOKUP($C69,'RECAP SECT'!$G$6:$EV$312,40,FALSE) -> 72 | U69: =VLOOKUP($C69,'RECAP SECT'!$G$6:$EV$312,41,FALSE) -> 48% | V69: =VLOOKUP($C69,'RECAP SECT'!$G$6:$EV$312,42,FALSE) -> 13% | W69: =VLOOKUP($C69,'RECAP SECT'!$G$6:$EV$312,43,FALSE) -> 6
A70: 160 | B70: MOSELLE | C70: 50 | D70: SECTEUR HAYANGE | E70: =VLOOKUP($C70,'RECAP SECT'!$G$6:$EV$312,3,FALSE) -> 17.5 | F70: =VLOOKUP($C70,'RECAP SECT'!$G$6:$EV$312,26,FALSE) -> -10.76 | G70: =VLOOKUP($C70,'RECAP SECT'!$G$6:$EV$312,27,FALSE) -> 114% | H70: =VLOOKUP($C70,'RECAP SECT'!$G$6:$EV$312,28,FALSE) -> 74 | I70: =VLOOKUP($C70,'RECAP SECT'!$G$6:$EV$312,29,FALSE) -> 3.32 | J70: =VLOOKUP($C70,'RECAP SECT'!$G$6:$EV$312,30,FALSE) -> 69% | K70: =VLOOKUP($C70,'RECAP SECT'!$G$6:$EV$312,31,FALSE) -> 37 | L70: =VLOOKUP($C70,'RECAP SECT'!$G$6:$EV$312,32,FALSE) -> 7.72 | M70: =VLOOKUP($C70,'RECAP SECT'!$G$6:$EV$312,33,FALSE) -> 35% | N70: =VLOOKUP($C70,'RECAP SECT'!$G$6:$EV$312,34,FALSE) -> 11 | O70: =VLOOKUP($C70,'RECAP SECT'!$G$6:$EV$312,35,FALSE) -> 1.89 | P70: =VLOOKUP($C70,'RECAP SECT'!$G$6:$EV$312,36,FALSE) -> 65% | Q70: =VLOOKUP($C70,'RECAP SECT'!$G$6:$EV$312,37,FALSE) -> 21 | R70: =VLOOKUP($C70,'RECAP SECT'!$G$6:$EV$312,38,FALSE) -> 39% | S70: =VLOOKUP($C70,'RECAP SECT'!$G$6:$EV$312,39,FALSE) -> 71% | T70: =VLOOKUP($C70,'RECAP SECT'!$G$6:$EV$312,40,FALSE) -> 28 | U70: =VLOOKUP($C70,'RECAP SECT'!$G$6:$EV$312,41,FALSE) -> 71% | V70: =VLOOKUP($C70,'RECAP SECT'!$G$6:$EV$312,42,FALSE) -> 36% | W70: =VLOOKUP($C70,'RECAP SECT'!$G$6:$EV$312,43,FALSE) -> 35
A71: 160 | B71: MOSELLE | C71: 37 | D71: SECTEUR MERLEBACH | E71: =VLOOKUP($C71,'RECAP SECT'!$G$6:$EV$312,3,FALSE) -> 7.1 | F71: =VLOOKUP($C71,'RECAP SECT'!$G$6:$EV$312,26,FALSE) -> -12.14 | G71: =VLOOKUP($C71,'RECAP SECT'!$G$6:$EV$312,27,FALSE) -> 134% | H71: =VLOOKUP($C71,'RECAP SECT'!$G$6:$EV$312,28,FALSE) -> 76 | I71: =VLOOKUP($C71,'RECAP SECT'!$G$6:$EV$312,29,FALSE) -> 3.25 | J71: =VLOOKUP($C71,'RECAP SECT'!$G$6:$EV$312,30,FALSE) -> 70% | K71: =VLOOKUP($C71,'RECAP SECT'!$G$6:$EV$312,31,FALSE) -> 38 | L71: =VLOOKUP($C71,'RECAP SECT'!$G$6:$EV$312,32,FALSE) -> 9.17 | M71: =VLOOKUP($C71,'RECAP SECT'!$G$6:$EV$312,33,FALSE) -> 23% | N71: =VLOOKUP($C71,'RECAP SECT'!$G$6:$EV$312,34,FALSE) -> 6 | O71: =VLOOKUP($C71,'RECAP SECT'!$G$6:$EV$312,35,FALSE) -> 2.12 | P71: =VLOOKUP($C71,'RECAP SECT'!$G$6:$EV$312,36,FALSE) -> 61% | Q71: =VLOOKUP($C71,'RECAP SECT'!$G$6:$EV$312,37,FALSE) -> 19 | R71: =VLOOKUP($C71,'RECAP SECT'!$G$6:$EV$312,38,FALSE) -> -120% | S71: =VLOOKUP($C71,'RECAP SECT'!$G$6:$EV$312,39,FALSE) -> 150% | T71: =VLOOKUP($C71,'RECAP SECT'!$G$6:$EV$312,40,FALSE) -> 77 | U71: =VLOOKUP($C71,'RECAP SECT'!$G$6:$EV$312,41,FALSE) -> 88% | V71: =VLOOKUP($C71,'RECAP SECT'!$G$6:$EV$312,42,FALSE) -> 53% | W71: =VLOOKUP($C71,'RECAP SECT'!$G$6:$EV$312,43,FALSE) -> 69
A72: 160 | B72: MOSELLE | C72: 45 | D72: SECTEUR METZ REPUBLIQUE | E72: =VLOOKUP($C72,'RECAP SECT'!$G$6:$EV$312,3,FALSE) -> 34.9 | F72: =VLOOKUP($C72,'RECAP SECT'!$G$6:$EV$312,26,FALSE) -> -7.02 | G72: =VLOOKUP($C72,'RECAP SECT'!$G$6:$EV$312,27,FALSE) -> 59% | H72: =VLOOKUP($C72,'RECAP SECT'!$G$6:$EV$312,28,FALSE) -> 32 | I72: =VLOOKUP($C72,'RECAP SECT'!$G$6:$EV$312,29,FALSE) -> 3.61 | J72: =VLOOKUP($C72,'RECAP SECT'!$G$6:$EV$312,30,FALSE) -> 67% | K72: =VLOOKUP($C72,'RECAP SECT'!$G$6:$EV$312,31,FALSE) -> 33 | L72: =VLOOKUP($C72,'RECAP SECT'!$G$6:$EV$312,32,FALSE) -> 9.77 | M72: =VLOOKUP($C72,'RECAP SECT'!$G$6:$EV$312,33,FALSE) -> 17% | N72: =VLOOKUP($C72,'RECAP SECT'!$G$6:$EV$312,34,FALSE) -> 4 | O72: =VLOOKUP($C72,'RECAP SECT'!$G$6:$EV$312,35,FALSE) -> 4.01 | P72: =VLOOKUP($C72,'RECAP SECT'!$G$6:$EV$312,36,FALSE) -> 26% | Q72: =VLOOKUP($C72,'RECAP SECT'!$G$6:$EV$312,37,FALSE) -> 3 | R72: =VLOOKUP($C72,'RECAP SECT'!$G$6:$EV$312,38,FALSE) -> 96% | S72: =VLOOKUP($C72,'RECAP SECT'!$G$6:$EV$312,39,FALSE) -> 43% | T72: =VLOOKUP($C72,'RECAP SECT'!$G$6:$EV$312,40,FALSE) -> 5 | U72: =VLOOKUP($C72,'RECAP SECT'!$G$6:$EV$312,41,FALSE) -> 42% | V72: =VLOOKUP($C72,'RECAP SECT'!$G$6:$EV$312,42,FALSE) -> 8% | W72: =VLOOKUP($C72,'RECAP SECT'!$G$6:$EV$312,43,FALSE) -> 4
A73: 160 | B73: MOSELLE | C73: 46 | D73: SECTEUR METZ SAINT LOUIS | E73: =VLOOKUP($C73,'RECAP SECT'!$G$6:$EV$312,3,FALSE) -> 31.0 | F73: =VLOOKUP($C73,'RECAP SECT'!$G$6:$EV$312,26,FALSE) -> -8.90 | G73: =VLOOKUP($C73,'RECAP SECT'!$G$6:$EV$312,27,FALSE) -> 87% | H73: =VLOOKUP($C73,'RECAP SECT'!$G$6:$EV$312,28,FALSE) -> 63 | I73: =VLOOKUP($C73,'RECAP SECT'!$G$6:$EV$312,29,FALSE) -> 3.90 | J73: =VLOOKUP($C73,'RECAP SECT'!$G$6:$EV$312,30,FALSE) -> 64% | K73: =VLOOKUP($C73,'RECAP SECT'!$G$6:$EV$312,31,FALSE) -> 32 | L73: =VLOOKUP($C73,'RECAP SECT'!$G$6:$EV$312,32,FALSE) -> 6.67 | M73: =VLOOKUP($C73,'RECAP SECT'!$G$6:$EV$312,33,FALSE) -> 44% | N73: =VLOOKUP($C73,'RECAP SECT'!$G$6:$EV$312,34,FALSE) -> 17 | O73: =VLOOKUP($C73,'RECAP SECT'!$G$6:$EV$312,35,FALSE) -> 3.32 | P73: =VLOOKUP($C73,'RECAP SECT'!$G$6:$EV$312,36,FALSE) -> 39% | Q73: =VLOOKUP($C73,'RECAP SECT'!$G$6:$EV$312,37,FALSE) -> 6 | R73: =VLOOKUP($C73,'RECAP SECT'!$G$6:$EV$312,38,FALSE) -> 9% | S73: =VLOOKUP($C73,'RECAP SECT'!$G$6:$EV$312,39,FALSE) -> 86% | T73: =VLOOKUP($C73,'RECAP SECT'!$G$6:$EV$312,40,FALSE) -> 55 | U73: =VLOOKUP($C73,'RECAP SECT'!$G$6:$EV$312,41,FALSE) -> 64% | V73: =VLOOKUP($C73,'RECAP SECT'!$G$6:$EV$312,42,FALSE) -> 29% | W73: =VLOOKUP($C73,'RECAP SECT'!$G$6:$EV$312,43,FALSE) -> 20
A74: 160 | B74: MOSELLE | C74: 41 | D74: SECTEUR MONTIGNY LES METZ | E74: =VLOOKUP($C74,'RECAP SECT'!$G$6:$EV$312,3,FALSE) -> 19.5 | F74: =VLOOKUP($C74,'RECAP SECT'!$G$6:$EV$312,26,FALSE) -> -9.23 | G74: =VLOOKUP($C74,'RECAP SECT'!$G$6:$EV$312,27,FALSE) -> 92% | H74: =VLOOKUP($C74,'RECAP SECT'!$G$6:$EV$312,28,FALSE) -> 67 | I74: =VLOOKUP($C74,'RECAP SECT'!$G$6:$EV$312,29,FALSE) -> 4.10 | J74: =VLOOKUP($C74,'RECAP SECT'!$G$6:$EV$312,30,FALSE) -> 62% | K74: =VLOOKUP($C74,'RECAP SECT'!$G$6:$EV$312,31,FALSE) -> 24 | L74: =VLOOKUP($C74,'RECAP SECT'!$G$6:$EV$312,32,FALSE) -> 7.03 | M74: =VLOOKUP($C74,'RECAP SECT'!$G$6:$EV$312,33,FALSE) -> 41% | N74: =VLOOKUP($C74,'RECAP SECT'!$G$6:$EV$312,34,FALSE) -> 15 | O74: =VLOOKUP($C74,'RECAP SECT'!$G$6:$EV$312,35,FALSE) -> 1.80 | P74: =VLOOKUP($C74,'RECAP SECT'!$G$6:$EV$312,36,FALSE) -> 67% | Q74: =VLOOKUP($C74,'RECAP SECT'!$G$6:$EV$312,37,FALSE) -> 23 | R74: =VLOOKUP($C74,'RECAP SECT'!$G$6:$EV$312,38,FALSE) -> 36% | S74: =VLOOKUP($C74,'RECAP SECT'!$G$6:$EV$312,39,FALSE) -> 72% | T74: =VLOOKUP($C74,'RECAP SECT'!$G$6:$EV$312,40,FALSE) -> 29 | U74: =VLOOKUP($C74,'RECAP SECT'!$G$6:$EV$312,41,FALSE) -> 67% | V74: =VLOOKUP($C74,'RECAP SECT'!$G$6:$EV$312,42,FALSE) -> 32% | W74: =VLOOKUP($C74,'RECAP SECT'!$G$6:$EV$312,43,FALSE) -> 27
A75: 160 | B75: MOSELLE | C75: 51 | D75: SECTEUR ROMBAS | E75: =VLOOKUP($C75,'RECAP SECT'!$G$6:$EV$312,3,FALSE) -> 21.1 | F75: =VLOOKUP($C75,'RECAP SECT'!$G$6:$EV$312,26,FALSE) -> -8.57 | G75: =VLOOKUP($C75,'RECAP SECT'!$G$6:$EV$312,27,FALSE) -> 82% | H75: =VLOOKUP($C75,'RECAP SECT'!$G$6:$EV$312,28,FALSE) -> 57 | I75: =VLOOKUP($C75,'RECAP SECT'!$G$6:$EV$312,29,FALSE) -> 4.07 | J75: =VLOOKUP($C75,'RECAP SECT'!$G$6:$EV$312,30,FALSE) -> 62% | K75: =VLOOKUP($C75,'RECAP SECT'!$G$6:$EV$312,31,FALSE) -> 26 | L75: =VLOOKUP($C75,'RECAP SECT'!$G$6:$EV$312,32,FALSE) -> 5.07 | M75: =VLOOKUP($C75,'RECAP SECT'!$G$6:$EV$312,33,FALSE) -> 57% | N75: =VLOOKUP($C75,'RECAP SECT'!$G$6:$EV$312,34,FALSE) -> 22 | O75: =VLOOKUP($C75,'RECAP SECT'!$G$6:$EV$312,35,FALSE) -> 2.22 | P75: =VLOOKUP($C75,'RECAP SECT'!$G$6:$EV$312,36,FALSE) -> 59% | Q75: =VLOOKUP($C75,'RECAP SECT'!$G$6:$EV$312,37,FALSE) -> 15 | R75: =VLOOKUP($C75,'RECAP SECT'!$G$6:$EV$312,38,FALSE) -> -39% | S75: =VLOOKUP($C75,'RECAP SECT'!$G$6:$EV$312,39,FALSE) -> 110% | T75: =VLOOKUP($C75,'RECAP SECT'!$G$6:$EV$312,40,FALSE) -> 75 | U75: =VLOOKUP($C75,'RECAP SECT'!$G$6:$EV$312,41,FALSE) -> 74% | V75: =VLOOKUP($C75,'RECAP SECT'!$G$6:$EV$312,42,FALSE) -> 40% | W75: =VLOOKUP($C75,'RECAP SECT'!$G$6:$EV$312,43,FALSE) -> 42
A76: 160 | B76: MOSELLE | C76: 40 | D76: SECTEUR SAINT AVOLD | E76: =VLOOKUP($C76,'RECAP SECT'!$G$6:$EV$312,3,FALSE) -> 18.8 | F76: =VLOOKUP($C76,'RECAP SECT'!$G$6:$EV$312,26,FALSE) -> -6.96 | G76: =VLOOKUP($C76,'RECAP SECT'!$G$6:$EV$312,27,FALSE) -> 58% | H76: =VLOOKUP($C76,'RECAP SECT'!$G$6:$EV$312,28,FALSE) -> 30 | I76: =VLOOKUP($C76,'RECAP SECT'!$G$6:$EV$312,29,FALSE) -> 5.32 | J76: =VLOOKUP($C76,'RECAP SECT'!$G$6:$EV$312,30,FALSE) -> 51% | K76: =VLOOKUP($C76,'RECAP SECT'!$G$6:$EV$312,31,FALSE) -> 13 | L76: =VLOOKUP($C76,'RECAP SECT'!$G$6:$EV$312,32,FALSE) -> 9.46 | M76: =VLOOKUP($C76,'RECAP SECT'!$G$6:$EV$312,33,FALSE) -> 20% | N76: =VLOOKUP($C76,'RECAP SECT'!$G$6:$EV$312,34,FALSE) -> 5 | O76: =VLOOKUP($C76,'RECAP SECT'!$G$6:$EV$312,35,FALSE) -> 5.42 | P76: =VLOOKUP($C76,'RECAP SECT'!$G$6:$EV$312,36,FALSE) -> 0% | Q76: =VLOOKUP($C76,'RECAP SECT'!$G$6:$EV$312,37,FALSE) -> 1 | R76: =VLOOKUP($C76,'RECAP SECT'!$G$6:$EV$312,38,FALSE) -> 96% | S76: =VLOOKUP($C76,'RECAP SECT'!$G$6:$EV$312,39,FALSE) -> 43% | T76: =VLOOKUP($C76,'RECAP SECT'!$G$6:$EV$312,40,FALSE) -> 4 | U76: =VLOOKUP($C76,'RECAP SECT'!$G$6:$EV$312,41,FALSE) -> 34% | V76: =VLOOKUP($C76,'RECAP SECT'!$G$6:$EV$312,42,FALSE) -> 0% | W76: =VLOOKUP($C76,'RECAP SECT'!$G$6:$EV$312,43,FALSE) -> 1
A77: 160 | B77: MOSELLE | C77: 38 | D77: SECTEUR SARREBOURG | E77: =VLOOKUP($C77,'RECAP SECT'!$G$6:$EV$312,3,FALSE) -> 13.6 | F77: =VLOOKUP($C77,'RECAP SECT'!$G$6:$EV$312,26,FALSE) -> -7.78 | G77: =VLOOKUP($C77,'RECAP SECT'!$G$6:$EV$312,27,FALSE) -> 70% | H77: =VLOOKUP($C77,'RECAP SECT'!$G$6:$EV$312,28,FALSE) -> 45 | I77: =VLOOKUP($C77,'RECAP SECT'!$G$6:$EV$312,29,FALSE) -> 3.45 | J77: =VLOOKUP($C77,'RECAP SECT'!$G$6:$EV$312,30,FALSE) -> 68% | K77: =VLOOKUP($C77,'RECAP SECT'!$G$6:$EV$312,31,FALSE) -> 36 | L77: =VLOOKUP($C77,'RECAP SECT'!$G$6:$EV$312,32,FALSE) -> 7.19 | M77: =VLOOKUP($C77,'RECAP SECT'!$G$6:$EV$312,33,FALSE) -> 39% | N77: =VLOOKUP($C77,'RECAP SECT'!$G$6:$EV$312,34,FALSE) -> 14 | O77: =VLOOKUP($C77,'RECAP SECT'!$G$6:$EV$312,35,FALSE) -> 3.45 | P77: =VLOOKUP($C77,'RECAP SECT'!$G$6:$EV$312,36,FALSE) -> 36% | Q77: =VLOOKUP($C77,'RECAP SECT'!$G$6:$EV$312,37,FALSE) -> 5 | R77: =VLOOKUP($C77,'RECAP SECT'!$G$6:$EV$312,38,FALSE) -> 42% | S77: =VLOOKUP($C77,'RECAP SECT'!$G$6:$EV$312,39,FALSE) -> 70% | T77: =VLOOKUP($C77,'RECAP SECT'!$G$6:$EV$312,40,FALSE) -> 27 | U77: =VLOOKUP($C77,'RECAP SECT'!$G$6:$EV$312,41,FALSE) -> 57% | V77: =VLOOKUP($C77,'RECAP SECT'!$G$6:$EV$312,42,FALSE) -> 22% | W77: =VLOOKUP($C77,'RECAP SECT'!$G$6:$EV$312,43,FALSE) -> 10
A78: 160 | B78: MOSELLE | C78: 42 | D78: SECTEUR SARREGUEMINES | E78: =VLOOKUP($C78,'RECAP SECT'!$G$6:$EV$312,3,FALSE) -> 20.1 | F78: =VLOOKUP($C78,'RECAP SECT'!$G$6:$EV$312,26,FALSE) -> -5.08 | G78: =VLOOKUP($C78,'RECAP SECT'!$G$6:$EV$312,27,FALSE) -> 31% | H78: =VLOOKUP($C78,'RECAP SECT'!$G$6:$EV$312,28,FALSE) -> 10 | I78: =VLOOKUP($C78,'RECAP SECT'!$G$6:$EV$312,29,FALSE) -> 2.59 | J78: =VLOOKUP($C78,'RECAP SECT'!$G$6:$EV$312,30,FALSE) -> 76% | K78: =VLOOKUP($C78,'RECAP SECT'!$G$6:$EV$312,31,FALSE) -> 44 | L78: =VLOOKUP($C78,'RECAP SECT'!$G$6:$EV$312,32,FALSE) -> 7.82 | M78: =VLOOKUP($C78,'RECAP SECT'!$G$6:$EV$312,33,FALSE) -> 34% | N78: =VLOOKUP($C78,'RECAP SECT'!$G$6:$EV$312,34,FALSE) -> 10 | O78: =VLOOKUP($C78,'RECAP SECT'!$G$6:$EV$312,35,FALSE) -> 2.84 | P78: =VLOOKUP($C78,'RECAP SECT'!$G$6:$EV$312,36,FALSE) -> 48% | Q78: =VLOOKUP($C78,'RECAP SECT'!$G$6:$EV$312,37,FALSE) -> 8 | R78: =VLOOKUP($C78,'RECAP SECT'!$G$6:$EV$312,38,FALSE) -> 86% | S78: =VLOOKUP($C78,'RECAP SECT'!$G$6:$EV$312,39,FALSE) -> 47% | T78: =VLOOKUP($C78,'RECAP SECT'!$G$6:$EV$312,40,FALSE) -> 7 | U78: =VLOOKUP($C78,'RECAP SECT'!$G$6:$EV$312,41,FALSE) -> 47% | V78: =VLOOKUP($C78,'RECAP SECT'!$G$6:$EV$312,42,FALSE) -> 13% | W78: =VLOOKUP($C78,'RECAP SECT'!$G$6:$EV$312,43,FALSE) -> 5
A79: 160 | B79: MOSELLE | C79: 48 | D79: SECTEUR THIONVILLE CENTRALE | E79: =VLOOKUP($C79,'RECAP SECT'!$G$6:$EV$312,3,FALSE) -> 14.4 | F79: =VLOOKUP($C79,'RECAP SECT'!$G$6:$EV$312,26,FALSE) -> -8.10 | G79: =VLOOKUP($C79,'RECAP SECT'!$G$6:$EV$312,27,FALSE) -> 75% | H79: =VLOOKUP($C79,'RECAP SECT'!$G$6:$EV$312,28,FALSE) -> 52 | I79: =VLOOKUP($C79,'RECAP SECT'!$G$6:$EV$312,29,FALSE) -> 4.22 | J79: =VLOOKUP($C79,'RECAP SECT'!$G$6:$EV$312,30,FALSE) -> 61% | K79: =VLOOKUP($C79,'RECAP SECT'!$G$6:$EV$312,31,FALSE) -> 21 | L79: =VLOOKUP($C79,'RECAP SECT'!$G$6:$EV$312,32,FALSE) -> 8.72 | M79: =VLOOKUP($C79,'RECAP SECT'!$G$6:$EV$312,33,FALSE) -> 26% | N79: =VLOOKUP($C79,'RECAP SECT'!$G$6:$EV$312,34,FALSE) -> 7 | O79: =VLOOKUP($C79,'RECAP SECT'!$G$6:$EV$312,35,FALSE) -> 3.53 | P79: =VLOOKUP($C79,'RECAP SECT'!$G$6:$EV$312,36,FALSE) -> 35% | Q79: =VLOOKUP($C79,'RECAP SECT'!$G$6:$EV$312,37,FALSE) -> 4 | R79: =VLOOKUP($C79,'RECAP SECT'!$G$6:$EV$312,38,FALSE) -> 4% | S79: =VLOOKUP($C79,'RECAP SECT'!$G$6:$EV$312,39,FALSE) -> 88% | T79: =VLOOKUP($C79,'RECAP SECT'!$G$6:$EV$312,40,FALSE) -> 63 | U79: =VLOOKUP($C79,'RECAP SECT'!$G$6:$EV$312,41,FALSE) -> 57% | V79: =VLOOKUP($C79,'RECAP SECT'!$G$6:$EV$312,42,FALSE) -> 23% | W79: =VLOOKUP($C79,'RECAP SECT'!$G$6:$EV$312,43,FALSE) -> 11
A80: 80 | B80: VOSGES | C80: 57 | D80: SECTEUR EPINAL ARISTIDE BRIAND | E80: =VLOOKUP($C80,'RECAP SECT'!$G$6:$EV$312,3,FALSE) -> 21.6 | F80: =VLOOKUP($C80,'RECAP SECT'!$G$6:$EV$312,26,FALSE) -> -6.20 | G80: =VLOOKUP($C80,'RECAP SECT'!$G$6:$EV$312,27,FALSE) -> 47% | H80: =VLOOKUP($C80,'RECAP SECT'!$G$6:$EV$312,28,FALSE) -> 21 | I80: =VLOOKUP($C80,'RECAP SECT'!$G$6:$EV$312,29,FALSE) -> 2.13 | J80: =VLOOKUP($C80,'RECAP SECT'!$G$6:$EV$312,30,FALSE) -> 80% | K80: =VLOOKUP($C80,'RECAP SECT'!$G$6:$EV$312,31,FALSE) -> 50 | L80: =VLOOKUP($C80,'RECAP SECT'!$G$6:$EV$312,32,FALSE) -> 0.97 | M80: =VLOOKUP($C80,'RECAP SECT'!$G$6:$EV$312,33,FALSE) -> 92% | N80: =VLOOKUP($C80,'RECAP SECT'!$G$6:$EV$312,34,FALSE) -> 69 | O80: =VLOOKUP($C80,'RECAP SECT'!$G$6:$EV$312,35,FALSE) -> 0.28 | P80: =VLOOKUP($C80,'RECAP SECT'!$G$6:$EV$312,36,FALSE) -> 95% | Q80: =VLOOKUP($C80,'RECAP SECT'!$G$6:$EV$312,37,FALSE) -> 58 | R80: =VLOOKUP($C80,'RECAP SECT'!$G$6:$EV$312,38,FALSE) -> 53% | S80: =VLOOKUP($C80,'RECAP SECT'!$G$6:$EV$312,39,FALSE) -> 64% | T80: =VLOOKUP($C80,'RECAP SECT'!$G$6:$EV$312,40,FALSE) -> 17 | U80: =VLOOKUP($C80,'RECAP SECT'!$G$6:$EV$312,41,FALSE) -> 76% | V80: =VLOOKUP($C80,'RECAP SECT'!$G$6:$EV$312,42,FALSE) -> 41% | W80: =VLOOKUP($C80,'RECAP SECT'!$G$6:$EV$312,43,FALSE) -> 48
A81: 80 | B81: VOSGES | C81: 52 | D81: SECTEUR GERARDMER | E81: =VLOOKUP($C81,'RECAP SECT'!$G$6:$EV$312,3,FALSE) -> 23.1 | F81: =VLOOKUP($C81,'RECAP SECT'!$G$6:$EV$312,26,FALSE) -> -5.81 | G81: =VLOOKUP($C81,'RECAP SECT'!$G$6:$EV$312,27,FALSE) -> 41% | H81: =VLOOKUP($C81,'RECAP SECT'!$G$6:$EV$312,28,FALSE) -> 15 | I81: =VLOOKUP($C81,'RECAP SECT'!$G$6:$EV$312,29,FALSE) -> 4.03 | J81: =VLOOKUP($C81,'RECAP SECT'!$G$6:$EV$312,30,FALSE) -> 63% | K81: =VLOOKUP($C81,'RECAP SECT'!$G$6:$EV$312,31,FALSE) -> 27 | L81: =VLOOKUP($C81,'RECAP SECT'!$G$6:$EV$312,32,FALSE) -> 4.16 | M81: =VLOOKUP($C81,'RECAP SECT'!$G$6:$EV$312,33,FALSE) -> 65% | N81: =VLOOKUP($C81,'RECAP SECT'!$G$6:$EV$312,34,FALSE) -> 28 | O81: =VLOOKUP($C81,'RECAP SECT'!$G$6:$EV$312,35,FALSE) -> 2.17 | P81: =VLOOKUP($C81,'RECAP SECT'!$G$6:$EV$312,36,FALSE) -> 60% | Q81: =VLOOKUP($C81,'RECAP SECT'!$G$6:$EV$312,37,FALSE) -> 17 | R81: =VLOOKUP($C81,'RECAP SECT'!$G$6:$EV$312,38,FALSE) -> 68% | S81: =VLOOKUP($C81,'RECAP SECT'!$G$6:$EV$312,39,FALSE) -> 57% | T81: =VLOOKUP($C81,'RECAP SECT'!$G$6:$EV$312,40,FALSE) -> 13 | U81: =VLOOKUP($C81,'RECAP SECT'!$G$6:$EV$312,41,FALSE) -> 57% | V81: =VLOOKUP($C81,'RECAP SECT'!$G$6:$EV$312,42,FALSE) -> 23% | W81: =VLOOKUP($C81,'RECAP SECT'!$G$6:$EV$312,43,FALSE) -> 12
A82: 80 | B82: VOSGES | C82: 58 | D82: SECTEUR MIRECOURT | E82: =VLOOKUP($C82,'RECAP SECT'!$G$6:$EV$312,3,FALSE) -> 14.8 | F82: =VLOOKUP($C82,'RECAP SECT'!$G$6:$EV$312,26,FALSE) -> -6.06 | G82: =VLOOKUP($C82,'RECAP SECT'!$G$6:$EV$312,27,FALSE) -> 45% | H82: =VLOOKUP($C82,'RECAP SECT'!$G$6:$EV$312,28,FALSE) -> 18 | I82: =VLOOKUP($C82,'RECAP SECT'!$G$6:$EV$312,29,FALSE) -> 4.51 | J82: =VLOOKUP($C82,'RECAP SECT'!$G$6:$EV$312,30,FALSE) -> 58% | K82: =VLOOKUP($C82,'RECAP SECT'!$G$6:$EV$312,31,FALSE) -> 17 | L82: =VLOOKUP($C82,'RECAP SECT'!$G$6:$EV$312,32,FALSE) -> 1.68 | M82: =VLOOKUP($C82,'RECAP SECT'!$G$6:$EV$312,33,FALSE) -> 86% | N82: =VLOOKUP($C82,'RECAP SECT'!$G$6:$EV$312,34,FALSE) -> 60 | O82: =VLOOKUP($C82,'RECAP SECT'!$G$6:$EV$312,35,FALSE) -> 0.07 | P82: =VLOOKUP($C82,'RECAP SECT'!$G$6:$EV$312,36,FALSE) -> 99% | Q82: =VLOOKUP($C82,'RECAP SECT'!$G$6:$EV$312,37,FALSE) -> 67 | R82: =VLOOKUP($C82,'RECAP SECT'!$G$6:$EV$312,38,FALSE) -> 68% | S82: =VLOOKUP($C82,'RECAP SECT'!$G$6:$EV$312,39,FALSE) -> 56% | T82: =VLOOKUP($C82,'RECAP SECT'!$G$6:$EV$312,40,FALSE) -> 12 | U82: =VLOOKUP($C82,'RECAP SECT'!$G$6:$EV$312,41,FALSE) -> 69% | V82: =VLOOKUP($C82,'RECAP SECT'!$G$6:$EV$312,42,FALSE) -> 34% | W82: =VLOOKUP($C82,'RECAP SECT'!$G$6:$EV$312,43,FALSE) -> 30
A83: 80 | B83: VOSGES | C83: 54 | D83: SECTEUR RAON L ETAPE | E83: =VLOOKUP($C83,'RECAP SECT'!$G$6:$EV$312,3,FALSE) -> 15.2 | F83: =VLOOKUP($C83,'RECAP SECT'!$G$6:$EV$312,26,FALSE) -> -6.32 | G83: =VLOOKUP($C83,'RECAP SECT'!$G$6:$EV$312,27,FALSE) -> 49% | H83: =VLOOKUP($C83,'RECAP SECT'!$G$6:$EV$312,28,FALSE) -> 22 | I83: =VLOOKUP($C83,'RECAP SECT'!$G$6:$EV$312,29,FALSE) -> 2.83 | J83: =VLOOKUP($C83,'RECAP SECT'!$G$6:$EV$312,30,FALSE) -> 74% | K83: =VLOOKUP($C83,'RECAP SECT'!$G$6:$EV$312,31,FALSE) -> 41 | L83: =VLOOKUP($C83,'RECAP SECT'!$G$6:$EV$312,32,FALSE) -> 1.84 | M83: =VLOOKUP($C83,'RECAP SECT'!$G$6:$EV$312,33,FALSE) -> 84% | N83: =VLOOKUP($C83,'RECAP SECT'!$G$6:$EV$312,34,FALSE) -> 55 | O83: =VLOOKUP($C83,'RECAP SECT'!$G$6:$EV$312,35,FALSE) -> -0.13 | P83: =VLOOKUP($C83,'RECAP SECT'!$G$6:$EV$312,36,FALSE) -> 102% | Q83: =VLOOKUP($C83,'RECAP SECT'!$G$6:$EV$312,37,FALSE) -> 71 | R83: =VLOOKUP($C83,'RECAP SECT'!$G$6:$EV$312,38,FALSE) -> 8% | S83: =VLOOKUP($C83,'RECAP SECT'!$G$6:$EV$312,39,FALSE) -> 87% | T83: =VLOOKUP($C83,'RECAP SECT'!$G$6:$EV$312,40,FALSE) -> 58 | U83: =VLOOKUP($C83,'RECAP SECT'!$G$6:$EV$312,41,FALSE) -> 79% | V83: =VLOOKUP($C83,'RECAP SECT'!$G$6:$EV$312,42,FALSE) -> 45% | W83: =VLOOKUP($C83,'RECAP SECT'!$G$6:$EV$312,43,FALSE) -> 58
A84: 80 | B84: VOSGES | C84: 56 | D84: SECTEUR REMIREMONT | E84: =VLOOKUP($C84,'RECAP SECT'!$G$6:$EV$312,3,FALSE) -> 19.8 | F84: =VLOOKUP($C84,'RECAP SECT'!$G$6:$EV$312,26,FALSE) -> -7.23 | G84: =VLOOKUP($C84,'RECAP SECT'!$G$6:$EV$312,27,FALSE) -> 62% | H84: =VLOOKUP($C84,'RECAP SECT'!$G$6:$EV$312,28,FALSE) -> 38 | I84: =VLOOKUP($C84,'RECAP SECT'!$G$6:$EV$312,29,FALSE) -> 5.36 | J84: =VLOOKUP($C84,'RECAP SECT'!$G$6:$EV$312,30,FALSE) -> 50% | K84: =VLOOKUP($C84,'RECAP SECT'!$G$6:$EV$312,31,FALSE) -> 12 | L84: =VLOOKUP($C84,'RECAP SECT'!$G$6:$EV$312,32,FALSE) -> 2.78 | M84: =VLOOKUP($C84,'RECAP SECT'!$G$6:$EV$312,33,FALSE) -> 77% | N84: =VLOOKUP($C84,'RECAP SECT'!$G$6:$EV$312,34,FALSE) -> 43 | O84: =VLOOKUP($C84,'RECAP SECT'!$G$6:$EV$312,35,FALSE) -> 0.35 | P84: =VLOOKUP($C84,'RECAP SECT'!$G$6:$EV$312,36,FALSE) -> 93% | Q84: =VLOOKUP($C84,'RECAP SECT'!$G$6:$EV$312,37,FALSE) -> 52 | R84: =VLOOKUP($C84,'RECAP SECT'!$G$6:$EV$312,38,FALSE) -> -7% | S84: =VLOOKUP($C84,'RECAP SECT'!$G$6:$EV$312,39,FALSE) -> 94% | T84: =VLOOKUP($C84,'RECAP SECT'!$G$6:$EV$312,40,FALSE) -> 69 | U84: =VLOOKUP($C84,'RECAP SECT'!$G$6:$EV$312,41,FALSE) -> 75% | V84: =VLOOKUP($C84,'RECAP SECT'!$G$6:$EV$312,42,FALSE) -> 41% | W84: =VLOOKUP($C84,'RECAP SECT'!$G$6:$EV$312,43,FALSE) -> 47
A85: 80 | B85: VOSGES | C85: 55 | D85: SECTEUR SAINT DIE | E85: =VLOOKUP($C85,'RECAP SECT'!$G$6:$EV$312,3,FALSE) -> 22.0 | F85: =VLOOKUP($C85,'RECAP SECT'!$G$6:$EV$312,26,FALSE) -> -7.76 | G85: =VLOOKUP($C85,'RECAP SECT'!$G$6:$EV$312,27,FALSE) -> 70% | H85: =VLOOKUP($C85,'RECAP SECT'!$G$6:$EV$312,28,FALSE) -> 44 | I85: =VLOOKUP($C85,'RECAP SECT'!$G$6:$EV$312,29,FALSE) -> 6.08 | J85: =VLOOKUP($C85,'RECAP SECT'!$G$6:$EV$312,30,FALSE) -> 44% | K85: =VLOOKUP($C85,'RECAP SECT'!$G$6:$EV$312,31,FALSE) -> 9 | L85: =VLOOKUP($C85,'RECAP SECT'!$G$6:$EV$312,32,FALSE) -> 4.00 | M85: =VLOOKUP($C85,'RECAP SECT'!$G$6:$EV$312,33,FALSE) -> 66% | N85: =VLOOKUP($C85,'RECAP SECT'!$G$6:$EV$312,34,FALSE) -> 30 | O85: =VLOOKUP($C85,'RECAP SECT'!$G$6:$EV$312,35,FALSE) -> 1.95 | P85: =VLOOKUP($C85,'RECAP SECT'!$G$6:$EV$312,36,FALSE) -> 64% | Q85: =VLOOKUP($C85,'RECAP SECT'!$G$6:$EV$312,37,FALSE) -> 20 | R85: =VLOOKUP($C85,'RECAP SECT'!$G$6:$EV$312,38,FALSE) -> 44% | S85: =VLOOKUP($C85,'RECAP SECT'!$G$6:$EV$312,39,FALSE) -> 69% | T85: =VLOOKUP($C85,'RECAP SECT'!$G$6:$EV$312,40,FALSE) -> 26 | U85: =VLOOKUP($C85,'RECAP SECT'!$G$6:$EV$312,41,FALSE) -> 62% | V85: =VLOOKUP($C85,'RECAP SECT'!$G$6:$EV$312,42,FALSE) -> 28% | W85: =VLOOKUP($C85,'RECAP SECT'!$G$6:$EV$312,43,FALSE) -> 18
